Workbook

Sheet Main
A1: DOE Advanced Manufacturing Office | G1: QUESTIONS, COMMENTS, or ISSUES
A2: =" Energy Footprint LITE "&"[v.beta2"&"]" -> Energy Footprint LITE [v.beta2] | G2: email: eGuidefeedback@ee.doe.gov
A3: Developed for the DOE Advanced Manufacturing Office
B4: Description
B5: The Energy Footprint tracks energy consumption by source, factors affecting to energy consumption, and specific energy uses on a monthly basis for 1 or multiple years.
C7: Plant Name
C8: Additional Details
D10: First Month (3 letter) | E10: Jan | F10: =IF(COUNTIF(Support!D3:D14,E10),"","Month Not Found, match month format Xxx") ->  | K10: Greater Than 2005 | L10: Less Than 2030 | M10: Rpt > Bas
D11: Reporting Year | E11: 2021 | F11: =K11&L11&M11 ->  | K11: =IF(AND(ReportingYear<=2005,M11=""),"Must be greater than 2005","") ->  | L11: =IF(ReportingYear>2029,"Must be less than 2030","") ->  | M11: =IF(ReportingYear<=BaselineYear,"Reporting Year must be greater than Baseline Year","") -> 
D12: Baseline Year | E12: 2020 | F12: =K12&L12&M12 ->  | K12: =IF(BaselineYear<2005,"Must be greater than 2004","") ->  | L12: =IF(BaselineYear>2029,"Must be less than 2030","") -> 
C14: Energy Source | D14: Units | E14: Energy Source Notes (optional) | H14: Group (optional) | K14: Content | L14: Show
B15: 1 | C15: Electricity | D15: kWh site | J15: =IF(LEN(F15),F15,IF(E15<>"custom->>>",E15,0)) -> 0 | K15: =IF(LEN(C15&D15),TRUE,FALSE) -> TRUE | L15: TRUE
B16: 2 | J16: 0 | K16: FALSE | L16: =OR(K15:K16) -> TRUE
B17: 3 | J17: 0 | K17: FALSE | L17: =OR(K16:K17) -> FALSE
B18: 4 | J18: 0 | K18: FALSE | L18: =OR(K17:K18) -> FALSE
B19: 5 | J19: 0 | K19: FALSE | L19: =OR(K18:K19) -> FALSE
B20: 6 | J20: 0 | K20: FALSE | L20: FALSE
B21: 7 | J21: 0 | K21: FALSE | L21: FALSE
B22: 8 | J22: 0 | K22: FALSE | L22: FALSE
B23: 9 | J23: 0 | K23: FALSE | L23: FALSE
B24: 10 | J24: 0 | K24: FALSE | L24: FALSE
B25: 11 | J25: 0 | K25: FALSE | L25: FALSE
B26: 12 | J26: 0 | K26: FALSE | L26: FALSE
B27: 13 | J27: 0 | K27: FALSE | L27: FALSE
B28: 14 | J28: 0 | K28: FALSE | L28: FALSE
B29: 15 | J29: 0 | K29: FALSE | L29: FALSE
B30: 16 | J30: 0 | K30: FALSE | L30: FALSE
B31: 17 | J31: 0 | K31: FALSE | L31: FALSE
B32: 18 | J32: 0 | K32: FALSE | L32: FALSE
B33: 19 | J33: 0 | K33: FALSE | L33: FALSE
B34: 20 | J34: 0 | K34: FALSE | L34: FALSE
L35: TRUE
C36: Relevant Variable | D36: Units | E36: Relevant Variable Notes (optional) | L36: 1
B37: 1 | C37: Heating Degree Days | K37: =IF(LEN(C37&D37),TRUE,FALSE) -> TRUE | L37: TRUE
B38: 2 | K38: FALSE | L38: =OR(K37:K38) -> TRUE
B39: 3 | K39: FALSE | L39: =OR(K38:K39) -> FALSE
B40: 4 | K40: FALSE | L40: FALSE
B41: 5 | K41: FALSE | L41: FALSE
B42: 6 | K42: FALSE | L42: FALSE
B43: 7 | K43: FALSE | L43: FALSE
B44: 8 | K44: FALSE | L44: FALSE
B45: 9 | K45: FALSE | L45: FALSE
B46: 10 | K46: FALSE | L46: FALSE
B47: 11 | K47: FALSE | L47: FALSE
B48: 12 | K48: FALSE | L48: FALSE
B49: 13 | K49: FALSE | L49: FALSE
B50: 14 | K50: FALSE | L50: FALSE
B51: 15 | K51: FALSE | L51: FALSE
B52: 16 | K52: FALSE | L52: FALSE
B53: 17 | K53: FALSE | L53: FALSE
B54: 18 | K54: FALSE | L54: FALSE
B55: 19 | K55: FALSE | L55: FALSE
B56: 20 | K56: FALSE | L56: FALSE
L58: 1

Sheet Energy Consumption
A1: DOE Advanced Manufacturing Office
A2: Energy Footprint - ENERGY CONSUMPTION | T2: Source | U2: Year | V2: UnitCost | W2: Visible
W3: TRUE
B4: Tracked Energy Sources | F4: Units | G4: Notes (edit notes on Main) | W4: TRUE
B5: 1 | C5: =IF(Main!C15<>"",Main!C15,"") -> Electricity | F5: =IF(Main!D15<>"",Main!D15,"") -> kWh site | G5: =IF(Main!E15<>"",Main!E15,"") ->  | H5: =INDIRECT("G"&I5) ->  | S5: 28 | T5: 1 | U5: =W5 -> TRUE | W5: =OR(C5<>"",F5<>"") -> TRUE | AC5: TOTAL Energy | AD5: 1 | AE5: =AC5 -> TOTAL Energy | AF5: MMBtu | AG5: =AE5&" Consumption" -> TOTAL Energy Consumption | AH5: 1 | AI5: =IFERROR(VLOOKUP(AH5,$AD$5:$AE$29,2,),) -> TOTAL Energy | AJ5: =IFERROR(VLOOKUP(AH5,$AD$5:$AF$29,3,),) -> MMBtu | AK5: 1 | AL5: Units Costs Status
B6: 2 | C6: =IF(Main!C16<>"",Main!C16,"") ->  | F6: =IF(Main!D16<>"",Main!D16,"") ->  | G6: =IF(Main!E16<>"",Main!E16,"") ->  | S6: =S5+82 -> 110 | T6: 2 | U6: FALSE | W6: FALSE | AB6: =COUNTIF(AB10:AB29,"=Electricity*") -> 1 | AC6: TOTAL Electricity | AD6: =IF(AB6>1,AD5+1,AD5) -> 1 | AE6: =AC6 -> TOTAL Electricity | AF6: kWh site | AG6: =AE6&" Consumption" -> TOTAL Electricity Consumption | AH6: 2 | AI6: --------------------------- | AJ6: =IFERROR(VLOOKUP(AH6,$AD$5:$AF$29,3,),) -> 0 | AK6: 2 | AL6: Show | AM6: SHOW Unit Costs
B7: 3 | C7: =IF(Main!C17<>"",Main!C17,"") ->  | F7: =IF(Main!D17<>"",Main!D17,"") ->  | G7: =IF(Main!E17<>"",Main!E17,"") ->  | S7: 192 | T7: 3 | U7: FALSE | W7: FALSE | AB7: =COUNTIF(AB10:AB29,"=Natural Gas") -> 0 | AC7: TOTAL Natural Gas | AD7: =IF(AB7>1,AD6+1,AD6) -> 1 | AE7: TOTAL Natural Gas | AF7: Dtherm | AG7: =AE7&" Consumption" -> TOTAL Natural Gas Consumption | AH7: 3 | AI7: 1: Electricity | AJ7: none | AK7: 3 | AL7: Hide | AM7: HIDE Unit Costs
B8: 4 | C8: =IF(Main!C18<>"",Main!C18,"") ->  | F8: =IF(Main!D18<>"",Main!D18,"") ->  | G8: =IF(Main!E18<>"",Main!E18,"") ->  | S8: 274 | T8: 4 | U8: FALSE | W8: FALSE | AB8: =COUNTIF(AC10:AC29,"<>0")-SUM(AB6:AB7) -> 0 | AC8: TOTAL Other Energy | AD8: =IF(AB8>1,AD7+1,AD7) -> 1 | AE8: TOTAL Other Energy | AF8: MMBtu | AG8: =AE8&" Consumption" -> TOTAL Other Energy Consumption | AH8: 4 | AI8: 0 | AJ8: 0 | AK8: 4
B9: 5 | C9: =IF(Main!C19<>"",Main!C19,"") ->  | F9: =IF(Main!D19<>"",Main!D19,"") ->  | G9: =IF(Main!E19<>"",Main!E19,"") ->  | S9: 356 | T9: 5 | U9: =W9 -> FALSE | W9: FALSE | AC9: --------------------------- | AD9: =AD8+1 -> 2 | AE9: =AC9 -> --------------------------- | AH9: 5 | AI9: 0 | AJ9: 0 | AK9: 5 | AL9: FALSE | AM9: =IF(UnitCostStatus,AM7,AM6) -> SHOW Unit Costs
B10: 6 | C10: =IF(Main!C20<>"",Main!C20,"") ->  | F10: =IF(Main!D20<>"",Main!D20,"") ->  | G10: =IF(Main!E20<>"",Main!E20,"") ->  | S10: 438 | T10: 6 | U10: FALSE | W10: FALSE | AB10: =IF(U5,C5,"") -> Electricity | AC10: =IF(U5,B5&": "&C5,0) -> 1: Electricity | AD10: =IF(AC10<>0,AD9+1,AD9) -> 3 | AE10: 1: Electricity | AF10: =IFERROR(VLOOKUP(AB10,EnergyUnits,2,),"none") -> none | AG10: =AE10 -> 1: Electricity | AH10: 6 | AI10: 0 | AJ10: 0 | AK10: 6
B11: 7 | C11: =IF(Main!C21<>"",Main!C21,"") ->  | F11: =IF(Main!D21<>"",Main!D21,"") ->  | G11: =IF(Main!E21<>"",Main!E21,"") ->  | S11: 520 | T11: 7 | U11: FALSE | W11: FALSE | AC11: 0 | AD11: 3 | AE11: 0 | AF11: none | AG11: =AE11 -> 0 | AH11: 7 | AI11: 0 | AJ11: 0 | AK11: 7
B12: 8 | C12: =IF(Main!C22<>"",Main!C22,"") ->  | F12: =IF(Main!D22<>"",Main!D22,"") ->  | G12: =IF(Main!E22<>"",Main!E22,"") ->  | S12: 602 | T12: 8 | U12: FALSE | W12: FALSE | AC12: 0 | AD12: 3 | AE12: 0 | AF12: none | AG12: 0 | AH12: 8 | AI12: 0 | AJ12: 0 | AK12: 8
B13: 9 | C13: =IF(Main!C23<>"",Main!C23,"") ->  | F13: =IF(Main!D23<>"",Main!D23,"") ->  | G13: =IF(Main!E23<>"",Main!E23,"") ->  | S13: 684 | T13: 9 | U13: FALSE | W13: FALSE | AC13: 0 | AD13: 3 | AE13: 0 | AF13: none | AG13: 0 | AH13: 9 | AI13: 0 | AJ13: 0 | AK13: 9
B14: 10 | C14: =IF(Main!C24<>"",Main!C24,"") ->  | F14: =IF(Main!D24<>"",Main!D24,"") ->  | G14: =IF(Main!E24<>"",Main!E24,"") ->  | S14: 766 | T14: 10 | U14: FALSE | W14: FALSE | AC14: 0 | AD14: 3 | AE14: 0 | AF14: none | AG14: 0 | AH14: 10 | AI14: 0 | AJ14: 0 | AK14: 10
B15: 11 | C15: =IF(Main!C25<>"",Main!C25,"") ->  | F15: =IF(Main!D25<>"",Main!D25,"") ->  | G15: =IF(Main!E25<>"",Main!E25,"") ->  | S15: 848 | T15: 11 | U15: FALSE | W15: FALSE | AC15: 0 | AD15: 3 | AE15: 0 | AF15: none | AG15: 0 | AH15: 11 | AI15: 0 | AJ15: 0 | AK15: 11
B16: 12 | C16: =IF(Main!C26<>"",Main!C26,"") ->  | F16: =IF(Main!D26<>"",Main!D26,"") ->  | G16: =IF(Main!E26<>"",Main!E26,"") ->  | S16: 930 | T16: 12 | U16: FALSE | W16: FALSE | AC16: 0 | AD16: 3 | AE16: 0 | AF16: none | AG16: 0 | AH16: 12 | AI16: 0 | AJ16: 0 | AK16: 12
B17: 13 | C17: =IF(Main!C27<>"",Main!C27,"") ->  | F17: =IF(Main!D27<>"",Main!D27,"") ->  | G17: =IF(Main!E27<>"",Main!E27,"") ->  | S17: 1012 | T17: 13 | U17: FALSE | W17: FALSE | AC17: 0 | AD17: 3 | AE17: 0 | AF17: none | AG17: 0 | AH17: 13 | AI17: 0 | AJ17: 0 | AK17: 13
B18: 14 | C18: =IF(Main!C28<>"",Main!C28,"") ->  | F18: =IF(Main!D28<>"",Main!D28,"") ->  | G18: =IF(Main!E28<>"",Main!E28,"") ->  | S18: 1094 | T18: 14 | U18: FALSE | W18: FALSE | AC18: 0 | AD18: 3 | AE18: 0 | AF18: none | AG18: 0 | AH18: 14 | AI18: 0 | AJ18: 0 | AK18: 14
B19: 15 | C19: =IF(Main!C29<>"",Main!C29,"") ->  | F19: =IF(Main!D29<>"",Main!D29,"") ->  | G19: =IF(Main!E29<>"",Main!E29,"") ->  | S19: 1176 | T19: 15 | U19: FALSE | W19: FALSE | AC19: 0 | AD19: 3 | AE19: 0 | AF19: none | AG19: 0 | AH19: 15 | AI19: 0 | AJ19: 0 | AK19: 15
B20: 16 | C20: =IF(Main!C30<>"",Main!C30,"") ->  | F20: =IF(Main!D30<>"",Main!D30,"") ->  | G20: =IF(Main!E30<>"",Main!E30,"") ->  | S20: 1258 | T20: 16 | U20: FALSE | W20: FALSE | AC20: 0 | AD20: 3 | AE20: 0 | AF20: none | AG20: 0 | AH20: 16 | AI20: 0 | AJ20: 0 | AK20: 16
B21: 17 | C21: =IF(Main!C31<>"",Main!C31,"") ->  | F21: =IF(Main!D31<>"",Main!D31,"") ->  | G21: =IF(Main!E31<>"",Main!E31,"") ->  | H21: =INDIRECT("G"&I21) ->  | S21: 1340 | T21: 17 | U21: FALSE | W21: FALSE | AC21: 0 | AD21: 3 | AE21: 0 | AF21: none | AG21: 0 | AH21: 17 | AI21: 0 | AJ21: 0 | AK21: 17
B22: 18 | C22: =IF(Main!C32<>"",Main!C32,"") ->  | F22: =IF(Main!D32<>"",Main!D32,"") ->  | G22: =IF(Main!E32<>"",Main!E32,"") ->  | S22: 1422 | T22: 18 | U22: FALSE | W22: FALSE | AC22: 0 | AD22: 3 | AE22: 0 | AF22: none | AG22: 0 | AH22: 18 | AI22: 0 | AJ22: 0 | AK22: 18
B23: 19 | C23: =IF(Main!C33<>"",Main!C33,"") ->  | F23: =IF(Main!D33<>"",Main!D33,"") ->  | G23: =IF(Main!E33<>"",Main!E33,"") ->  | S23: 1504 | T23: 19 | U23: FALSE | W23: FALSE | AC23: 0 | AD23: 3 | AE23: 0 | AF23: none | AG23: 0 | AH23: 19 | AI23: 0 | AJ23: 0 | AK23: 19
B24: 20 | C24: =IF(Main!C34<>"",Main!C34,"") ->  | F24: =IF(Main!D34<>"",Main!D34,"") ->  | G24: =IF(Main!E34<>"",Main!E34,"") ->  | S24: 1586 | T24: 20 | U24: FALSE | W24: FALSE | AC24: 0 | AD24: 3 | AE24: 0 | AF24: none | AG24: 0 | AH24: 20 | AI24: 0 | AJ24: 0 | AK24: 20
W25: =NOT(X25) -> TRUE | X25: =IF(NOT(W24),FALSE,C24<>"") -> FALSE | AC25: 0 | AD25: 3 | AE25: 0 | AF25: none | AG25: 0 | AH25: 21 | AI25: 0 | AJ25: 0
W26: =NOT(W25) -> FALSE | AC26: 0 | AD26: 3 | AE26: 0 | AF26: none | AG26: 0 | AH26: 22 | AI26: 0 | AJ26: 0
B27: Energy Source | F27: UNIT | G27: Notes | T27: =VLOOKUP(B28,$T$5:$U$24,2,) -> TRUE | W27: =AND(S27:V27) -> TRUE | AC27: 0 | AD27: 3 | AE27: 0 | AF27: none | AG27: 0 | AH27: 23 | AI27: 0 | AJ27: 0
A28: back to top | B28: 1 | C28: =VLOOKUP(B28,$B$5:$F$24,2,) -> Electricity | F28: =VLOOKUP(B28,$B$5:$G$24,5,) -> kWh site | G28: =VLOOKUP(B28,$B$5:$G$24,6,) ->  | T28: =T27 -> TRUE | W28: TRUE | AC28: 0 | AD28: 3 | AE28: 0 | AF28: none | AG28: 0 | AH28: 24 | AI28: 0 | AJ28: 0
T29: =T28 -> TRUE | W29: TRUE | AC29: 0 | AD29: 3 | AE29: 0 | AF29: none | AG29: 0 | AH29: 25 | AI29: 0 | AJ29: 0
D30: =Support!H3 -> Jan | E30: =Support!I3 -> Feb | F30: =Support!J3 -> Mar | G30: =Support!K3 -> Apr | H30: =Support!L3 -> May | I30: =Support!M3 -> Jun | J30: =Support!N3 -> Jul | K30: =Support!O3 -> Aug | L30: =Support!P3 -> Sep | M30: =Support!Q3 -> Oct | N30: =Support!R3 -> Nov | O30: =Support!S3 -> Dec | Q30: YEAR | T30: =T29 -> TRUE | W30: TRUE
B31: =FinalYear -> 2029 | C31: $$ | Q31: =SUM(D31:O31) -> 0 | T31: TRUE | U31: =AND(B31<=ReportingYear,B31>=BaselineYear) -> FALSE | W31: FALSE
C32: Qty | Q32: 0 | S32: =IF(F28="none",FALSE,TRUE) -> TRUE | T32: TRUE | U32: =U31 -> FALSE | W32: FALSE
B33: =B31-1 -> 2028 | C33: $$ | Q33: 0 | T33: TRUE | U33: =AND(B33<=ReportingYear,B33>=BaselineYear) -> FALSE | W33: FALSE
C34: Qty | Q34: 0 | S34: =S32 -> TRUE | T34: TRUE | U34: =U33 -> FALSE | W34: FALSE
B35: =B33-1 -> 2027 | C35: $$ | Q35: 0 | T35: TRUE | U35: =AND(B35<=ReportingYear,B35>=BaselineYear) -> FALSE | W35: FALSE
C36: Qty | Q36: 0 | S36: =S34 -> TRUE | T36: TRUE | U36: =U35 -> FALSE | W36: FALSE
B37: =B35-1 -> 2026 | C37: $$ | Q37: 0 | T37: TRUE | U37: =AND(B37<=ReportingYear,B37>=BaselineYear) -> FALSE | W37: FALSE
C38: Qty | Q38: 0 | S38: =S36 -> TRUE | T38: TRUE | U38: =U37 -> FALSE | W38: FALSE
B39: =B37-1 -> 2025 | C39: $$ | Q39: 0 | T39: TRUE | U39: =AND(B39<=ReportingYear,B39>=BaselineYear) -> FALSE | W39: FALSE
C40: Qty | Q40: 0 | S40: =S38 -> TRUE | T40: TRUE | U40: =U39 -> FALSE | W40: FALSE
B41: =B39-1 -> 2024 | C41: $$ | Q41: 0 | T41: TRUE | U41: =AND(B41<=ReportingYear,B41>=BaselineYear) -> FALSE | W41: FALSE
C42: Qty | Q42: 0 | S42: =S40 -> TRUE | T42: TRUE | U42: =U41 -> FALSE | W42: FALSE
B43: =B41-1 -> 2023 | C43: $$ | Q43: 0 | T43: TRUE | U43: =AND(B43<=ReportingYear,B43>=BaselineYear) -> FALSE | W43: FALSE
C44: Qty | Q44: 0 | S44: =S42 -> TRUE | T44: TRUE | U44: =U43 -> FALSE | W44: FALSE
B45: =B43-1 -> 2022 | C45: $$ | Q45: 0 | T45: TRUE | U45: =AND(B45<=ReportingYear,B45>=BaselineYear) -> FALSE | W45: FALSE
C46: Qty | Q46: 0 | S46: =S44 -> TRUE | T46: TRUE | U46: =U45 -> FALSE | W46: FALSE
B47: =B45-1 -> 2021 | C47: $$ | Q47: 0 | T47: TRUE | U47: =AND(B47<=ReportingYear,B47>=BaselineYear) -> TRUE | W47: TRUE
C48: Qty | Q48: 0 | S48: =S46 -> TRUE | T48: TRUE | U48: =U47 -> TRUE | W48: TRUE
B49: =B47-1 -> 2020 | C49: $$ | Q49: 0 | T49: TRUE | U49: =AND(B49<=ReportingYear,B49>=BaselineYear) -> TRUE | W49: TRUE
C50: Qty | Q50: 0 | S50: =S48 -> TRUE | T50: TRUE | U50: =U49 -> TRUE | W50: TRUE
B51: =B49-1 -> 2019 | C51: $$ | Q51: 0 | T51: TRUE | U51: =AND(B51<=ReportingYear,B51>=BaselineYear) -> FALSE | W51: FALSE
C52: Qty | Q52: 0 | S52: =S50 -> TRUE | T52: TRUE | U52: =U51 -> FALSE | W52: FALSE
B53: =B51-1 -> 2018 | C53: $$ | Q53: 0 | T53: TRUE | U53: =AND(B53<=ReportingYear,B53>=BaselineYear) -> FALSE | W53: FALSE
C54: Qty | Q54: 0 | S54: =S52 -> TRUE | T54: TRUE | U54: =U53 -> FALSE | W54: FALSE
B55: =B53-1 -> 2017 | C55: $$ | Q55: 0 | T55: TRUE | U55: =AND(B55<=ReportingYear,B55>=BaselineYear) -> FALSE | W55: FALSE
C56: Qty | Q56: 0 | S56: =S54 -> TRUE | T56: TRUE | U56: =U55 -> FALSE | W56: FALSE
B57: =B55-1 -> 2016 | C57: $$ | Q57: 0 | T57: TRUE | U57: =AND(B57<=ReportingYear,B57>=BaselineYear) -> FALSE | W57: FALSE
C58: Qty | Q58: 0 | S58: =S56 -> TRUE | T58: TRUE | U58: =U57 -> FALSE | W58: FALSE
B59: =B57-1 -> 2015 | C59: $$ | Q59: 0 | T59: TRUE | U59: =AND(B59<=ReportingYear,B59>=BaselineYear) -> FALSE | W59: FALSE
C60: Qty | Q60: 0 | S60: =S58 -> TRUE | T60: TRUE | U60: =U59 -> FALSE | W60: FALSE
B61: =B59-1 -> 2014 | C61: $$ | Q61: 0 | T61: TRUE | U61: =AND(B61<=ReportingYear,B61>=BaselineYear) -> FALSE | W61: FALSE
C62: Qty | Q62: 0 | S62: =S60 -> TRUE | T62: TRUE | U62: =U61 -> FALSE | W62: FALSE
B63: =B61-1 -> 2013 | C63: $$ | Q63: 0 | T63: TRUE | U63: =AND(B63<=ReportingYear,B63>=BaselineYear) -> FALSE | W63: FALSE
C64: Qty | Q64: 0 | S64: =S62 -> TRUE | T64: TRUE | U64: =U63 -> FALSE | W64: FALSE
B65: =B63-1 -> 2012 | C65: $$ | Q65: 0 | T65: TRUE | U65: =AND(B65<=ReportingYear,B65>=BaselineYear) -> FALSE | W65: FALSE
C66: Qty | Q66: 0 | S66: =S64 -> TRUE | T66: TRUE | U66: =U65 -> FALSE | W66: FALSE
B67: =B65-1 -> 2011 | C67: $$ | Q67: 0 | T67: TRUE | U67: =AND(B67<=ReportingYear,B67>=BaselineYear) -> FALSE | W67: FALSE
C68: Qty | Q68: 0 | S68: =S66 -> TRUE | T68: TRUE | U68: =U67 -> FALSE | W68: FALSE
B69: =B67-1 -> 2010 | C69: $$ | Q69: 0 | T69: TRUE | U69: =AND(B69<=ReportingYear,B69>=BaselineYear) -> FALSE | W69: FALSE
C70: Qty | Q70: 0 | S70: =S68 -> TRUE | T70: TRUE | U70: =U69 -> FALSE | W70: FALSE
B71: =B69-1 -> 2009 | C71: $$ | Q71: 0 | T71: TRUE | U71: =AND(B71<=ReportingYear,B71>=BaselineYear) -> FALSE | W71: FALSE
C72: Qty | Q72: 0 | S72: =S70 -> TRUE | T72: TRUE | U72: =U71 -> FALSE | W72: FALSE
B73: =B71-1 -> 2008 | C73: $$ | Q73: 0 | T73: TRUE | U73: =AND(B73<=ReportingYear,B73>=BaselineYear) -> FALSE | W73: FALSE
C74: Qty | Q74: 0 | S74: =S72 -> TRUE | T74: TRUE | U74: =U73 -> FALSE | W74: FALSE
B75: =B73-1 -> 2007 | C75: $$ | Q75: 0 | T75: TRUE | U75: =AND(B75<=ReportingYear,B75>=BaselineYear) -> FALSE | W75: FALSE
C76: Qty | Q76: 0 | S76: =S74 -> TRUE | T76: TRUE | U76: =U75 -> FALSE | W76: FALSE
B77: =B75-1 -> 2006 | C77: $$ | Q77: 0 | T77: TRUE | U77: =AND(B77<=ReportingYear,B77>=BaselineYear) -> FALSE | W77: FALSE
C78: Qty | Q78: 0 | S78: =S76 -> TRUE | T78: TRUE | U78: =U77 -> FALSE | W78: FALSE
B79: =B77-1 -> 2005 | C79: $$ | Q79: =SUM(D79:O79) -> 0 | T79: TRUE | U79: =AND(B79<=ReportingYear,B79>=BaselineYear) -> FALSE | W79: FALSE
C80: Qty | Q80: =SUM(D80:O80) -> 0 | S80: =S78 -> TRUE | T80: TRUE | U80: =U79 -> FALSE | W80: FALSE
T81: =T52 -> TRUE | W81: TRUE
B82: Per Unit Costs | C82: =B31 -> 2029 | D82: =IF(D32<>0,D31/D32,"") ->  | Q82: =IF(Q32<>0,Q31/Q32,"") ->  | S82: =S60 -> TRUE | T82: =T81 -> TRUE | U82: =AND(C82<=ReportingYear,C82>=BaselineYear) -> FALSE | V82: =UnitCostStatus -> FALSE | W82: FALSE
C83: =C82-1 -> 2028 | D83: =IF(D34<>0,D33/D34,"") ->  | Q83: =IF(Q34<>0,Q33/Q34,"") ->  | S83: =S82 -> TRUE | T83: TRUE | U83: FALSE | V83: =V82 -> FALSE | W83: FALSE
C84: =C83-1 -> 2027 | D84: =IF(D36<>0,D35/D36,"") ->  | Q84: =IF(Q36<>0,Q35/Q36,"") ->  | S84: TRUE | T84: TRUE | U84: FALSE | V84: =V83 -> FALSE | W84: FALSE
C85: 2026 | D85: =IF(D38<>0,D37/D38,"") ->  | Q85: =IF(Q38<>0,Q37/Q38,"") ->  | S85: TRUE | T85: TRUE | U85: FALSE | V85: =V84 -> FALSE | W85: FALSE
C86: 2025 | D86: =IF(D40<>0,D39/D40,"") ->  | Q86: =IF(Q40<>0,Q39/Q40,"") ->  | S86: TRUE | T86: TRUE | U86: FALSE | V86: FALSE | W86: FALSE
C87: 2024 | D87: =IF(D42<>0,D41/D42,"") ->  | Q87: =IF(Q42<>0,Q41/Q42,"") ->  | S87: TRUE | T87: TRUE | U87: FALSE | V87: FALSE | W87: FALSE
C88: 2023 | D88: =IF(D44<>0,D43/D44,"") ->  | Q88: =IF(Q44<>0,Q43/Q44,"") ->  | S88: TRUE | T88: TRUE | U88: FALSE | V88: FALSE | W88: FALSE
C89: 2022 | D89: =IF(D46<>0,D45/D46,"") ->  | Q89: =IF(Q46<>0,Q45/Q46,"") ->  | S89: TRUE | T89: TRUE | U89: FALSE | V89: FALSE | W89: FALSE
C90: 2021 | D90: =IF(D48<>0,D47/D48,"") ->  | Q90: =IF(Q48<>0,Q47/Q48,"") ->  | S90: TRUE | T90: TRUE | U90: TRUE | V90: FALSE | W90: FALSE
C91: 2020 | D91: =IF(D50<>0,D49/D50,"") ->  | Q91: =IF(Q50<>0,Q49/Q50,"") ->  | S91: TRUE | T91: TRUE | U91: TRUE | V91: FALSE | W91: =AND(S91:V91) -> FALSE
C92: 2019 | D92: =IF(D52<>0,D51/D52,"") ->  | Q92: =IF(Q52<>0,Q51/Q52,"") ->  | S92: TRUE | T92: TRUE | U92: FALSE | V92: FALSE | W92: FALSE
C93: 2018 | D93: =IF(D54<>0,D53/D54,"") ->  | Q93: =IF(Q54<>0,Q53/Q54,"") ->  | S93: TRUE | T93: TRUE | U93: FALSE | V93: FALSE | W93: FALSE
C94: 2017 | D94: =IF(D56<>0,D55/D56,"") ->  | Q94: =IF(Q56<>0,Q55/Q56,"") ->  | S94: TRUE | T94: TRUE | U94: FALSE | V94: FALSE | W94: FALSE
C95: 2016 | D95: =IF(D58<>0,D57/D58,"") ->  | Q95: =IF(Q58<>0,Q57/Q58,"") ->  | S95: TRUE | T95: TRUE | U95: FALSE | V95: FALSE | W95: FALSE
C96: 2015 | D96: =IF(D60<>0,D59/D60,"") ->  | E96: =IF(E60<>0,E59/E60,"") ->  | Q96: =IF(Q60<>0,Q59/Q60,"") ->  | S96: TRUE | T96: TRUE | U96: FALSE | V96: FALSE | W96: FALSE
C97: 2014 | D97: =IF(D62<>0,D61/D62,"") ->  | E97: =IF(E62<>0,E61/E62,"") ->  | Q97: =IF(Q62<>0,Q61/Q62,"") ->  | S97: TRUE | T97: TRUE | U97: FALSE | V97: FALSE | W97: FALSE
C98: 2013 | D98: =IF(D64<>0,D63/D64,"") ->  | E98: =IF(E64<>0,E63/E64,"") ->  | Q98: =IF(Q64<>0,Q63/Q64,"") ->  | S98: TRUE | T98: TRUE | U98: FALSE | V98: FALSE | W98: FALSE
C99: 2012 | D99: =IF(D66<>0,D65/D66,"") ->  | E99: =IF(E66<>0,E65/E66,"") ->  | Q99: =IF(Q66<>0,Q65/Q66,"") ->  | S99: =S98 -> TRUE | T99: TRUE | U99: FALSE | V99: FALSE | W99: FALSE
C100: 2011 | D100: =IF(D68<>0,D67/D68,"") ->  | E100: =IF(E68<>0,E67/E68,"") ->  | Q100: =IF(Q68<>0,Q67/Q68,"") ->  | S100: TRUE | T100: TRUE | U100: FALSE | V100: FALSE | W100: FALSE
C101: 2010 | D101: =IF(D70<>0,D69/D70,"") ->  | E101: =IF(E70<>0,E69/E70,"") ->  | Q101: =IF(Q70<>0,Q69/Q70,"") ->  | S101: TRUE | T101: TRUE | U101: FALSE | V101: FALSE | W101: FALSE
C102: 2009 | D102: =IF(D72<>0,D71/D72,"") ->  | E102: =IF(E72<>0,E71/E72,"") ->  | Q102: =IF(Q72<>0,Q71/Q72,"") ->  | S102: TRUE | T102: TRUE | U102: FALSE | V102: FALSE | W102: FALSE
C103: 2008 | D103: =IF(D74<>0,D73/D74,"") ->  | E103: =IF(E74<>0,E73/E74,"") ->  | Q103: =IF(Q74<>0,Q73/Q74,"") ->  | S103: TRUE | T103: TRUE | U103: FALSE | V103: FALSE | W103: FALSE
C104: 2007 | D104: =IF(D76<>0,D75/D76,"") ->  | E104: =IF(E76<>0,E75/E76,"") ->  | Q104: =IF(Q76<>0,Q75/Q76,"") ->  | S104: TRUE | T104: TRUE | U104: FALSE | V104: FALSE | W104: FALSE
C105: 2006 | D105: =IF(D78<>0,D77/D78,"") ->  | E105: =IF(E78<>0,E77/E78,"") ->  | Q105: =IF(Q78<>0,Q77/Q78,"") ->  | S105: TRUE | T105: TRUE | U105: FALSE | V105: FALSE | W105: FALSE
C106: 2005 | D106: =IF(D80<>0,D79/D80,"") ->  | E106: =IF(E80<>0,E79/E80,"") ->  | Q106: =IF(Q80<>0,Q79/Q80,"") ->  | S106: TRUE | T106: TRUE | U106: FALSE | V106: FALSE | W106: FALSE
S107: =S92 -> TRUE | T107: =T92 -> TRUE | V107: =V92 -> FALSE | W107: FALSE
T108: =T107 -> TRUE | W108: TRUE
B109: Energy Source | F109: UNIT | G109: Notes | T109: =VLOOKUP(B110,$T$5:$U$24,2,) -> FALSE | W109: FALSE
A110: back to top | B110: =B28+1 -> 2 | C110: =VLOOKUP(B110,$B$5:$F$24,2,) ->  | F110: =VLOOKUP(B110,$B$5:$G$24,5,) ->  | G110: =VLOOKUP(B110,$B$5:$G$24,6,) ->  | T110: =T109 -> FALSE | W110: FALSE
T111: =T110 -> FALSE | W111: FALSE
D112: =D30 -> Jan | E112: =E30 -> Feb | F112: Mar | G112: Apr | H112: May | I112: Jun | J112: Jul | K112: Aug | L112: Sep | M112: Oct | N112: Nov | O112: Dec | Q112: YEAR | T112: =T111 -> FALSE | W112: FALSE
B113: =FinalYear -> 2029 | C113: $$ | Q113: =SUM(D113:O113) -> 0 | T113: FALSE | U113: =AND(B113<=ReportingYear,B113>=BaselineYear) -> FALSE | W113: FALSE
C114: Qty | Q114: 0 | S114: =IF(F110="none",FALSE,TRUE) -> TRUE | T114: FALSE | U114: =U113 -> FALSE | W114: FALSE
B115: =B113-1 -> 2028 | C115: $$ | Q115: 0 | T115: FALSE | U115: =AND(B115<=ReportingYear,B115>=BaselineYear) -> FALSE | W115: FALSE
C116: Qty | Q116: 0 | S116: =S114 -> TRUE | T116: FALSE | U116: =U115 -> FALSE | W116: FALSE
B117: =B115-1 -> 2027 | C117: $$ | Q117: 0 | T117: FALSE | U117: =AND(B117<=ReportingYear,B117>=BaselineYear) -> FALSE | W117: FALSE
C118: Qty | Q118: 0 | S118: =S116 -> TRUE | T118: FALSE | U118: =U117 -> FALSE | W118: FALSE
B119: =B117-1 -> 2026 | C119: $$ | Q119: 0 | T119: FALSE | U119: =AND(B119<=ReportingYear,B119>=BaselineYear) -> FALSE | W119: FALSE
C120: Qty | Q120: 0 | S120: =S118 -> TRUE | T120: FALSE | U120: =U119 -> FALSE | W120: FALSE
B121: =B119-1 -> 2025 | C121: $$ | Q121: 0 | T121: FALSE | U121: =AND(B121<=ReportingYear,B121>=BaselineYear) -> FALSE | W121: FALSE
C122: Qty | Q122: 0 | S122: =S120 -> TRUE | T122: FALSE | U122: =U121 -> FALSE | W122: FALSE
B123: =B121-1 -> 2024 | C123: $$ | Q123: 0 | T123: FALSE | U123: =AND(B123<=ReportingYear,B123>=BaselineYear) -> FALSE | W123: FALSE
C124: Qty | Q124: 0 | S124: =S122 -> TRUE | T124: FALSE | U124: =U123 -> FALSE | W124: FALSE
B125: =B123-1 -> 2023 | C125: $$ | Q125: 0 | T125: FALSE | U125: =AND(B125<=ReportingYear,B125>=BaselineYear) -> FALSE | W125: FALSE
C126: Qty | Q126: 0 | S126: =S124 -> TRUE | T126: FALSE | U126: =U125 -> FALSE | W126: FALSE
B127: =B125-1 -> 2022 | C127: $$ | Q127: 0 | T127: FALSE | U127: =AND(B127<=ReportingYear,B127>=BaselineYear) -> FALSE | W127: FALSE
C128: Qty | Q128: 0 | S128: =S126 -> TRUE | T128: FALSE | U128: =U127 -> FALSE | W128: FALSE
B129: =B127-1 -> 2021 | C129: $$ | Q129: 0 | T129: FALSE | U129: =AND(B129<=ReportingYear,B129>=BaselineYear) -> TRUE | W129: FALSE
C130: Qty | Q130: 0 | S130: =S128 -> TRUE | T130: FALSE | U130: =U129 -> TRUE | W130: FALSE
B131: =B129-1 -> 2020 | C131: $$ | Q131: 0 | T131: FALSE | U131: =AND(B131<=ReportingYear,B131>=BaselineYear) -> TRUE | W131: FALSE
C132: Qty | Q132: 0 | S132: =S130 -> TRUE | T132: FALSE | U132: =U131 -> TRUE | W132: FALSE
B133: =B131-1 -> 2019 | C133: $$ | Q133: 0 | T133: FALSE | U133: =AND(B133<=ReportingYear,B133>=BaselineYear) -> FALSE | W133: FALSE
C134: Qty | Q134: 0 | S134: =S132 -> TRUE | T134: FALSE | U134: =U133 -> FALSE | W134: FALSE
B135: =B133-1 -> 2018 | C135: $$ | Q135: 0 | T135: FALSE | U135: =AND(B135<=ReportingYear,B135>=BaselineYear) -> FALSE | W135: FALSE
C136: Qty | Q136: 0 | S136: =S134 -> TRUE | T136: FALSE | U136: =U135 -> FALSE | W136: FALSE
B137: =B135-1 -> 2017 | C137: $$ | Q137: 0 | T137: FALSE | U137: =AND(B137<=ReportingYear,B137>=BaselineYear) -> FALSE | W137: FALSE
C138: Qty | Q138: 0 | S138: =S136 -> TRUE | T138: FALSE | U138: =U137 -> FALSE | W138: FALSE
B139: =B137-1 -> 2016 | C139: $$ | Q139: 0 | T139: FALSE | U139: =AND(B139<=ReportingYear,B139>=BaselineYear) -> FALSE | W139: FALSE
C140: Qty | Q140: 0 | S140: =S138 -> TRUE | T140: FALSE | U140: =U139 -> FALSE | W140: FALSE
B141: =B139-1 -> 2015 | C141: $$ | Q141: 0 | T141: FALSE | U141: =AND(B141<=ReportingYear,B141>=BaselineYear) -> FALSE | W141: FALSE
C142: Qty | Q142: 0 | S142: =S140 -> TRUE | T142: FALSE | U142: =U141 -> FALSE | W142: FALSE
B143: =B141-1 -> 2014 | C143: $$ | Q143: 0 | T143: FALSE | U143: =AND(B143<=ReportingYear,B143>=BaselineYear) -> FALSE | W143: FALSE
C144: Qty | Q144: 0 | S144: =S142 -> TRUE | T144: FALSE | U144: =U143 -> FALSE | W144: FALSE
B145: =B143-1 -> 2013 | C145: $$ | Q145: 0 | T145: FALSE | U145: =AND(B145<=ReportingYear,B145>=BaselineYear) -> FALSE | W145: FALSE
C146: Qty | Q146: 0 | S146: =S144 -> TRUE | T146: FALSE | U146: =U145 -> FALSE | W146: FALSE
B147: =B145-1 -> 2012 | C147: $$ | Q147: 0 | T147: FALSE | U147: =AND(B147<=ReportingYear,B147>=BaselineYear) -> FALSE | W147: FALSE
C148: Qty | Q148: 0 | S148: =S146 -> TRUE | T148: FALSE | U148: =U147 -> FALSE | W148: FALSE
B149: =B147-1 -> 2011 | C149: $$ | Q149: 0 | T149: FALSE | U149: =AND(B149<=ReportingYear,B149>=BaselineYear) -> FALSE | W149: FALSE
C150: Qty | Q150: 0 | S150: =S148 -> TRUE | T150: FALSE | U150: =U149 -> FALSE | W150: FALSE
B151: =B149-1 -> 2010 | C151: $$ | Q151: 0 | T151: FALSE | U151: =AND(B151<=ReportingYear,B151>=BaselineYear) -> FALSE | W151: FALSE
C152: Qty | Q152: 0 | S152: =S150 -> TRUE | T152: FALSE | U152: =U151 -> FALSE | W152: FALSE
B153: =B151-1 -> 2009 | C153: $$ | Q153: 0 | T153: FALSE | U153: =AND(B153<=ReportingYear,B153>=BaselineYear) -> FALSE | W153: FALSE
C154: Qty | Q154: 0 | S154: =S152 -> TRUE | T154: FALSE | U154: =U153 -> FALSE | W154: FALSE
B155: =B153-1 -> 2008 | C155: $$ | Q155: 0 | T155: FALSE | U155: =AND(B155<=ReportingYear,B155>=BaselineYear) -> FALSE | W155: =AND(S155:V155) -> FALSE
C156: Qty | Q156: 0 | S156: =S154 -> TRUE | T156: FALSE | U156: =U155 -> FALSE | W156: FALSE
B157: =B155-1 -> 2007 | C157: $$ | Q157: 0 | T157: FALSE | U157: =AND(B157<=ReportingYear,B157>=BaselineYear) -> FALSE | W157: FALSE
C158: Qty | Q158: 0 | S158: =S156 -> TRUE | T158: FALSE | U158: =U157 -> FALSE | W158: FALSE
B159: =B157-1 -> 2006 | C159: $$ | Q159: 0 | T159: FALSE | U159: =AND(B159<=ReportingYear,B159>=BaselineYear) -> FALSE | W159: FALSE
C160: Qty | Q160: 0 | S160: =S158 -> TRUE | T160: FALSE | U160: =U159 -> FALSE | W160: FALSE
B161: =B159-1 -> 2005 | C161: $$ | Q161: 0 | T161: FALSE | U161: =AND(B161<=ReportingYear,B161>=BaselineYear) -> FALSE | W161: FALSE
C162: Qty | Q162: 0 | S162: =S160 -> TRUE | T162: FALSE | U162: =U161 -> FALSE | W162: FALSE
T163: =T134 -> FALSE | W163: FALSE
B164: Per Unit Costs | C164: =B113 -> 2029 | D164: =IF(D114<>0,D113/D114,"") ->  | Q164: =IF(Q114<>0,Q113/Q114,"") ->  | S164: =S142 -> TRUE | T164: =T163 -> FALSE | U164: =AND(C164<=ReportingYear,C164>=BaselineYear) -> FALSE | V164: =UnitCostStatus -> FALSE | W164: FALSE
C165: =C164-1 -> 2028 | D165: =IF(D116<>0,D115/D116,"") ->  | Q165: =IF(Q116<>0,Q115/Q116,"") ->  | S165: =S164 -> TRUE | T165: FALSE | U165: FALSE | V165: =V164 -> FALSE | W165: FALSE
C166: =C165-1 -> 2027 | D166: =IF(D118<>0,D117/D118,"") ->  | Q166: =IF(Q118<>0,Q117/Q118,"") ->  | S166: TRUE | T166: FALSE | U166: FALSE | V166: =V165 -> FALSE | W166: FALSE
C167: 2026 | D167: =IF(D120<>0,D119/D120,"") ->  | Q167: =IF(Q120<>0,Q119/Q120,"") ->  | S167: TRUE | T167: FALSE | U167: FALSE | V167: =V166 -> FALSE | W167: FALSE
C168: 2025 | D168: =IF(D122<>0,D121/D122,"") ->  | Q168: =IF(Q122<>0,Q121/Q122,"") ->  | S168: TRUE | T168: FALSE | U168: FALSE | V168: FALSE | W168: FALSE
C169: 2024 | D169: =IF(D124<>0,D123/D124,"") ->  | Q169: =IF(Q124<>0,Q123/Q124,"") ->  | S169: TRUE | T169: FALSE | U169: FALSE | V169: FALSE | W169: FALSE
C170: 2023 | D170: =IF(D126<>0,D125/D126,"") ->  | Q170: =IF(Q126<>0,Q125/Q126,"") ->  | S170: TRUE | T170: FALSE | U170: FALSE | V170: FALSE | W170: FALSE
C171: 2022 | D171: =IF(D128<>0,D127/D128,"") ->  | Q171: =IF(Q128<>0,Q127/Q128,"") ->  | S171: TRUE | T171: FALSE | U171: FALSE | V171: FALSE | W171: FALSE
C172: 2021 | D172: =IF(D130<>0,D129/D130,"") ->  | Q172: =IF(Q130<>0,Q129/Q130,"") ->  | S172: TRUE | T172: FALSE | U172: TRUE | V172: FALSE | W172: FALSE
C173: 2020 | D173: =IF(D132<>0,D131/D132,"") ->  | Q173: =IF(Q132<>0,Q131/Q132,"") ->  | S173: TRUE | T173: FALSE | U173: TRUE | V173: FALSE | W173: FALSE
C174: 2019 | D174: =IF(D134<>0,D133/D134,"") ->  | Q174: =IF(Q134<>0,Q133/Q134,"") ->  | S174: TRUE | T174: FALSE | U174: FALSE | V174: FALSE | W174: FALSE
C175: 2018 | D175: =IF(D136<>0,D135/D136,"") ->  | Q175: =IF(Q136<>0,Q135/Q136,"") ->  | S175: TRUE | T175: FALSE | U175: FALSE | V175: FALSE | W175: FALSE
C176: 2017 | D176: =IF(D138<>0,D137/D138,"") ->  | Q176: =IF(Q138<>0,Q137/Q138,"") ->  | S176: TRUE | T176: FALSE | U176: FALSE | V176: FALSE | W176: FALSE
C177: 2016 | D177: =IF(D140<>0,D139/D140,"") ->  | Q177: =IF(Q140<>0,Q139/Q140,"") ->  | S177: TRUE | T177: FALSE | U177: FALSE | V177: FALSE | W177: FALSE
C178: 2015 | D178: =IF(D142<>0,D141/D142,"") ->  | Q178: =IF(Q142<>0,Q141/Q142,"") ->  | S178: TRUE | T178: FALSE | U178: FALSE | V178: FALSE | W178: FALSE
C179: 2014 | D179: =IF(D144<>0,D143/D144,"") ->  | E179: =IF(E144<>0,E143/E144,"") ->  | Q179: =IF(Q144<>0,Q143/Q144,"") ->  | S179: TRUE | T179: FALSE | U179: FALSE | V179: FALSE | W179: FALSE
C180: 2013 | D180: =IF(D146<>0,D145/D146,"") ->  | E180: =IF(E146<>0,E145/E146,"") ->  | Q180: =IF(Q146<>0,Q145/Q146,"") ->  | S180: TRUE | T180: FALSE | U180: FALSE | V180: FALSE | W180: FALSE
C181: 2012 | D181: =IF(D148<>0,D147/D148,"") ->  | E181: =IF(E148<>0,E147/E148,"") ->  | Q181: =IF(Q148<>0,Q147/Q148,"") ->  | S181: =S180 -> TRUE | T181: FALSE | U181: FALSE | V181: FALSE | W181: FALSE
C182: 2011 | D182: =IF(D150<>0,D149/D150,"") ->  | E182: =IF(E150<>0,E149/E150,"") ->  | Q182: =IF(Q150<>0,Q149/Q150,"") ->  | S182: TRUE | T182: FALSE | U182: FALSE | V182: FALSE | W182: FALSE
C183: 2010 | D183: =IF(D152<>0,D151/D152,"") ->  | E183: =IF(E152<>0,E151/E152,"") ->  | Q183: =IF(Q152<>0,Q151/Q152,"") ->  | S183: TRUE | T183: FALSE | U183: FALSE | V183: FALSE | W183: FALSE
C184: 2009 | D184: =IF(D154<>0,D153/D154,"") ->  | E184: =IF(E154<>0,E153/E154,"") ->  | Q184: =IF(Q154<>0,Q153/Q154,"") ->  | S184: TRUE | T184: FALSE | U184: FALSE | V184: FALSE | W184: FALSE
C185: 2008 | D185: =IF(D156<>0,D155/D156,"") ->  | E185: =IF(E156<>0,E155/E156,"") ->  | Q185: =IF(Q156<>0,Q155/Q156,"") ->  | S185: TRUE | T185: FALSE | U185: FALSE | V185: FALSE | W185: FALSE
C186: 2007 | D186: =IF(D158<>0,D157/D158,"") ->  | E186: =IF(E158<>0,E157/E158,"") ->  | Q186: =IF(Q158<>0,Q157/Q158,"") ->  | S186: TRUE | T186: FALSE | U186: FALSE | V186: FALSE | W186: FALSE
C187: 2006 | D187: =IF(D160<>0,D159/D160,"") ->  | E187: =IF(E160<>0,E159/E160,"") ->  | Q187: =IF(Q160<>0,Q159/Q160,"") ->  | S187: TRUE | T187: FALSE | U187: FALSE | V187: FALSE | W187: FALSE
C188: 2005 | D188: =IF(D162<>0,D161/D162,"") ->  | E188: =IF(E162<>0,E161/E162,"") ->  | Q188: =IF(Q162<>0,Q161/Q162,"") ->  | S188: TRUE | T188: FALSE | U188: FALSE | V188: FALSE | W188: FALSE
S189: =S174 -> TRUE | T189: =T174 -> FALSE | V189: =V174 -> FALSE | W189: FALSE
T190: =T189 -> FALSE | W190: FALSE
B191: Energy Source | F191: UNIT | G191: Notes | T191: =VLOOKUP(B192,$T$5:$U$24,2,) -> FALSE | W191: =AND(S191:V191) -> FALSE
A192: back to top | B192: =B110+1 -> 3 | C192: =VLOOKUP(B192,$B$5:$F$24,2,) ->  | F192: =VLOOKUP(B192,$B$5:$G$24,5,) ->  | G192: =VLOOKUP(B192,$B$5:$G$24,6,) ->  | T192: =T191 -> FALSE | W192: =AND(S192:V192) -> FALSE
T193: =T192 -> FALSE | W193: FALSE
D194: =D112 -> Jan | E194: =E112 -> Feb | F194: Mar | G194: Apr | H194: May | I194: Jun | J194: Jul | K194: Aug | L194: Sep | M194: Oct | N194: Nov | O194: Dec | Q194: YEAR | T194: =T193 -> FALSE | W194: FALSE
B195: =FinalYear -> 2029 | C195: $$ | Q195: =SUM(D195:O195) -> 0 | T195: FALSE | U195: =AND(B195<=ReportingYear,B195>=BaselineYear) -> FALSE | W195: FALSE
C196: Qty | Q196: 0 | S196: =IF(F192="none",FALSE,TRUE) -> TRUE | T196: FALSE | U196: =U195 -> FALSE | W196: FALSE
B197: =B195-1 -> 2028 | C197: $$ | Q197: 0 | T197: FALSE | U197: =AND(B197<=ReportingYear,B197>=BaselineYear) -> FALSE | W197: FALSE
C198: Qty | Q198: 0 | S198: =S196 -> TRUE | T198: FALSE | U198: =U197 -> FALSE | W198: FALSE
B199: =B197-1 -> 2027 | C199: $$ | Q199: 0 | T199: FALSE | U199: =AND(B199<=ReportingYear,B199>=BaselineYear) -> FALSE | W199: FALSE
C200: Qty | Q200: 0 | S200: =S198 -> TRUE | T200: FALSE | U200: =U199 -> FALSE | W200: FALSE
... 1467 more rows

Sheet Relevant Variables
A1: DOE Advanced Manufacturing Office | T1: Source | U1: Year | V1: UnitCost | W1: Visible
A2: Energy Footprint - RELEVANT VARIABLES | T2: Source | U2: Year | V2: UnitCost | W2: 1
T3: Source | U3: Year | V3: UnitCost | W3: TRUE
B4: Tracked Related Factors | G4: Notes (edit notes on Main) | W4: TRUE
B5: 1 | C5: =IF(Main!C37<>"",Main!C37,"") -> Heating Degree Days | F5: =IF(Main!D37<>"",Main!D37,"") ->  | G5: =IF(Main!F37<>"",Main!F37,"") ->  | H5: =INDIRECT("G"&I5) ->  | S5: 28 | T5: 1 | U5: =W5 -> TRUE | W5: =OR(C5<>"",F5<>"") -> TRUE
B6: 2 | C6: =IF(Main!C38<>"",Main!C38,"") ->  | F6: =IF(Main!D38<>"",Main!D38,"") ->  | G6: =IF(Main!F38<>"",Main!F38,"") ->  | S6: =S5+30 -> 58 | T6: 2 | U6: =W6 -> FALSE | W6: =OR(C6<>"",F6<>"") -> FALSE
B7: 3 | C7: =IF(Main!C39<>"",Main!C39,"") ->  | F7: =IF(Main!D39<>"",Main!D39,"") ->  | G7: =IF(Main!F39<>"",Main!F39,"") ->  | S7: =S6+30 -> 88 | T7: 3 | U7: FALSE | W7: FALSE
B8: 4 | C8: =IF(Main!C40<>"",Main!C40,"") ->  | F8: =IF(Main!D40<>"",Main!D40,"") ->  | G8: =IF(Main!F40<>"",Main!F40,"") ->  | S8: =S7+30 -> 118 | T8: 4 | U8: FALSE | W8: FALSE
B9: 5 | C9: =IF(Main!C41<>"",Main!C41,"") ->  | F9: =IF(Main!D41<>"",Main!D41,"") ->  | G9: =IF(Main!F41<>"",Main!F41,"") ->  | S9: 148 | T9: 5 | U9: FALSE | W9: FALSE
B10: 6 | C10: =IF(Main!C42<>"",Main!C42,"") ->  | F10: =IF(Main!D42<>"",Main!D42,"") ->  | G10: =IF(Main!F42<>"",Main!F42,"") ->  | S10: 178 | T10: 6 | U10: FALSE | W10: FALSE
B11: 7 | C11: =IF(Main!C43<>"",Main!C43,"") ->  | F11: =IF(Main!D43<>"",Main!D43,"") ->  | G11: =IF(Main!F43<>"",Main!F43,"") ->  | S11: 208 | T11: 7 | U11: FALSE | W11: FALSE
B12: 8 | C12: =IF(Main!C44<>"",Main!C44,"") ->  | F12: =IF(Main!D44<>"",Main!D44,"") ->  | G12: =IF(Main!F44<>"",Main!F44,"") ->  | S12: 238 | T12: 8 | U12: FALSE | W12: FALSE
B13: 9 | C13: =IF(Main!C45<>"",Main!C45,"") ->  | F13: =IF(Main!D45<>"",Main!D45,"") ->  | G13: =IF(Main!F45<>"",Main!F45,"") ->  | S13: 268 | T13: 9 | U13: FALSE | W13: FALSE
B14: 10 | C14: =IF(Main!C46<>"",Main!C46,"") ->  | F14: =IF(Main!D46<>"",Main!D46,"") ->  | G14: =IF(Main!F46<>"",Main!F46,"") ->  | S14: 298 | T14: 10 | U14: FALSE | W14: FALSE
B15: 11 | C15: =IF(Main!C47<>"",Main!C47,"") ->  | F15: =IF(Main!D47<>"",Main!D47,"") ->  | G15: =IF(Main!F47<>"",Main!F47,"") ->  | S15: 328 | T15: 11 | U15: FALSE | W15: FALSE
B16: 12 | C16: =IF(Main!C48<>"",Main!C48,"") ->  | F16: =IF(Main!D48<>"",Main!D48,"") ->  | G16: =IF(Main!F48<>"",Main!F48,"") ->  | S16: 358 | T16: 12 | U16: FALSE | W16: FALSE
B17: 13 | C17: =IF(Main!C49<>"",Main!C49,"") ->  | F17: =IF(Main!D49<>"",Main!D49,"") ->  | G17: =IF(Main!F49<>"",Main!F49,"") ->  | S17: 388 | T17: 13 | U17: FALSE | W17: FALSE
B18: 14 | C18: =IF(Main!C50<>"",Main!C50,"") ->  | F18: =IF(Main!D50<>"",Main!D50,"") ->  | G18: =IF(Main!F50<>"",Main!F50,"") ->  | S18: 418 | T18: 14 | U18: FALSE | W18: FALSE
B19: 15 | C19: =IF(Main!C51<>"",Main!C51,"") ->  | F19: =IF(Main!D51<>"",Main!D51,"") ->  | G19: =IF(Main!F51<>"",Main!F51,"") ->  | S19: 448 | T19: 15 | U19: FALSE | W19: FALSE
B20: 16 | C20: =IF(Main!C52<>"",Main!C52,"") ->  | F20: =IF(Main!D52<>"",Main!D52,"") ->  | G20: =IF(Main!F52<>"",Main!F52,"") ->  | S20: 478 | T20: 16 | U20: FALSE | W20: FALSE
B21: 17 | C21: =IF(Main!C53<>"",Main!C53,"") ->  | F21: =IF(Main!D53<>"",Main!D53,"") ->  | G21: =IF(Main!F53<>"",Main!F53,"") ->  | H21: =INDIRECT("G"&I21) ->  | S21: 508 | T21: 17 | U21: FALSE | W21: FALSE
B22: 18 | C22: =IF(Main!C54<>"",Main!C54,"") ->  | F22: =IF(Main!D54<>"",Main!D54,"") ->  | G22: =IF(Main!F54<>"",Main!F54,"") ->  | S22: 538 | T22: 18 | U22: FALSE | W22: FALSE
B23: 19 | C23: =IF(Main!C55<>"",Main!C55,"") ->  | F23: =IF(Main!D55<>"",Main!D55,"") ->  | G23: =IF(Main!F55<>"",Main!F55,"") ->  | S23: 568 | T23: 19 | U23: FALSE | W23: FALSE
B24: 20 | C24: =IF(Main!C56<>"",Main!C56,"") ->  | F24: =IF(Main!D56<>"",Main!D56,"") ->  | G24: =IF(Main!F56<>"",Main!F56,"") ->  | S24: 598 | T24: 20 | U24: FALSE | W24: FALSE
W25: =NOT(X25) -> TRUE | X25: =IF(NOT(W24),FALSE,C24<>"") -> FALSE
B27: Relevant Variables | F27: UNIT | G27: Notes | T27: =VLOOKUP(B28,$T$5:$U$24,2,) -> TRUE | W27: =AND(S27:V27) -> TRUE
A28: back to top | B28: 1 | C28: =VLOOKUP(B28,$B$5:$F$24,2,) -> Heating Degree Days | F28: =VLOOKUP(B28,$B$5:$G$24,5,) ->  | G28: =VLOOKUP(B28,$B$5:$G$24,6,) ->  | T28: =T27 -> TRUE | W28: =AND(S28:V28) -> TRUE
T29: =T28 -> TRUE | W29: TRUE
D30: =Support!H3 -> Jan | E30: =Support!I3 -> Feb | F30: =Support!J3 -> Mar | G30: =Support!K3 -> Apr | H30: =Support!L3 -> May | I30: =Support!M3 -> Jun | J30: =Support!N3 -> Jul | K30: =Support!O3 -> Aug | L30: =Support!P3 -> Sep | M30: =Support!Q3 -> Oct | N30: =Support!R3 -> Nov | O30: =Support!S3 -> Dec | Q30: YEAR | T30: =T29 -> TRUE | W30: TRUE
B31: =FinalYear -> 2029 | C31: Qty | Q31: =SUM(D31:O31) -> 0 | T31: =T30 -> TRUE | U31: =AND(B31<=ReportingYear,B31>=BaselineYear) -> FALSE | W31: FALSE
B32: =B31-1 -> 2028 | C32: Qty | Q32: 0 | T32: =T31 -> TRUE | U32: FALSE | W32: FALSE
B33: =B32-1 -> 2027 | C33: Qty | Q33: 0 | T33: =T32 -> TRUE | U33: FALSE | W33: FALSE
B34: 2026 | C34: Qty | Q34: 0 | T34: TRUE | U34: FALSE | W34: FALSE
B35: 2025 | C35: Qty | Q35: 0 | T35: TRUE | U35: FALSE | W35: FALSE
B36: 2024 | C36: Qty | Q36: 0 | T36: TRUE | U36: FALSE | W36: FALSE
B37: 2023 | C37: Qty | Q37: 0 | T37: TRUE | U37: FALSE | W37: FALSE
B38: 2022 | C38: Qty | Q38: 0 | T38: TRUE | U38: FALSE | W38: FALSE
B39: 2021 | C39: Qty | Q39: 0 | T39: TRUE | U39: TRUE | W39: TRUE
B40: 2020 | C40: Qty | Q40: 0 | T40: TRUE | U40: TRUE | W40: TRUE
B41: 2019 | C41: Qty | Q41: 0 | T41: TRUE | U41: FALSE | W41: FALSE
B42: 2018 | C42: Qty | Q42: 0 | T42: TRUE | U42: FALSE | W42: FALSE
B43: 2017 | C43: Qty | Q43: 0 | T43: TRUE | U43: FALSE | W43: FALSE
B44: 2016 | C44: Qty | Q44: 0 | T44: TRUE | U44: FALSE | W44: FALSE
B45: 2015 | C45: Qty | Q45: 0 | T45: TRUE | U45: FALSE | W45: FALSE
B46: 2014 | C46: Qty | Q46: 0 | T46: =T35 -> TRUE | U46: FALSE | W46: FALSE
B47: 2013 | C47: Qty | Q47: 0 | T47: TRUE | U47: FALSE | W47: FALSE
B48: 2012 | C48: Qty | Q48: 0 | T48: TRUE | U48: FALSE | W48: FALSE
B49: 2011 | C49: Qty | Q49: 0 | T49: TRUE | U49: FALSE | W49: FALSE
B50: 2010 | C50: Qty | Q50: 0 | T50: TRUE | U50: FALSE | W50: FALSE
B51: 2009 | C51: Qty | Q51: 0 | T51: TRUE | U51: FALSE | W51: FALSE
B52: 2008 | C52: Qty | Q52: 0 | T52: TRUE | U52: FALSE | W52: FALSE
B53: 2007 | C53: Qty | Q53: 0 | T53: TRUE | U53: FALSE | W53: FALSE
B54: 2006 | C54: Qty | Q54: 0 | T54: TRUE | U54: FALSE | W54: FALSE
B55: 2005 | C55: Qty | Q55: 0 | T55: TRUE | U55: FALSE | W55: FALSE
T56: TRUE | W56: TRUE
B57: Relevant Variables | F57: UNIT | G57: Notes | T57: =VLOOKUP(B58,$T$5:$U$24,2,) -> FALSE | W57: =AND(S57:V57) -> FALSE
A58: back to top | B58: =B28+1 -> 2 | C58: =VLOOKUP(B58,$B$5:$F$24,2,) ->  | F58: =VLOOKUP(B58,$B$5:$G$24,5,) ->  | G58: =VLOOKUP(B58,$B$5:$G$24,6,) ->  | T58: =T57 -> FALSE | W58: =AND(S58:V58) -> FALSE
T59: =T58 -> FALSE | W59: FALSE
D60: =D30 -> Jan | E60: =E30 -> Feb | F60: Mar | G60: Apr | H60: May | I60: Jun | J60: Jul | K60: Aug | L60: Sep | M60: Oct | N60: Nov | O60: Dec | Q60: YEAR | T60: =T59 -> FALSE | W60: FALSE
B61: =FinalYear -> 2029 | C61: Qty | Q61: =SUM(D61:O61) -> 0 | T61: =T60 -> FALSE | U61: =AND(B61<=ReportingYear,B61>=BaselineYear) -> FALSE | W61: FALSE
B62: =B61-1 -> 2028 | C62: Qty | Q62: 0 | T62: =T61 -> FALSE | U62: FALSE | W62: FALSE
B63: =B62-1 -> 2027 | C63: Qty | Q63: 0 | T63: =T62 -> FALSE | U63: FALSE | W63: FALSE
B64: 2026 | C64: Qty | Q64: 0 | T64: FALSE | U64: FALSE | W64: FALSE
B65: 2025 | C65: Qty | Q65: 0 | T65: FALSE | U65: FALSE | W65: FALSE
B66: 2024 | C66: Qty | Q66: 0 | T66: FALSE | U66: FALSE | W66: FALSE
B67: 2023 | C67: Qty | Q67: 0 | T67: FALSE | U67: FALSE | W67: FALSE
B68: 2022 | C68: Qty | Q68: 0 | T68: FALSE | U68: FALSE | W68: FALSE
B69: 2021 | C69: Qty | Q69: 0 | T69: FALSE | U69: TRUE | W69: FALSE
B70: 2020 | C70: Qty | Q70: 0 | T70: FALSE | U70: TRUE | W70: FALSE
B71: 2019 | C71: Qty | Q71: 0 | T71: FALSE | U71: FALSE | W71: FALSE
B72: 2018 | C72: Qty | Q72: 0 | T72: FALSE | U72: FALSE | W72: FALSE
B73: 2017 | C73: Qty | Q73: 0 | T73: FALSE | U73: FALSE | W73: FALSE
B74: 2016 | C74: Qty | Q74: 0 | T74: FALSE | U74: FALSE | W74: FALSE
B75: 2015 | C75: Qty | Q75: 0 | T75: FALSE | U75: FALSE | W75: FALSE
B76: 2014 | C76: Qty | Q76: 0 | T76: =T65 -> FALSE | U76: FALSE | W76: FALSE
B77: 2013 | C77: Qty | Q77: 0 | T77: FALSE | U77: FALSE | W77: FALSE
B78: 2012 | C78: Qty | Q78: 0 | T78: FALSE | U78: FALSE | W78: FALSE
B79: 2011 | C79: Qty | Q79: 0 | T79: FALSE | U79: FALSE | W79: FALSE
B80: 2010 | C80: Qty | Q80: 0 | T80: FALSE | U80: FALSE | W80: FALSE
B81: 2009 | C81: Qty | Q81: 0 | T81: FALSE | U81: FALSE | W81: FALSE
B82: 2008 | C82: Qty | Q82: 0 | T82: FALSE | U82: FALSE | W82: FALSE
B83: 2007 | C83: Qty | Q83: 0 | T83: FALSE | U83: FALSE | W83: FALSE
B84: 2006 | C84: Qty | Q84: 0 | T84: FALSE | U84: FALSE | W84: FALSE
B85: 2005 | C85: Qty | Q85: 0 | T85: FALSE | U85: FALSE | W85: FALSE
T86: FALSE | W86: FALSE
B87: Relevant Variables | F87: UNIT | G87: Notes | T87: =VLOOKUP(B88,$T$5:$U$24,2,) -> FALSE | W87: =AND(S87:V87) -> FALSE
A88: back to top | B88: =B58+1 -> 3 | C88: =VLOOKUP(B88,$B$5:$F$24,2,) ->  | F88: =VLOOKUP(B88,$B$5:$G$24,5,) ->  | G88: =VLOOKUP(B88,$B$5:$G$24,6,) ->  | T88: =T87 -> FALSE | W88: =AND(S88:V88) -> FALSE
T89: =T88 -> FALSE | W89: FALSE
D90: =D60 -> Jan | E90: =E60 -> Feb | F90: Mar | G90: Apr | H90: May | I90: Jun | J90: Jul | K90: Aug | L90: Sep | M90: Oct | N90: Nov | O90: Dec | Q90: YEAR | T90: =T89 -> FALSE | W90: FALSE
B91: =FinalYear -> 2029 | C91: Qty | Q91: =SUM(D91:O91) -> 0 | T91: =T90 -> FALSE | U91: =AND(B91<=ReportingYear,B91>=BaselineYear) -> FALSE | W91: FALSE
B92: =B91-1 -> 2028 | C92: Qty | Q92: 0 | T92: =T91 -> FALSE | U92: FALSE | W92: FALSE
B93: =B92-1 -> 2027 | C93: Qty | Q93: 0 | T93: =T92 -> FALSE | U93: FALSE | W93: FALSE
B94: 2026 | C94: Qty | Q94: 0 | T94: FALSE | U94: FALSE | W94: FALSE
B95: 2025 | C95: Qty | Q95: 0 | T95: FALSE | U95: FALSE | W95: FALSE
B96: 2024 | C96: Qty | Q96: 0 | T96: FALSE | U96: FALSE | W96: FALSE
B97: 2023 | C97: Qty | Q97: 0 | T97: FALSE | U97: FALSE | W97: FALSE
B98: 2022 | C98: Qty | Q98: 0 | T98: FALSE | U98: FALSE | W98: FALSE
B99: 2021 | C99: Qty | Q99: 0 | T99: FALSE | U99: TRUE | W99: FALSE
B100: 2020 | C100: Qty | Q100: 0 | T100: FALSE | U100: TRUE | W100: FALSE
B101: 2019 | C101: Qty | Q101: 0 | T101: FALSE | U101: FALSE | W101: FALSE
B102: 2018 | C102: Qty | Q102: 0 | T102: FALSE | U102: FALSE | W102: FALSE
B103: 2017 | C103: Qty | Q103: 0 | T103: FALSE | U103: FALSE | W103: FALSE
B104: 2016 | C104: Qty | Q104: 0 | T104: FALSE | U104: FALSE | W104: FALSE
B105: 2015 | C105: Qty | Q105: 0 | T105: FALSE | U105: FALSE | W105: FALSE
B106: 2014 | C106: Qty | Q106: 0 | T106: =T95 -> FALSE | U106: FALSE | W106: FALSE
B107: 2013 | C107: Qty | Q107: 0 | T107: FALSE | U107: FALSE | W107: FALSE
B108: 2012 | C108: Qty | Q108: 0 | T108: FALSE | U108: FALSE | W108: FALSE
B109: 2011 | C109: Qty | Q109: 0 | T109: FALSE | U109: FALSE | W109: FALSE
B110: 2010 | C110: Qty | Q110: 0 | T110: FALSE | U110: FALSE | W110: FALSE
B111: 2009 | C111: Qty | Q111: 0 | T111: FALSE | U111: FALSE | W111: FALSE
B112: 2008 | C112: Qty | Q112: 0 | T112: FALSE | U112: FALSE | W112: FALSE
B113: 2007 | C113: Qty | Q113: 0 | T113: FALSE | U113: FALSE | W113: FALSE
B114: 2006 | C114: Qty | Q114: 0 | T114: FALSE | U114: FALSE | W114: FALSE
B115: 2005 | C115: Qty | Q115: 0 | T115: FALSE | U115: FALSE | W115: FALSE
T116: FALSE | W116: FALSE
B117: Relevant Variables | F117: UNIT | G117: Notes | T117: =VLOOKUP(B118,$T$5:$U$24,2,) -> FALSE | W117: =AND(S117:V117) -> FALSE
A118: back to top | B118: =B88+1 -> 4 | C118: =VLOOKUP(B118,$B$5:$F$24,2,) ->  | F118: =VLOOKUP(B118,$B$5:$G$24,5,) ->  | G118: =VLOOKUP(B118,$B$5:$G$24,6,) ->  | T118: =T117 -> FALSE | W118: =AND(S118:V118) -> FALSE
T119: =T118 -> FALSE | W119: FALSE
D120: =D90 -> Jan | E120: =E90 -> Feb | F120: Mar | G120: Apr | H120: May | I120: Jun | J120: Jul | K120: Aug | L120: Sep | M120: Oct | N120: Nov | O120: Dec | Q120: YEAR | T120: =T119 -> FALSE | W120: FALSE
B121: =FinalYear -> 2029 | C121: Qty | Q121: =SUM(D121:O121) -> 0 | T121: =T120 -> FALSE | U121: =AND(B121<=ReportingYear,B121>=BaselineYear) -> FALSE | W121: FALSE
B122: =B121-1 -> 2028 | C122: Qty | Q122: 0 | T122: =T121 -> FALSE | U122: FALSE | W122: FALSE
B123: =B122-1 -> 2027 | C123: Qty | Q123: 0 | T123: =T122 -> FALSE | U123: FALSE | W123: FALSE
B124: 2026 | C124: Qty | Q124: 0 | T124: FALSE | U124: FALSE | W124: FALSE
B125: 2025 | C125: Qty | Q125: 0 | T125: FALSE | U125: FALSE | W125: FALSE
B126: 2024 | C126: Qty | Q126: 0 | T126: FALSE | U126: FALSE | W126: FALSE
B127: 2023 | C127: Qty | Q127: 0 | T127: FALSE | U127: FALSE | W127: FALSE
B128: 2022 | C128: Qty | Q128: 0 | T128: FALSE | U128: FALSE | W128: FALSE
B129: 2021 | C129: Qty | Q129: 0 | T129: FALSE | U129: TRUE | W129: FALSE
B130: 2020 | C130: Qty | Q130: 0 | T130: FALSE | U130: TRUE | W130: FALSE
B131: 2019 | C131: Qty | Q131: 0 | T131: FALSE | U131: FALSE | W131: FALSE
B132: 2018 | C132: Qty | Q132: 0 | T132: FALSE | U132: FALSE | W132: FALSE
B133: 2017 | C133: Qty | Q133: 0 | T133: FALSE | U133: FALSE | W133: FALSE
B134: 2016 | C134: Qty | Q134: 0 | T134: FALSE | U134: FALSE | W134: FALSE
B135: 2015 | C135: Qty | Q135: 0 | T135: FALSE | U135: FALSE | W135: FALSE
B136: 2014 | C136: Qty | Q136: 0 | T136: =T125 -> FALSE | U136: FALSE | W136: FALSE
B137: 2013 | C137: Qty | Q137: 0 | T137: FALSE | U137: FALSE | W137: FALSE
B138: 2012 | C138: Qty | Q138: 0 | T138: FALSE | U138: FALSE | W138: FALSE
B139: 2011 | C139: Qty | Q139: 0 | T139: FALSE | U139: FALSE | W139: FALSE
B140: 2010 | C140: Qty | Q140: 0 | T140: FALSE | U140: FALSE | W140: FALSE
B141: 2009 | C141: Qty | Q141: 0 | T141: FALSE | U141: FALSE | W141: FALSE
B142: 2008 | C142: Qty | Q142: 0 | T142: FALSE | U142: FALSE | W142: FALSE
B143: 2007 | C143: Qty | Q143: 0 | T143: FALSE | U143: FALSE | W143: FALSE
B144: 2006 | C144: Qty | Q144: 0 | T144: FALSE | U144: FALSE | W144: FALSE
B145: 2005 | C145: Qty | Q145: 0 | T145: FALSE | U145: FALSE | W145: FALSE
T146: FALSE | W146: FALSE
B147: Relevant Variables | F147: UNIT | G147: Notes | T147: =VLOOKUP(B148,$T$5:$U$24,2,) -> FALSE | W147: =AND(S147:V147) -> FALSE
A148: back to top | B148: =B118+1 -> 5 | C148: =VLOOKUP(B148,$B$5:$F$24,2,) ->  | F148: =VLOOKUP(B148,$B$5:$G$24,5,) ->  | G148: =VLOOKUP(B148,$B$5:$G$24,6,) ->  | T148: =T147 -> FALSE | W148: =AND(S148:V148) -> FALSE
T149: =T148 -> FALSE | W149: FALSE
D150: =D120 -> Jan | E150: =E120 -> Feb | F150: Mar | G150: Apr | H150: May | I150: Jun | J150: Jul | K150: Aug | L150: Sep | M150: Oct | N150: Nov | O150: Dec | Q150: YEAR | T150: =T149 -> FALSE | W150: FALSE
B151: =FinalYear -> 2029 | C151: Qty | Q151: =SUM(D151:O151) -> 0 | T151: =T150 -> FALSE | U151: =AND(B151<=ReportingYear,B151>=BaselineYear) -> FALSE | W151: FALSE
B152: =B151-1 -> 2028 | C152: Qty | Q152: 0 | T152: =T151 -> FALSE | U152: FALSE | W152: FALSE
B153: =B152-1 -> 2027 | C153: Qty | Q153: 0 | T153: =T152 -> FALSE | U153: FALSE | W153: FALSE
B154: 2026 | C154: Qty | Q154: 0 | T154: FALSE | U154: FALSE | W154: FALSE
B155: 2025 | C155: Qty | Q155: 0 | T155: FALSE | U155: FALSE | W155: FALSE
B156: 2024 | C156: Qty | Q156: 0 | T156: FALSE | U156: FALSE | W156: FALSE
B157: 2023 | C157: Qty | Q157: 0 | T157: FALSE | U157: FALSE | W157: FALSE
B158: 2022 | C158: Qty | Q158: 0 | T158: FALSE | U158: FALSE | W158: FALSE
B159: 2021 | C159: Qty | Q159: 0 | T159: FALSE | U159: TRUE | W159: FALSE
B160: 2020 | C160: Qty | Q160: 0 | T160: FALSE | U160: TRUE | W160: FALSE
B161: 2019 | C161: Qty | Q161: 0 | T161: FALSE | U161: FALSE | W161: FALSE
B162: 2018 | C162: Qty | Q162: 0 | T162: FALSE | U162: FALSE | W162: FALSE
B163: 2017 | C163: Qty | Q163: 0 | T163: FALSE | U163: FALSE | W163: FALSE
B164: 2016 | C164: Qty | Q164: 0 | T164: FALSE | U164: FALSE | W164: FALSE
B165: 2015 | C165: Qty | Q165: 0 | T165: FALSE | U165: FALSE | W165: FALSE
B166: 2014 | C166: Qty | Q166: 0 | T166: =T155 -> FALSE | U166: FALSE | W166: FALSE
B167: 2013 | C167: Qty | Q167: 0 | T167: FALSE | U167: FALSE | W167: FALSE
B168: 2012 | C168: Qty | Q168: 0 | T168: FALSE | U168: FALSE | W168: FALSE
B169: 2011 | C169: Qty | Q169: 0 | T169: FALSE | U169: FALSE | W169: FALSE
B170: 2010 | C170: Qty | Q170: 0 | T170: FALSE | U170: FALSE | W170: FALSE
B171: 2009 | C171: Qty | Q171: 0 | T171: FALSE | U171: FALSE | W171: FALSE
B172: 2008 | C172: Qty | Q172: 0 | T172: FALSE | U172: FALSE | W172: FALSE
B173: 2007 | C173: Qty | Q173: 0 | T173: FALSE | U173: FALSE | W173: FALSE
B174: 2006 | C174: Qty | Q174: 0 | T174: FALSE | U174: FALSE | W174: FALSE
B175: 2005 | C175: Qty | Q175: 0 | T175: FALSE | U175: FALSE | W175: FALSE
T176: FALSE | W176: FALSE
B177: Relevant Variables | F177: UNIT | G177: Notes | T177: =VLOOKUP(B178,$T$5:$U$24,2,) -> FALSE | W177: =AND(S177:V177) -> FALSE
A178: back to top | B178: =B148+1 -> 6 | C178: =VLOOKUP(B178,$B$5:$F$24,2,) ->  | F178: =VLOOKUP(B178,$B$5:$G$24,5,) ->  | G178: =VLOOKUP(B178,$B$5:$G$24,6,) ->  | T178: =T177 -> FALSE | W178: =AND(S178:V178) -> FALSE
T179: =T178 -> FALSE | W179: FALSE
D180: =D150 -> Jan | E180: =E150 -> Feb | F180: Mar | G180: Apr | H180: May | I180: Jun | J180: Jul | K180: Aug | L180: Sep | M180: Oct | N180: Nov | O180: Dec | Q180: YEAR | T180: =T179 -> FALSE | W180: FALSE
B181: =FinalYear -> 2029 | C181: Qty | Q181: =SUM(D181:O181) -> 0 | T181: =T180 -> FALSE | U181: =AND(B181<=ReportingYear,B181>=BaselineYear) -> FALSE | W181: FALSE
B182: =B181-1 -> 2028 | C182: Qty | Q182: 0 | T182: =T181 -> FALSE | U182: FALSE | W182: FALSE
B183: =B182-1 -> 2027 | C183: Qty | Q183: 0 | T183: =T182 -> FALSE | U183: FALSE | W183: FALSE
B184: 2026 | C184: Qty | Q184: 0 | T184: FALSE | U184: FALSE | W184: FALSE
B185: 2025 | C185: Qty | Q185: 0 | T185: FALSE | U185: FALSE | W185: FALSE
B186: 2024 | C186: Qty | Q186: 0 | T186: FALSE | U186: FALSE | W186: FALSE
B187: 2023 | C187: Qty | Q187: 0 | T187: FALSE | U187: FALSE | W187: FALSE
B188: 2022 | C188: Qty | Q188: 0 | T188: FALSE | U188: FALSE | W188: FALSE
B189: 2021 | C189: Qty | Q189: 0 | T189: FALSE | U189: TRUE | W189: FALSE
B190: 2020 | C190: Qty | Q190: 0 | T190: FALSE | U190: TRUE | W190: FALSE
B191: 2019 | C191: Qty | Q191: 0 | T191: FALSE | U191: FALSE | W191: FALSE
B192: 2018 | C192: Qty | Q192: 0 | T192: FALSE | U192: FALSE | W192: FALSE
B193: 2017 | C193: Qty | Q193: 0 | T193: FALSE | U193: FALSE | W193: FALSE
B194: 2016 | C194: Qty | Q194: 0 | T194: FALSE | U194: FALSE | W194: FALSE
B195: 2015 | C195: Qty | Q195: 0 | T195: FALSE | U195: FALSE | W195: FALSE
B196: 2014 | C196: Qty | Q196: 0 | T196: =T185 -> FALSE | U196: FALSE | W196: FALSE
B197: 2013 | C197: Qty | Q197: 0 | T197: FALSE | U197: FALSE | W197: FALSE
B198: 2012 | C198: Qty | Q198: 0 | T198: FALSE | U198: FALSE | W198: FALSE
B199: 2011 | C199: Qty | Q199: 0 | T199: FALSE | U199: FALSE | W199: FALSE
B200: 2010 | C200: Qty | Q200: 0 | T200: FALSE | U200: FALSE | W200: FALSE
B201: 2009 | C201: Qty | Q201: 0 | T201: FALSE | U201: FALSE | W201: FALSE
... 425 more rows

Sheet Raw Data
A1: The following is a list of all data entered into this tool (both visible and hidden)
F2: --------------------------------------------------------------------------------
F3: Current Year | G3: =ReportingYear -> 2021 | M3: Plant Name | N3: =Main!D7 -> 0 | Q3: Model Selected | R3: =Customization!D4 -> not set
F4: First Month | G4: =Main!E10 -> Jan | M4: Additional Details | N4: =Main!D8 -> 0
F5: Number for Displayed Years | G5: =ReportingYear-BaselineYear+1 -> 2 | M5: Unit Used for Totals | N5: =Customization!D5 -> not set
F6: --------------------------------------------------------------------------------
A7: DATA_START | B7: RowNum | C7: ="EC"&C11&"_cost" -> EC1_cost | D7: ="EC"&D11&"_unit" -> EC1_unit | E7: ="EC"&E11&"_cost" -> EC2_cost | F7: ="EC"&F11&"_unit" -> EC2_unit | G7: ="EC"&G11&"_cost" -> EC3_cost | H7: ="EC"&H11&"_unit" -> EC3_unit | I7: ="EC"&I11&"_cost" -> EC4_cost | J7: ="EC"&J11&"_unit" -> EC4_unit | K7: ="EC"&K11&"_cost" -> EC5_cost | L7: ="EC"&L11&"_unit" -> EC5_unit | M7: ="EC"&M11&"_cost" -> EC6_cost | N7: ="EC"&N11&"_unit" -> EC6_unit | O7: ="EC"&O11&"_cost" -> EC7_cost | P7: ="EC"&P11&"_unit" -> EC7_unit | Q7: ="EC"&Q11&"_cost" -> EC8_cost | R7: ="EC"&R11&"_unit" -> EC8_unit | S7: ="EC"&S11&"_cost" -> EC9_cost | T7: ="EC"&T11&"_unit" -> EC9_unit | U7: ="EC"&U11&"_cost" -> EC10_cost | V7: ="EC"&V11&"_unit" -> EC10_unit | W7: ="EC"&W11&"_cost" -> EC11_cost | X7: ="EC"&X11&"_unit" -> EC11_unit | Y7: ="EC"&Y11&"_cost" -> EC12_cost | Z7: ="EC"&Z11&"_unit" -> EC12_unit | AA7: ="EC"&AA11&"_cost" -> EC13_cost | AB7: ="EC"&AB11&"_unit" -> EC13_unit | AC7: ="EC"&AC11&"_cost" -> EC14_cost | AD7: ="EC"&AD11&"_unit" -> EC14_unit | AE7: ="EC"&AE11&"_cost" -> EC15_cost | AF7: ="EC"&AF11&"_unit" -> EC15_unit | AG7: ="EC"&AG11&"_cost" -> EC16_cost | AH7: ="EC"&AH11&"_unit" -> EC16_unit | AI7: ="EC"&AI11&"_cost" -> EC17_cost | AJ7: ="EC"&AJ11&"_unit" -> EC17_unit | AK7: ="EC"&AK11&"_cost" -> EC18_cost | AL7: ="EC"&AL11&"_unit" -> EC18_unit | AM7: ="EC"&AM11&"_cost" -> EC19_cost | AN7: ="EC"&AN11&"_unit" -> EC19_unit | AO7: ="EC"&AO11&"_cost" -> EC20_cost | AP7: ="EC"&AP11&"_unit" -> EC20_unit | AQ7: space | AR7: ="RF"&AR11&"_unit" -> RF_unit | AS7: RF_unit | AT7: RF_unit | AU7: RF_unit | AV7: RF_unit | AW7: RF_unit | AX7: RF_unit | AY7: RF_unit | AZ7: RF_unit | BA7: RF_unit | BB7: RF_unit | BC7: RF_unit | BD7: RF_unit | BE7: RF_unit | BF7: RF_unit | BG7: RF_unit | BH7: RF_unit | BI7: RF_unit | BJ7: RF_unit | BK7: RF_unit
C8: ='Energy Consumption'!C28 -> Electricity | E8: ='Energy Consumption'!C110 ->  | G8: ='Energy Consumption'!C192 ->  | I8: ='Energy Consumption'!C274 ->  | K8: ='Energy Consumption'!C356 ->  | M8: ='Energy Consumption'!C438 ->  | O8: ='Energy Consumption'!C520 ->  | Q8: ='Energy Consumption'!C602 ->  | S8: ='Energy Consumption'!C684 ->  | U8: ='Energy Consumption'!C766 ->  | W8: ='Energy Consumption'!C848 ->  | Y8: ='Energy Consumption'!C930 ->  | AA8: ='Energy Consumption'!C1012 ->  | AC8: ='Energy Consumption'!C1094 ->  | AE8: ='Energy Consumption'!C1176 ->  | AG8: ='Energy Consumption'!C1258 ->  | AI8: ='Energy Consumption'!C1340 ->  | AK8: ='Energy Consumption'!C1422 ->  | AM8: ='Energy Consumption'!C1504 ->  | AO8: ='Energy Consumption'!C1586 ->  | AR8: ='Relevant Variables'!C5 -> Heating Degree Days | AS8: ='Relevant Variables'!C6 ->  | AT8: ='Relevant Variables'!C7 ->  | AU8: ='Relevant Variables'!C8 ->  | AV8: ='Relevant Variables'!C9 ->  | AW8: ='Relevant Variables'!C10 ->  | AX8: ='Relevant Variables'!C11 ->  | AY8: ='Relevant Variables'!C12 ->  | AZ8: ='Relevant Variables'!C13 ->  | BA8: ='Relevant Variables'!C14 ->  | BB8: ='Relevant Variables'!C15 ->  | BC8: ='Relevant Variables'!C16 ->  | BD8: ='Relevant Variables'!C17 ->  | BE8: ='Relevant Variables'!C18 ->  | BF8: ='Relevant Variables'!C19 ->  | BG8: ='Relevant Variables'!C20 ->  | BH8: ='Relevant Variables'!C21 ->  | BI8: ='Relevant Variables'!C22 ->  | BJ8: ='Relevant Variables'!C23 ->  | BK8: ='Relevant Variables'!C24 -> 
C9: ='Energy Consumption'!G28 ->  | E9: ='Energy Consumption'!G110 ->  | G9: ='Energy Consumption'!G192 ->  | I9: ='Energy Consumption'!G274 ->  | K9: ='Energy Consumption'!G356 ->  | M9: ='Energy Consumption'!G438 ->  | O9: ='Energy Consumption'!G520 ->  | Q9: ='Energy Consumption'!G602 ->  | S9: ='Energy Consumption'!G684 ->  | U9: ='Energy Consumption'!G766 ->  | W9: ='Energy Consumption'!G848 ->  | Y9: ='Energy Consumption'!G930 ->  | AA9: ='Energy Consumption'!G1012 ->  | AC9: ='Energy Consumption'!G1094 ->  | AE9: ='Energy Consumption'!G1176 ->  | AG9: ='Energy Consumption'!G1258 ->  | AI9: ='Energy Consumption'!G1340 ->  | AK9: ='Energy Consumption'!G1422 ->  | AM9: ='Energy Consumption'!G1504 ->  | AO9: ='Energy Consumption'!G1586 ->  | AR9: ='Relevant Variables'!G28 ->  | AS9: ='Relevant Variables'!G110 -> 0 | AT9: ='Relevant Variables'!G192 -> 0 | AU9: ='Relevant Variables'!G274 -> 0 | AV9: ='Relevant Variables'!G356 -> 0 | AW9: ='Relevant Variables'!G438 -> 0 | AX9: ='Relevant Variables'!G520 -> 0 | AY9: ='Relevant Variables'!G602 -> 0 | AZ9: ='Relevant Variables'!G684 -> 0 | BA9: ='Relevant Variables'!G766 -> 0 | BB9: ='Relevant Variables'!G848 -> 0 | BC9: ='Relevant Variables'!G930 -> 0 | BD9: ='Relevant Variables'!G1012 -> 0 | BE9: ='Relevant Variables'!G1094 -> 0 | BF9: ='Relevant Variables'!G1176 -> 0 | BG9: ='Relevant Variables'!G1258 -> 0 | BH9: ='Relevant Variables'!G1340 -> 0 | BI9: ='Relevant Variables'!G1422 -> 0 | BJ9: ='Relevant Variables'!G1504 -> 0 | BK9: ='Relevant Variables'!G1586 -> 0
C10: $ | D10: ='Energy Consumption'!F28 -> kWh site | E10: $ | F10: ='Energy Consumption'!F110 ->  | G10: $ | H10: ='Energy Consumption'!F192 ->  | I10: $ | J10: ='Energy Consumption'!F274 ->  | K10: $ | L10: ='Energy Consumption'!F356 ->  | M10: $ | N10: ='Energy Consumption'!F438 ->  | O10: $ | P10: ='Energy Consumption'!F520 ->  | Q10: $ | R10: ='Energy Consumption'!F602 ->  | S10: $ | T10: ='Energy Consumption'!F684 ->  | U10: $ | V10: ='Energy Consumption'!F766 ->  | W10: $ | X10: ='Energy Consumption'!F848 ->  | Y10: $ | Z10: ='Energy Consumption'!F930 ->  | AA10: $ | AB10: ='Energy Consumption'!F1012 ->  | AC10: $ | AD10: ='Energy Consumption'!F1094 ->  | AE10: $ | AF10: ='Energy Consumption'!F1176 ->  | AG10: $ | AH10: ='Energy Consumption'!F1258 ->  | AI10: $ | AJ10: ='Energy Consumption'!F1340 ->  | AK10: $ | AL10: ='Energy Consumption'!F1422 ->  | AM10: $ | AN10: ='Energy Consumption'!F1504 ->  | AO10: $ | AP10: ='Energy Consumption'!F1586 -> 
C11: 1 | D11: 1 | E11: 2 | F11: 2 | G11: 3 | H11: 3 | I11: 4 | J11: 4 | K11: 5 | L11: 5 | M11: 6 | N11: 6 | O11: 7 | P11: 7 | Q11: 8 | R11: 8 | S11: 9 | T11: 9 | U11: 10 | V11: 10 | W11: 11 | X11: 11 | Y11: 12 | Z11: 12 | AA11: 13 | AB11: 13 | AC11: 14 | AD11: 14 | AE11: 15 | AF11: 15 | AG11: 16 | AH11: 16 | AI11: 17 | AJ11: 17 | AK11: 18 | AL11: 18 | AM11: 19 | AN11: 19 | AO11: 20 | AP11: 20
A12: =DATE(2005,MONTH(1&LEFT(G4,3)),1) -> 2005-01-01 | C12: ='Energy Consumption'!D79 -> 0 | D12: ='Energy Consumption'!D80 -> 0 | E12: ='Energy Consumption'!D161 -> 0 | F12: ='Energy Consumption'!D162 -> 0 | G12: ='Energy Consumption'!D243 -> 0 | H12: ='Energy Consumption'!D244 -> 0 | I12: ='Energy Consumption'!D325 -> 0 | J12: ='Energy Consumption'!D326 -> 0 | K12: ='Energy Consumption'!D407 -> 0 | L12: ='Energy Consumption'!D408 -> 0 | M12: ='Energy Consumption'!D489 -> 0 | N12: ='Energy Consumption'!D490 -> 0 | O12: ='Energy Consumption'!D571 -> 0 | P12: ='Energy Consumption'!D572 -> 0 | Q12: ='Energy Consumption'!D653 -> 0 | R12: ='Energy Consumption'!D654 -> 0 | S12: ='Energy Consumption'!D735 -> 0 | T12: ='Energy Consumption'!D736 -> 0 | U12: ='Energy Consumption'!D817 -> 0 | V12: ='Energy Consumption'!D818 -> 0 | W12: ='Energy Consumption'!D899 -> 0 | X12: ='Energy Consumption'!D900 -> 0 | Y12: ='Energy Consumption'!D981 -> 0 | Z12: ='Energy Consumption'!D982 -> 0 | AA12: ='Energy Consumption'!D1063 -> 0 | AB12: ='Energy Consumption'!D1064 -> 0 | AC12: ='Energy Consumption'!D1145 -> 0 | AD12: ='Energy Consumption'!D1146 -> 0 | AE12: ='Energy Consumption'!D1227 -> 0 | AF12: ='Energy Consumption'!D1228 -> 0 | AG12: ='Energy Consumption'!D1309 -> 0 | AH12: ='Energy Consumption'!D1310 -> 0 | AI12: ='Energy Consumption'!D1391 -> 0 | AJ12: ='Energy Consumption'!D1392 -> 0 | AK12: ='Energy Consumption'!D1473 -> 0 | AL12: ='Energy Consumption'!D1474 -> 0 | AM12: ='Energy Consumption'!D1555 -> 0 | AN12: ='Energy Consumption'!D1556 -> 0 | AO12: ='Energy Consumption'!D1637 -> 0 | AP12: ='Energy Consumption'!D1638 -> 0 | AR12: ='Relevant Variables'!D55 -> 0 | AS12: ='Relevant Variables'!D85 -> 0 | AT12: ='Relevant Variables'!D115 -> 0 | AU12: ='Relevant Variables'!D145 -> 0 | AV12: ='Relevant Variables'!D175 -> 0 | AW12: ='Relevant Variables'!D205 -> 0 | AX12: ='Relevant Variables'!D235 -> 0 | AY12: ='Relevant Variables'!D265 -> 0 | AZ12: ='Relevant Variables'!D295 -> 0 | BA12: ='Relevant Variables'!D325 -> 0 | BB12: ='Relevant Variables'!D355 -> 0 | BC12: ='Relevant Variables'!D385 -> 0 | BD12: ='Relevant Variables'!D415 -> 0 | BE12: ='Relevant Variables'!D445 -> 0 | BF12: ='Relevant Variables'!D475 -> 0 | BG12: ='Relevant Variables'!D505 -> 0 | BH12: ='Relevant Variables'!D535 -> 0 | BI12: ='Relevant Variables'!D565 -> 0 | BJ12: ='Relevant Variables'!D595 -> 0 | BK12: ='Relevant Variables'!D625 -> 0
A13: =DATE(YEAR(A12),MONTH(A12)+1,1) -> 2005-02-01 | C13: ='Energy Consumption'!E79 -> 0 | D13: ='Energy Consumption'!E80 -> 0 | E13: ='Energy Consumption'!E161 -> 0 | F13: ='Energy Consumption'!E162 -> 0 | G13: ='Energy Consumption'!E243 -> 0 | H13: ='Energy Consumption'!E244 -> 0 | I13: ='Energy Consumption'!E325 -> 0 | J13: ='Energy Consumption'!E326 -> 0 | K13: ='Energy Consumption'!E407 -> 0 | L13: ='Energy Consumption'!E408 -> 0 | M13: ='Energy Consumption'!E489 -> 0 | N13: ='Energy Consumption'!E490 -> 0 | O13: ='Energy Consumption'!E571 -> 0 | P13: ='Energy Consumption'!E572 -> 0 | Q13: ='Energy Consumption'!E653 -> 0 | R13: ='Energy Consumption'!E654 -> 0 | S13: ='Energy Consumption'!E735 -> 0 | T13: ='Energy Consumption'!E736 -> 0 | U13: ='Energy Consumption'!E817 -> 0 | V13: ='Energy Consumption'!E818 -> 0 | W13: ='Energy Consumption'!E899 -> 0 | X13: ='Energy Consumption'!E900 -> 0 | Y13: ='Energy Consumption'!E981 -> 0 | Z13: ='Energy Consumption'!E982 -> 0 | AA13: ='Energy Consumption'!E1063 -> 0 | AB13: ='Energy Consumption'!E1064 -> 0 | AC13: ='Energy Consumption'!E1145 -> 0 | AD13: ='Energy Consumption'!E1146 -> 0 | AE13: ='Energy Consumption'!E1227 -> 0 | AF13: ='Energy Consumption'!E1228 -> 0 | AG13: ='Energy Consumption'!E1309 -> 0 | AH13: ='Energy Consumption'!E1310 -> 0 | AI13: ='Energy Consumption'!E1391 -> 0 | AJ13: ='Energy Consumption'!E1392 -> 0 | AK13: ='Energy Consumption'!E1473 -> 0 | AL13: ='Energy Consumption'!E1474 -> 0 | AM13: ='Energy Consumption'!E1555 -> 0 | AN13: ='Energy Consumption'!E1556 -> 0 | AO13: ='Energy Consumption'!E1637 -> 0 | AP13: ='Energy Consumption'!E1638 -> 0 | AR13: ='Relevant Variables'!E55 -> 0 | AS13: ='Relevant Variables'!E85 -> 0 | AT13: ='Relevant Variables'!E115 -> 0 | AU13: ='Relevant Variables'!E145 -> 0 | AV13: ='Relevant Variables'!E175 -> 0 | AW13: ='Relevant Variables'!E205 -> 0 | AX13: ='Relevant Variables'!E235 -> 0 | AY13: ='Relevant Variables'!E265 -> 0 | AZ13: ='Relevant Variables'!E295 -> 0 | BA13: ='Relevant Variables'!E325 -> 0 | BB13: ='Relevant Variables'!E355 -> 0 | BC13: ='Relevant Variables'!E385 -> 0 | BD13: ='Relevant Variables'!E415 -> 0 | BE13: ='Relevant Variables'!E445 -> 0 | BF13: ='Relevant Variables'!E475 -> 0 | BG13: ='Relevant Variables'!E505 -> 0 | BH13: ='Relevant Variables'!E535 -> 0 | BI13: ='Relevant Variables'!E565 -> 0 | BJ13: ='Relevant Variables'!E595 -> 0 | BK13: ='Relevant Variables'!E625 -> 0
A14: =DATE(YEAR(A13),MONTH(A13)+1,1) -> 2005-03-01 | C14: ='Energy Consumption'!F79 -> 0 | D14: ='Energy Consumption'!F80 -> 0 | E14: ='Energy Consumption'!F161 -> 0 | F14: ='Energy Consumption'!F162 -> 0 | G14: ='Energy Consumption'!F243 -> 0 | H14: ='Energy Consumption'!F244 -> 0 | I14: ='Energy Consumption'!F325 -> 0 | J14: ='Energy Consumption'!F326 -> 0 | K14: ='Energy Consumption'!F407 -> 0 | L14: ='Energy Consumption'!F408 -> 0 | M14: ='Energy Consumption'!F489 -> 0 | N14: ='Energy Consumption'!F490 -> 0 | O14: ='Energy Consumption'!F571 -> 0 | P14: ='Energy Consumption'!F572 -> 0 | Q14: ='Energy Consumption'!F653 -> 0 | R14: ='Energy Consumption'!F654 -> 0 | S14: ='Energy Consumption'!F735 -> 0 | T14: ='Energy Consumption'!F736 -> 0 | U14: ='Energy Consumption'!F817 -> 0 | V14: ='Energy Consumption'!F818 -> 0 | W14: ='Energy Consumption'!F899 -> 0 | X14: ='Energy Consumption'!F900 -> 0 | Y14: ='Energy Consumption'!F981 -> 0 | Z14: ='Energy Consumption'!F982 -> 0 | AA14: ='Energy Consumption'!F1063 -> 0 | AB14: ='Energy Consumption'!F1064 -> 0 | AC14: ='Energy Consumption'!F1145 -> 0 | AD14: ='Energy Consumption'!F1146 -> 0 | AE14: ='Energy Consumption'!F1227 -> 0 | AF14: ='Energy Consumption'!F1228 -> 0 | AG14: ='Energy Consumption'!F1309 -> 0 | AH14: ='Energy Consumption'!F1310 -> 0 | AI14: ='Energy Consumption'!F1391 -> 0 | AJ14: ='Energy Consumption'!F1392 -> 0 | AK14: ='Energy Consumption'!F1473 -> 0 | AL14: ='Energy Consumption'!F1474 -> 0 | AM14: ='Energy Consumption'!F1555 -> 0 | AN14: ='Energy Consumption'!F1556 -> 0 | AO14: ='Energy Consumption'!F1637 -> 0 | AP14: ='Energy Consumption'!F1638 -> 0 | AR14: ='Relevant Variables'!F55 -> 0 | AS14: ='Relevant Variables'!F85 -> 0 | AT14: ='Relevant Variables'!F115 -> 0 | AU14: ='Relevant Variables'!F145 -> 0 | AV14: ='Relevant Variables'!F175 -> 0 | AW14: ='Relevant Variables'!F205 -> 0 | AX14: ='Relevant Variables'!F235 -> 0 | AY14: ='Relevant Variables'!F265 -> 0 | AZ14: ='Relevant Variables'!F295 -> 0 | BA14: ='Relevant Variables'!F325 -> 0 | BB14: ='Relevant Variables'!F355 -> 0 | BC14: ='Relevant Variables'!F385 -> 0 | BD14: ='Relevant Variables'!F415 -> 0 | BE14: ='Relevant Variables'!F445 -> 0 | BF14: ='Relevant Variables'!F475 -> 0 | BG14: ='Relevant Variables'!F505 -> 0 | BH14: ='Relevant Variables'!F535 -> 0 | BI14: ='Relevant Variables'!F565 -> 0 | BJ14: ='Relevant Variables'!F595 -> 0 | BK14: ='Relevant Variables'!F625 -> 0
A15: 2005-04-01 | C15: ='Energy Consumption'!G79 -> 0 | D15: ='Energy Consumption'!G80 -> 0 | E15: ='Energy Consumption'!G161 -> 0 | F15: ='Energy Consumption'!G162 -> 0 | G15: ='Energy Consumption'!G243 -> 0 | H15: ='Energy Consumption'!G244 -> 0 | I15: ='Energy Consumption'!G325 -> 0 | J15: ='Energy Consumption'!G326 -> 0 | K15: ='Energy Consumption'!G407 -> 0 | L15: ='Energy Consumption'!G408 -> 0 | M15: ='Energy Consumption'!G489 -> 0 | N15: ='Energy Consumption'!G490 -> 0 | O15: ='Energy Consumption'!G571 -> 0 | P15: ='Energy Consumption'!G572 -> 0 | Q15: ='Energy Consumption'!G653 -> 0 | R15: ='Energy Consumption'!G654 -> 0 | S15: ='Energy Consumption'!G735 -> 0 | T15: ='Energy Consumption'!G736 -> 0 | U15: ='Energy Consumption'!G817 -> 0 | V15: ='Energy Consumption'!G818 -> 0 | W15: ='Energy Consumption'!G899 -> 0 | X15: ='Energy Consumption'!G900 -> 0 | Y15: ='Energy Consumption'!G981 -> 0 | Z15: ='Energy Consumption'!G982 -> 0 | AA15: ='Energy Consumption'!G1063 -> 0 | AB15: ='Energy Consumption'!G1064 -> 0 | AC15: ='Energy Consumption'!G1145 -> 0 | AD15: ='Energy Consumption'!G1146 -> 0 | AE15: ='Energy Consumption'!G1227 -> 0 | AF15: ='Energy Consumption'!G1228 -> 0 | AG15: ='Energy Consumption'!G1309 -> 0 | AH15: ='Energy Consumption'!G1310 -> 0 | AI15: ='Energy Consumption'!G1391 -> 0 | AJ15: ='Energy Consumption'!G1392 -> 0 | AK15: ='Energy Consumption'!G1473 -> 0 | AL15: ='Energy Consumption'!G1474 -> 0 | AM15: ='Energy Consumption'!G1555 -> 0 | AN15: ='Energy Consumption'!G1556 -> 0 | AO15: ='Energy Consumption'!G1637 -> 0 | AP15: ='Energy Consumption'!G1638 -> 0 | AR15: ='Relevant Variables'!G55 -> 0 | AS15: ='Relevant Variables'!G85 -> 0 | AT15: ='Relevant Variables'!G115 -> 0 | AU15: ='Relevant Variables'!G145 -> 0 | AV15: ='Relevant Variables'!G175 -> 0 | AW15: ='Relevant Variables'!G205 -> 0 | AX15: ='Relevant Variables'!G235 -> 0 | AY15: ='Relevant Variables'!G265 -> 0 | AZ15: ='Relevant Variables'!G295 -> 0 | BA15: ='Relevant Variables'!G325 -> 0 | BB15: ='Relevant Variables'!G355 -> 0 | BC15: ='Relevant Variables'!G385 -> 0 | BD15: ='Relevant Variables'!G415 -> 0 | BE15: ='Relevant Variables'!G445 -> 0 | BF15: ='Relevant Variables'!G475 -> 0 | BG15: ='Relevant Variables'!G505 -> 0 | BH15: ='Relevant Variables'!G535 -> 0 | BI15: ='Relevant Variables'!G565 -> 0 | BJ15: ='Relevant Variables'!G595 -> 0 | BK15: ='Relevant Variables'!G625 -> 0
A16: 2005-05-01 | C16: ='Energy Consumption'!H79 -> 0 | D16: ='Energy Consumption'!H80 -> 0 | E16: ='Energy Consumption'!H161 -> 0 | F16: ='Energy Consumption'!H162 -> 0 | G16: ='Energy Consumption'!H243 -> 0 | H16: ='Energy Consumption'!H244 -> 0 | I16: ='Energy Consumption'!H325 -> 0 | J16: ='Energy Consumption'!H326 -> 0 | K16: ='Energy Consumption'!H407 -> 0 | L16: ='Energy Consumption'!H408 -> 0 | M16: ='Energy Consumption'!H489 -> 0 | N16: ='Energy Consumption'!H490 -> 0 | O16: ='Energy Consumption'!H571 -> 0 | P16: ='Energy Consumption'!H572 -> 0 | Q16: ='Energy Consumption'!H653 -> 0 | R16: ='Energy Consumption'!H654 -> 0 | S16: ='Energy Consumption'!H735 -> 0 | T16: ='Energy Consumption'!H736 -> 0 | U16: ='Energy Consumption'!H817 -> 0 | V16: ='Energy Consumption'!H818 -> 0 | W16: ='Energy Consumption'!H899 -> 0 | X16: ='Energy Consumption'!H900 -> 0 | Y16: ='Energy Consumption'!H981 -> 0 | Z16: ='Energy Consumption'!H982 -> 0 | AA16: ='Energy Consumption'!H1063 -> 0 | AB16: ='Energy Consumption'!H1064 -> 0 | AC16: ='Energy Consumption'!H1145 -> 0 | AD16: ='Energy Consumption'!H1146 -> 0 | AE16: ='Energy Consumption'!H1227 -> 0 | AF16: ='Energy Consumption'!H1228 -> 0 | AG16: ='Energy Consumption'!H1309 -> 0 | AH16: ='Energy Consumption'!H1310 -> 0 | AI16: ='Energy Consumption'!H1391 -> 0 | AJ16: ='Energy Consumption'!H1392 -> 0 | AK16: ='Energy Consumption'!H1473 -> 0 | AL16: ='Energy Consumption'!H1474 -> 0 | AM16: ='Energy Consumption'!H1555 -> 0 | AN16: ='Energy Consumption'!H1556 -> 0 | AO16: ='Energy Consumption'!H1637 -> 0 | AP16: ='Energy Consumption'!H1638 -> 0 | AR16: ='Relevant Variables'!H55 -> 0 | AS16: ='Relevant Variables'!H85 -> 0 | AT16: ='Relevant Variables'!H115 -> 0 | AU16: ='Relevant Variables'!H145 -> 0 | AV16: ='Relevant Variables'!H175 -> 0 | AW16: ='Relevant Variables'!H205 -> 0 | AX16: ='Relevant Variables'!H235 -> 0 | AY16: ='Relevant Variables'!H265 -> 0 | AZ16: ='Relevant Variables'!H295 -> 0 | BA16: ='Relevant Variables'!H325 -> 0 | BB16: ='Relevant Variables'!H355 -> 0 | BC16: ='Relevant Variables'!H385 -> 0 | BD16: ='Relevant Variables'!H415 -> 0 | BE16: ='Relevant Variables'!H445 -> 0 | BF16: ='Relevant Variables'!H475 -> 0 | BG16: ='Relevant Variables'!H505 -> 0 | BH16: ='Relevant Variables'!H535 -> 0 | BI16: ='Relevant Variables'!H565 -> 0 | BJ16: ='Relevant Variables'!H595 -> 0 | BK16: ='Relevant Variables'!H625 -> 0
A17: 2005-06-01 | C17: ='Energy Consumption'!I79 -> 0 | D17: ='Energy Consumption'!I80 -> 0 | E17: ='Energy Consumption'!I161 -> 0 | F17: ='Energy Consumption'!I162 -> 0 | G17: ='Energy Consumption'!I243 -> 0 | H17: ='Energy Consumption'!I244 -> 0 | I17: ='Energy Consumption'!I325 -> 0 | J17: ='Energy Consumption'!I326 -> 0 | K17: ='Energy Consumption'!I407 -> 0 | L17: ='Energy Consumption'!I408 -> 0 | M17: ='Energy Consumption'!I489 -> 0 | N17: ='Energy Consumption'!I490 -> 0 | O17: ='Energy Consumption'!I571 -> 0 | P17: ='Energy Consumption'!I572 -> 0 | Q17: ='Energy Consumption'!I653 -> 0 | R17: ='Energy Consumption'!I654 -> 0 | S17: ='Energy Consumption'!I735 -> 0 | T17: ='Energy Consumption'!I736 -> 0 | U17: ='Energy Consumption'!I817 -> 0 | V17: ='Energy Consumption'!I818 -> 0 | W17: ='Energy Consumption'!I899 -> 0 | X17: ='Energy Consumption'!I900 -> 0 | Y17: ='Energy Consumption'!I981 -> 0 | Z17: ='Energy Consumption'!I982 -> 0 | AA17: ='Energy Consumption'!I1063 -> 0 | AB17: ='Energy Consumption'!I1064 -> 0 | AC17: ='Energy Consumption'!I1145 -> 0 | AD17: ='Energy Consumption'!I1146 -> 0 | AE17: ='Energy Consumption'!I1227 -> 0 | AF17: ='Energy Consumption'!I1228 -> 0 | AG17: ='Energy Consumption'!I1309 -> 0 | AH17: ='Energy Consumption'!I1310 -> 0 | AI17: ='Energy Consumption'!I1391 -> 0 | AJ17: ='Energy Consumption'!I1392 -> 0 | AK17: ='Energy Consumption'!I1473 -> 0 | AL17: ='Energy Consumption'!I1474 -> 0 | AM17: ='Energy Consumption'!I1555 -> 0 | AN17: ='Energy Consumption'!I1556 -> 0 | AO17: ='Energy Consumption'!I1637 -> 0 | AP17: ='Energy Consumption'!I1638 -> 0 | AR17: ='Relevant Variables'!I55 -> 0 | AS17: ='Relevant Variables'!I85 -> 0 | AT17: ='Relevant Variables'!I115 -> 0 | AU17: ='Relevant Variables'!I145 -> 0 | AV17: ='Relevant Variables'!I175 -> 0 | AW17: ='Relevant Variables'!I205 -> 0 | AX17: ='Relevant Variables'!I235 -> 0 | AY17: ='Relevant Variables'!I265 -> 0 | AZ17: ='Relevant Variables'!I295 -> 0 | BA17: ='Relevant Variables'!I325 -> 0 | BB17: ='Relevant Variables'!I355 -> 0 | BC17: ='Relevant Variables'!I385 -> 0 | BD17: ='Relevant Variables'!I415 -> 0 | BE17: ='Relevant Variables'!I445 -> 0 | BF17: ='Relevant Variables'!I475 -> 0 | BG17: ='Relevant Variables'!I505 -> 0 | BH17: ='Relevant Variables'!I535 -> 0 | BI17: ='Relevant Variables'!I565 -> 0 | BJ17: ='Relevant Variables'!I595 -> 0 | BK17: ='Relevant Variables'!I625 -> 0
A18: 2005-07-01 | C18: ='Energy Consumption'!J79 -> 0 | D18: ='Energy Consumption'!J80 -> 0 | E18: ='Energy Consumption'!J161 -> 0 | F18: ='Energy Consumption'!J162 -> 0 | G18: ='Energy Consumption'!J243 -> 0 | H18: ='Energy Consumption'!J244 -> 0 | I18: ='Energy Consumption'!J325 -> 0 | J18: ='Energy Consumption'!J326 -> 0 | K18: ='Energy Consumption'!J407 -> 0 | L18: ='Energy Consumption'!J408 -> 0 | M18: ='Energy Consumption'!J489 -> 0 | N18: ='Energy Consumption'!J490 -> 0 | O18: ='Energy Consumption'!J571 -> 0 | P18: ='Energy Consumption'!J572 -> 0 | Q18: ='Energy Consumption'!J653 -> 0 | R18: ='Energy Consumption'!J654 -> 0 | S18: ='Energy Consumption'!J735 -> 0 | T18: ='Energy Consumption'!J736 -> 0 | U18: ='Energy Consumption'!J817 -> 0 | V18: ='Energy Consumption'!J818 -> 0 | W18: ='Energy Consumption'!J899 -> 0 | X18: ='Energy Consumption'!J900 -> 0 | Y18: ='Energy Consumption'!J981 -> 0 | Z18: ='Energy Consumption'!J982 -> 0 | AA18: ='Energy Consumption'!J1063 -> 0 | AB18: ='Energy Consumption'!J1064 -> 0 | AC18: ='Energy Consumption'!J1145 -> 0 | AD18: ='Energy Consumption'!J1146 -> 0 | AE18: ='Energy Consumption'!J1227 -> 0 | AF18: ='Energy Consumption'!J1228 -> 0 | AG18: ='Energy Consumption'!J1309 -> 0 | AH18: ='Energy Consumption'!J1310 -> 0 | AI18: ='Energy Consumption'!J1391 -> 0 | AJ18: ='Energy Consumption'!J1392 -> 0 | AK18: ='Energy Consumption'!J1473 -> 0 | AL18: ='Energy Consumption'!J1474 -> 0 | AM18: ='Energy Consumption'!J1555 -> 0 | AN18: ='Energy Consumption'!J1556 -> 0 | AO18: ='Energy Consumption'!J1637 -> 0 | AP18: ='Energy Consumption'!J1638 -> 0 | AR18: ='Relevant Variables'!J55 -> 0 | AS18: ='Relevant Variables'!J85 -> 0 | AT18: ='Relevant Variables'!J115 -> 0 | AU18: ='Relevant Variables'!J145 -> 0 | AV18: ='Relevant Variables'!J175 -> 0 | AW18: ='Relevant Variables'!J205 -> 0 | AX18: ='Relevant Variables'!J235 -> 0 | AY18: ='Relevant Variables'!J265 -> 0 | AZ18: ='Relevant Variables'!J295 -> 0 | BA18: ='Relevant Variables'!J325 -> 0 | BB18: ='Relevant Variables'!J355 -> 0 | BC18: ='Relevant Variables'!J385 -> 0 | BD18: ='Relevant Variables'!J415 -> 0 | BE18: ='Relevant Variables'!J445 -> 0 | BF18: ='Relevant Variables'!J475 -> 0 | BG18: ='Relevant Variables'!J505 -> 0 | BH18: ='Relevant Variables'!J535 -> 0 | BI18: ='Relevant Variables'!J565 -> 0 | BJ18: ='Relevant Variables'!J595 -> 0 | BK18: ='Relevant Variables'!J625 -> 0
A19: 2005-08-01 | C19: ='Energy Consumption'!K79 -> 0 | D19: ='Energy Consumption'!K80 -> 0 | E19: ='Energy Consumption'!K161 -> 0 | F19: ='Energy Consumption'!K162 -> 0 | G19: ='Energy Consumption'!K243 -> 0 | H19: ='Energy Consumption'!K244 -> 0 | I19: ='Energy Consumption'!K325 -> 0 | J19: ='Energy Consumption'!K326 -> 0 | K19: ='Energy Consumption'!K407 -> 0 | L19: ='Energy Consumption'!K408 -> 0 | M19: ='Energy Consumption'!K489 -> 0 | N19: ='Energy Consumption'!K490 -> 0 | O19: ='Energy Consumption'!K571 -> 0 | P19: ='Energy Consumption'!K572 -> 0 | Q19: ='Energy Consumption'!K653 -> 0 | R19: ='Energy Consumption'!K654 -> 0 | S19: ='Energy Consumption'!K735 -> 0 | T19: ='Energy Consumption'!K736 -> 0 | U19: ='Energy Consumption'!K817 -> 0 | V19: ='Energy Consumption'!K818 -> 0 | W19: ='Energy Consumption'!K899 -> 0 | X19: ='Energy Consumption'!K900 -> 0 | Y19: ='Energy Consumption'!K981 -> 0 | Z19: ='Energy Consumption'!K982 -> 0 | AA19: ='Energy Consumption'!K1063 -> 0 | AB19: ='Energy Consumption'!K1064 -> 0 | AC19: ='Energy Consumption'!K1145 -> 0 | AD19: ='Energy Consumption'!K1146 -> 0 | AE19: ='Energy Consumption'!K1227 -> 0 | AF19: ='Energy Consumption'!K1228 -> 0 | AG19: ='Energy Consumption'!K1309 -> 0 | AH19: ='Energy Consumption'!K1310 -> 0 | AI19: ='Energy Consumption'!K1391 -> 0 | AJ19: ='Energy Consumption'!K1392 -> 0 | AK19: ='Energy Consumption'!K1473 -> 0 | AL19: ='Energy Consumption'!K1474 -> 0 | AM19: ='Energy Consumption'!K1555 -> 0 | AN19: ='Energy Consumption'!K1556 -> 0 | AO19: ='Energy Consumption'!K1637 -> 0 | AP19: ='Energy Consumption'!K1638 -> 0 | AR19: ='Relevant Variables'!K55 -> 0 | AS19: ='Relevant Variables'!K85 -> 0 | AT19: ='Relevant Variables'!K115 -> 0 | AU19: ='Relevant Variables'!K145 -> 0 | AV19: ='Relevant Variables'!K175 -> 0 | AW19: ='Relevant Variables'!K205 -> 0 | AX19: ='Relevant Variables'!K235 -> 0 | AY19: ='Relevant Variables'!K265 -> 0 | AZ19: ='Relevant Variables'!K295 -> 0 | BA19: ='Relevant Variables'!K325 -> 0 | BB19: ='Relevant Variables'!K355 -> 0 | BC19: ='Relevant Variables'!K385 -> 0 | BD19: ='Relevant Variables'!K415 -> 0 | BE19: ='Relevant Variables'!K445 -> 0 | BF19: ='Relevant Variables'!K475 -> 0 | BG19: ='Relevant Variables'!K505 -> 0 | BH19: ='Relevant Variables'!K535 -> 0 | BI19: ='Relevant Variables'!K565 -> 0 | BJ19: ='Relevant Variables'!K595 -> 0 | BK19: ='Relevant Variables'!K625 -> 0
A20: 2005-09-01 | C20: ='Energy Consumption'!L79 -> 0 | D20: ='Energy Consumption'!L80 -> 0 | E20: ='Energy Consumption'!L161 -> 0 | F20: ='Energy Consumption'!L162 -> 0 | G20: ='Energy Consumption'!L243 -> 0 | H20: ='Energy Consumption'!L244 -> 0 | I20: ='Energy Consumption'!L325 -> 0 | J20: ='Energy Consumption'!L326 -> 0 | K20: ='Energy Consumption'!L407 -> 0 | L20: ='Energy Consumption'!L408 -> 0 | M20: ='Energy Consumption'!L489 -> 0 | N20: ='Energy Consumption'!L490 -> 0 | O20: ='Energy Consumption'!L571 -> 0 | P20: ='Energy Consumption'!L572 -> 0 | Q20: ='Energy Consumption'!L653 -> 0 | R20: ='Energy Consumption'!L654 -> 0 | S20: ='Energy Consumption'!L735 -> 0 | T20: ='Energy Consumption'!L736 -> 0 | U20: ='Energy Consumption'!L817 -> 0 | V20: ='Energy Consumption'!L818 -> 0 | W20: ='Energy Consumption'!L899 -> 0 | X20: ='Energy Consumption'!L900 -> 0 | Y20: ='Energy Consumption'!L981 -> 0 | Z20: ='Energy Consumption'!L982 -> 0 | AA20: ='Energy Consumption'!L1063 -> 0 | AB20: ='Energy Consumption'!L1064 -> 0 | AC20: ='Energy Consumption'!L1145 -> 0 | AD20: ='Energy Consumption'!L1146 -> 0 | AE20: ='Energy Consumption'!L1227 -> 0 | AF20: ='Energy Consumption'!L1228 -> 0 | AG20: ='Energy Consumption'!L1309 -> 0 | AH20: ='Energy Consumption'!L1310 -> 0 | AI20: ='Energy Consumption'!L1391 -> 0 | AJ20: ='Energy Consumption'!L1392 -> 0 | AK20: ='Energy Consumption'!L1473 -> 0 | AL20: ='Energy Consumption'!L1474 -> 0 | AM20: ='Energy Consumption'!L1555 -> 0 | AN20: ='Energy Consumption'!L1556 -> 0 | AO20: ='Energy Consumption'!L1637 -> 0 | AP20: ='Energy Consumption'!L1638 -> 0 | AR20: ='Relevant Variables'!L55 -> 0 | AS20: ='Relevant Variables'!L85 -> 0 | AT20: ='Relevant Variables'!L115 -> 0 | AU20: ='Relevant Variables'!L145 -> 0 | AV20: ='Relevant Variables'!L175 -> 0 | AW20: ='Relevant Variables'!L205 -> 0 | AX20: ='Relevant Variables'!L235 -> 0 | AY20: ='Relevant Variables'!L265 -> 0 | AZ20: ='Relevant Variables'!L295 -> 0 | BA20: ='Relevant Variables'!L325 -> 0 | BB20: ='Relevant Variables'!L355 -> 0 | BC20: ='Relevant Variables'!L385 -> 0 | BD20: ='Relevant Variables'!L415 -> 0 | BE20: ='Relevant Variables'!L445 -> 0 | BF20: ='Relevant Variables'!L475 -> 0 | BG20: ='Relevant Variables'!L505 -> 0 | BH20: ='Relevant Variables'!L535 -> 0 | BI20: ='Relevant Variables'!L565 -> 0 | BJ20: ='Relevant Variables'!L595 -> 0 | BK20: ='Relevant Variables'!L625 -> 0
A21: 2005-10-01 | C21: ='Energy Consumption'!M79 -> 0 | D21: ='Energy Consumption'!M80 -> 0 | E21: ='Energy Consumption'!M161 -> 0 | F21: ='Energy Consumption'!M162 -> 0 | G21: ='Energy Consumption'!M243 -> 0 | H21: ='Energy Consumption'!M244 -> 0 | I21: ='Energy Consumption'!M325 -> 0 | J21: ='Energy Consumption'!M326 -> 0 | K21: ='Energy Consumption'!M407 -> 0 | L21: ='Energy Consumption'!M408 -> 0 | M21: ='Energy Consumption'!M489 -> 0 | N21: ='Energy Consumption'!M490 -> 0 | O21: ='Energy Consumption'!M571 -> 0 | P21: ='Energy Consumption'!M572 -> 0 | Q21: ='Energy Consumption'!M653 -> 0 | R21: ='Energy Consumption'!M654 -> 0 | S21: ='Energy Consumption'!M735 -> 0 | T21: ='Energy Consumption'!M736 -> 0 | U21: ='Energy Consumption'!M817 -> 0 | V21: ='Energy Consumption'!M818 -> 0 | W21: ='Energy Consumption'!M899 -> 0 | X21: ='Energy Consumption'!M900 -> 0 | Y21: ='Energy Consumption'!M981 -> 0 | Z21: ='Energy Consumption'!M982 -> 0 | AA21: ='Energy Consumption'!M1063 -> 0 | AB21: ='Energy Consumption'!M1064 -> 0 | AC21: ='Energy Consumption'!M1145 -> 0 | AD21: ='Energy Consumption'!M1146 -> 0 | AE21: ='Energy Consumption'!M1227 -> 0 | AF21: ='Energy Consumption'!M1228 -> 0 | AG21: ='Energy Consumption'!M1309 -> 0 | AH21: ='Energy Consumption'!M1310 -> 0 | AI21: ='Energy Consumption'!M1391 -> 0 | AJ21: ='Energy Consumption'!M1392 -> 0 | AK21: ='Energy Consumption'!M1473 -> 0 | AL21: ='Energy Consumption'!M1474 -> 0 | AM21: ='Energy Consumption'!M1555 -> 0 | AN21: ='Energy Consumption'!M1556 -> 0 | AO21: ='Energy Consumption'!M1637 -> 0 | AP21: ='Energy Consumption'!M1638 -> 0 | AR21: ='Relevant Variables'!M55 -> 0 | AS21: ='Relevant Variables'!M85 -> 0 | AT21: ='Relevant Variables'!M115 -> 0 | AU21: ='Relevant Variables'!M145 -> 0 | AV21: ='Relevant Variables'!M175 -> 0 | AW21: ='Relevant Variables'!M205 -> 0 | AX21: ='Relevant Variables'!M235 -> 0 | AY21: ='Relevant Variables'!M265 -> 0 | AZ21: ='Relevant Variables'!M295 -> 0 | BA21: ='Relevant Variables'!M325 -> 0 | BB21: ='Relevant Variables'!M355 -> 0 | BC21: ='Relevant Variables'!M385 -> 0 | BD21: ='Relevant Variables'!M415 -> 0 | BE21: ='Relevant Variables'!M445 -> 0 | BF21: ='Relevant Variables'!M475 -> 0 | BG21: ='Relevant Variables'!M505 -> 0 | BH21: ='Relevant Variables'!M535 -> 0 | BI21: ='Relevant Variables'!M565 -> 0 | BJ21: ='Relevant Variables'!M595 -> 0 | BK21: ='Relevant Variables'!M625 -> 0
A22: 2005-11-01 | C22: ='Energy Consumption'!N79 -> 0 | D22: ='Energy Consumption'!N80 -> 0 | E22: ='Energy Consumption'!N161 -> 0 | F22: ='Energy Consumption'!N162 -> 0 | G22: ='Energy Consumption'!N243 -> 0 | H22: ='Energy Consumption'!N244 -> 0 | I22: ='Energy Consumption'!N325 -> 0 | J22: ='Energy Consumption'!N326 -> 0 | K22: ='Energy Consumption'!N407 -> 0 | L22: ='Energy Consumption'!N408 -> 0 | M22: ='Energy Consumption'!N489 -> 0 | N22: ='Energy Consumption'!N490 -> 0 | O22: ='Energy Consumption'!N571 -> 0 | P22: ='Energy Consumption'!N572 -> 0 | Q22: ='Energy Consumption'!N653 -> 0 | R22: ='Energy Consumption'!N654 -> 0 | S22: ='Energy Consumption'!N735 -> 0 | T22: ='Energy Consumption'!N736 -> 0 | U22: ='Energy Consumption'!N817 -> 0 | V22: ='Energy Consumption'!N818 -> 0 | W22: ='Energy Consumption'!N899 -> 0 | X22: ='Energy Consumption'!N900 -> 0 | Y22: ='Energy Consumption'!N981 -> 0 | Z22: ='Energy Consumption'!N982 -> 0 | AA22: ='Energy Consumption'!N1063 -> 0 | AB22: ='Energy Consumption'!N1064 -> 0 | AC22: ='Energy Consumption'!N1145 -> 0 | AD22: ='Energy Consumption'!N1146 -> 0 | AE22: ='Energy Consumption'!N1227 -> 0 | AF22: ='Energy Consumption'!N1228 -> 0 | AG22: ='Energy Consumption'!N1309 -> 0 | AH22: ='Energy Consumption'!N1310 -> 0 | AI22: ='Energy Consumption'!N1391 -> 0 | AJ22: ='Energy Consumption'!N1392 -> 0 | AK22: ='Energy Consumption'!N1473 -> 0 | AL22: ='Energy Consumption'!N1474 -> 0 | AM22: ='Energy Consumption'!N1555 -> 0 | AN22: ='Energy Consumption'!N1556 -> 0 | AO22: ='Energy Consumption'!N1637 -> 0 | AP22: ='Energy Consumption'!N1638 -> 0 | AR22: ='Relevant Variables'!N55 -> 0 | AS22: ='Relevant Variables'!N85 -> 0 | AT22: ='Relevant Variables'!N115 -> 0 | AU22: ='Relevant Variables'!N145 -> 0 | AV22: ='Relevant Variables'!N175 -> 0 | AW22: ='Relevant Variables'!N205 -> 0 | AX22: ='Relevant Variables'!N235 -> 0 | AY22: ='Relevant Variables'!N265 -> 0 | AZ22: ='Relevant Variables'!N295 -> 0 | BA22: ='Relevant Variables'!N325 -> 0 | BB22: ='Relevant Variables'!N355 -> 0 | BC22: ='Relevant Variables'!N385 -> 0 | BD22: ='Relevant Variables'!N415 -> 0 | BE22: ='Relevant Variables'!N445 -> 0 | BF22: ='Relevant Variables'!N475 -> 0 | BG22: ='Relevant Variables'!N505 -> 0 | BH22: ='Relevant Variables'!N535 -> 0 | BI22: ='Relevant Variables'!N565 -> 0 | BJ22: ='Relevant Variables'!N595 -> 0 | BK22: ='Relevant Variables'!N625 -> 0
A23: 2005-12-01 | C23: ='Energy Consumption'!O79 -> 0 | D23: ='Energy Consumption'!O80 -> 0 | E23: ='Energy Consumption'!O161 -> 0 | F23: ='Energy Consumption'!O162 -> 0 | G23: ='Energy Consumption'!O243 -> 0 | H23: ='Energy Consumption'!O244 -> 0 | I23: ='Energy Consumption'!O325 -> 0 | J23: ='Energy Consumption'!O326 -> 0 | K23: ='Energy Consumption'!O407 -> 0 | L23: ='Energy Consumption'!O408 -> 0 | M23: ='Energy Consumption'!O489 -> 0 | N23: ='Energy Consumption'!O490 -> 0 | O23: ='Energy Consumption'!O571 -> 0 | P23: ='Energy Consumption'!O572 -> 0 | Q23: ='Energy Consumption'!O653 -> 0 | R23: ='Energy Consumption'!O654 -> 0 | S23: ='Energy Consumption'!O735 -> 0 | T23: ='Energy Consumption'!O736 -> 0 | U23: ='Energy Consumption'!O817 -> 0 | V23: ='Energy Consumption'!O818 -> 0 | W23: ='Energy Consumption'!O899 -> 0 | X23: ='Energy Consumption'!O900 -> 0 | Y23: ='Energy Consumption'!O981 -> 0 | Z23: ='Energy Consumption'!O982 -> 0 | AA23: ='Energy Consumption'!O1063 -> 0 | AB23: ='Energy Consumption'!O1064 -> 0 | AC23: ='Energy Consumption'!O1145 -> 0 | AD23: ='Energy Consumption'!O1146 -> 0 | AE23: ='Energy Consumption'!O1227 -> 0 | AF23: ='Energy Consumption'!O1228 -> 0 | AG23: ='Energy Consumption'!O1309 -> 0 | AH23: ='Energy Consumption'!O1310 -> 0 | AI23: ='Energy Consumption'!O1391 -> 0 | AJ23: ='Energy Consumption'!O1392 -> 0 | AK23: ='Energy Consumption'!O1473 -> 0 | AL23: ='Energy Consumption'!O1474 -> 0 | AM23: ='Energy Consumption'!O1555 -> 0 | AN23: ='Energy Consumption'!O1556 -> 0 | AO23: ='Energy Consumption'!O1637 -> 0 | AP23: ='Energy Consumption'!O1638 -> 0 | AR23: ='Relevant Variables'!O55 -> 0 | AS23: ='Relevant Variables'!O85 -> 0 | AT23: ='Relevant Variables'!O115 -> 0 | AU23: ='Relevant Variables'!O145 -> 0 | AV23: ='Relevant Variables'!O175 -> 0 | AW23: ='Relevant Variables'!O205 -> 0 | AX23: ='Relevant Variables'!O235 -> 0 | AY23: ='Relevant Variables'!O265 -> 0 | AZ23: ='Relevant Variables'!O295 -> 0 | BA23: ='Relevant Variables'!O325 -> 0 | BB23: ='Relevant Variables'!O355 -> 0 | BC23: ='Relevant Variables'!O385 -> 0 | BD23: ='Relevant Variables'!O415 -> 0 | BE23: ='Relevant Variables'!O445 -> 0 | BF23: ='Relevant Variables'!O475 -> 0 | BG23: ='Relevant Variables'!O505 -> 0 | BH23: ='Relevant Variables'!O535 -> 0 | BI23: ='Relevant Variables'!O565 -> 0 | BJ23: ='Relevant Variables'!O595 -> 0 | BK23: ='Relevant Variables'!O625 -> 0
A24: 2006-01-01 | C24: ='Energy Consumption'!D77 -> 0 | D24: ='Energy Consumption'!D78 -> 0 | E24: ='Energy Consumption'!D159 -> 0 | F24: ='Energy Consumption'!D160 -> 0 | G24: ='Energy Consumption'!D241 -> 0 | H24: ='Energy Consumption'!D242 -> 0 | I24: ='Energy Consumption'!D323 -> 0 | J24: ='Energy Consumption'!D324 -> 0 | K24: ='Energy Consumption'!D405 -> 0 | L24: ='Energy Consumption'!D406 -> 0 | M24: ='Energy Consumption'!D487 -> 0 | N24: ='Energy Consumption'!D488 -> 0 | O24: ='Energy Consumption'!D569 -> 0 | P24: ='Energy Consumption'!D570 -> 0 | Q24: ='Energy Consumption'!D651 -> 0 | R24: ='Energy Consumption'!D652 -> 0 | S24: ='Energy Consumption'!D733 -> 0 | T24: ='Energy Consumption'!D734 -> 0 | U24: ='Energy Consumption'!D815 -> 0 | V24: ='Energy Consumption'!D816 -> 0 | W24: ='Energy Consumption'!D897 -> 0 | X24: ='Energy Consumption'!D898 -> 0 | Y24: ='Energy Consumption'!D979 -> 0 | Z24: ='Energy Consumption'!D980 -> 0 | AA24: ='Energy Consumption'!D1061 -> 0 | AB24: ='Energy Consumption'!D1062 -> 0 | AC24: ='Energy Consumption'!D1143 -> 0 | AD24: ='Energy Consumption'!D1144 -> 0 | AE24: ='Energy Consumption'!D1225 -> 0 | AF24: ='Energy Consumption'!D1226 -> 0 | AG24: ='Energy Consumption'!D1307 -> 0 | AH24: ='Energy Consumption'!D1308 -> 0 | AI24: ='Energy Consumption'!D1389 -> 0 | AJ24: ='Energy Consumption'!D1390 -> 0 | AK24: ='Energy Consumption'!D1471 -> 0 | AL24: ='Energy Consumption'!D1472 -> 0 | AM24: ='Energy Consumption'!D1553 -> 0 | AN24: ='Energy Consumption'!D1554 -> 0 | AO24: ='Energy Consumption'!D1635 -> 0 | AP24: ='Energy Consumption'!D1636 -> 0 | AR24: ='Relevant Variables'!D54 -> 0 | AS24: ='Relevant Variables'!D84 -> 0 | AT24: ='Relevant Variables'!D114 -> 0 | AU24: ='Relevant Variables'!D144 -> 0 | AV24: ='Relevant Variables'!D174 -> 0 | AW24: ='Relevant Variables'!D204 -> 0 | AX24: ='Relevant Variables'!D234 -> 0 | AY24: ='Relevant Variables'!D264 -> 0 | AZ24: ='Relevant Variables'!D294 -> 0 | BA24: ='Relevant Variables'!D324 -> 0 | BB24: ='Relevant Variables'!D354 -> 0 | BC24: ='Relevant Variables'!D384 -> 0 | BD24: ='Relevant Variables'!D414 -> 0 | BE24: ='Relevant Variables'!D444 -> 0 | BF24: ='Relevant Variables'!D474 -> 0 | BG24: ='Relevant Variables'!D504 -> 0 | BH24: ='Relevant Variables'!D534 -> 0 | BI24: ='Relevant Variables'!D564 -> 0 | BJ24: ='Relevant Variables'!D594 -> 0 | BK24: ='Relevant Variables'!D624 -> 0
A25: 2006-02-01 | C25: ='Energy Consumption'!E77 -> 0 | D25: ='Energy Consumption'!E78 -> 0 | E25: ='Energy Consumption'!E159 -> 0 | F25: ='Energy Consumption'!E160 -> 0 | G25: ='Energy Consumption'!E241 -> 0 | H25: ='Energy Consumption'!E242 -> 0 | I25: ='Energy Consumption'!E323 -> 0 | J25: ='Energy Consumption'!E324 -> 0 | K25: ='Energy Consumption'!E405 -> 0 | L25: ='Energy Consumption'!E406 -> 0 | M25: ='Energy Consumption'!E487 -> 0 | N25: ='Energy Consumption'!E488 -> 0 | O25: ='Energy Consumption'!E569 -> 0 | P25: ='Energy Consumption'!E570 -> 0 | Q25: ='Energy Consumption'!E651 -> 0 | R25: ='Energy Consumption'!E652 -> 0 | S25: ='Energy Consumption'!E733 -> 0 | T25: ='Energy Consumption'!E734 -> 0 | U25: ='Energy Consumption'!E815 -> 0 | V25: ='Energy Consumption'!E816 -> 0 | W25: ='Energy Consumption'!E897 -> 0 | X25: ='Energy Consumption'!E898 -> 0 | Y25: ='Energy Consumption'!E979 -> 0 | Z25: ='Energy Consumption'!E980 -> 0 | AA25: ='Energy Consumption'!E1061 -> 0 | AB25: ='Energy Consumption'!E1062 -> 0 | AC25: ='Energy Consumption'!E1143 -> 0 | AD25: ='Energy Consumption'!E1144 -> 0 | AE25: ='Energy Consumption'!E1225 -> 0 | AF25: ='Energy Consumption'!E1226 -> 0 | AG25: ='Energy Consumption'!E1307 -> 0 | AH25: ='Energy Consumption'!E1308 -> 0 | AI25: ='Energy Consumption'!E1389 -> 0 | AJ25: ='Energy Consumption'!E1390 -> 0 | AK25: ='Energy Consumption'!E1471 -> 0 | AL25: ='Energy Consumption'!E1472 -> 0 | AM25: ='Energy Consumption'!E1553 -> 0 | AN25: ='Energy Consumption'!E1554 -> 0 | AO25: ='Energy Consumption'!E1635 -> 0 | AP25: ='Energy Consumption'!E1636 -> 0 | AR25: ='Relevant Variables'!E54 -> 0 | AS25: ='Relevant Variables'!E84 -> 0 | AT25: ='Relevant Variables'!E114 -> 0 | AU25: ='Relevant Variables'!E144 -> 0 | AV25: ='Relevant Variables'!E174 -> 0 | AW25: ='Relevant Variables'!E204 -> 0 | AX25: ='Relevant Variables'!E234 -> 0 | AY25: ='Relevant Variables'!E264 -> 0 | AZ25: ='Relevant Variables'!E294 -> 0 | BA25: ='Relevant Variables'!E324 -> 0 | BB25: ='Relevant Variables'!E354 -> 0 | BC25: ='Relevant Variables'!E384 -> 0 | BD25: ='Relevant Variables'!E414 -> 0 | BE25: ='Relevant Variables'!E444 -> 0 | BF25: ='Relevant Variables'!E474 -> 0 | BG25: ='Relevant Variables'!E504 -> 0 | BH25: ='Relevant Variables'!E534 -> 0 | BI25: ='Relevant Variables'!E564 -> 0 | BJ25: ='Relevant Variables'!E594 -> 0 | BK25: ='Relevant Variables'!E624 -> 0
A26: 2006-03-01 | C26: ='Energy Consumption'!F77 -> 0 | D26: ='Energy Consumption'!F78 -> 0 | E26: ='Energy Consumption'!F159 -> 0 | F26: ='Energy Consumption'!F160 -> 0 | G26: ='Energy Consumption'!F241 -> 0 | H26: ='Energy Consumption'!F242 -> 0 | I26: ='Energy Consumption'!F323 -> 0 | J26: ='Energy Consumption'!F324 -> 0 | K26: ='Energy Consumption'!F405 -> 0 | L26: ='Energy Consumption'!F406 -> 0 | M26: ='Energy Consumption'!F487 -> 0 | N26: ='Energy Consumption'!F488 -> 0 | O26: ='Energy Consumption'!F569 -> 0 | P26: ='Energy Consumption'!F570 -> 0 | Q26: ='Energy Consumption'!F651 -> 0 | R26: ='Energy Consumption'!F652 -> 0 | S26: ='Energy Consumption'!F733 -> 0 | T26: ='Energy Consumption'!F734 -> 0 | U26: ='Energy Consumption'!F815 -> 0 | V26: ='Energy Consumption'!F816 -> 0 | W26: ='Energy Consumption'!F897 -> 0 | X26: ='Energy Consumption'!F898 -> 0 | Y26: ='Energy Consumption'!F979 -> 0 | Z26: ='Energy Consumption'!F980 -> 0 | AA26: ='Energy Consumption'!F1061 -> 0 | AB26: ='Energy Consumption'!F1062 -> 0 | AC26: ='Energy Consumption'!F1143 -> 0 | AD26: ='Energy Consumption'!F1144 -> 0 | AE26: ='Energy Consumption'!F1225 -> 0 | AF26: ='Energy Consumption'!F1226 -> 0 | AG26: ='Energy Consumption'!F1307 -> 0 | AH26: ='Energy Consumption'!F1308 -> 0 | AI26: ='Energy Consumption'!F1389 -> 0 | AJ26: ='Energy Consumption'!F1390 -> 0 | AK26: ='Energy Consumption'!F1471 -> 0 | AL26: ='Energy Consumption'!F1472 -> 0 | AM26: ='Energy Consumption'!F1553 -> 0 | AN26: ='Energy Consumption'!F1554 -> 0 | AO26: ='Energy Consumption'!F1635 -> 0 | AP26: ='Energy Consumption'!F1636 -> 0 | AR26: ='Relevant Variables'!F54 -> 0 | AS26: ='Relevant Variables'!F84 -> 0 | AT26: ='Relevant Variables'!F114 -> 0 | AU26: ='Relevant Variables'!F144 -> 0 | AV26: ='Relevant Variables'!F174 -> 0 | AW26: ='Relevant Variables'!F204 -> 0 | AX26: ='Relevant Variables'!F234 -> 0 | AY26: ='Relevant Variables'!F264 -> 0 | AZ26: ='Relevant Variables'!F294 -> 0 | BA26: ='Relevant Variables'!F324 -> 0 | BB26: ='Relevant Variables'!F354 -> 0 | BC26: ='Relevant Variables'!F384 -> 0 | BD26: ='Relevant Variables'!F414 -> 0 | BE26: ='Relevant Variables'!F444 -> 0 | BF26: ='Relevant Variables'!F474 -> 0 | BG26: ='Relevant Variables'!F504 -> 0 | BH26: ='Relevant Variables'!F534 -> 0 | BI26: ='Relevant Variables'!F564 -> 0 | BJ26: ='Relevant Variables'!F594 -> 0 | BK26: ='Relevant Variables'!F624 -> 0
A27: 2006-04-01 | C27: ='Energy Consumption'!G77 -> 0 | D27: ='Energy Consumption'!G78 -> 0 | E27: ='Energy Consumption'!G159 -> 0 | F27: ='Energy Consumption'!G160 -> 0 | G27: ='Energy Consumption'!G241 -> 0 | H27: ='Energy Consumption'!G242 -> 0 | I27: ='Energy Consumption'!G323 -> 0 | J27: ='Energy Consumption'!G324 -> 0 | K27: ='Energy Consumption'!G405 -> 0 | L27: ='Energy Consumption'!G406 -> 0 | M27: ='Energy Consumption'!G487 -> 0 | N27: ='Energy Consumption'!G488 -> 0 | O27: ='Energy Consumption'!G569 -> 0 | P27: ='Energy Consumption'!G570 -> 0 | Q27: ='Energy Consumption'!G651 -> 0 | R27: ='Energy Consumption'!G652 -> 0 | S27: ='Energy Consumption'!G733 -> 0 | T27: ='Energy Consumption'!G734 -> 0 | U27: ='Energy Consumption'!G815 -> 0 | V27: ='Energy Consumption'!G816 -> 0 | W27: ='Energy Consumption'!G897 -> 0 | X27: ='Energy Consumption'!G898 -> 0 | Y27: ='Energy Consumption'!G979 -> 0 | Z27: ='Energy Consumption'!G980 -> 0 | AA27: ='Energy Consumption'!G1061 -> 0 | AB27: ='Energy Consumption'!G1062 -> 0 | AC27: ='Energy Consumption'!G1143 -> 0 | AD27: ='Energy Consumption'!G1144 -> 0 | AE27: ='Energy Consumption'!G1225 -> 0 | AF27: ='Energy Consumption'!G1226 -> 0 | AG27: ='Energy Consumption'!G1307 -> 0 | AH27: ='Energy Consumption'!G1308 -> 0 | AI27: ='Energy Consumption'!G1389 -> 0 | AJ27: ='Energy Consumption'!G1390 -> 0 | AK27: ='Energy Consumption'!G1471 -> 0 | AL27: ='Energy Consumption'!G1472 -> 0 | AM27: ='Energy Consumption'!G1553 -> 0 | AN27: ='Energy Consumption'!G1554 -> 0 | AO27: ='Energy Consumption'!G1635 -> 0 | AP27: ='Energy Consumption'!G1636 -> 0 | AR27: ='Relevant Variables'!G54 -> 0 | AS27: ='Relevant Variables'!G84 -> 0 | AT27: ='Relevant Variables'!G114 -> 0 | AU27: ='Relevant Variables'!G144 -> 0 | AV27: ='Relevant Variables'!G174 -> 0 | AW27: ='Relevant Variables'!G204 -> 0 | AX27: ='Relevant Variables'!G234 -> 0 | AY27: ='Relevant Variables'!G264 -> 0 | AZ27: ='Relevant Variables'!G294 -> 0 | BA27: ='Relevant Variables'!G324 -> 0 | BB27: ='Relevant Variables'!G354 -> 0 | BC27: ='Relevant Variables'!G384 -> 0 | BD27: ='Relevant Variables'!G414 -> 0 | BE27: ='Relevant Variables'!G444 -> 0 | BF27: ='Relevant Variables'!G474 -> 0 | BG27: ='Relevant Variables'!G504 -> 0 | BH27: ='Relevant Variables'!G534 -> 0 | BI27: ='Relevant Variables'!G564 -> 0 | BJ27: ='Relevant Variables'!G594 -> 0 | BK27: ='Relevant Variables'!G624 -> 0
A28: 2006-05-01 | C28: ='Energy Consumption'!H77 -> 0 | D28: ='Energy Consumption'!H78 -> 0 | E28: ='Energy Consumption'!H159 -> 0 | F28: ='Energy Consumption'!H160 -> 0 | G28: ='Energy Consumption'!H241 -> 0 | H28: ='Energy Consumption'!H242 -> 0 | I28: ='Energy Consumption'!H323 -> 0 | J28: ='Energy Consumption'!H324 -> 0 | K28: ='Energy Consumption'!H405 -> 0 | L28: ='Energy Consumption'!H406 -> 0 | M28: ='Energy Consumption'!H487 -> 0 | N28: ='Energy Consumption'!H488 -> 0 | O28: ='Energy Consumption'!H569 -> 0 | P28: ='Energy Consumption'!H570 -> 0 | Q28: ='Energy Consumption'!H651 -> 0 | R28: ='Energy Consumption'!H652 -> 0 | S28: ='Energy Consumption'!H733 -> 0 | T28: ='Energy Consumption'!H734 -> 0 | U28: ='Energy Consumption'!H815 -> 0 | V28: ='Energy Consumption'!H816 -> 0 | W28: ='Energy Consumption'!H897 -> 0 | X28: ='Energy Consumption'!H898 -> 0 | Y28: ='Energy Consumption'!H979 -> 0 | Z28: ='Energy Consumption'!H980 -> 0 | AA28: ='Energy Consumption'!H1061 -> 0 | AB28: ='Energy Consumption'!H1062 -> 0 | AC28: ='Energy Consumption'!H1143 -> 0 | AD28: ='Energy Consumption'!H1144 -> 0 | AE28: ='Energy Consumption'!H1225 -> 0 | AF28: ='Energy Consumption'!H1226 -> 0 | AG28: ='Energy Consumption'!H1307 -> 0 | AH28: ='Energy Consumption'!H1308 -> 0 | AI28: ='Energy Consumption'!H1389 -> 0 | AJ28: ='Energy Consumption'!H1390 -> 0 | AK28: ='Energy Consumption'!H1471 -> 0 | AL28: ='Energy Consumption'!H1472 -> 0 | AM28: ='Energy Consumption'!H1553 -> 0 | AN28: ='Energy Consumption'!H1554 -> 0 | AO28: ='Energy Consumption'!H1635 -> 0 | AP28: ='Energy Consumption'!H1636 -> 0 | AR28: ='Relevant Variables'!H54 -> 0 | AS28: ='Relevant Variables'!H84 -> 0 | AT28: ='Relevant Variables'!H114 -> 0 | AU28: ='Relevant Variables'!H144 -> 0 | AV28: ='Relevant Variables'!H174 -> 0 | AW28: ='Relevant Variables'!H204 -> 0 | AX28: ='Relevant Variables'!H234 -> 0 | AY28: ='Relevant Variables'!H264 -> 0 | AZ28: ='Relevant Variables'!H294 -> 0 | BA28: ='Relevant Variables'!H324 -> 0 | BB28: ='Relevant Variables'!H354 -> 0 | BC28: ='Relevant Variables'!H384 -> 0 | BD28: ='Relevant Variables'!H414 -> 0 | BE28: ='Relevant Variables'!H444 -> 0 | BF28: ='Relevant Variables'!H474 -> 0 | BG28: ='Relevant Variables'!H504 -> 0 | BH28: ='Relevant Variables'!H534 -> 0 | BI28: ='Relevant Variables'!H564 -> 0 | BJ28: ='Relevant Variables'!H594 -> 0 | BK28: ='Relevant Variables'!H624 -> 0
A29: 2006-06-01 | C29: ='Energy Consumption'!I77 -> 0 | D29: ='Energy Consumption'!I78 -> 0 | E29: ='Energy Consumption'!I159 -> 0 | F29: ='Energy Consumption'!I160 -> 0 | G29: ='Energy Consumption'!I241 -> 0 | H29: ='Energy Consumption'!I242 -> 0 | I29: ='Energy Consumption'!I323 -> 0 | J29: ='Energy Consumption'!I324 -> 0 | K29: ='Energy Consumption'!I405 -> 0 | L29: ='Energy Consumption'!I406 -> 0 | M29: ='Energy Consumption'!I487 -> 0 | N29: ='Energy Consumption'!I488 -> 0 | O29: ='Energy Consumption'!I569 -> 0 | P29: ='Energy Consumption'!I570 -> 0 | Q29: ='Energy Consumption'!I651 -> 0 | R29: ='Energy Consumption'!I652 -> 0 | S29: ='Energy Consumption'!I733 -> 0 | T29: ='Energy Consumption'!I734 -> 0 | U29: ='Energy Consumption'!I815 -> 0 | V29: ='Energy Consumption'!I816 -> 0 | W29: ='Energy Consumption'!I897 -> 0 | X29: ='Energy Consumption'!I898 -> 0 | Y29: ='Energy Consumption'!I979 -> 0 | Z29: ='Energy Consumption'!I980 -> 0 | AA29: ='Energy Consumption'!I1061 -> 0 | AB29: ='Energy Consumption'!I1062 -> 0 | AC29: ='Energy Consumption'!I1143 -> 0 | AD29: ='Energy Consumption'!I1144 -> 0 | AE29: ='Energy Consumption'!I1225 -> 0 | AF29: ='Energy Consumption'!I1226 -> 0 | AG29: ='Energy Consumption'!I1307 -> 0 | AH29: ='Energy Consumption'!I1308 -> 0 | AI29: ='Energy Consumption'!I1389 -> 0 | AJ29: ='Energy Consumption'!I1390 -> 0 | AK29: ='Energy Consumption'!I1471 -> 0 | AL29: ='Energy Consumption'!I1472 -> 0 | AM29: ='Energy Consumption'!I1553 -> 0 | AN29: ='Energy Consumption'!I1554 -> 0 | AO29: ='Energy Consumption'!I1635 -> 0 | AP29: ='Energy Consumption'!I1636 -> 0 | AR29: ='Relevant Variables'!I54 -> 0 | AS29: ='Relevant Variables'!I84 -> 0 | AT29: ='Relevant Variables'!I114 -> 0 | AU29: ='Relevant Variables'!I144 -> 0 | AV29: ='Relevant Variables'!I174 -> 0 | AW29: ='Relevant Variables'!I204 -> 0 | AX29: ='Relevant Variables'!I234 -> 0 | AY29: ='Relevant Variables'!I264 -> 0 | AZ29: ='Relevant Variables'!I294 -> 0 | BA29: ='Relevant Variables'!I324 -> 0 | BB29: ='Relevant Variables'!I354 -> 0 | BC29: ='Relevant Variables'!I384 -> 0 | BD29: ='Relevant Variables'!I414 -> 0 | BE29: ='Relevant Variables'!I444 -> 0 | BF29: ='Relevant Variables'!I474 -> 0 | BG29: ='Relevant Variables'!I504 -> 0 | BH29: ='Relevant Variables'!I534 -> 0 | BI29: ='Relevant Variables'!I564 -> 0 | BJ29: ='Relevant Variables'!I594 -> 0 | BK29: ='Relevant Variables'!I624 -> 0
A30: 2006-07-01 | C30: ='Energy Consumption'!J77 -> 0 | D30: ='Energy Consumption'!J78 -> 0 | E30: ='Energy Consumption'!J159 -> 0 | F30: ='Energy Consumption'!J160 -> 0 | G30: ='Energy Consumption'!J241 -> 0 | H30: ='Energy Consumption'!J242 -> 0 | I30: ='Energy Consumption'!J323 -> 0 | J30: ='Energy Consumption'!J324 -> 0 | K30: ='Energy Consumption'!J405 -> 0 | L30: ='Energy Consumption'!J406 -> 0 | M30: ='Energy Consumption'!J487 -> 0 | N30: ='Energy Consumption'!J488 -> 0 | O30: ='Energy Consumption'!J569 -> 0 | P30: ='Energy Consumption'!J570 -> 0 | Q30: ='Energy Consumption'!J651 -> 0 | R30: ='Energy Consumption'!J652 -> 0 | S30: ='Energy Consumption'!J733 -> 0 | T30: ='Energy Consumption'!J734 -> 0 | U30: ='Energy Consumption'!J815 -> 0 | V30: ='Energy Consumption'!J816 -> 0 | W30: ='Energy Consumption'!J897 -> 0 | X30: ='Energy Consumption'!J898 -> 0 | Y30: ='Energy Consumption'!J979 -> 0 | Z30: ='Energy Consumption'!J980 -> 0 | AA30: ='Energy Consumption'!J1061 -> 0 | AB30: ='Energy Consumption'!J1062 -> 0 | AC30: ='Energy Consumption'!J1143 -> 0 | AD30: ='Energy Consumption'!J1144 -> 0 | AE30: ='Energy Consumption'!J1225 -> 0 | AF30: ='Energy Consumption'!J1226 -> 0 | AG30: ='Energy Consumption'!J1307 -> 0 | AH30: ='Energy Consumption'!J1308 -> 0 | AI30: ='Energy Consumption'!J1389 -> 0 | AJ30: ='Energy Consumption'!J1390 -> 0 | AK30: ='Energy Consumption'!J1471 -> 0 | AL30: ='Energy Consumption'!J1472 -> 0 | AM30: ='Energy Consumption'!J1553 -> 0 | AN30: ='Energy Consumption'!J1554 -> 0 | AO30: ='Energy Consumption'!J1635 -> 0 | AP30: ='Energy Consumption'!J1636 -> 0 | AR30: ='Relevant Variables'!J54 -> 0 | AS30: ='Relevant Variables'!J84 -> 0 | AT30: ='Relevant Variables'!J114 -> 0 | AU30: ='Relevant Variables'!J144 -> 0 | AV30: ='Relevant Variables'!J174 -> 0 | AW30: ='Relevant Variables'!J204 -> 0 | AX30: ='Relevant Variables'!J234 -> 0 | AY30: ='Relevant Variables'!J264 -> 0 | AZ30: ='Relevant Variables'!J294 -> 0 | BA30: ='Relevant Variables'!J324 -> 0 | BB30: ='Relevant Variables'!J354 -> 0 | BC30: ='Relevant Variables'!J384 -> 0 | BD30: ='Relevant Variables'!J414 -> 0 | BE30: ='Relevant Variables'!J444 -> 0 | BF30: ='Relevant Variables'!J474 -> 0 | BG30: ='Relevant Variables'!J504 -> 0 | BH30: ='Relevant Variables'!J534 -> 0 | BI30: ='Relevant Variables'!J564 -> 0 | BJ30: ='Relevant Variables'!J594 -> 0 | BK30: ='Relevant Variables'!J624 -> 0
A31: 2006-08-01 | C31: ='Energy Consumption'!K77 -> 0 | D31: ='Energy Consumption'!K78 -> 0 | E31: ='Energy Consumption'!K159 -> 0 | F31: ='Energy Consumption'!K160 -> 0 | G31: ='Energy Consumption'!K241 -> 0 | H31: ='Energy Consumption'!K242 -> 0 | I31: ='Energy Consumption'!K323 -> 0 | J31: ='Energy Consumption'!K324 -> 0 | K31: ='Energy Consumption'!K405 -> 0 | L31: ='Energy Consumption'!K406 -> 0 | M31: ='Energy Consumption'!K487 -> 0 | N31: ='Energy Consumption'!K488 -> 0 | O31: ='Energy Consumption'!K569 -> 0 | P31: ='Energy Consumption'!K570 -> 0 | Q31: ='Energy Consumption'!K651 -> 0 | R31: ='Energy Consumption'!K652 -> 0 | S31: ='Energy Consumption'!K733 -> 0 | T31: ='Energy Consumption'!K734 -> 0 | U31: ='Energy Consumption'!K815 -> 0 | V31: ='Energy Consumption'!K816 -> 0 | W31: ='Energy Consumption'!K897 -> 0 | X31: ='Energy Consumption'!K898 -> 0 | Y31: ='Energy Consumption'!K979 -> 0 | Z31: ='Energy Consumption'!K980 -> 0 | AA31: ='Energy Consumption'!K1061 -> 0 | AB31: ='Energy Consumption'!K1062 -> 0 | AC31: ='Energy Consumption'!K1143 -> 0 | AD31: ='Energy Consumption'!K1144 -> 0 | AE31: ='Energy Consumption'!K1225 -> 0 | AF31: ='Energy Consumption'!K1226 -> 0 | AG31: ='Energy Consumption'!K1307 -> 0 | AH31: ='Energy Consumption'!K1308 -> 0 | AI31: ='Energy Consumption'!K1389 -> 0 | AJ31: ='Energy Consumption'!K1390 -> 0 | AK31: ='Energy Consumption'!K1471 -> 0 | AL31: ='Energy Consumption'!K1472 -> 0 | AM31: ='Energy Consumption'!K1553 -> 0 | AN31: ='Energy Consumption'!K1554 -> 0 | AO31: ='Energy Consumption'!K1635 -> 0 | AP31: ='Energy Consumption'!K1636 -> 0 | AR31: ='Relevant Variables'!K54 -> 0 | AS31: ='Relevant Variables'!K84 -> 0 | AT31: ='Relevant Variables'!K114 -> 0 | AU31: ='Relevant Variables'!K144 -> 0 | AV31: ='Relevant Variables'!K174 -> 0 | AW31: ='Relevant Variables'!K204 -> 0 | AX31: ='Relevant Variables'!K234 -> 0 | AY31: ='Relevant Variables'!K264 -> 0 | AZ31: ='Relevant Variables'!K294 -> 0 | BA31: ='Relevant Variables'!K324 -> 0 | BB31: ='Relevant Variables'!K354 -> 0 | BC31: ='Relevant Variables'!K384 -> 0 | BD31: ='Relevant Variables'!K414 -> 0 | BE31: ='Relevant Variables'!K444 -> 0 | BF31: ='Relevant Variables'!K474 -> 0 | BG31: ='Relevant Variables'!K504 -> 0 | BH31: ='Relevant Variables'!K534 -> 0 | BI31: ='Relevant Variables'!K564 -> 0 | BJ31: ='Relevant Variables'!K594 -> 0 | BK31: ='Relevant Variables'!K624 -> 0
A32: 2006-09-01 | C32: ='Energy Consumption'!L77 -> 0 | D32: ='Energy Consumption'!L78 -> 0 | E32: ='Energy Consumption'!L159 -> 0 | F32: ='Energy Consumption'!L160 -> 0 | G32: ='Energy Consumption'!L241 -> 0 | H32: ='Energy Consumption'!L242 -> 0 | I32: ='Energy Consumption'!L323 -> 0 | J32: ='Energy Consumption'!L324 -> 0 | K32: ='Energy Consumption'!L405 -> 0 | L32: ='Energy Consumption'!L406 -> 0 | M32: ='Energy Consumption'!L487 -> 0 | N32: ='Energy Consumption'!L488 -> 0 | O32: ='Energy Consumption'!L569 -> 0 | P32: ='Energy Consumption'!L570 -> 0 | Q32: ='Energy Consumption'!L651 -> 0 | R32: ='Energy Consumption'!L652 -> 0 | S32: ='Energy Consumption'!L733 -> 0 | T32: ='Energy Consumption'!L734 -> 0 | U32: ='Energy Consumption'!L815 -> 0 | V32: ='Energy Consumption'!L816 -> 0 | W32: ='Energy Consumption'!L897 -> 0 | X32: ='Energy Consumption'!L898 -> 0 | Y32: ='Energy Consumption'!L979 -> 0 | Z32: ='Energy Consumption'!L980 -> 0 | AA32: ='Energy Consumption'!L1061 -> 0 | AB32: ='Energy Consumption'!L1062 -> 0 | AC32: ='Energy Consumption'!L1143 -> 0 | AD32: ='Energy Consumption'!L1144 -> 0 | AE32: ='Energy Consumption'!L1225 -> 0 | AF32: ='Energy Consumption'!L1226 -> 0 | AG32: ='Energy Consumption'!L1307 -> 0 | AH32: ='Energy Consumption'!L1308 -> 0 | AI32: ='Energy Consumption'!L1389 -> 0 | AJ32: ='Energy Consumption'!L1390 -> 0 | AK32: ='Energy Consumption'!L1471 -> 0 | AL32: ='Energy Consumption'!L1472 -> 0 | AM32: ='Energy Consumption'!L1553 -> 0 | AN32: ='Energy Consumption'!L1554 -> 0 | AO32: ='Energy Consumption'!L1635 -> 0 | AP32: ='Energy Consumption'!L1636 -> 0 | AR32: ='Relevant Variables'!L54 -> 0 | AS32: ='Relevant Variables'!L84 -> 0 | AT32: ='Relevant Variables'!L114 -> 0 | AU32: ='Relevant Variables'!L144 -> 0 | AV32: ='Relevant Variables'!L174 -> 0 | AW32: ='Relevant Variables'!L204 -> 0 | AX32: ='Relevant Variables'!L234 -> 0 | AY32: ='Relevant Variables'!L264 -> 0 | AZ32: ='Relevant Variables'!L294 -> 0 | BA32: ='Relevant Variables'!L324 -> 0 | BB32: ='Relevant Variables'!L354 -> 0 | BC32: ='Relevant Variables'!L384 -> 0 | BD32: ='Relevant Variables'!L414 -> 0 | BE32: ='Relevant Variables'!L444 -> 0 | BF32: ='Relevant Variables'!L474 -> 0 | BG32: ='Relevant Variables'!L504 -> 0 | BH32: ='Relevant Variables'!L534 -> 0 | BI32: ='Relevant Variables'!L564 -> 0 | BJ32: ='Relevant Variables'!L594 -> 0 | BK32: ='Relevant Variables'!L624 -> 0
A33: 2006-10-01 | C33: ='Energy Consumption'!M77 -> 0 | D33: ='Energy Consumption'!M78 -> 0 | E33: ='Energy Consumption'!M159 -> 0 | F33: ='Energy Consumption'!M160 -> 0 | G33: ='Energy Consumption'!M241 -> 0 | H33: ='Energy Consumption'!M242 -> 0 | I33: ='Energy Consumption'!M323 -> 0 | J33: ='Energy Consumption'!M324 -> 0 | K33: ='Energy Consumption'!M405 -> 0 | L33: ='Energy Consumption'!M406 -> 0 | M33: ='Energy Consumption'!M487 -> 0 | N33: ='Energy Consumption'!M488 -> 0 | O33: ='Energy Consumption'!M569 -> 0 | P33: ='Energy Consumption'!M570 -> 0 | Q33: ='Energy Consumption'!M651 -> 0 | R33: ='Energy Consumption'!M652 -> 0 | S33: ='Energy Consumption'!M733 -> 0 | T33: ='Energy Consumption'!M734 -> 0 | U33: ='Energy Consumption'!M815 -> 0 | V33: ='Energy Consumption'!M816 -> 0 | W33: ='Energy Consumption'!M897 -> 0 | X33: ='Energy Consumption'!M898 -> 0 | Y33: ='Energy Consumption'!M979 -> 0 | Z33: ='Energy Consumption'!M980 -> 0 | AA33: ='Energy Consumption'!M1061 -> 0 | AB33: ='Energy Consumption'!M1062 -> 0 | AC33: ='Energy Consumption'!M1143 -> 0 | AD33: ='Energy Consumption'!M1144 -> 0 | AE33: ='Energy Consumption'!M1225 -> 0 | AF33: ='Energy Consumption'!M1226 -> 0 | AG33: ='Energy Consumption'!M1307 -> 0 | AH33: ='Energy Consumption'!M1308 -> 0 | AI33: ='Energy Consumption'!M1389 -> 0 | AJ33: ='Energy Consumption'!M1390 -> 0 | AK33: ='Energy Consumption'!M1471 -> 0 | AL33: ='Energy Consumption'!M1472 -> 0 | AM33: ='Energy Consumption'!M1553 -> 0 | AN33: ='Energy Consumption'!M1554 -> 0 | AO33: ='Energy Consumption'!M1635 -> 0 | AP33: ='Energy Consumption'!M1636 -> 0 | AR33: ='Relevant Variables'!M54 -> 0 | AS33: ='Relevant Variables'!M84 -> 0 | AT33: ='Relevant Variables'!M114 -> 0 | AU33: ='Relevant Variables'!M144 -> 0 | AV33: ='Relevant Variables'!M174 -> 0 | AW33: ='Relevant Variables'!M204 -> 0 | AX33: ='Relevant Variables'!M234 -> 0 | AY33: ='Relevant Variables'!M264 -> 0 | AZ33: ='Relevant Variables'!M294 -> 0 | BA33: ='Relevant Variables'!M324 -> 0 | BB33: ='Relevant Variables'!M354 -> 0 | BC33: ='Relevant Variables'!M384 -> 0 | BD33: ='Relevant Variables'!M414 -> 0 | BE33: ='Relevant Variables'!M444 -> 0 | BF33: ='Relevant Variables'!M474 -> 0 | BG33: ='Relevant Variables'!M504 -> 0 | BH33: ='Relevant Variables'!M534 -> 0 | BI33: ='Relevant Variables'!M564 -> 0 | BJ33: ='Relevant Variables'!M594 -> 0 | BK33: ='Relevant Variables'!M624 -> 0
A34: 2006-11-01 | C34: ='Energy Consumption'!N77 -> 0 | D34: ='Energy Consumption'!N78 -> 0 | E34: ='Energy Consumption'!N159 -> 0 | F34: ='Energy Consumption'!N160 -> 0 | G34: ='Energy Consumption'!N241 -> 0 | H34: ='Energy Consumption'!N242 -> 0 | I34: ='Energy Consumption'!N323 -> 0 | J34: ='Energy Consumption'!N324 -> 0 | K34: ='Energy Consumption'!N405 -> 0 | L34: ='Energy Consumption'!N406 -> 0 | M34: ='Energy Consumption'!N487 -> 0 | N34: ='Energy Consumption'!N488 -> 0 | O34: ='Energy Consumption'!N569 -> 0 | P34: ='Energy Consumption'!N570 -> 0 | Q34: ='Energy Consumption'!N651 -> 0 | R34: ='Energy Consumption'!N652 -> 0 | S34: ='Energy Consumption'!N733 -> 0 | T34: ='Energy Consumption'!N734 -> 0 | U34: ='Energy Consumption'!N815 -> 0 | V34: ='Energy Consumption'!N816 -> 0 | W34: ='Energy Consumption'!N897 -> 0 | X34: ='Energy Consumption'!N898 -> 0 | Y34: ='Energy Consumption'!N979 -> 0 | Z34: ='Energy Consumption'!N980 -> 0 | AA34: ='Energy Consumption'!N1061 -> 0 | AB34: ='Energy Consumption'!N1062 -> 0 | AC34: ='Energy Consumption'!N1143 -> 0 | AD34: ='Energy Consumption'!N1144 -> 0 | AE34: ='Energy Consumption'!N1225 -> 0 | AF34: ='Energy Consumption'!N1226 -> 0 | AG34: ='Energy Consumption'!N1307 -> 0 | AH34: ='Energy Consumption'!N1308 -> 0 | AI34: ='Energy Consumption'!N1389 -> 0 | AJ34: ='Energy Consumption'!N1390 -> 0 | AK34: ='Energy Consumption'!N1471 -> 0 | AL34: ='Energy Consumption'!N1472 -> 0 | AM34: ='Energy Consumption'!N1553 -> 0 | AN34: ='Energy Consumption'!N1554 -> 0 | AO34: ='Energy Consumption'!N1635 -> 0 | AP34: ='Energy Consumption'!N1636 -> 0 | AR34: ='Relevant Variables'!N54 -> 0 | AS34: ='Relevant Variables'!N84 -> 0 | AT34: ='Relevant Variables'!N114 -> 0 | AU34: ='Relevant Variables'!N144 -> 0 | AV34: ='Relevant Variables'!N174 -> 0 | AW34: ='Relevant Variables'!N204 -> 0 | AX34: ='Relevant Variables'!N234 -> 0 | AY34: ='Relevant Variables'!N264 -> 0 | AZ34: ='Relevant Variables'!N294 -> 0 | BA34: ='Relevant Variables'!N324 -> 0 | BB34: ='Relevant Variables'!N354 -> 0 | BC34: ='Relevant Variables'!N384 -> 0 | BD34: ='Relevant Variables'!N414 -> 0 | BE34: ='Relevant Variables'!N444 -> 0 | BF34: ='Relevant Variables'!N474 -> 0 | BG34: ='Relevant Variables'!N504 -> 0 | BH34: ='Relevant Variables'!N534 -> 0 | BI34: ='Relevant Variables'!N564 -> 0 | BJ34: ='Relevant Variables'!N594 -> 0 | BK34: ='Relevant Variables'!N624 -> 0
A35: 2006-12-01 | C35: ='Energy Consumption'!O77 -> 0 | D35: ='Energy Consumption'!O78 -> 0 | E35: ='Energy Consumption'!O159 -> 0 | F35: ='Energy Consumption'!O160 -> 0 | G35: ='Energy Consumption'!O241 -> 0 | H35: ='Energy Consumption'!O242 -> 0 | I35: ='Energy Consumption'!O323 -> 0 | J35: ='Energy Consumption'!O324 -> 0 | K35: ='Energy Consumption'!O405 -> 0 | L35: ='Energy Consumption'!O406 -> 0 | M35: ='Energy Consumption'!O487 -> 0 | N35: ='Energy Consumption'!O488 -> 0 | O35: ='Energy Consumption'!O569 -> 0 | P35: ='Energy Consumption'!O570 -> 0 | Q35: ='Energy Consumption'!O651 -> 0 | R35: ='Energy Consumption'!O652 -> 0 | S35: ='Energy Consumption'!O733 -> 0 | T35: ='Energy Consumption'!O734 -> 0 | U35: ='Energy Consumption'!O815 -> 0 | V35: ='Energy Consumption'!O816 -> 0 | W35: ='Energy Consumption'!O897 -> 0 | X35: ='Energy Consumption'!O898 -> 0 | Y35: ='Energy Consumption'!O979 -> 0 | Z35: ='Energy Consumption'!O980 -> 0 | AA35: ='Energy Consumption'!O1061 -> 0 | AB35: ='Energy Consumption'!O1062 -> 0 | AC35: ='Energy Consumption'!O1143 -> 0 | AD35: ='Energy Consumption'!O1144 -> 0 | AE35: ='Energy Consumption'!O1225 -> 0 | AF35: ='Energy Consumption'!O1226 -> 0 | AG35: ='Energy Consumption'!O1307 -> 0 | AH35: ='Energy Consumption'!O1308 -> 0 | AI35: ='Energy Consumption'!O1389 -> 0 | AJ35: ='Energy Consumption'!O1390 -> 0 | AK35: ='Energy Consumption'!O1471 -> 0 | AL35: ='Energy Consumption'!O1472 -> 0 | AM35: ='Energy Consumption'!O1553 -> 0 | AN35: ='Energy Consumption'!O1554 -> 0 | AO35: ='Energy Consumption'!O1635 -> 0 | AP35: ='Energy Consumption'!O1636 -> 0 | AR35: ='Relevant Variables'!O54 -> 0 | AS35: ='Relevant Variables'!O84 -> 0 | AT35: ='Relevant Variables'!O114 -> 0 | AU35: ='Relevant Variables'!O144 -> 0 | AV35: ='Relevant Variables'!O174 -> 0 | AW35: ='Relevant Variables'!O204 -> 0 | AX35: ='Relevant Variables'!O234 -> 0 | AY35: ='Relevant Variables'!O264 -> 0 | AZ35: ='Relevant Variables'!O294 -> 0 | BA35: ='Relevant Variables'!O324 -> 0 | BB35: ='Relevant Variables'!O354 -> 0 | BC35: ='Relevant Variables'!O384 -> 0 | BD35: ='Relevant Variables'!O414 -> 0 | BE35: ='Relevant Variables'!O444 -> 0 | BF35: ='Relevant Variables'!O474 -> 0 | BG35: ='Relevant Variables'!O504 -> 0 | BH35: ='Relevant Variables'!O534 -> 0 | BI35: ='Relevant Variables'!O564 -> 0 | BJ35: ='Relevant Variables'!O594 -> 0 | BK35: ='Relevant Variables'!O624 -> 0
A36: 2007-01-01 | C36: ='Energy Consumption'!D75 -> 0 | D36: ='Energy Consumption'!D76 -> 0 | E36: ='Energy Consumption'!D157 -> 0 | F36: ='Energy Consumption'!D158 -> 0 | G36: ='Energy Consumption'!D239 -> 0 | H36: ='Energy Consumption'!D240 -> 0 | I36: ='Energy Consumption'!D321 -> 0 | J36: ='Energy Consumption'!D322 -> 0 | K36: ='Energy Consumption'!D403 -> 0 | L36: ='Energy Consumption'!D404 -> 0 | M36: ='Energy Consumption'!D485 -> 0 | N36: ='Energy Consumption'!D486 -> 0 | O36: ='Energy Consumption'!D567 -> 0 | P36: ='Energy Consumption'!D568 -> 0 | Q36: ='Energy Consumption'!D649 -> 0 | R36: ='Energy Consumption'!D650 -> 0 | S36: ='Energy Consumption'!D731 -> 0 | T36: ='Energy Consumption'!D732 -> 0 | U36: ='Energy Consumption'!D813 -> 0 | V36: ='Energy Consumption'!D814 -> 0 | W36: ='Energy Consumption'!D895 -> 0 | X36: ='Energy Consumption'!D896 -> 0 | Y36: ='Energy Consumption'!D977 -> 0 | Z36: ='Energy Consumption'!D978 -> 0 | AA36: ='Energy Consumption'!D1059 -> 0 | AB36: ='Energy Consumption'!D1060 -> 0 | AC36: ='Energy Consumption'!D1141 -> 0 | AD36: ='Energy Consumption'!D1142 -> 0 | AE36: ='Energy Consumption'!D1223 -> 0 | AF36: ='Energy Consumption'!D1224 -> 0 | AG36: ='Energy Consumption'!D1305 -> 0 | AH36: ='Energy Consumption'!D1306 -> 0 | AI36: ='Energy Consumption'!D1387 -> 0 | AJ36: ='Energy Consumption'!D1388 -> 0 | AK36: ='Energy Consumption'!D1469 -> 0 | AL36: ='Energy Consumption'!D1470 -> 0 | AM36: ='Energy Consumption'!D1551 -> 0 | AN36: ='Energy Consumption'!D1552 -> 0 | AO36: ='Energy Consumption'!D1633 -> 0 | AP36: ='Energy Consumption'!D1634 -> 0 | AR36: ='Relevant Variables'!D53 -> 0 | AS36: ='Relevant Variables'!D83 -> 0 | AT36: ='Relevant Variables'!D113 -> 0 | AU36: ='Relevant Variables'!D143 -> 0 | AV36: ='Relevant Variables'!D173 -> 0 | AW36: ='Relevant Variables'!D203 -> 0 | AX36: ='Relevant Variables'!D233 -> 0 | AY36: ='Relevant Variables'!D263 -> 0 | AZ36: ='Relevant Variables'!D293 -> 0 | BA36: ='Relevant Variables'!D323 -> 0 | BB36: ='Relevant Variables'!D353 -> 0 | BC36: ='Relevant Variables'!D383 -> 0 | BD36: ='Relevant Variables'!D413 -> 0 | BE36: ='Relevant Variables'!D443 -> 0 | BF36: ='Relevant Variables'!D473 -> 0 | BG36: ='Relevant Variables'!D503 -> 0 | BH36: ='Relevant Variables'!D533 -> 0 | BI36: ='Relevant Variables'!D563 -> 0 | BJ36: ='Relevant Variables'!D593 -> 0 | BK36: ='Relevant Variables'!D623 -> 0
A37: 2007-02-01 | C37: ='Energy Consumption'!E75 -> 0 | D37: ='Energy Consumption'!E76 -> 0 | E37: ='Energy Consumption'!E157 -> 0 | F37: ='Energy Consumption'!E158 -> 0 | G37: ='Energy Consumption'!E239 -> 0 | H37: ='Energy Consumption'!E240 -> 0 | I37: ='Energy Consumption'!E321 -> 0 | J37: ='Energy Consumption'!E322 -> 0 | K37: ='Energy Consumption'!E403 -> 0 | L37: ='Energy Consumption'!E404 -> 0 | M37: ='Energy Consumption'!E485 -> 0 | N37: ='Energy Consumption'!E486 -> 0 | O37: ='Energy Consumption'!E567 -> 0 | P37: ='Energy Consumption'!E568 -> 0 | Q37: ='Energy Consumption'!E649 -> 0 | R37: ='Energy Consumption'!E650 -> 0 | S37: ='Energy Consumption'!E731 -> 0 | T37: ='Energy Consumption'!E732 -> 0 | U37: ='Energy Consumption'!E813 -> 0 | V37: ='Energy Consumption'!E814 -> 0 | W37: ='Energy Consumption'!E895 -> 0 | X37: ='Energy Consumption'!E896 -> 0 | Y37: ='Energy Consumption'!E977 -> 0 | Z37: ='Energy Consumption'!E978 -> 0 | AA37: ='Energy Consumption'!E1059 -> 0 | AB37: ='Energy Consumption'!E1060 -> 0 | AC37: ='Energy Consumption'!E1141 -> 0 | AD37: ='Energy Consumption'!E1142 -> 0 | AE37: ='Energy Consumption'!E1223 -> 0 | AF37: ='Energy Consumption'!E1224 -> 0 | AG37: ='Energy Consumption'!E1305 -> 0 | AH37: ='Energy Consumption'!E1306 -> 0 | AI37: ='Energy Consumption'!E1387 -> 0 | AJ37: ='Energy Consumption'!E1388 -> 0 | AK37: ='Energy Consumption'!E1469 -> 0 | AL37: ='Energy Consumption'!E1470 -> 0 | AM37: ='Energy Consumption'!E1551 -> 0 | AN37: ='Energy Consumption'!E1552 -> 0 | AO37: ='Energy Consumption'!E1633 -> 0 | AP37: ='Energy Consumption'!E1634 -> 0 | AR37: ='Relevant Variables'!E53 -> 0 | AS37: ='Relevant Variables'!E83 -> 0 | AT37: ='Relevant Variables'!E113 -> 0 | AU37: ='Relevant Variables'!E143 -> 0 | AV37: ='Relevant Variables'!E173 -> 0 | AW37: ='Relevant Variables'!E203 -> 0 | AX37: ='Relevant Variables'!E233 -> 0 | AY37: ='Relevant Variables'!E263 -> 0 | AZ37: ='Relevant Variables'!E293 -> 0 | BA37: ='Relevant Variables'!E323 -> 0 | BB37: ='Relevant Variables'!E353 -> 0 | BC37: ='Relevant Variables'!E383 -> 0 | BD37: ='Relevant Variables'!E413 -> 0 | BE37: ='Relevant Variables'!E443 -> 0 | BF37: ='Relevant Variables'!E473 -> 0 | BG37: ='Relevant Variables'!E503 -> 0 | BH37: ='Relevant Variables'!E533 -> 0 | BI37: ='Relevant Variables'!E563 -> 0 | BJ37: ='Relevant Variables'!E593 -> 0 | BK37: ='Relevant Variables'!E623 -> 0
A38: 2007-03-01 | C38: ='Energy Consumption'!F75 -> 0 | D38: ='Energy Consumption'!F76 -> 0 | E38: ='Energy Consumption'!F157 -> 0 | F38: ='Energy Consumption'!F158 -> 0 | G38: ='Energy Consumption'!F239 -> 0 | H38: ='Energy Consumption'!F240 -> 0 | I38: ='Energy Consumption'!F321 -> 0 | J38: ='Energy Consumption'!F322 -> 0 | K38: ='Energy Consumption'!F403 -> 0 | L38: ='Energy Consumption'!F404 -> 0 | M38: ='Energy Consumption'!F485 -> 0 | N38: ='Energy Consumption'!F486 -> 0 | O38: ='Energy Consumption'!F567 -> 0 | P38: ='Energy Consumption'!F568 -> 0 | Q38: ='Energy Consumption'!F649 -> 0 | R38: ='Energy Consumption'!F650 -> 0 | S38: ='Energy Consumption'!F731 -> 0 | T38: ='Energy Consumption'!F732 -> 0 | U38: ='Energy Consumption'!F813 -> 0 | V38: ='Energy Consumption'!F814 -> 0 | W38: ='Energy Consumption'!F895 -> 0 | X38: ='Energy Consumption'!F896 -> 0 | Y38: ='Energy Consumption'!F977 -> 0 | Z38: ='Energy Consumption'!F978 -> 0 | AA38: ='Energy Consumption'!F1059 -> 0 | AB38: ='Energy Consumption'!F1060 -> 0 | AC38: ='Energy Consumption'!F1141 -> 0 | AD38: ='Energy Consumption'!F1142 -> 0 | AE38: ='Energy Consumption'!F1223 -> 0 | AF38: ='Energy Consumption'!F1224 -> 0 | AG38: ='Energy Consumption'!F1305 -> 0 | AH38: ='Energy Consumption'!F1306 -> 0 | AI38: ='Energy Consumption'!F1387 -> 0 | AJ38: ='Energy Consumption'!F1388 -> 0 | AK38: ='Energy Consumption'!F1469 -> 0 | AL38: ='Energy Consumption'!F1470 -> 0 | AM38: ='Energy Consumption'!F1551 -> 0 | AN38: ='Energy Consumption'!F1552 -> 0 | AO38: ='Energy Consumption'!F1633 -> 0 | AP38: ='Energy Consumption'!F1634 -> 0 | AR38: ='Relevant Variables'!F53 -> 0 | AS38: ='Relevant Variables'!F83 -> 0 | AT38: ='Relevant Variables'!F113 -> 0 | AU38: ='Relevant Variables'!F143 -> 0 | AV38: ='Relevant Variables'!F173 -> 0 | AW38: ='Relevant Variables'!F203 -> 0 | AX38: ='Relevant Variables'!F233 -> 0 | AY38: ='Relevant Variables'!F263 -> 0 | AZ38: ='Relevant Variables'!F293 -> 0 | BA38: ='Relevant Variables'!F323 -> 0 | BB38: ='Relevant Variables'!F353 -> 0 | BC38: ='Relevant Variables'!F383 -> 0 | BD38: ='Relevant Variables'!F413 -> 0 | BE38: ='Relevant Variables'!F443 -> 0 | BF38: ='Relevant Variables'!F473 -> 0 | BG38: ='Relevant Variables'!F503 -> 0 | BH38: ='Relevant Variables'!F533 -> 0 | BI38: ='Relevant Variables'!F563 -> 0 | BJ38: ='Relevant Variables'!F593 -> 0 | BK38: ='Relevant Variables'!F623 -> 0
A39: 2007-04-01 | C39: ='Energy Consumption'!G75 -> 0 | D39: ='Energy Consumption'!G76 -> 0 | E39: ='Energy Consumption'!G157 -> 0 | F39: ='Energy Consumption'!G158 -> 0 | G39: ='Energy Consumption'!G239 -> 0 | H39: ='Energy Consumption'!G240 -> 0 | I39: ='Energy Consumption'!G321 -> 0 | J39: ='Energy Consumption'!G322 -> 0 | K39: ='Energy Consumption'!G403 -> 0 | L39: ='Energy Consumption'!G404 -> 0 | M39: ='Energy Consumption'!G485 -> 0 | N39: ='Energy Consumption'!G486 -> 0 | O39: ='Energy Consumption'!G567 -> 0 | P39: ='Energy Consumption'!G568 -> 0 | Q39: ='Energy Consumption'!G649 -> 0 | R39: ='Energy Consumption'!G650 -> 0 | S39: ='Energy Consumption'!G731 -> 0 | T39: ='Energy Consumption'!G732 -> 0 | U39: ='Energy Consumption'!G813 -> 0 | V39: ='Energy Consumption'!G814 -> 0 | W39: ='Energy Consumption'!G895 -> 0 | X39: ='Energy Consumption'!G896 -> 0 | Y39: ='Energy Consumption'!G977 -> 0 | Z39: ='Energy Consumption'!G978 -> 0 | AA39: ='Energy Consumption'!G1059 -> 0 | AB39: ='Energy Consumption'!G1060 -> 0 | AC39: ='Energy Consumption'!G1141 -> 0 | AD39: ='Energy Consumption'!G1142 -> 0 | AE39: ='Energy Consumption'!G1223 -> 0 | AF39: ='Energy Consumption'!G1224 -> 0 | AG39: ='Energy Consumption'!G1305 -> 0 | AH39: ='Energy Consumption'!G1306 -> 0 | AI39: ='Energy Consumption'!G1387 -> 0 | AJ39: ='Energy Consumption'!G1388 -> 0 | AK39: ='Energy Consumption'!G1469 -> 0 | AL39: ='Energy Consumption'!G1470 -> 0 | AM39: ='Energy Consumption'!G1551 -> 0 | AN39: ='Energy Consumption'!G1552 -> 0 | AO39: ='Energy Consumption'!G1633 -> 0 | AP39: ='Energy Consumption'!G1634 -> 0 | AR39: ='Relevant Variables'!G53 -> 0 | AS39: ='Relevant Variables'!G83 -> 0 | AT39: ='Relevant Variables'!G113 -> 0 | AU39: ='Relevant Variables'!G143 -> 0 | AV39: ='Relevant Variables'!G173 -> 0 | AW39: ='Relevant Variables'!G203 -> 0 | AX39: ='Relevant Variables'!G233 -> 0 | AY39: ='Relevant Variables'!G263 -> 0 | AZ39: ='Relevant Variables'!G293 -> 0 | BA39: ='Relevant Variables'!G323 -> 0 | BB39: ='Relevant Variables'!G353 -> 0 | BC39: ='Relevant Variables'!G383 -> 0 | BD39: ='Relevant Variables'!G413 -> 0 | BE39: ='Relevant Variables'!G443 -> 0 | BF39: ='Relevant Variables'!G473 -> 0 | BG39: ='Relevant Variables'!G503 -> 0 | BH39: ='Relevant Variables'!G533 -> 0 | BI39: ='Relevant Variables'!G563 -> 0 | BJ39: ='Relevant Variables'!G593 -> 0 | BK39: ='Relevant Variables'!G623 -> 0
A40: 2007-05-01 | C40: ='Energy Consumption'!H75 -> 0 | D40: ='Energy Consumption'!H76 -> 0 | E40: ='Energy Consumption'!H157 -> 0 | F40: ='Energy Consumption'!H158 -> 0 | G40: ='Energy Consumption'!H239 -> 0 | H40: ='Energy Consumption'!H240 -> 0 | I40: ='Energy Consumption'!H321 -> 0 | J40: ='Energy Consumption'!H322 -> 0 | K40: ='Energy Consumption'!H403 -> 0 | L40: ='Energy Consumption'!H404 -> 0 | M40: ='Energy Consumption'!H485 -> 0 | N40: ='Energy Consumption'!H486 -> 0 | O40: ='Energy Consumption'!H567 -> 0 | P40: ='Energy Consumption'!H568 -> 0 | Q40: ='Energy Consumption'!H649 -> 0 | R40: ='Energy Consumption'!H650 -> 0 | S40: ='Energy Consumption'!H731 -> 0 | T40: ='Energy Consumption'!H732 -> 0 | U40: ='Energy Consumption'!H813 -> 0 | V40: ='Energy Consumption'!H814 -> 0 | W40: ='Energy Consumption'!H895 -> 0 | X40: ='Energy Consumption'!H896 -> 0 | Y40: ='Energy Consumption'!H977 -> 0 | Z40: ='Energy Consumption'!H978 -> 0 | AA40: ='Energy Consumption'!H1059 -> 0 | AB40: ='Energy Consumption'!H1060 -> 0 | AC40: ='Energy Consumption'!H1141 -> 0 | AD40: ='Energy Consumption'!H1142 -> 0 | AE40: ='Energy Consumption'!H1223 -> 0 | AF40: ='Energy Consumption'!H1224 -> 0 | AG40: ='Energy Consumption'!H1305 -> 0 | AH40: ='Energy Consumption'!H1306 -> 0 | AI40: ='Energy Consumption'!H1387 -> 0 | AJ40: ='Energy Consumption'!H1388 -> 0 | AK40: ='Energy Consumption'!H1469 -> 0 | AL40: ='Energy Consumption'!H1470 -> 0 | AM40: ='Energy Consumption'!H1551 -> 0 | AN40: ='Energy Consumption'!H1552 -> 0 | AO40: ='Energy Consumption'!H1633 -> 0 | AP40: ='Energy Consumption'!H1634 -> 0 | AR40: ='Relevant Variables'!H53 -> 0 | AS40: ='Relevant Variables'!H83 -> 0 | AT40: ='Relevant Variables'!H113 -> 0 | AU40: ='Relevant Variables'!H143 -> 0 | AV40: ='Relevant Variables'!H173 -> 0 | AW40: ='Relevant Variables'!H203 -> 0 | AX40: ='Relevant Variables'!H233 -> 0 | AY40: ='Relevant Variables'!H263 -> 0 | AZ40: ='Relevant Variables'!H293 -> 0 | BA40: ='Relevant Variables'!H323 -> 0 | BB40: ='Relevant Variables'!H353 -> 0 | BC40: ='Relevant Variables'!H383 -> 0 | BD40: ='Relevant Variables'!H413 -> 0 | BE40: ='Relevant Variables'!H443 -> 0 | BF40: ='Relevant Variables'!H473 -> 0 | BG40: ='Relevant Variables'!H503 -> 0 | BH40: ='Relevant Variables'!H533 -> 0 | BI40: ='Relevant Variables'!H563 -> 0 | BJ40: ='Relevant Variables'!H593 -> 0 | BK40: ='Relevant Variables'!H623 -> 0
A41: 2007-06-01 | C41: ='Energy Consumption'!I75 -> 0 | D41: ='Energy Consumption'!I76 -> 0 | E41: ='Energy Consumption'!I157 -> 0 | F41: ='Energy Consumption'!I158 -> 0 | G41: ='Energy Consumption'!I239 -> 0 | H41: ='Energy Consumption'!I240 -> 0 | I41: ='Energy Consumption'!I321 -> 0 | J41: ='Energy Consumption'!I322 -> 0 | K41: ='Energy Consumption'!I403 -> 0 | L41: ='Energy Consumption'!I404 -> 0 | M41: ='Energy Consumption'!I485 -> 0 | N41: ='Energy Consumption'!I486 -> 0 | O41: ='Energy Consumption'!I567 -> 0 | P41: ='Energy Consumption'!I568 -> 0 | Q41: ='Energy Consumption'!I649 -> 0 | R41: ='Energy Consumption'!I650 -> 0 | S41: ='Energy Consumption'!I731 -> 0 | T41: ='Energy Consumption'!I732 -> 0 | U41: ='Energy Consumption'!I813 -> 0 | V41: ='Energy Consumption'!I814 -> 0 | W41: ='Energy Consumption'!I895 -> 0 | X41: ='Energy Consumption'!I896 -> 0 | Y41: ='Energy Consumption'!I977 -> 0 | Z41: ='Energy Consumption'!I978 -> 0 | AA41: ='Energy Consumption'!I1059 -> 0 | AB41: ='Energy Consumption'!I1060 -> 0 | AC41: ='Energy Consumption'!I1141 -> 0 | AD41: ='Energy Consumption'!I1142 -> 0 | AE41: ='Energy Consumption'!I1223 -> 0 | AF41: ='Energy Consumption'!I1224 -> 0 | AG41: ='Energy Consumption'!I1305 -> 0 | AH41: ='Energy Consumption'!I1306 -> 0 | AI41: ='Energy Consumption'!I1387 -> 0 | AJ41: ='Energy Consumption'!I1388 -> 0 | AK41: ='Energy Consumption'!I1469 -> 0 | AL41: ='Energy Consumption'!I1470 -> 0 | AM41: ='Energy Consumption'!I1551 -> 0 | AN41: ='Energy Consumption'!I1552 -> 0 | AO41: ='Energy Consumption'!I1633 -> 0 | AP41: ='Energy Consumption'!I1634 -> 0 | AR41: ='Relevant Variables'!I53 -> 0 | AS41: ='Relevant Variables'!I83 -> 0 | AT41: ='Relevant Variables'!I113 -> 0 | AU41: ='Relevant Variables'!I143 -> 0 | AV41: ='Relevant Variables'!I173 -> 0 | AW41: ='Relevant Variables'!I203 -> 0 | AX41: ='Relevant Variables'!I233 -> 0 | AY41: ='Relevant Variables'!I263 -> 0 | AZ41: ='Relevant Variables'!I293 -> 0 | BA41: ='Relevant Variables'!I323 -> 0 | BB41: ='Relevant Variables'!I353 -> 0 | BC41: ='Relevant Variables'!I383 -> 0 | BD41: ='Relevant Variables'!I413 -> 0 | BE41: ='Relevant Variables'!I443 -> 0 | BF41: ='Relevant Variables'!I473 -> 0 | BG41: ='Relevant Variables'!I503 -> 0 | BH41: ='Relevant Variables'!I533 -> 0 | BI41: ='Relevant Variables'!I563 -> 0 | BJ41: ='Relevant Variables'!I593 -> 0 | BK41: ='Relevant Variables'!I623 -> 0
A42: 2007-07-01 | C42: ='Energy Consumption'!J75 -> 0 | D42: ='Energy Consumption'!J76 -> 0 | E42: ='Energy Consumption'!J157 -> 0 | F42: ='Energy Consumption'!J158 -> 0 | G42: ='Energy Consumption'!J239 -> 0 | H42: ='Energy Consumption'!J240 -> 0 | I42: ='Energy Consumption'!J321 -> 0 | J42: ='Energy Consumption'!J322 -> 0 | K42: ='Energy Consumption'!J403 -> 0 | L42: ='Energy Consumption'!J404 -> 0 | M42: ='Energy Consumption'!J485 -> 0 | N42: ='Energy Consumption'!J486 -> 0 | O42: ='Energy Consumption'!J567 -> 0 | P42: ='Energy Consumption'!J568 -> 0 | Q42: ='Energy Consumption'!J649 -> 0 | R42: ='Energy Consumption'!J650 -> 0 | S42: ='Energy Consumption'!J731 -> 0 | T42: ='Energy Consumption'!J732 -> 0 | U42: ='Energy Consumption'!J813 -> 0 | V42: ='Energy Consumption'!J814 -> 0 | W42: ='Energy Consumption'!J895 -> 0 | X42: ='Energy Consumption'!J896 -> 0 | Y42: ='Energy Consumption'!J977 -> 0 | Z42: ='Energy Consumption'!J978 -> 0 | AA42: ='Energy Consumption'!J1059 -> 0 | AB42: ='Energy Consumption'!J1060 -> 0 | AC42: ='Energy Consumption'!J1141 -> 0 | AD42: ='Energy Consumption'!J1142 -> 0 | AE42: ='Energy Consumption'!J1223 -> 0 | AF42: ='Energy Consumption'!J1224 -> 0 | AG42: ='Energy Consumption'!J1305 -> 0 | AH42: ='Energy Consumption'!J1306 -> 0 | AI42: ='Energy Consumption'!J1387 -> 0 | AJ42: ='Energy Consumption'!J1388 -> 0 | AK42: ='Energy Consumption'!J1469 -> 0 | AL42: ='Energy Consumption'!J1470 -> 0 | AM42: ='Energy Consumption'!J1551 -> 0 | AN42: ='Energy Consumption'!J1552 -> 0 | AO42: ='Energy Consumption'!J1633 -> 0 | AP42: ='Energy Consumption'!J1634 -> 0 | AR42: ='Relevant Variables'!J53 -> 0 | AS42: ='Relevant Variables'!J83 -> 0 | AT42: ='Relevant Variables'!J113 -> 0 | AU42: ='Relevant Variables'!J143 -> 0 | AV42: ='Relevant Variables'!J173 -> 0 | AW42: ='Relevant Variables'!J203 -> 0 | AX42: ='Relevant Variables'!J233 -> 0 | AY42: ='Relevant Variables'!J263 -> 0 | AZ42: ='Relevant Variables'!J293 -> 0 | BA42: ='Relevant Variables'!J323 -> 0 | BB42: ='Relevant Variables'!J353 -> 0 | BC42: ='Relevant Variables'!J383 -> 0 | BD42: ='Relevant Variables'!J413 -> 0 | BE42: ='Relevant Variables'!J443 -> 0 | BF42: ='Relevant Variables'!J473 -> 0 | BG42: ='Relevant Variables'!J503 -> 0 | BH42: ='Relevant Variables'!J533 -> 0 | BI42: ='Relevant Variables'!J563 -> 0 | BJ42: ='Relevant Variables'!J593 -> 0 | BK42: ='Relevant Variables'!J623 -> 0
A43: 2007-08-01 | C43: ='Energy Consumption'!K75 -> 0 | D43: ='Energy Consumption'!K76 -> 0 | E43: ='Energy Consumption'!K157 -> 0 | F43: ='Energy Consumption'!K158 -> 0 | G43: ='Energy Consumption'!K239 -> 0 | H43: ='Energy Consumption'!K240 -> 0 | I43: ='Energy Consumption'!K321 -> 0 | J43: ='Energy Consumption'!K322 -> 0 | K43: ='Energy Consumption'!K403 -> 0 | L43: ='Energy Consumption'!K404 -> 0 | M43: ='Energy Consumption'!K485 -> 0 | N43: ='Energy Consumption'!K486 -> 0 | O43: ='Energy Consumption'!K567 -> 0 | P43: ='Energy Consumption'!K568 -> 0 | Q43: ='Energy Consumption'!K649 -> 0 | R43: ='Energy Consumption'!K650 -> 0 | S43: ='Energy Consumption'!K731 -> 0 | T43: ='Energy Consumption'!K732 -> 0 | U43: ='Energy Consumption'!K813 -> 0 | V43: ='Energy Consumption'!K814 -> 0 | W43: ='Energy Consumption'!K895 -> 0 | X43: ='Energy Consumption'!K896 -> 0 | Y43: ='Energy Consumption'!K977 -> 0 | Z43: ='Energy Consumption'!K978 -> 0 | AA43: ='Energy Consumption'!K1059 -> 0 | AB43: ='Energy Consumption'!K1060 -> 0 | AC43: ='Energy Consumption'!K1141 -> 0 | AD43: ='Energy Consumption'!K1142 -> 0 | AE43: ='Energy Consumption'!K1223 -> 0 | AF43: ='Energy Consumption'!K1224 -> 0 | AG43: ='Energy Consumption'!K1305 -> 0 | AH43: ='Energy Consumption'!K1306 -> 0 | AI43: ='Energy Consumption'!K1387 -> 0 | AJ43: ='Energy Consumption'!K1388 -> 0 | AK43: ='Energy Consumption'!K1469 -> 0 | AL43: ='Energy Consumption'!K1470 -> 0 | AM43: ='Energy Consumption'!K1551 -> 0 | AN43: ='Energy Consumption'!K1552 -> 0 | AO43: ='Energy Consumption'!K1633 -> 0 | AP43: ='Energy Consumption'!K1634 -> 0 | AR43: ='Relevant Variables'!K53 -> 0 | AS43: ='Relevant Variables'!K83 -> 0 | AT43: ='Relevant Variables'!K113 -> 0 | AU43: ='Relevant Variables'!K143 -> 0 | AV43: ='Relevant Variables'!K173 -> 0 | AW43: ='Relevant Variables'!K203 -> 0 | AX43: ='Relevant Variables'!K233 -> 0 | AY43: ='Relevant Variables'!K263 -> 0 | AZ43: ='Relevant Variables'!K293 -> 0 | BA43: ='Relevant Variables'!K323 -> 0 | BB43: ='Relevant Variables'!K353 -> 0 | BC43: ='Relevant Variables'!K383 -> 0 | BD43: ='Relevant Variables'!K413 -> 0 | BE43: ='Relevant Variables'!K443 -> 0 | BF43: ='Relevant Variables'!K473 -> 0 | BG43: ='Relevant Variables'!K503 -> 0 | BH43: ='Relevant Variables'!K533 -> 0 | BI43: ='Relevant Variables'!K563 -> 0 | BJ43: ='Relevant Variables'!K593 -> 0 | BK43: ='Relevant Variables'!K623 -> 0
A44: 2007-09-01 | C44: ='Energy Consumption'!L75 -> 0 | D44: ='Energy Consumption'!L76 -> 0 | E44: ='Energy Consumption'!L157 -> 0 | F44: ='Energy Consumption'!L158 -> 0 | G44: ='Energy Consumption'!L239 -> 0 | H44: ='Energy Consumption'!L240 -> 0 | I44: ='Energy Consumption'!L321 -> 0 | J44: ='Energy Consumption'!L322 -> 0 | K44: ='Energy Consumption'!L403 -> 0 | L44: ='Energy Consumption'!L404 -> 0 | M44: ='Energy Consumption'!L485 -> 0 | N44: ='Energy Consumption'!L486 -> 0 | O44: ='Energy Consumption'!L567 -> 0 | P44: ='Energy Consumption'!L568 -> 0 | Q44: ='Energy Consumption'!L649 -> 0 | R44: ='Energy Consumption'!L650 -> 0 | S44: ='Energy Consumption'!L731 -> 0 | T44: ='Energy Consumption'!L732 -> 0 | U44: ='Energy Consumption'!L813 -> 0 | V44: ='Energy Consumption'!L814 -> 0 | W44: ='Energy Consumption'!L895 -> 0 | X44: ='Energy Consumption'!L896 -> 0 | Y44: ='Energy Consumption'!L977 -> 0 | Z44: ='Energy Consumption'!L978 -> 0 | AA44: ='Energy Consumption'!L1059 -> 0 | AB44: ='Energy Consumption'!L1060 -> 0 | AC44: ='Energy Consumption'!L1141 -> 0 | AD44: ='Energy Consumption'!L1142 -> 0 | AE44: ='Energy Consumption'!L1223 -> 0 | AF44: ='Energy Consumption'!L1224 -> 0 | AG44: ='Energy Consumption'!L1305 -> 0 | AH44: ='Energy Consumption'!L1306 -> 0 | AI44: ='Energy Consumption'!L1387 -> 0 | AJ44: ='Energy Consumption'!L1388 -> 0 | AK44: ='Energy Consumption'!L1469 -> 0 | AL44: ='Energy Consumption'!L1470 -> 0 | AM44: ='Energy Consumption'!L1551 -> 0 | AN44: ='Energy Consumption'!L1552 -> 0 | AO44: ='Energy Consumption'!L1633 -> 0 | AP44: ='Energy Consumption'!L1634 -> 0 | AR44: ='Relevant Variables'!L53 -> 0 | AS44: ='Relevant Variables'!L83 -> 0 | AT44: ='Relevant Variables'!L113 -> 0 | AU44: ='Relevant Variables'!L143 -> 0 | AV44: ='Relevant Variables'!L173 -> 0 | AW44: ='Relevant Variables'!L203 -> 0 | AX44: ='Relevant Variables'!L233 -> 0 | AY44: ='Relevant Variables'!L263 -> 0 | AZ44: ='Relevant Variables'!L293 -> 0 | BA44: ='Relevant Variables'!L323 -> 0 | BB44: ='Relevant Variables'!L353 -> 0 | BC44: ='Relevant Variables'!L383 -> 0 | BD44: ='Relevant Variables'!L413 -> 0 | BE44: ='Relevant Variables'!L443 -> 0 | BF44: ='Relevant Variables'!L473 -> 0 | BG44: ='Relevant Variables'!L503 -> 0 | BH44: ='Relevant Variables'!L533 -> 0 | BI44: ='Relevant Variables'!L563 -> 0 | BJ44: ='Relevant Variables'!L593 -> 0 | BK44: ='Relevant Variables'!L623 -> 0
A45: 2007-10-01 | C45: ='Energy Consumption'!M75 -> 0 | D45: ='Energy Consumption'!M76 -> 0 | E45: ='Energy Consumption'!M157 -> 0 | F45: ='Energy Consumption'!M158 -> 0 | G45: ='Energy Consumption'!M239 -> 0 | H45: ='Energy Consumption'!M240 -> 0 | I45: ='Energy Consumption'!M321 -> 0 | J45: ='Energy Consumption'!M322 -> 0 | K45: ='Energy Consumption'!M403 -> 0 | L45: ='Energy Consumption'!M404 -> 0 | M45: ='Energy Consumption'!M485 -> 0 | N45: ='Energy Consumption'!M486 -> 0 | O45: ='Energy Consumption'!M567 -> 0 | P45: ='Energy Consumption'!M568 -> 0 | Q45: ='Energy Consumption'!M649 -> 0 | R45: ='Energy Consumption'!M650 -> 0 | S45: ='Energy Consumption'!M731 -> 0 | T45: ='Energy Consumption'!M732 -> 0 | U45: ='Energy Consumption'!M813 -> 0 | V45: ='Energy Consumption'!M814 -> 0 | W45: ='Energy Consumption'!M895 -> 0 | X45: ='Energy Consumption'!M896 -> 0 | Y45: ='Energy Consumption'!M977 -> 0 | Z45: ='Energy Consumption'!M978 -> 0 | AA45: ='Energy Consumption'!M1059 -> 0 | AB45: ='Energy Consumption'!M1060 -> 0 | AC45: ='Energy Consumption'!M1141 -> 0 | AD45: ='Energy Consumption'!M1142 -> 0 | AE45: ='Energy Consumption'!M1223 -> 0 | AF45: ='Energy Consumption'!M1224 -> 0 | AG45: ='Energy Consumption'!M1305 -> 0 | AH45: ='Energy Consumption'!M1306 -> 0 | AI45: ='Energy Consumption'!M1387 -> 0 | AJ45: ='Energy Consumption'!M1388 -> 0 | AK45: ='Energy Consumption'!M1469 -> 0 | AL45: ='Energy Consumption'!M1470 -> 0 | AM45: ='Energy Consumption'!M1551 -> 0 | AN45: ='Energy Consumption'!M1552 -> 0 | AO45: ='Energy Consumption'!M1633 -> 0 | AP45: ='Energy Consumption'!M1634 -> 0 | AR45: ='Relevant Variables'!M53 -> 0 | AS45: ='Relevant Variables'!M83 -> 0 | AT45: ='Relevant Variables'!M113 -> 0 | AU45: ='Relevant Variables'!M143 -> 0 | AV45: ='Relevant Variables'!M173 -> 0 | AW45: ='Relevant Variables'!M203 -> 0 | AX45: ='Relevant Variables'!M233 -> 0 | AY45: ='Relevant Variables'!M263 -> 0 | AZ45: ='Relevant Variables'!M293 -> 0 | BA45: ='Relevant Variables'!M323 -> 0 | BB45: ='Relevant Variables'!M353 -> 0 | BC45: ='Relevant Variables'!M383 -> 0 | BD45: ='Relevant Variables'!M413 -> 0 | BE45: ='Relevant Variables'!M443 -> 0 | BF45: ='Relevant Variables'!M473 -> 0 | BG45: ='Relevant Variables'!M503 -> 0 | BH45: ='Relevant Variables'!M533 -> 0 | BI45: ='Relevant Variables'!M563 -> 0 | BJ45: ='Relevant Variables'!M593 -> 0 | BK45: ='Relevant Variables'!M623 -> 0
A46: 2007-11-01 | C46: ='Energy Consumption'!N75 -> 0 | D46: ='Energy Consumption'!N76 -> 0 | E46: ='Energy Consumption'!N157 -> 0 | F46: ='Energy Consumption'!N158 -> 0 | G46: ='Energy Consumption'!N239 -> 0 | H46: ='Energy Consumption'!N240 -> 0 | I46: ='Energy Consumption'!N321 -> 0 | J46: ='Energy Consumption'!N322 -> 0 | K46: ='Energy Consumption'!N403 -> 0 | L46: ='Energy Consumption'!N404 -> 0 | M46: ='Energy Consumption'!N485 -> 0 | N46: ='Energy Consumption'!N486 -> 0 | O46: ='Energy Consumption'!N567 -> 0 | P46: ='Energy Consumption'!N568 -> 0 | Q46: ='Energy Consumption'!N649 -> 0 | R46: ='Energy Consumption'!N650 -> 0 | S46: ='Energy Consumption'!N731 -> 0 | T46: ='Energy Consumption'!N732 -> 0 | U46: ='Energy Consumption'!N813 -> 0 | V46: ='Energy Consumption'!N814 -> 0 | W46: ='Energy Consumption'!N895 -> 0 | X46: ='Energy Consumption'!N896 -> 0 | Y46: ='Energy Consumption'!N977 -> 0 | Z46: ='Energy Consumption'!N978 -> 0 | AA46: ='Energy Consumption'!N1059 -> 0 | AB46: ='Energy Consumption'!N1060 -> 0 | AC46: ='Energy Consumption'!N1141 -> 0 | AD46: ='Energy Consumption'!N1142 -> 0 | AE46: ='Energy Consumption'!N1223 -> 0 | AF46: ='Energy Consumption'!N1224 -> 0 | AG46: ='Energy Consumption'!N1305 -> 0 | AH46: ='Energy Consumption'!N1306 -> 0 | AI46: ='Energy Consumption'!N1387 -> 0 | AJ46: ='Energy Consumption'!N1388 -> 0 | AK46: ='Energy Consumption'!N1469 -> 0 | AL46: ='Energy Consumption'!N1470 -> 0 | AM46: ='Energy Consumption'!N1551 -> 0 | AN46: ='Energy Consumption'!N1552 -> 0 | AO46: ='Energy Consumption'!N1633 -> 0 | AP46: ='Energy Consumption'!N1634 -> 0 | AR46: ='Relevant Variables'!N53 -> 0 | AS46: ='Relevant Variables'!N83 -> 0 | AT46: ='Relevant Variables'!N113 -> 0 | AU46: ='Relevant Variables'!N143 -> 0 | AV46: ='Relevant Variables'!N173 -> 0 | AW46: ='Relevant Variables'!N203 -> 0 | AX46: ='Relevant Variables'!N233 -> 0 | AY46: ='Relevant Variables'!N263 -> 0 | AZ46: ='Relevant Variables'!N293 -> 0 | BA46: ='Relevant Variables'!N323 -> 0 | BB46: ='Relevant Variables'!N353 -> 0 | BC46: ='Relevant Variables'!N383 -> 0 | BD46: ='Relevant Variables'!N413 -> 0 | BE46: ='Relevant Variables'!N443 -> 0 | BF46: ='Relevant Variables'!N473 -> 0 | BG46: ='Relevant Variables'!N503 -> 0 | BH46: ='Relevant Variables'!N533 -> 0 | BI46: ='Relevant Variables'!N563 -> 0 | BJ46: ='Relevant Variables'!N593 -> 0 | BK46: ='Relevant Variables'!N623 -> 0
A47: 2007-12-01 | C47: ='Energy Consumption'!O75 -> 0 | D47: ='Energy Consumption'!O76 -> 0 | E47: ='Energy Consumption'!O157 -> 0 | F47: ='Energy Consumption'!O158 -> 0 | G47: ='Energy Consumption'!O239 -> 0 | H47: ='Energy Consumption'!O240 -> 0 | I47: ='Energy Consumption'!O321 -> 0 | J47: ='Energy Consumption'!O322 -> 0 | K47: ='Energy Consumption'!O403 -> 0 | L47: ='Energy Consumption'!O404 -> 0 | M47: ='Energy Consumption'!O485 -> 0 | N47: ='Energy Consumption'!O486 -> 0 | O47: ='Energy Consumption'!O567 -> 0 | P47: ='Energy Consumption'!O568 -> 0 | Q47: ='Energy Consumption'!O649 -> 0 | R47: ='Energy Consumption'!O650 -> 0 | S47: ='Energy Consumption'!O731 -> 0 | T47: ='Energy Consumption'!O732 -> 0 | U47: ='Energy Consumption'!O813 -> 0 | V47: ='Energy Consumption'!O814 -> 0 | W47: ='Energy Consumption'!O895 -> 0 | X47: ='Energy Consumption'!O896 -> 0 | Y47: ='Energy Consumption'!O977 -> 0 | Z47: ='Energy Consumption'!O978 -> 0 | AA47: ='Energy Consumption'!O1059 -> 0 | AB47: ='Energy Consumption'!O1060 -> 0 | AC47: ='Energy Consumption'!O1141 -> 0 | AD47: ='Energy Consumption'!O1142 -> 0 | AE47: ='Energy Consumption'!O1223 -> 0 | AF47: ='Energy Consumption'!O1224 -> 0 | AG47: ='Energy Consumption'!O1305 -> 0 | AH47: ='Energy Consumption'!O1306 -> 0 | AI47: ='Energy Consumption'!O1387 -> 0 | AJ47: ='Energy Consumption'!O1388 -> 0 | AK47: ='Energy Consumption'!O1469 -> 0 | AL47: ='Energy Consumption'!O1470 -> 0 | AM47: ='Energy Consumption'!O1551 -> 0 | AN47: ='Energy Consumption'!O1552 -> 0 | AO47: ='Energy Consumption'!O1633 -> 0 | AP47: ='Energy Consumption'!O1634 -> 0 | AR47: ='Relevant Variables'!O53 -> 0 | AS47: ='Relevant Variables'!O83 -> 0 | AT47: ='Relevant Variables'!O113 -> 0 | AU47: ='Relevant Variables'!O143 -> 0 | AV47: ='Relevant Variables'!O173 -> 0 | AW47: ='Relevant Variables'!O203 -> 0 | AX47: ='Relevant Variables'!O233 -> 0 | AY47: ='Relevant Variables'!O263 -> 0 | AZ47: ='Relevant Variables'!O293 -> 0 | BA47: ='Relevant Variables'!O323 -> 0 | BB47: ='Relevant Variables'!O353 -> 0 | BC47: ='Relevant Variables'!O383 -> 0 | BD47: ='Relevant Variables'!O413 -> 0 | BE47: ='Relevant Variables'!O443 -> 0 | BF47: ='Relevant Variables'!O473 -> 0 | BG47: ='Relevant Variables'!O503 -> 0 | BH47: ='Relevant Variables'!O533 -> 0 | BI47: ='Relevant Variables'!O563 -> 0 | BJ47: ='Relevant Variables'!O593 -> 0 | BK47: ='Relevant Variables'!O623 -> 0
A48: 2008-01-01 | C48: ='Energy Consumption'!D73 -> 0 | D48: ='Energy Consumption'!D74 -> 0 | E48: ='Energy Consumption'!D155 -> 0 | F48: ='Energy Consumption'!D156 -> 0 | G48: ='Energy Consumption'!D237 -> 0 | H48: ='Energy Consumption'!D238 -> 0 | I48: ='Energy Consumption'!D319 -> 0 | J48: ='Energy Consumption'!D320 -> 0 | K48: ='Energy Consumption'!D401 -> 0 | L48: ='Energy Consumption'!D402 -> 0 | M48: ='Energy Consumption'!D483 -> 0 | N48: ='Energy Consumption'!D484 -> 0 | O48: ='Energy Consumption'!D565 -> 0 | P48: ='Energy Consumption'!D566 -> 0 | Q48: ='Energy Consumption'!D647 -> 0 | R48: ='Energy Consumption'!D648 -> 0 | S48: ='Energy Consumption'!D729 -> 0 | T48: ='Energy Consumption'!D730 -> 0 | U48: ='Energy Consumption'!D811 -> 0 | V48: ='Energy Consumption'!D812 -> 0 | W48: ='Energy Consumption'!D893 -> 0 | X48: ='Energy Consumption'!D894 -> 0 | Y48: ='Energy Consumption'!D975 -> 0 | Z48: ='Energy Consumption'!D976 -> 0 | AA48: ='Energy Consumption'!D1057 -> 0 | AB48: ='Energy Consumption'!D1058 -> 0 | AC48: ='Energy Consumption'!D1139 -> 0 | AD48: ='Energy Consumption'!D1140 -> 0 | AE48: ='Energy Consumption'!D1221 -> 0 | AF48: ='Energy Consumption'!D1222 -> 0 | AG48: ='Energy Consumption'!D1303 -> 0 | AH48: ='Energy Consumption'!D1304 -> 0 | AI48: ='Energy Consumption'!D1385 -> 0 | AJ48: ='Energy Consumption'!D1386 -> 0 | AK48: ='Energy Consumption'!D1467 -> 0 | AL48: ='Energy Consumption'!D1468 -> 0 | AM48: ='Energy Consumption'!D1549 -> 0 | AN48: ='Energy Consumption'!D1550 -> 0 | AO48: ='Energy Consumption'!D1631 -> 0 | AP48: ='Energy Consumption'!D1632 -> 0 | AR48: ='Relevant Variables'!D52 -> 0 | AS48: ='Relevant Variables'!D82 -> 0 | AT48: ='Relevant Variables'!D112 -> 0 | AU48: ='Relevant Variables'!D142 -> 0 | AV48: ='Relevant Variables'!D172 -> 0 | AW48: ='Relevant Variables'!D202 -> 0 | AX48: ='Relevant Variables'!D232 -> 0 | AY48: ='Relevant Variables'!D262 -> 0 | AZ48: ='Relevant Variables'!D292 -> 0 | BA48: ='Relevant Variables'!D322 -> 0 | BB48: ='Relevant Variables'!D352 -> 0 | BC48: ='Relevant Variables'!D382 -> 0 | BD48: ='Relevant Variables'!D412 -> 0 | BE48: ='Relevant Variables'!D442 -> 0 | BF48: ='Relevant Variables'!D472 -> 0 | BG48: ='Relevant Variables'!D502 -> 0 | BH48: ='Relevant Variables'!D532 -> 0 | BI48: ='Relevant Variables'!D562 -> 0 | BJ48: ='Relevant Variables'!D592 -> 0 | BK48: ='Relevant Variables'!D622 -> 0
A49: 2008-02-01 | C49: ='Energy Consumption'!E73 -> 0 | D49: ='Energy Consumption'!E74 -> 0 | E49: ='Energy Consumption'!E155 -> 0 | F49: ='Energy Consumption'!E156 -> 0 | G49: ='Energy Consumption'!E237 -> 0 | H49: ='Energy Consumption'!E238 -> 0 | I49: ='Energy Consumption'!E319 -> 0 | J49: ='Energy Consumption'!E320 -> 0 | K49: ='Energy Consumption'!E401 -> 0 | L49: ='Energy Consumption'!E402 -> 0 | M49: ='Energy Consumption'!E483 -> 0 | N49: ='Energy Consumption'!E484 -> 0 | O49: ='Energy Consumption'!E565 -> 0 | P49: ='Energy Consumption'!E566 -> 0 | Q49: ='Energy Consumption'!E647 -> 0 | R49: ='Energy Consumption'!E648 -> 0 | S49: ='Energy Consumption'!E729 -> 0 | T49: ='Energy Consumption'!E730 -> 0 | U49: ='Energy Consumption'!E811 -> 0 | V49: ='Energy Consumption'!E812 -> 0 | W49: ='Energy Consumption'!E893 -> 0 | X49: ='Energy Consumption'!E894 -> 0 | Y49: ='Energy Consumption'!E975 -> 0 | Z49: ='Energy Consumption'!E976 -> 0 | AA49: ='Energy Consumption'!E1057 -> 0 | AB49: ='Energy Consumption'!E1058 -> 0 | AC49: ='Energy Consumption'!E1139 -> 0 | AD49: ='Energy Consumption'!E1140 -> 0 | AE49: ='Energy Consumption'!E1221 -> 0 | AF49: ='Energy Consumption'!E1222 -> 0 | AG49: ='Energy Consumption'!E1303 -> 0 | AH49: ='Energy Consumption'!E1304 -> 0 | AI49: ='Energy Consumption'!E1385 -> 0 | AJ49: ='Energy Consumption'!E1386 -> 0 | AK49: ='Energy Consumption'!E1467 -> 0 | AL49: ='Energy Consumption'!E1468 -> 0 | AM49: ='Energy Consumption'!E1549 -> 0 | AN49: ='Energy Consumption'!E1550 -> 0 | AO49: ='Energy Consumption'!E1631 -> 0 | AP49: ='Energy Consumption'!E1632 -> 0 | AR49: ='Relevant Variables'!E52 -> 0 | AS49: ='Relevant Variables'!E82 -> 0 | AT49: ='Relevant Variables'!E112 -> 0 | AU49: ='Relevant Variables'!E142 -> 0 | AV49: ='Relevant Variables'!E172 -> 0 | AW49: ='Relevant Variables'!E202 -> 0 | AX49: ='Relevant Variables'!E232 -> 0 | AY49: ='Relevant Variables'!E262 -> 0 | AZ49: ='Relevant Variables'!E292 -> 0 | BA49: ='Relevant Variables'!E322 -> 0 | BB49: ='Relevant Variables'!E352 -> 0 | BC49: ='Relevant Variables'!E382 -> 0 | BD49: ='Relevant Variables'!E412 -> 0 | BE49: ='Relevant Variables'!E442 -> 0 | BF49: ='Relevant Variables'!E472 -> 0 | BG49: ='Relevant Variables'!E502 -> 0 | BH49: ='Relevant Variables'!E532 -> 0 | BI49: ='Relevant Variables'!E562 -> 0 | BJ49: ='Relevant Variables'!E592 -> 0 | BK49: ='Relevant Variables'!E622 -> 0
A50: 2008-03-01 | C50: ='Energy Consumption'!F73 -> 0 | D50: ='Energy Consumption'!F74 -> 0 | E50: ='Energy Consumption'!F155 -> 0 | F50: ='Energy Consumption'!F156 -> 0 | G50: ='Energy Consumption'!F237 -> 0 | H50: ='Energy Consumption'!F238 -> 0 | I50: ='Energy Consumption'!F319 -> 0 | J50: ='Energy Consumption'!F320 -> 0 | K50: ='Energy Consumption'!F401 -> 0 | L50: ='Energy Consumption'!F402 -> 0 | M50: ='Energy Consumption'!F483 -> 0 | N50: ='Energy Consumption'!F484 -> 0 | O50: ='Energy Consumption'!F565 -> 0 | P50: ='Energy Consumption'!F566 -> 0 | Q50: ='Energy Consumption'!F647 -> 0 | R50: ='Energy Consumption'!F648 -> 0 | S50: ='Energy Consumption'!F729 -> 0 | T50: ='Energy Consumption'!F730 -> 0 | U50: ='Energy Consumption'!F811 -> 0 | V50: ='Energy Consumption'!F812 -> 0 | W50: ='Energy Consumption'!F893 -> 0 | X50: ='Energy Consumption'!F894 -> 0 | Y50: ='Energy Consumption'!F975 -> 0 | Z50: ='Energy Consumption'!F976 -> 0 | AA50: ='Energy Consumption'!F1057 -> 0 | AB50: ='Energy Consumption'!F1058 -> 0 | AC50: ='Energy Consumption'!F1139 -> 0 | AD50: ='Energy Consumption'!F1140 -> 0 | AE50: ='Energy Consumption'!F1221 -> 0 | AF50: ='Energy Consumption'!F1222 -> 0 | AG50: ='Energy Consumption'!F1303 -> 0 | AH50: ='Energy Consumption'!F1304 -> 0 | AI50: ='Energy Consumption'!F1385 -> 0 | AJ50: ='Energy Consumption'!F1386 -> 0 | AK50: ='Energy Consumption'!F1467 -> 0 | AL50: ='Energy Consumption'!F1468 -> 0 | AM50: ='Energy Consumption'!F1549 -> 0 | AN50: ='Energy Consumption'!F1550 -> 0 | AO50: ='Energy Consumption'!F1631 -> 0 | AP50: ='Energy Consumption'!F1632 -> 0 | AR50: ='Relevant Variables'!F52 -> 0 | AS50: ='Relevant Variables'!F82 -> 0 | AT50: ='Relevant Variables'!F112 -> 0 | AU50: ='Relevant Variables'!F142 -> 0 | AV50: ='Relevant Variables'!F172 -> 0 | AW50: ='Relevant Variables'!F202 -> 0 | AX50: ='Relevant Variables'!F232 -> 0 | AY50: ='Relevant Variables'!F262 -> 0 | AZ50: ='Relevant Variables'!F292 -> 0 | BA50: ='Relevant Variables'!F322 -> 0 | BB50: ='Relevant Variables'!F352 -> 0 | BC50: ='Relevant Variables'!F382 -> 0 | BD50: ='Relevant Variables'!F412 -> 0 | BE50: ='Relevant Variables'!F442 -> 0 | BF50: ='Relevant Variables'!F472 -> 0 | BG50: ='Relevant Variables'!F502 -> 0 | BH50: ='Relevant Variables'!F532 -> 0 | BI50: ='Relevant Variables'!F562 -> 0 | BJ50: ='Relevant Variables'!F592 -> 0 | BK50: ='Relevant Variables'!F622 -> 0
A51: 2008-04-01 | C51: ='Energy Consumption'!G73 -> 0 | D51: ='Energy Consumption'!G74 -> 0 | E51: ='Energy Consumption'!G155 -> 0 | F51: ='Energy Consumption'!G156 -> 0 | G51: ='Energy Consumption'!G237 -> 0 | H51: ='Energy Consumption'!G238 -> 0 | I51: ='Energy Consumption'!G319 -> 0 | J51: ='Energy Consumption'!G320 -> 0 | K51: ='Energy Consumption'!G401 -> 0 | L51: ='Energy Consumption'!G402 -> 0 | M51: ='Energy Consumption'!G483 -> 0 | N51: ='Energy Consumption'!G484 -> 0 | O51: ='Energy Consumption'!G565 -> 0 | P51: ='Energy Consumption'!G566 -> 0 | Q51: ='Energy Consumption'!G647 -> 0 | R51: ='Energy Consumption'!G648 -> 0 | S51: ='Energy Consumption'!G729 -> 0 | T51: ='Energy Consumption'!G730 -> 0 | U51: ='Energy Consumption'!G811 -> 0 | V51: ='Energy Consumption'!G812 -> 0 | W51: ='Energy Consumption'!G893 -> 0 | X51: ='Energy Consumption'!G894 -> 0 | Y51: ='Energy Consumption'!G975 -> 0 | Z51: ='Energy Consumption'!G976 -> 0 | AA51: ='Energy Consumption'!G1057 -> 0 | AB51: ='Energy Consumption'!G1058 -> 0 | AC51: ='Energy Consumption'!G1139 -> 0 | AD51: ='Energy Consumption'!G1140 -> 0 | AE51: ='Energy Consumption'!G1221 -> 0 | AF51: ='Energy Consumption'!G1222 -> 0 | AG51: ='Energy Consumption'!G1303 -> 0 | AH51: ='Energy Consumption'!G1304 -> 0 | AI51: ='Energy Consumption'!G1385 -> 0 | AJ51: ='Energy Consumption'!G1386 -> 0 | AK51: ='Energy Consumption'!G1467 -> 0 | AL51: ='Energy Consumption'!G1468 -> 0 | AM51: ='Energy Consumption'!G1549 -> 0 | AN51: ='Energy Consumption'!G1550 -> 0 | AO51: ='Energy Consumption'!G1631 -> 0 | AP51: ='Energy Consumption'!G1632 -> 0 | AR51: ='Relevant Variables'!G52 -> 0 | AS51: ='Relevant Variables'!G82 -> 0 | AT51: ='Relevant Variables'!G112 -> 0 | AU51: ='Relevant Variables'!G142 -> 0 | AV51: ='Relevant Variables'!G172 -> 0 | AW51: ='Relevant Variables'!G202 -> 0 | AX51: ='Relevant Variables'!G232 -> 0 | AY51: ='Relevant Variables'!G262 -> 0 | AZ51: ='Relevant Variables'!G292 -> 0 | BA51: ='Relevant Variables'!G322 -> 0 | BB51: ='Relevant Variables'!G352 -> 0 | BC51: ='Relevant Variables'!G382 -> 0 | BD51: ='Relevant Variables'!G412 -> 0 | BE51: ='Relevant Variables'!G442 -> 0 | BF51: ='Relevant Variables'!G472 -> 0 | BG51: ='Relevant Variables'!G502 -> 0 | BH51: ='Relevant Variables'!G532 -> 0 | BI51: ='Relevant Variables'!G562 -> 0 | BJ51: ='Relevant Variables'!G592 -> 0 | BK51: ='Relevant Variables'!G622 -> 0
A52: 2008-05-01 | C52: ='Energy Consumption'!H73 -> 0 | D52: ='Energy Consumption'!H74 -> 0 | E52: ='Energy Consumption'!H155 -> 0 | F52: ='Energy Consumption'!H156 -> 0 | G52: ='Energy Consumption'!H237 -> 0 | H52: ='Energy Consumption'!H238 -> 0 | I52: ='Energy Consumption'!H319 -> 0 | J52: ='Energy Consumption'!H320 -> 0 | K52: ='Energy Consumption'!H401 -> 0 | L52: ='Energy Consumption'!H402 -> 0 | M52: ='Energy Consumption'!H483 -> 0 | N52: ='Energy Consumption'!H484 -> 0 | O52: ='Energy Consumption'!H565 -> 0 | P52: ='Energy Consumption'!H566 -> 0 | Q52: ='Energy Consumption'!H647 -> 0 | R52: ='Energy Consumption'!H648 -> 0 | S52: ='Energy Consumption'!H729 -> 0 | T52: ='Energy Consumption'!H730 -> 0 | U52: ='Energy Consumption'!H811 -> 0 | V52: ='Energy Consumption'!H812 -> 0 | W52: ='Energy Consumption'!H893 -> 0 | X52: ='Energy Consumption'!H894 -> 0 | Y52: ='Energy Consumption'!H975 -> 0 | Z52: ='Energy Consumption'!H976 -> 0 | AA52: ='Energy Consumption'!H1057 -> 0 | AB52: ='Energy Consumption'!H1058 -> 0 | AC52: ='Energy Consumption'!H1139 -> 0 | AD52: ='Energy Consumption'!H1140 -> 0 | AE52: ='Energy Consumption'!H1221 -> 0 | AF52: ='Energy Consumption'!H1222 -> 0 | AG52: ='Energy Consumption'!H1303 -> 0 | AH52: ='Energy Consumption'!H1304 -> 0 | AI52: ='Energy Consumption'!H1385 -> 0 | AJ52: ='Energy Consumption'!H1386 -> 0 | AK52: ='Energy Consumption'!H1467 -> 0 | AL52: ='Energy Consumption'!H1468 -> 0 | AM52: ='Energy Consumption'!H1549 -> 0 | AN52: ='Energy Consumption'!H1550 -> 0 | AO52: ='Energy Consumption'!H1631 -> 0 | AP52: ='Energy Consumption'!H1632 -> 0 | AR52: ='Relevant Variables'!H52 -> 0 | AS52: ='Relevant Variables'!H82 -> 0 | AT52: ='Relevant Variables'!H112 -> 0 | AU52: ='Relevant Variables'!H142 -> 0 | AV52: ='Relevant Variables'!H172 -> 0 | AW52: ='Relevant Variables'!H202 -> 0 | AX52: ='Relevant Variables'!H232 -> 0 | AY52: ='Relevant Variables'!H262 -> 0 | AZ52: ='Relevant Variables'!H292 -> 0 | BA52: ='Relevant Variables'!H322 -> 0 | BB52: ='Relevant Variables'!H352 -> 0 | BC52: ='Relevant Variables'!H382 -> 0 | BD52: ='Relevant Variables'!H412 -> 0 | BE52: ='Relevant Variables'!H442 -> 0 | BF52: ='Relevant Variables'!H472 -> 0 | BG52: ='Relevant Variables'!H502 -> 0 | BH52: ='Relevant Variables'!H532 -> 0 | BI52: ='Relevant Variables'!H562 -> 0 | BJ52: ='Relevant Variables'!H592 -> 0 | BK52: ='Relevant Variables'!H622 -> 0
A53: 2008-06-01 | C53: ='Energy Consumption'!I73 -> 0 | D53: ='Energy Consumption'!I74 -> 0 | E53: ='Energy Consumption'!I155 -> 0 | F53: ='Energy Consumption'!I156 -> 0 | G53: ='Energy Consumption'!I237 -> 0 | H53: ='Energy Consumption'!I238 -> 0 | I53: ='Energy Consumption'!I319 -> 0 | J53: ='Energy Consumption'!I320 -> 0 | K53: ='Energy Consumption'!I401 -> 0 | L53: ='Energy Consumption'!I402 -> 0 | M53: ='Energy Consumption'!I483 -> 0 | N53: ='Energy Consumption'!I484 -> 0 | O53: ='Energy Consumption'!I565 -> 0 | P53: ='Energy Consumption'!I566 -> 0 | Q53: ='Energy Consumption'!I647 -> 0 | R53: ='Energy Consumption'!I648 -> 0 | S53: ='Energy Consumption'!I729 -> 0 | T53: ='Energy Consumption'!I730 -> 0 | U53: ='Energy Consumption'!I811 -> 0 | V53: ='Energy Consumption'!I812 -> 0 | W53: ='Energy Consumption'!I893 -> 0 | X53: ='Energy Consumption'!I894 -> 0 | Y53: ='Energy Consumption'!I975 -> 0 | Z53: ='Energy Consumption'!I976 -> 0 | AA53: ='Energy Consumption'!I1057 -> 0 | AB53: ='Energy Consumption'!I1058 -> 0 | AC53: ='Energy Consumption'!I1139 -> 0 | AD53: ='Energy Consumption'!I1140 -> 0 | AE53: ='Energy Consumption'!I1221 -> 0 | AF53: ='Energy Consumption'!I1222 -> 0 | AG53: ='Energy Consumption'!I1303 -> 0 | AH53: ='Energy Consumption'!I1304 -> 0 | AI53: ='Energy Consumption'!I1385 -> 0 | AJ53: ='Energy Consumption'!I1386 -> 0 | AK53: ='Energy Consumption'!I1467 -> 0 | AL53: ='Energy Consumption'!I1468 -> 0 | AM53: ='Energy Consumption'!I1549 -> 0 | AN53: ='Energy Consumption'!I1550 -> 0 | AO53: ='Energy Consumption'!I1631 -> 0 | AP53: ='Energy Consumption'!I1632 -> 0 | AR53: ='Relevant Variables'!I52 -> 0 | AS53: ='Relevant Variables'!I82 -> 0 | AT53: ='Relevant Variables'!I112 -> 0 | AU53: ='Relevant Variables'!I142 -> 0 | AV53: ='Relevant Variables'!I172 -> 0 | AW53: ='Relevant Variables'!I202 -> 0 | AX53: ='Relevant Variables'!I232 -> 0 | AY53: ='Relevant Variables'!I262 -> 0 | AZ53: ='Relevant Variables'!I292 -> 0 | BA53: ='Relevant Variables'!I322 -> 0 | BB53: ='Relevant Variables'!I352 -> 0 | BC53: ='Relevant Variables'!I382 -> 0 | BD53: ='Relevant Variables'!I412 -> 0 | BE53: ='Relevant Variables'!I442 -> 0 | BF53: ='Relevant Variables'!I472 -> 0 | BG53: ='Relevant Variables'!I502 -> 0 | BH53: ='Relevant Variables'!I532 -> 0 | BI53: ='Relevant Variables'!I562 -> 0 | BJ53: ='Relevant Variables'!I592 -> 0 | BK53: ='Relevant Variables'!I622 -> 0
A54: 2008-07-01 | C54: ='Energy Consumption'!J73 -> 0 | D54: ='Energy Consumption'!J74 -> 0 | E54: ='Energy Consumption'!J155 -> 0 | F54: ='Energy Consumption'!J156 -> 0 | G54: ='Energy Consumption'!J237 -> 0 | H54: ='Energy Consumption'!J238 -> 0 | I54: ='Energy Consumption'!J319 -> 0 | J54: ='Energy Consumption'!J320 -> 0 | K54: ='Energy Consumption'!J401 -> 0 | L54: ='Energy Consumption'!J402 -> 0 | M54: ='Energy Consumption'!J483 -> 0 | N54: ='Energy Consumption'!J484 -> 0 | O54: ='Energy Consumption'!J565 -> 0 | P54: ='Energy Consumption'!J566 -> 0 | Q54: ='Energy Consumption'!J647 -> 0 | R54: ='Energy Consumption'!J648 -> 0 | S54: ='Energy Consumption'!J729 -> 0 | T54: ='Energy Consumption'!J730 -> 0 | U54: ='Energy Consumption'!J811 -> 0 | V54: ='Energy Consumption'!J812 -> 0 | W54: ='Energy Consumption'!J893 -> 0 | X54: ='Energy Consumption'!J894 -> 0 | Y54: ='Energy Consumption'!J975 -> 0 | Z54: ='Energy Consumption'!J976 -> 0 | AA54: ='Energy Consumption'!J1057 -> 0 | AB54: ='Energy Consumption'!J1058 -> 0 | AC54: ='Energy Consumption'!J1139 -> 0 | AD54: ='Energy Consumption'!J1140 -> 0 | AE54: ='Energy Consumption'!J1221 -> 0 | AF54: ='Energy Consumption'!J1222 -> 0 | AG54: ='Energy Consumption'!J1303 -> 0 | AH54: ='Energy Consumption'!J1304 -> 0 | AI54: ='Energy Consumption'!J1385 -> 0 | AJ54: ='Energy Consumption'!J1386 -> 0 | AK54: ='Energy Consumption'!J1467 -> 0 | AL54: ='Energy Consumption'!J1468 -> 0 | AM54: ='Energy Consumption'!J1549 -> 0 | AN54: ='Energy Consumption'!J1550 -> 0 | AO54: ='Energy Consumption'!J1631 -> 0 | AP54: ='Energy Consumption'!J1632 -> 0 | AR54: ='Relevant Variables'!J52 -> 0 | AS54: ='Relevant Variables'!J82 -> 0 | AT54: ='Relevant Variables'!J112 -> 0 | AU54: ='Relevant Variables'!J142 -> 0 | AV54: ='Relevant Variables'!J172 -> 0 | AW54: ='Relevant Variables'!J202 -> 0 | AX54: ='Relevant Variables'!J232 -> 0 | AY54: ='Relevant Variables'!J262 -> 0 | AZ54: ='Relevant Variables'!J292 -> 0 | BA54: ='Relevant Variables'!J322 -> 0 | BB54: ='Relevant Variables'!J352 -> 0 | BC54: ='Relevant Variables'!J382 -> 0 | BD54: ='Relevant Variables'!J412 -> 0 | BE54: ='Relevant Variables'!J442 -> 0 | BF54: ='Relevant Variables'!J472 -> 0 | BG54: ='Relevant Variables'!J502 -> 0 | BH54: ='Relevant Variables'!J532 -> 0 | BI54: ='Relevant Variables'!J562 -> 0 | BJ54: ='Relevant Variables'!J592 -> 0 | BK54: ='Relevant Variables'!J622 -> 0
A55: 2008-08-01 | C55: ='Energy Consumption'!K73 -> 0 | D55: ='Energy Consumption'!K74 -> 0 | E55: ='Energy Consumption'!K155 -> 0 | F55: ='Energy Consumption'!K156 -> 0 | G55: ='Energy Consumption'!K237 -> 0 | H55: ='Energy Consumption'!K238 -> 0 | I55: ='Energy Consumption'!K319 -> 0 | J55: ='Energy Consumption'!K320 -> 0 | K55: ='Energy Consumption'!K401 -> 0 | L55: ='Energy Consumption'!K402 -> 0 | M55: ='Energy Consumption'!K483 -> 0 | N55: ='Energy Consumption'!K484 -> 0 | O55: ='Energy Consumption'!K565 -> 0 | P55: ='Energy Consumption'!K566 -> 0 | Q55: ='Energy Consumption'!K647 -> 0 | R55: ='Energy Consumption'!K648 -> 0 | S55: ='Energy Consumption'!K729 -> 0 | T55: ='Energy Consumption'!K730 -> 0 | U55: ='Energy Consumption'!K811 -> 0 | V55: ='Energy Consumption'!K812 -> 0 | W55: ='Energy Consumption'!K893 -> 0 | X55: ='Energy Consumption'!K894 -> 0 | Y55: ='Energy Consumption'!K975 -> 0 | Z55: ='Energy Consumption'!K976 -> 0 | AA55: ='Energy Consumption'!K1057 -> 0 | AB55: ='Energy Consumption'!K1058 -> 0 | AC55: ='Energy Consumption'!K1139 -> 0 | AD55: ='Energy Consumption'!K1140 -> 0 | AE55: ='Energy Consumption'!K1221 -> 0 | AF55: ='Energy Consumption'!K1222 -> 0 | AG55: ='Energy Consumption'!K1303 -> 0 | AH55: ='Energy Consumption'!K1304 -> 0 | AI55: ='Energy Consumption'!K1385 -> 0 | AJ55: ='Energy Consumption'!K1386 -> 0 | AK55: ='Energy Consumption'!K1467 -> 0 | AL55: ='Energy Consumption'!K1468 -> 0 | AM55: ='Energy Consumption'!K1549 -> 0 | AN55: ='Energy Consumption'!K1550 -> 0 | AO55: ='Energy Consumption'!K1631 -> 0 | AP55: ='Energy Consumption'!K1632 -> 0 | AR55: ='Relevant Variables'!K52 -> 0 | AS55: ='Relevant Variables'!K82 -> 0 | AT55: ='Relevant Variables'!K112 -> 0 | AU55: ='Relevant Variables'!K142 -> 0 | AV55: ='Relevant Variables'!K172 -> 0 | AW55: ='Relevant Variables'!K202 -> 0 | AX55: ='Relevant Variables'!K232 -> 0 | AY55: ='Relevant Variables'!K262 -> 0 | AZ55: ='Relevant Variables'!K292 -> 0 | BA55: ='Relevant Variables'!K322 -> 0 | BB55: ='Relevant Variables'!K352 -> 0 | BC55: ='Relevant Variables'!K382 -> 0 | BD55: ='Relevant Variables'!K412 -> 0 | BE55: ='Relevant Variables'!K442 -> 0 | BF55: ='Relevant Variables'!K472 -> 0 | BG55: ='Relevant Variables'!K502 -> 0 | BH55: ='Relevant Variables'!K532 -> 0 | BI55: ='Relevant Variables'!K562 -> 0 | BJ55: ='Relevant Variables'!K592 -> 0 | BK55: ='Relevant Variables'!K622 -> 0
A56: 2008-09-01 | C56: ='Energy Consumption'!L73 -> 0 | D56: ='Energy Consumption'!L74 -> 0 | E56: ='Energy Consumption'!L155 -> 0 | F56: ='Energy Consumption'!L156 -> 0 | G56: ='Energy Consumption'!L237 -> 0 | H56: ='Energy Consumption'!L238 -> 0 | I56: ='Energy Consumption'!L319 -> 0 | J56: ='Energy Consumption'!L320 -> 0 | K56: ='Energy Consumption'!L401 -> 0 | L56: ='Energy Consumption'!L402 -> 0 | M56: ='Energy Consumption'!L483 -> 0 | N56: ='Energy Consumption'!L484 -> 0 | O56: ='Energy Consumption'!L565 -> 0 | P56: ='Energy Consumption'!L566 -> 0 | Q56: ='Energy Consumption'!L647 -> 0 | R56: ='Energy Consumption'!L648 -> 0 | S56: ='Energy Consumption'!L729 -> 0 | T56: ='Energy Consumption'!L730 -> 0 | U56: ='Energy Consumption'!L811 -> 0 | V56: ='Energy Consumption'!L812 -> 0 | W56: ='Energy Consumption'!L893 -> 0 | X56: ='Energy Consumption'!L894 -> 0 | Y56: ='Energy Consumption'!L975 -> 0 | Z56: ='Energy Consumption'!L976 -> 0 | AA56: ='Energy Consumption'!L1057 -> 0 | AB56: ='Energy Consumption'!L1058 -> 0 | AC56: ='Energy Consumption'!L1139 -> 0 | AD56: ='Energy Consumption'!L1140 -> 0 | AE56: ='Energy Consumption'!L1221 -> 0 | AF56: ='Energy Consumption'!L1222 -> 0 | AG56: ='Energy Consumption'!L1303 -> 0 | AH56: ='Energy Consumption'!L1304 -> 0 | AI56: ='Energy Consumption'!L1385 -> 0 | AJ56: ='Energy Consumption'!L1386 -> 0 | AK56: ='Energy Consumption'!L1467 -> 0 | AL56: ='Energy Consumption'!L1468 -> 0 | AM56: ='Energy Consumption'!L1549 -> 0 | AN56: ='Energy Consumption'!L1550 -> 0 | AO56: ='Energy Consumption'!L1631 -> 0 | AP56: ='Energy Consumption'!L1632 -> 0 | AR56: ='Relevant Variables'!L52 -> 0 | AS56: ='Relevant Variables'!L82 -> 0 | AT56: ='Relevant Variables'!L112 -> 0 | AU56: ='Relevant Variables'!L142 -> 0 | AV56: ='Relevant Variables'!L172 -> 0 | AW56: ='Relevant Variables'!L202 -> 0 | AX56: ='Relevant Variables'!L232 -> 0 | AY56: ='Relevant Variables'!L262 -> 0 | AZ56: ='Relevant Variables'!L292 -> 0 | BA56: ='Relevant Variables'!L322 -> 0 | BB56: ='Relevant Variables'!L352 -> 0 | BC56: ='Relevant Variables'!L382 -> 0 | BD56: ='Relevant Variables'!L412 -> 0 | BE56: ='Relevant Variables'!L442 -> 0 | BF56: ='Relevant Variables'!L472 -> 0 | BG56: ='Relevant Variables'!L502 -> 0 | BH56: ='Relevant Variables'!L532 -> 0 | BI56: ='Relevant Variables'!L562 -> 0 | BJ56: ='Relevant Variables'!L592 -> 0 | BK56: ='Relevant Variables'!L622 -> 0
A57: 2008-10-01 | C57: ='Energy Consumption'!M73 -> 0 | D57: ='Energy Consumption'!M74 -> 0 | E57: ='Energy Consumption'!M155 -> 0 | F57: ='Energy Consumption'!M156 -> 0 | G57: ='Energy Consumption'!M237 -> 0 | H57: ='Energy Consumption'!M238 -> 0 | I57: ='Energy Consumption'!M319 -> 0 | J57: ='Energy Consumption'!M320 -> 0 | K57: ='Energy Consumption'!M401 -> 0 | L57: ='Energy Consumption'!M402 -> 0 | M57: ='Energy Consumption'!M483 -> 0 | N57: ='Energy Consumption'!M484 -> 0 | O57: ='Energy Consumption'!M565 -> 0 | P57: ='Energy Consumption'!M566 -> 0 | Q57: ='Energy Consumption'!M647 -> 0 | R57: ='Energy Consumption'!M648 -> 0 | S57: ='Energy Consumption'!M729 -> 0 | T57: ='Energy Consumption'!M730 -> 0 | U57: ='Energy Consumption'!M811 -> 0 | V57: ='Energy Consumption'!M812 -> 0 | W57: ='Energy Consumption'!M893 -> 0 | X57: ='Energy Consumption'!M894 -> 0 | Y57: ='Energy Consumption'!M975 -> 0 | Z57: ='Energy Consumption'!M976 -> 0 | AA57: ='Energy Consumption'!M1057 -> 0 | AB57: ='Energy Consumption'!M1058 -> 0 | AC57: ='Energy Consumption'!M1139 -> 0 | AD57: ='Energy Consumption'!M1140 -> 0 | AE57: ='Energy Consumption'!M1221 -> 0 | AF57: ='Energy Consumption'!M1222 -> 0 | AG57: ='Energy Consumption'!M1303 -> 0 | AH57: ='Energy Consumption'!M1304 -> 0 | AI57: ='Energy Consumption'!M1385 -> 0 | AJ57: ='Energy Consumption'!M1386 -> 0 | AK57: ='Energy Consumption'!M1467 -> 0 | AL57: ='Energy Consumption'!M1468 -> 0 | AM57: ='Energy Consumption'!M1549 -> 0 | AN57: ='Energy Consumption'!M1550 -> 0 | AO57: ='Energy Consumption'!M1631 -> 0 | AP57: ='Energy Consumption'!M1632 -> 0 | AR57: ='Relevant Variables'!M52 -> 0 | AS57: ='Relevant Variables'!M82 -> 0 | AT57: ='Relevant Variables'!M112 -> 0 | AU57: ='Relevant Variables'!M142 -> 0 | AV57: ='Relevant Variables'!M172 -> 0 | AW57: ='Relevant Variables'!M202 -> 0 | AX57: ='Relevant Variables'!M232 -> 0 | AY57: ='Relevant Variables'!M262 -> 0 | AZ57: ='Relevant Variables'!M292 -> 0 | BA57: ='Relevant Variables'!M322 -> 0 | BB57: ='Relevant Variables'!M352 -> 0 | BC57: ='Relevant Variables'!M382 -> 0 | BD57: ='Relevant Variables'!M412 -> 0 | BE57: ='Relevant Variables'!M442 -> 0 | BF57: ='Relevant Variables'!M472 -> 0 | BG57: ='Relevant Variables'!M502 -> 0 | BH57: ='Relevant Variables'!M532 -> 0 | BI57: ='Relevant Variables'!M562 -> 0 | BJ57: ='Relevant Variables'!M592 -> 0 | BK57: ='Relevant Variables'!M622 -> 0
A58: 2008-11-01 | C58: ='Energy Consumption'!N73 -> 0 | D58: ='Energy Consumption'!N74 -> 0 | E58: ='Energy Consumption'!N155 -> 0 | F58: ='Energy Consumption'!N156 -> 0 | G58: ='Energy Consumption'!N237 -> 0 | H58: ='Energy Consumption'!N238 -> 0 | I58: ='Energy Consumption'!N319 -> 0 | J58: ='Energy Consumption'!N320 -> 0 | K58: ='Energy Consumption'!N401 -> 0 | L58: ='Energy Consumption'!N402 -> 0 | M58: ='Energy Consumption'!N483 -> 0 | N58: ='Energy Consumption'!N484 -> 0 | O58: ='Energy Consumption'!N565 -> 0 | P58: ='Energy Consumption'!N566 -> 0 | Q58: ='Energy Consumption'!N647 -> 0 | R58: ='Energy Consumption'!N648 -> 0 | S58: ='Energy Consumption'!N729 -> 0 | T58: ='Energy Consumption'!N730 -> 0 | U58: ='Energy Consumption'!N811 -> 0 | V58: ='Energy Consumption'!N812 -> 0 | W58: ='Energy Consumption'!N893 -> 0 | X58: ='Energy Consumption'!N894 -> 0 | Y58: ='Energy Consumption'!N975 -> 0 | Z58: ='Energy Consumption'!N976 -> 0 | AA58: ='Energy Consumption'!N1057 -> 0 | AB58: ='Energy Consumption'!N1058 -> 0 | AC58: ='Energy Consumption'!N1139 -> 0 | AD58: ='Energy Consumption'!N1140 -> 0 | AE58: ='Energy Consumption'!N1221 -> 0 | AF58: ='Energy Consumption'!N1222 -> 0 | AG58: ='Energy Consumption'!N1303 -> 0 | AH58: ='Energy Consumption'!N1304 -> 0 | AI58: ='Energy Consumption'!N1385 -> 0 | AJ58: ='Energy Consumption'!N1386 -> 0 | AK58: ='Energy Consumption'!N1467 -> 0 | AL58: ='Energy Consumption'!N1468 -> 0 | AM58: ='Energy Consumption'!N1549 -> 0 | AN58: ='Energy Consumption'!N1550 -> 0 | AO58: ='Energy Consumption'!N1631 -> 0 | AP58: ='Energy Consumption'!N1632 -> 0 | AR58: ='Relevant Variables'!N52 -> 0 | AS58: ='Relevant Variables'!N82 -> 0 | AT58: ='Relevant Variables'!N112 -> 0 | AU58: ='Relevant Variables'!N142 -> 0 | AV58: ='Relevant Variables'!N172 -> 0 | AW58: ='Relevant Variables'!N202 -> 0 | AX58: ='Relevant Variables'!N232 -> 0 | AY58: ='Relevant Variables'!N262 -> 0 | AZ58: ='Relevant Variables'!N292 -> 0 | BA58: ='Relevant Variables'!N322 -> 0 | BB58: ='Relevant Variables'!N352 -> 0 | BC58: ='Relevant Variables'!N382 -> 0 | BD58: ='Relevant Variables'!N412 -> 0 | BE58: ='Relevant Variables'!N442 -> 0 | BF58: ='Relevant Variables'!N472 -> 0 | BG58: ='Relevant Variables'!N502 -> 0 | BH58: ='Relevant Variables'!N532 -> 0 | BI58: ='Relevant Variables'!N562 -> 0 | BJ58: ='Relevant Variables'!N592 -> 0 | BK58: ='Relevant Variables'!N622 -> 0
A59: 2008-12-01 | C59: ='Energy Consumption'!O73 -> 0 | D59: ='Energy Consumption'!O74 -> 0 | E59: ='Energy Consumption'!O155 -> 0 | F59: ='Energy Consumption'!O156 -> 0 | G59: ='Energy Consumption'!O237 -> 0 | H59: ='Energy Consumption'!O238 -> 0 | I59: ='Energy Consumption'!O319 -> 0 | J59: ='Energy Consumption'!O320 -> 0 | K59: ='Energy Consumption'!O401 -> 0 | L59: ='Energy Consumption'!O402 -> 0 | M59: ='Energy Consumption'!O483 -> 0 | N59: ='Energy Consumption'!O484 -> 0 | O59: ='Energy Consumption'!O565 -> 0 | P59: ='Energy Consumption'!O566 -> 0 | Q59: ='Energy Consumption'!O647 -> 0 | R59: ='Energy Consumption'!O648 -> 0 | S59: ='Energy Consumption'!O729 -> 0 | T59: ='Energy Consumption'!O730 -> 0 | U59: ='Energy Consumption'!O811 -> 0 | V59: ='Energy Consumption'!O812 -> 0 | W59: ='Energy Consumption'!O893 -> 0 | X59: ='Energy Consumption'!O894 -> 0 | Y59: ='Energy Consumption'!O975 -> 0 | Z59: ='Energy Consumption'!O976 -> 0 | AA59: ='Energy Consumption'!O1057 -> 0 | AB59: ='Energy Consumption'!O1058 -> 0 | AC59: ='Energy Consumption'!O1139 -> 0 | AD59: ='Energy Consumption'!O1140 -> 0 | AE59: ='Energy Consumption'!O1221 -> 0 | AF59: ='Energy Consumption'!O1222 -> 0 | AG59: ='Energy Consumption'!O1303 -> 0 | AH59: ='Energy Consumption'!O1304 -> 0 | AI59: ='Energy Consumption'!O1385 -> 0 | AJ59: ='Energy Consumption'!O1386 -> 0 | AK59: ='Energy Consumption'!O1467 -> 0 | AL59: ='Energy Consumption'!O1468 -> 0 | AM59: ='Energy Consumption'!O1549 -> 0 | AN59: ='Energy Consumption'!O1550 -> 0 | AO59: ='Energy Consumption'!O1631 -> 0 | AP59: ='Energy Consumption'!O1632 -> 0 | AR59: ='Relevant Variables'!O52 -> 0 | AS59: ='Relevant Variables'!O82 -> 0 | AT59: ='Relevant Variables'!O112 -> 0 | AU59: ='Relevant Variables'!O142 -> 0 | AV59: ='Relevant Variables'!O172 -> 0 | AW59: ='Relevant Variables'!O202 -> 0 | AX59: ='Relevant Variables'!O232 -> 0 | AY59: ='Relevant Variables'!O262 -> 0 | AZ59: ='Relevant Variables'!O292 -> 0 | BA59: ='Relevant Variables'!O322 -> 0 | BB59: ='Relevant Variables'!O352 -> 0 | BC59: ='Relevant Variables'!O382 -> 0 | BD59: ='Relevant Variables'!O412 -> 0 | BE59: ='Relevant Variables'!O442 -> 0 | BF59: ='Relevant Variables'!O472 -> 0 | BG59: ='Relevant Variables'!O502 -> 0 | BH59: ='Relevant Variables'!O532 -> 0 | BI59: ='Relevant Variables'!O562 -> 0 | BJ59: ='Relevant Variables'!O592 -> 0 | BK59: ='Relevant Variables'!O622 -> 0
A60: 2009-01-01 | C60: ='Energy Consumption'!D71 -> 0 | D60: ='Energy Consumption'!D72 -> 0 | E60: ='Energy Consumption'!D153 -> 0 | F60: ='Energy Consumption'!D154 -> 0 | G60: ='Energy Consumption'!D235 -> 0 | H60: ='Energy Consumption'!D236 -> 0 | I60: ='Energy Consumption'!D317 -> 0 | J60: ='Energy Consumption'!D318 -> 0 | K60: ='Energy Consumption'!D399 -> 0 | L60: ='Energy Consumption'!D400 -> 0 | M60: ='Energy Consumption'!D481 -> 0 | N60: ='Energy Consumption'!D482 -> 0 | O60: ='Energy Consumption'!D563 -> 0 | P60: ='Energy Consumption'!D564 -> 0 | Q60: ='Energy Consumption'!D645 -> 0 | R60: ='Energy Consumption'!D646 -> 0 | S60: ='Energy Consumption'!D727 -> 0 | T60: ='Energy Consumption'!D728 -> 0 | U60: ='Energy Consumption'!D809 -> 0 | V60: ='Energy Consumption'!D810 -> 0 | W60: ='Energy Consumption'!D891 -> 0 | X60: ='Energy Consumption'!D892 -> 0 | Y60: ='Energy Consumption'!D973 -> 0 | Z60: ='Energy Consumption'!D974 -> 0 | AA60: ='Energy Consumption'!D1055 -> 0 | AB60: ='Energy Consumption'!D1056 -> 0 | AC60: ='Energy Consumption'!D1137 -> 0 | AD60: ='Energy Consumption'!D1138 -> 0 | AE60: ='Energy Consumption'!D1219 -> 0 | AF60: ='Energy Consumption'!D1220 -> 0 | AG60: ='Energy Consumption'!D1301 -> 0 | AH60: ='Energy Consumption'!D1302 -> 0 | AI60: ='Energy Consumption'!D1383 -> 0 | AJ60: ='Energy Consumption'!D1384 -> 0 | AK60: ='Energy Consumption'!D1465 -> 0 | AL60: ='Energy Consumption'!D1466 -> 0 | AM60: ='Energy Consumption'!D1547 -> 0 | AN60: ='Energy Consumption'!D1548 -> 0 | AO60: ='Energy Consumption'!D1629 -> 0 | AP60: ='Energy Consumption'!D1630 -> 0 | AR60: ='Relevant Variables'!D51 -> 0 | AS60: ='Relevant Variables'!D81 -> 0 | AT60: ='Relevant Variables'!D111 -> 0 | AU60: ='Relevant Variables'!D141 -> 0 | AV60: ='Relevant Variables'!D171 -> 0 | AW60: ='Relevant Variables'!D201 -> 0 | AX60: ='Relevant Variables'!D231 -> 0 | AY60: ='Relevant Variables'!D261 -> 0 | AZ60: ='Relevant Variables'!D291 -> 0 | BA60: ='Relevant Variables'!D321 -> 0 | BB60: ='Relevant Variables'!D351 -> 0 | BC60: ='Relevant Variables'!D381 -> 0 | BD60: ='Relevant Variables'!D411 -> 0 | BE60: ='Relevant Variables'!D441 -> 0 | BF60: ='Relevant Variables'!D471 -> 0 | BG60: ='Relevant Variables'!D501 -> 0 | BH60: ='Relevant Variables'!D531 -> 0 | BI60: ='Relevant Variables'!D561 -> 0 | BJ60: ='Relevant Variables'!D591 -> 0 | BK60: ='Relevant Variables'!D621 -> 0
A61: 2009-02-01 | C61: ='Energy Consumption'!E71 -> 0 | D61: ='Energy Consumption'!E72 -> 0 | E61: ='Energy Consumption'!E153 -> 0 | F61: ='Energy Consumption'!E154 -> 0 | G61: ='Energy Consumption'!E235 -> 0 | H61: ='Energy Consumption'!E236 -> 0 | I61: ='Energy Consumption'!E317 -> 0 | J61: ='Energy Consumption'!E318 -> 0 | K61: ='Energy Consumption'!E399 -> 0 | L61: ='Energy Consumption'!E400 -> 0 | M61: ='Energy Consumption'!E481 -> 0 | N61: ='Energy Consumption'!E482 -> 0 | O61: ='Energy Consumption'!E563 -> 0 | P61: ='Energy Consumption'!E564 -> 0 | Q61: ='Energy Consumption'!E645 -> 0 | R61: ='Energy Consumption'!E646 -> 0 | S61: ='Energy Consumption'!E727 -> 0 | T61: ='Energy Consumption'!E728 -> 0 | U61: ='Energy Consumption'!E809 -> 0 | V61: ='Energy Consumption'!E810 -> 0 | W61: ='Energy Consumption'!E891 -> 0 | X61: ='Energy Consumption'!E892 -> 0 | Y61: ='Energy Consumption'!E973 -> 0 | Z61: ='Energy Consumption'!E974 -> 0 | AA61: ='Energy Consumption'!E1055 -> 0 | AB61: ='Energy Consumption'!E1056 -> 0 | AC61: ='Energy Consumption'!E1137 -> 0 | AD61: ='Energy Consumption'!E1138 -> 0 | AE61: ='Energy Consumption'!E1219 -> 0 | AF61: ='Energy Consumption'!E1220 -> 0 | AG61: ='Energy Consumption'!E1301 -> 0 | AH61: ='Energy Consumption'!E1302 -> 0 | AI61: ='Energy Consumption'!E1383 -> 0 | AJ61: ='Energy Consumption'!E1384 -> 0 | AK61: ='Energy Consumption'!E1465 -> 0 | AL61: ='Energy Consumption'!E1466 -> 0 | AM61: ='Energy Consumption'!E1547 -> 0 | AN61: ='Energy Consumption'!E1548 -> 0 | AO61: ='Energy Consumption'!E1629 -> 0 | AP61: ='Energy Consumption'!E1630 -> 0 | AR61: ='Relevant Variables'!E51 -> 0 | AS61: ='Relevant Variables'!E81 -> 0 | AT61: ='Relevant Variables'!E111 -> 0 | AU61: ='Relevant Variables'!E141 -> 0 | AV61: ='Relevant Variables'!E171 -> 0 | AW61: ='Relevant Variables'!E201 -> 0 | AX61: ='Relevant Variables'!E231 -> 0 | AY61: ='Relevant Variables'!E261 -> 0 | AZ61: ='Relevant Variables'!E291 -> 0 | BA61: ='Relevant Variables'!E321 -> 0 | BB61: ='Relevant Variables'!E351 -> 0 | BC61: ='Relevant Variables'!E381 -> 0 | BD61: ='Relevant Variables'!E411 -> 0 | BE61: ='Relevant Variables'!E441 -> 0 | BF61: ='Relevant Variables'!E471 -> 0 | BG61: ='Relevant Variables'!E501 -> 0 | BH61: ='Relevant Variables'!E531 -> 0 | BI61: ='Relevant Variables'!E561 -> 0 | BJ61: ='Relevant Variables'!E591 -> 0 | BK61: ='Relevant Variables'!E621 -> 0
A62: 2009-03-01 | C62: ='Energy Consumption'!F71 -> 0 | D62: ='Energy Consumption'!F72 -> 0 | E62: ='Energy Consumption'!F153 -> 0 | F62: ='Energy Consumption'!F154 -> 0 | G62: ='Energy Consumption'!F235 -> 0 | H62: ='Energy Consumption'!F236 -> 0 | I62: ='Energy Consumption'!F317 -> 0 | J62: ='Energy Consumption'!F318 -> 0 | K62: ='Energy Consumption'!F399 -> 0 | L62: ='Energy Consumption'!F400 -> 0 | M62: ='Energy Consumption'!F481 -> 0 | N62: ='Energy Consumption'!F482 -> 0 | O62: ='Energy Consumption'!F563 -> 0 | P62: ='Energy Consumption'!F564 -> 0 | Q62: ='Energy Consumption'!F645 -> 0 | R62: ='Energy Consumption'!F646 -> 0 | S62: ='Energy Consumption'!F727 -> 0 | T62: ='Energy Consumption'!F728 -> 0 | U62: ='Energy Consumption'!F809 -> 0 | V62: ='Energy Consumption'!F810 -> 0 | W62: ='Energy Consumption'!F891 -> 0 | X62: ='Energy Consumption'!F892 -> 0 | Y62: ='Energy Consumption'!F973 -> 0 | Z62: ='Energy Consumption'!F974 -> 0 | AA62: ='Energy Consumption'!F1055 -> 0 | AB62: ='Energy Consumption'!F1056 -> 0 | AC62: ='Energy Consumption'!F1137 -> 0 | AD62: ='Energy Consumption'!F1138 -> 0 | AE62: ='Energy Consumption'!F1219 -> 0 | AF62: ='Energy Consumption'!F1220 -> 0 | AG62: ='Energy Consumption'!F1301 -> 0 | AH62: ='Energy Consumption'!F1302 -> 0 | AI62: ='Energy Consumption'!F1383 -> 0 | AJ62: ='Energy Consumption'!F1384 -> 0 | AK62: ='Energy Consumption'!F1465 -> 0 | AL62: ='Energy Consumption'!F1466 -> 0 | AM62: ='Energy Consumption'!F1547 -> 0 | AN62: ='Energy Consumption'!F1548 -> 0 | AO62: ='Energy Consumption'!F1629 -> 0 | AP62: ='Energy Consumption'!F1630 -> 0 | AR62: ='Relevant Variables'!F51 -> 0 | AS62: ='Relevant Variables'!F81 -> 0 | AT62: ='Relevant Variables'!F111 -> 0 | AU62: ='Relevant Variables'!F141 -> 0 | AV62: ='Relevant Variables'!F171 -> 0 | AW62: ='Relevant Variables'!F201 -> 0 | AX62: ='Relevant Variables'!F231 -> 0 | AY62: ='Relevant Variables'!F261 -> 0 | AZ62: ='Relevant Variables'!F291 -> 0 | BA62: ='Relevant Variables'!F321 -> 0 | BB62: ='Relevant Variables'!F351 -> 0 | BC62: ='Relevant Variables'!F381 -> 0 | BD62: ='Relevant Variables'!F411 -> 0 | BE62: ='Relevant Variables'!F441 -> 0 | BF62: ='Relevant Variables'!F471 -> 0 | BG62: ='Relevant Variables'!F501 -> 0 | BH62: ='Relevant Variables'!F531 -> 0 | BI62: ='Relevant Variables'!F561 -> 0 | BJ62: ='Relevant Variables'!F591 -> 0 | BK62: ='Relevant Variables'!F621 -> 0
A63: 2009-04-01 | C63: ='Energy Consumption'!G71 -> 0 | D63: ='Energy Consumption'!G72 -> 0 | E63: ='Energy Consumption'!G153 -> 0 | F63: ='Energy Consumption'!G154 -> 0 | G63: ='Energy Consumption'!G235 -> 0 | H63: ='Energy Consumption'!G236 -> 0 | I63: ='Energy Consumption'!G317 -> 0 | J63: ='Energy Consumption'!G318 -> 0 | K63: ='Energy Consumption'!G399 -> 0 | L63: ='Energy Consumption'!G400 -> 0 | M63: ='Energy Consumption'!G481 -> 0 | N63: ='Energy Consumption'!G482 -> 0 | O63: ='Energy Consumption'!G563 -> 0 | P63: ='Energy Consumption'!G564 -> 0 | Q63: ='Energy Consumption'!G645 -> 0 | R63: ='Energy Consumption'!G646 -> 0 | S63: ='Energy Consumption'!G727 -> 0 | T63: ='Energy Consumption'!G728 -> 0 | U63: ='Energy Consumption'!G809 -> 0 | V63: ='Energy Consumption'!G810 -> 0 | W63: ='Energy Consumption'!G891 -> 0 | X63: ='Energy Consumption'!G892 -> 0 | Y63: ='Energy Consumption'!G973 -> 0 | Z63: ='Energy Consumption'!G974 -> 0 | AA63: ='Energy Consumption'!G1055 -> 0 | AB63: ='Energy Consumption'!G1056 -> 0 | AC63: ='Energy Consumption'!G1137 -> 0 | AD63: ='Energy Consumption'!G1138 -> 0 | AE63: ='Energy Consumption'!G1219 -> 0 | AF63: ='Energy Consumption'!G1220 -> 0 | AG63: ='Energy Consumption'!G1301 -> 0 | AH63: ='Energy Consumption'!G1302 -> 0 | AI63: ='Energy Consumption'!G1383 -> 0 | AJ63: ='Energy Consumption'!G1384 -> 0 | AK63: ='Energy Consumption'!G1465 -> 0 | AL63: ='Energy Consumption'!G1466 -> 0 | AM63: ='Energy Consumption'!G1547 -> 0 | AN63: ='Energy Consumption'!G1548 -> 0 | AO63: ='Energy Consumption'!G1629 -> 0 | AP63: ='Energy Consumption'!G1630 -> 0 | AR63: ='Relevant Variables'!G51 -> 0 | AS63: ='Relevant Variables'!G81 -> 0 | AT63: ='Relevant Variables'!G111 -> 0 | AU63: ='Relevant Variables'!G141 -> 0 | AV63: ='Relevant Variables'!G171 -> 0 | AW63: ='Relevant Variables'!G201 -> 0 | AX63: ='Relevant Variables'!G231 -> 0 | AY63: ='Relevant Variables'!G261 -> 0 | AZ63: ='Relevant Variables'!G291 -> 0 | BA63: ='Relevant Variables'!G321 -> 0 | BB63: ='Relevant Variables'!G351 -> 0 | BC63: ='Relevant Variables'!G381 -> 0 | BD63: ='Relevant Variables'!G411 -> 0 | BE63: ='Relevant Variables'!G441 -> 0 | BF63: ='Relevant Variables'!G471 -> 0 | BG63: ='Relevant Variables'!G501 -> 0 | BH63: ='Relevant Variables'!G531 -> 0 | BI63: ='Relevant Variables'!G561 -> 0 | BJ63: ='Relevant Variables'!G591 -> 0 | BK63: ='Relevant Variables'!G621 -> 0
A64: 2009-05-01 | C64: ='Energy Consumption'!H71 -> 0 | D64: ='Energy Consumption'!H72 -> 0 | E64: ='Energy Consumption'!H153 -> 0 | F64: ='Energy Consumption'!H154 -> 0 | G64: ='Energy Consumption'!H235 -> 0 | H64: ='Energy Consumption'!H236 -> 0 | I64: ='Energy Consumption'!H317 -> 0 | J64: ='Energy Consumption'!H318 -> 0 | K64: ='Energy Consumption'!H399 -> 0 | L64: ='Energy Consumption'!H400 -> 0 | M64: ='Energy Consumption'!H481 -> 0 | N64: ='Energy Consumption'!H482 -> 0 | O64: ='Energy Consumption'!H563 -> 0 | P64: ='Energy Consumption'!H564 -> 0 | Q64: ='Energy Consumption'!H645 -> 0 | R64: ='Energy Consumption'!H646 -> 0 | S64: ='Energy Consumption'!H727 -> 0 | T64: ='Energy Consumption'!H728 -> 0 | U64: ='Energy Consumption'!H809 -> 0 | V64: ='Energy Consumption'!H810 -> 0 | W64: ='Energy Consumption'!H891 -> 0 | X64: ='Energy Consumption'!H892 -> 0 | Y64: ='Energy Consumption'!H973 -> 0 | Z64: ='Energy Consumption'!H974 -> 0 | AA64: ='Energy Consumption'!H1055 -> 0 | AB64: ='Energy Consumption'!H1056 -> 0 | AC64: ='Energy Consumption'!H1137 -> 0 | AD64: ='Energy Consumption'!H1138 -> 0 | AE64: ='Energy Consumption'!H1219 -> 0 | AF64: ='Energy Consumption'!H1220 -> 0 | AG64: ='Energy Consumption'!H1301 -> 0 | AH64: ='Energy Consumption'!H1302 -> 0 | AI64: ='Energy Consumption'!H1383 -> 0 | AJ64: ='Energy Consumption'!H1384 -> 0 | AK64: ='Energy Consumption'!H1465 -> 0 | AL64: ='Energy Consumption'!H1466 -> 0 | AM64: ='Energy Consumption'!H1547 -> 0 | AN64: ='Energy Consumption'!H1548 -> 0 | AO64: ='Energy Consumption'!H1629 -> 0 | AP64: ='Energy Consumption'!H1630 -> 0 | AR64: ='Relevant Variables'!H51 -> 0 | AS64: ='Relevant Variables'!H81 -> 0 | AT64: ='Relevant Variables'!H111 -> 0 | AU64: ='Relevant Variables'!H141 -> 0 | AV64: ='Relevant Variables'!H171 -> 0 | AW64: ='Relevant Variables'!H201 -> 0 | AX64: ='Relevant Variables'!H231 -> 0 | AY64: ='Relevant Variables'!H261 -> 0 | AZ64: ='Relevant Variables'!H291 -> 0 | BA64: ='Relevant Variables'!H321 -> 0 | BB64: ='Relevant Variables'!H351 -> 0 | BC64: ='Relevant Variables'!H381 -> 0 | BD64: ='Relevant Variables'!H411 -> 0 | BE64: ='Relevant Variables'!H441 -> 0 | BF64: ='Relevant Variables'!H471 -> 0 | BG64: ='Relevant Variables'!H501 -> 0 | BH64: ='Relevant Variables'!H531 -> 0 | BI64: ='Relevant Variables'!H561 -> 0 | BJ64: ='Relevant Variables'!H591 -> 0 | BK64: ='Relevant Variables'!H621 -> 0
A65: 2009-06-01 | C65: ='Energy Consumption'!I71 -> 0 | D65: ='Energy Consumption'!I72 -> 0 | E65: ='Energy Consumption'!I153 -> 0 | F65: ='Energy Consumption'!I154 -> 0 | G65: ='Energy Consumption'!I235 -> 0 | H65: ='Energy Consumption'!I236 -> 0 | I65: ='Energy Consumption'!I317 -> 0 | J65: ='Energy Consumption'!I318 -> 0 | K65: ='Energy Consumption'!I399 -> 0 | L65: ='Energy Consumption'!I400 -> 0 | M65: ='Energy Consumption'!I481 -> 0 | N65: ='Energy Consumption'!I482 -> 0 | O65: ='Energy Consumption'!I563 -> 0 | P65: ='Energy Consumption'!I564 -> 0 | Q65: ='Energy Consumption'!I645 -> 0 | R65: ='Energy Consumption'!I646 -> 0 | S65: ='Energy Consumption'!I727 -> 0 | T65: ='Energy Consumption'!I728 -> 0 | U65: ='Energy Consumption'!I809 -> 0 | V65: ='Energy Consumption'!I810 -> 0 | W65: ='Energy Consumption'!I891 -> 0 | X65: ='Energy Consumption'!I892 -> 0 | Y65: ='Energy Consumption'!I973 -> 0 | Z65: ='Energy Consumption'!I974 -> 0 | AA65: ='Energy Consumption'!I1055 -> 0 | AB65: ='Energy Consumption'!I1056 -> 0 | AC65: ='Energy Consumption'!I1137 -> 0 | AD65: ='Energy Consumption'!I1138 -> 0 | AE65: ='Energy Consumption'!I1219 -> 0 | AF65: ='Energy Consumption'!I1220 -> 0 | AG65: ='Energy Consumption'!I1301 -> 0 | AH65: ='Energy Consumption'!I1302 -> 0 | AI65: ='Energy Consumption'!I1383 -> 0 | AJ65: ='Energy Consumption'!I1384 -> 0 | AK65: ='Energy Consumption'!I1465 -> 0 | AL65: ='Energy Consumption'!I1466 -> 0 | AM65: ='Energy Consumption'!I1547 -> 0 | AN65: ='Energy Consumption'!I1548 -> 0 | AO65: ='Energy Consumption'!I1629 -> 0 | AP65: ='Energy Consumption'!I1630 -> 0 | AR65: ='Relevant Variables'!I51 -> 0 | AS65: ='Relevant Variables'!I81 -> 0 | AT65: ='Relevant Variables'!I111 -> 0 | AU65: ='Relevant Variables'!I141 -> 0 | AV65: ='Relevant Variables'!I171 -> 0 | AW65: ='Relevant Variables'!I201 -> 0 | AX65: ='Relevant Variables'!I231 -> 0 | AY65: ='Relevant Variables'!I261 -> 0 | AZ65: ='Relevant Variables'!I291 -> 0 | BA65: ='Relevant Variables'!I321 -> 0 | BB65: ='Relevant Variables'!I351 -> 0 | BC65: ='Relevant Variables'!I381 -> 0 | BD65: ='Relevant Variables'!I411 -> 0 | BE65: ='Relevant Variables'!I441 -> 0 | BF65: ='Relevant Variables'!I471 -> 0 | BG65: ='Relevant Variables'!I501 -> 0 | BH65: ='Relevant Variables'!I531 -> 0 | BI65: ='Relevant Variables'!I561 -> 0 | BJ65: ='Relevant Variables'!I591 -> 0 | BK65: ='Relevant Variables'!I621 -> 0
A66: 2009-07-01 | C66: ='Energy Consumption'!J71 -> 0 | D66: ='Energy Consumption'!J72 -> 0 | E66: ='Energy Consumption'!J153 -> 0 | F66: ='Energy Consumption'!J154 -> 0 | G66: ='Energy Consumption'!J235 -> 0 | H66: ='Energy Consumption'!J236 -> 0 | I66: ='Energy Consumption'!J317 -> 0 | J66: ='Energy Consumption'!J318 -> 0 | K66: ='Energy Consumption'!J399 -> 0 | L66: ='Energy Consumption'!J400 -> 0 | M66: ='Energy Consumption'!J481 -> 0 | N66: ='Energy Consumption'!J482 -> 0 | O66: ='Energy Consumption'!J563 -> 0 | P66: ='Energy Consumption'!J564 -> 0 | Q66: ='Energy Consumption'!J645 -> 0 | R66: ='Energy Consumption'!J646 -> 0 | S66: ='Energy Consumption'!J727 -> 0 | T66: ='Energy Consumption'!J728 -> 0 | U66: ='Energy Consumption'!J809 -> 0 | V66: ='Energy Consumption'!J810 -> 0 | W66: ='Energy Consumption'!J891 -> 0 | X66: ='Energy Consumption'!J892 -> 0 | Y66: ='Energy Consumption'!J973 -> 0 | Z66: ='Energy Consumption'!J974 -> 0 | AA66: ='Energy Consumption'!J1055 -> 0 | AB66: ='Energy Consumption'!J1056 -> 0 | AC66: ='Energy Consumption'!J1137 -> 0 | AD66: ='Energy Consumption'!J1138 -> 0 | AE66: ='Energy Consumption'!J1219 -> 0 | AF66: ='Energy Consumption'!J1220 -> 0 | AG66: ='Energy Consumption'!J1301 -> 0 | AH66: ='Energy Consumption'!J1302 -> 0 | AI66: ='Energy Consumption'!J1383 -> 0 | AJ66: ='Energy Consumption'!J1384 -> 0 | AK66: ='Energy Consumption'!J1465 -> 0 | AL66: ='Energy Consumption'!J1466 -> 0 | AM66: ='Energy Consumption'!J1547 -> 0 | AN66: ='Energy Consumption'!J1548 -> 0 | AO66: ='Energy Consumption'!J1629 -> 0 | AP66: ='Energy Consumption'!J1630 -> 0 | AR66: ='Relevant Variables'!J51 -> 0 | AS66: ='Relevant Variables'!J81 -> 0 | AT66: ='Relevant Variables'!J111 -> 0 | AU66: ='Relevant Variables'!J141 -> 0 | AV66: ='Relevant Variables'!J171 -> 0 | AW66: ='Relevant Variables'!J201 -> 0 | AX66: ='Relevant Variables'!J231 -> 0 | AY66: ='Relevant Variables'!J261 -> 0 | AZ66: ='Relevant Variables'!J291 -> 0 | BA66: ='Relevant Variables'!J321 -> 0 | BB66: ='Relevant Variables'!J351 -> 0 | BC66: ='Relevant Variables'!J381 -> 0 | BD66: ='Relevant Variables'!J411 -> 0 | BE66: ='Relevant Variables'!J441 -> 0 | BF66: ='Relevant Variables'!J471 -> 0 | BG66: ='Relevant Variables'!J501 -> 0 | BH66: ='Relevant Variables'!J531 -> 0 | BI66: ='Relevant Variables'!J561 -> 0 | BJ66: ='Relevant Variables'!J591 -> 0 | BK66: ='Relevant Variables'!J621 -> 0
A67: 2009-08-01 | C67: ='Energy Consumption'!K71 -> 0 | D67: ='Energy Consumption'!K72 -> 0 | E67: ='Energy Consumption'!K153 -> 0 | F67: ='Energy Consumption'!K154 -> 0 | G67: ='Energy Consumption'!K235 -> 0 | H67: ='Energy Consumption'!K236 -> 0 | I67: ='Energy Consumption'!K317 -> 0 | J67: ='Energy Consumption'!K318 -> 0 | K67: ='Energy Consumption'!K399 -> 0 | L67: ='Energy Consumption'!K400 -> 0 | M67: ='Energy Consumption'!K481 -> 0 | N67: ='Energy Consumption'!K482 -> 0 | O67: ='Energy Consumption'!K563 -> 0 | P67: ='Energy Consumption'!K564 -> 0 | Q67: ='Energy Consumption'!K645 -> 0 | R67: ='Energy Consumption'!K646 -> 0 | S67: ='Energy Consumption'!K727 -> 0 | T67: ='Energy Consumption'!K728 -> 0 | U67: ='Energy Consumption'!K809 -> 0 | V67: ='Energy Consumption'!K810 -> 0 | W67: ='Energy Consumption'!K891 -> 0 | X67: ='Energy Consumption'!K892 -> 0 | Y67: ='Energy Consumption'!K973 -> 0 | Z67: ='Energy Consumption'!K974 -> 0 | AA67: ='Energy Consumption'!K1055 -> 0 | AB67: ='Energy Consumption'!K1056 -> 0 | AC67: ='Energy Consumption'!K1137 -> 0 | AD67: ='Energy Consumption'!K1138 -> 0 | AE67: ='Energy Consumption'!K1219 -> 0 | AF67: ='Energy Consumption'!K1220 -> 0 | AG67: ='Energy Consumption'!K1301 -> 0 | AH67: ='Energy Consumption'!K1302 -> 0 | AI67: ='Energy Consumption'!K1383 -> 0 | AJ67: ='Energy Consumption'!K1384 -> 0 | AK67: ='Energy Consumption'!K1465 -> 0 | AL67: ='Energy Consumption'!K1466 -> 0 | AM67: ='Energy Consumption'!K1547 -> 0 | AN67: ='Energy Consumption'!K1548 -> 0 | AO67: ='Energy Consumption'!K1629 -> 0 | AP67: ='Energy Consumption'!K1630 -> 0 | AR67: ='Relevant Variables'!K51 -> 0 | AS67: ='Relevant Variables'!K81 -> 0 | AT67: ='Relevant Variables'!K111 -> 0 | AU67: ='Relevant Variables'!K141 -> 0 | AV67: ='Relevant Variables'!K171 -> 0 | AW67: ='Relevant Variables'!K201 -> 0 | AX67: ='Relevant Variables'!K231 -> 0 | AY67: ='Relevant Variables'!K261 -> 0 | AZ67: ='Relevant Variables'!K291 -> 0 | BA67: ='Relevant Variables'!K321 -> 0 | BB67: ='Relevant Variables'!K351 -> 0 | BC67: ='Relevant Variables'!K381 -> 0 | BD67: ='Relevant Variables'!K411 -> 0 | BE67: ='Relevant Variables'!K441 -> 0 | BF67: ='Relevant Variables'!K471 -> 0 | BG67: ='Relevant Variables'!K501 -> 0 | BH67: ='Relevant Variables'!K531 -> 0 | BI67: ='Relevant Variables'!K561 -> 0 | BJ67: ='Relevant Variables'!K591 -> 0 | BK67: ='Relevant Variables'!K621 -> 0
A68: 2009-09-01 | C68: ='Energy Consumption'!L71 -> 0 | D68: ='Energy Consumption'!L72 -> 0 | E68: ='Energy Consumption'!L153 -> 0 | F68: ='Energy Consumption'!L154 -> 0 | G68: ='Energy Consumption'!L235 -> 0 | H68: ='Energy Consumption'!L236 -> 0 | I68: ='Energy Consumption'!L317 -> 0 | J68: ='Energy Consumption'!L318 -> 0 | K68: ='Energy Consumption'!L399 -> 0 | L68: ='Energy Consumption'!L400 -> 0 | M68: ='Energy Consumption'!L481 -> 0 | N68: ='Energy Consumption'!L482 -> 0 | O68: ='Energy Consumption'!L563 -> 0 | P68: ='Energy Consumption'!L564 -> 0 | Q68: ='Energy Consumption'!L645 -> 0 | R68: ='Energy Consumption'!L646 -> 0 | S68: ='Energy Consumption'!L727 -> 0 | T68: ='Energy Consumption'!L728 -> 0 | U68: ='Energy Consumption'!L809 -> 0 | V68: ='Energy Consumption'!L810 -> 0 | W68: ='Energy Consumption'!L891 -> 0 | X68: ='Energy Consumption'!L892 -> 0 | Y68: ='Energy Consumption'!L973 -> 0 | Z68: ='Energy Consumption'!L974 -> 0 | AA68: ='Energy Consumption'!L1055 -> 0 | AB68: ='Energy Consumption'!L1056 -> 0 | AC68: ='Energy Consumption'!L1137 -> 0 | AD68: ='Energy Consumption'!L1138 -> 0 | AE68: ='Energy Consumption'!L1219 -> 0 | AF68: ='Energy Consumption'!L1220 -> 0 | AG68: ='Energy Consumption'!L1301 -> 0 | AH68: ='Energy Consumption'!L1302 -> 0 | AI68: ='Energy Consumption'!L1383 -> 0 | AJ68: ='Energy Consumption'!L1384 -> 0 | AK68: ='Energy Consumption'!L1465 -> 0 | AL68: ='Energy Consumption'!L1466 -> 0 | AM68: ='Energy Consumption'!L1547 -> 0 | AN68: ='Energy Consumption'!L1548 -> 0 | AO68: ='Energy Consumption'!L1629 -> 0 | AP68: ='Energy Consumption'!L1630 -> 0 | AR68: ='Relevant Variables'!L51 -> 0 | AS68: ='Relevant Variables'!L81 -> 0 | AT68: ='Relevant Variables'!L111 -> 0 | AU68: ='Relevant Variables'!L141 -> 0 | AV68: ='Relevant Variables'!L171 -> 0 | AW68: ='Relevant Variables'!L201 -> 0 | AX68: ='Relevant Variables'!L231 -> 0 | AY68: ='Relevant Variables'!L261 -> 0 | AZ68: ='Relevant Variables'!L291 -> 0 | BA68: ='Relevant Variables'!L321 -> 0 | BB68: ='Relevant Variables'!L351 -> 0 | BC68: ='Relevant Variables'!L381 -> 0 | BD68: ='Relevant Variables'!L411 -> 0 | BE68: ='Relevant Variables'!L441 -> 0 | BF68: ='Relevant Variables'!L471 -> 0 | BG68: ='Relevant Variables'!L501 -> 0 | BH68: ='Relevant Variables'!L531 -> 0 | BI68: ='Relevant Variables'!L561 -> 0 | BJ68: ='Relevant Variables'!L591 -> 0 | BK68: ='Relevant Variables'!L621 -> 0
A69: 2009-10-01 | C69: ='Energy Consumption'!M71 -> 0 | D69: ='Energy Consumption'!M72 -> 0 | E69: ='Energy Consumption'!M153 -> 0 | F69: ='Energy Consumption'!M154 -> 0 | G69: ='Energy Consumption'!M235 -> 0 | H69: ='Energy Consumption'!M236 -> 0 | I69: ='Energy Consumption'!M317 -> 0 | J69: ='Energy Consumption'!M318 -> 0 | K69: ='Energy Consumption'!M399 -> 0 | L69: ='Energy Consumption'!M400 -> 0 | M69: ='Energy Consumption'!M481 -> 0 | N69: ='Energy Consumption'!M482 -> 0 | O69: ='Energy Consumption'!M563 -> 0 | P69: ='Energy Consumption'!M564 -> 0 | Q69: ='Energy Consumption'!M645 -> 0 | R69: ='Energy Consumption'!M646 -> 0 | S69: ='Energy Consumption'!M727 -> 0 | T69: ='Energy Consumption'!M728 -> 0 | U69: ='Energy Consumption'!M809 -> 0 | V69: ='Energy Consumption'!M810 -> 0 | W69: ='Energy Consumption'!M891 -> 0 | X69: ='Energy Consumption'!M892 -> 0 | Y69: ='Energy Consumption'!M973 -> 0 | Z69: ='Energy Consumption'!M974 -> 0 | AA69: ='Energy Consumption'!M1055 -> 0 | AB69: ='Energy Consumption'!M1056 -> 0 | AC69: ='Energy Consumption'!M1137 -> 0 | AD69: ='Energy Consumption'!M1138 -> 0 | AE69: ='Energy Consumption'!M1219 -> 0 | AF69: ='Energy Consumption'!M1220 -> 0 | AG69: ='Energy Consumption'!M1301 -> 0 | AH69: ='Energy Consumption'!M1302 -> 0 | AI69: ='Energy Consumption'!M1383 -> 0 | AJ69: ='Energy Consumption'!M1384 -> 0 | AK69: ='Energy Consumption'!M1465 -> 0 | AL69: ='Energy Consumption'!M1466 -> 0 | AM69: ='Energy Consumption'!M1547 -> 0 | AN69: ='Energy Consumption'!M1548 -> 0 | AO69: ='Energy Consumption'!M1629 -> 0 | AP69: ='Energy Consumption'!M1630 -> 0 | AR69: ='Relevant Variables'!M51 -> 0 | AS69: ='Relevant Variables'!M81 -> 0 | AT69: ='Relevant Variables'!M111 -> 0 | AU69: ='Relevant Variables'!M141 -> 0 | AV69: ='Relevant Variables'!M171 -> 0 | AW69: ='Relevant Variables'!M201 -> 0 | AX69: ='Relevant Variables'!M231 -> 0 | AY69: ='Relevant Variables'!M261 -> 0 | AZ69: ='Relevant Variables'!M291 -> 0 | BA69: ='Relevant Variables'!M321 -> 0 | BB69: ='Relevant Variables'!M351 -> 0 | BC69: ='Relevant Variables'!M381 -> 0 | BD69: ='Relevant Variables'!M411 -> 0 | BE69: ='Relevant Variables'!M441 -> 0 | BF69: ='Relevant Variables'!M471 -> 0 | BG69: ='Relevant Variables'!M501 -> 0 | BH69: ='Relevant Variables'!M531 -> 0 | BI69: ='Relevant Variables'!M561 -> 0 | BJ69: ='Relevant Variables'!M591 -> 0 | BK69: ='Relevant Variables'!M621 -> 0
A70: 2009-11-01 | C70: ='Energy Consumption'!N71 -> 0 | D70: ='Energy Consumption'!N72 -> 0 | E70: ='Energy Consumption'!N153 -> 0 | F70: ='Energy Consumption'!N154 -> 0 | G70: ='Energy Consumption'!N235 -> 0 | H70: ='Energy Consumption'!N236 -> 0 | I70: ='Energy Consumption'!N317 -> 0 | J70: ='Energy Consumption'!N318 -> 0 | K70: ='Energy Consumption'!N399 -> 0 | L70: ='Energy Consumption'!N400 -> 0 | M70: ='Energy Consumption'!N481 -> 0 | N70: ='Energy Consumption'!N482 -> 0 | O70: ='Energy Consumption'!N563 -> 0 | P70: ='Energy Consumption'!N564 -> 0 | Q70: ='Energy Consumption'!N645 -> 0 | R70: ='Energy Consumption'!N646 -> 0 | S70: ='Energy Consumption'!N727 -> 0 | T70: ='Energy Consumption'!N728 -> 0 | U70: ='Energy Consumption'!N809 -> 0 | V70: ='Energy Consumption'!N810 -> 0 | W70: ='Energy Consumption'!N891 -> 0 | X70: ='Energy Consumption'!N892 -> 0 | Y70: ='Energy Consumption'!N973 -> 0 | Z70: ='Energy Consumption'!N974 -> 0 | AA70: ='Energy Consumption'!N1055 -> 0 | AB70: ='Energy Consumption'!N1056 -> 0 | AC70: ='Energy Consumption'!N1137 -> 0 | AD70: ='Energy Consumption'!N1138 -> 0 | AE70: ='Energy Consumption'!N1219 -> 0 | AF70: ='Energy Consumption'!N1220 -> 0 | AG70: ='Energy Consumption'!N1301 -> 0 | AH70: ='Energy Consumption'!N1302 -> 0 | AI70: ='Energy Consumption'!N1383 -> 0 | AJ70: ='Energy Consumption'!N1384 -> 0 | AK70: ='Energy Consumption'!N1465 -> 0 | AL70: ='Energy Consumption'!N1466 -> 0 | AM70: ='Energy Consumption'!N1547 -> 0 | AN70: ='Energy Consumption'!N1548 -> 0 | AO70: ='Energy Consumption'!N1629 -> 0 | AP70: ='Energy Consumption'!N1630 -> 0 | AR70: ='Relevant Variables'!N51 -> 0 | AS70: ='Relevant Variables'!N81 -> 0 | AT70: ='Relevant Variables'!N111 -> 0 | AU70: ='Relevant Variables'!N141 -> 0 | AV70: ='Relevant Variables'!N171 -> 0 | AW70: ='Relevant Variables'!N201 -> 0 | AX70: ='Relevant Variables'!N231 -> 0 | AY70: ='Relevant Variables'!N261 -> 0 | AZ70: ='Relevant Variables'!N291 -> 0 | BA70: ='Relevant Variables'!N321 -> 0 | BB70: ='Relevant Variables'!N351 -> 0 | BC70: ='Relevant Variables'!N381 -> 0 | BD70: ='Relevant Variables'!N411 -> 0 | BE70: ='Relevant Variables'!N441 -> 0 | BF70: ='Relevant Variables'!N471 -> 0 | BG70: ='Relevant Variables'!N501 -> 0 | BH70: ='Relevant Variables'!N531 -> 0 | BI70: ='Relevant Variables'!N561 -> 0 | BJ70: ='Relevant Variables'!N591 -> 0 | BK70: ='Relevant Variables'!N621 -> 0
A71: 2009-12-01 | C71: ='Energy Consumption'!O71 -> 0 | D71: ='Energy Consumption'!O72 -> 0 | E71: ='Energy Consumption'!O153 -> 0 | F71: ='Energy Consumption'!O154 -> 0 | G71: ='Energy Consumption'!O235 -> 0 | H71: ='Energy Consumption'!O236 -> 0 | I71: ='Energy Consumption'!O317 -> 0 | J71: ='Energy Consumption'!O318 -> 0 | K71: ='Energy Consumption'!O399 -> 0 | L71: ='Energy Consumption'!O400 -> 0 | M71: ='Energy Consumption'!O481 -> 0 | N71: ='Energy Consumption'!O482 -> 0 | O71: ='Energy Consumption'!O563 -> 0 | P71: ='Energy Consumption'!O564 -> 0 | Q71: ='Energy Consumption'!O645 -> 0 | R71: ='Energy Consumption'!O646 -> 0 | S71: ='Energy Consumption'!O727 -> 0 | T71: ='Energy Consumption'!O728 -> 0 | U71: ='Energy Consumption'!O809 -> 0 | V71: ='Energy Consumption'!O810 -> 0 | W71: ='Energy Consumption'!O891 -> 0 | X71: ='Energy Consumption'!O892 -> 0 | Y71: ='Energy Consumption'!O973 -> 0 | Z71: ='Energy Consumption'!O974 -> 0 | AA71: ='Energy Consumption'!O1055 -> 0 | AB71: ='Energy Consumption'!O1056 -> 0 | AC71: ='Energy Consumption'!O1137 -> 0 | AD71: ='Energy Consumption'!O1138 -> 0 | AE71: ='Energy Consumption'!O1219 -> 0 | AF71: ='Energy Consumption'!O1220 -> 0 | AG71: ='Energy Consumption'!O1301 -> 0 | AH71: ='Energy Consumption'!O1302 -> 0 | AI71: ='Energy Consumption'!O1383 -> 0 | AJ71: ='Energy Consumption'!O1384 -> 0 | AK71: ='Energy Consumption'!O1465 -> 0 | AL71: ='Energy Consumption'!O1466 -> 0 | AM71: ='Energy Consumption'!O1547 -> 0 | AN71: ='Energy Consumption'!O1548 -> 0 | AO71: ='Energy Consumption'!O1629 -> 0 | AP71: ='Energy Consumption'!O1630 -> 0 | AR71: ='Relevant Variables'!O51 -> 0 | AS71: ='Relevant Variables'!O81 -> 0 | AT71: ='Relevant Variables'!O111 -> 0 | AU71: ='Relevant Variables'!O141 -> 0 | AV71: ='Relevant Variables'!O171 -> 0 | AW71: ='Relevant Variables'!O201 -> 0 | AX71: ='Relevant Variables'!O231 -> 0 | AY71: ='Relevant Variables'!O261 -> 0 | AZ71: ='Relevant Variables'!O291 -> 0 | BA71: ='Relevant Variables'!O321 -> 0 | BB71: ='Relevant Variables'!O351 -> 0 | BC71: ='Relevant Variables'!O381 -> 0 | BD71: ='Relevant Variables'!O411 -> 0 | BE71: ='Relevant Variables'!O441 -> 0 | BF71: ='Relevant Variables'!O471 -> 0 | BG71: ='Relevant Variables'!O501 -> 0 | BH71: ='Relevant Variables'!O531 -> 0 | BI71: ='Relevant Variables'!O561 -> 0 | BJ71: ='Relevant Variables'!O591 -> 0 | BK71: ='Relevant Variables'!O621 -> 0
A72: 2010-01-01 | C72: ='Energy Consumption'!D69 -> 0 | D72: ='Energy Consumption'!D70 -> 0 | E72: ='Energy Consumption'!D151 -> 0 | F72: ='Energy Consumption'!D152 -> 0 | G72: ='Energy Consumption'!D233 -> 0 | H72: ='Energy Consumption'!D234 -> 0 | I72: ='Energy Consumption'!D315 -> 0 | J72: ='Energy Consumption'!D316 -> 0 | K72: ='Energy Consumption'!D397 -> 0 | L72: ='Energy Consumption'!D398 -> 0 | M72: ='Energy Consumption'!D479 -> 0 | N72: ='Energy Consumption'!D480 -> 0 | O72: ='Energy Consumption'!D561 -> 0 | P72: ='Energy Consumption'!D562 -> 0 | Q72: ='Energy Consumption'!D643 -> 0 | R72: ='Energy Consumption'!D644 -> 0 | S72: ='Energy Consumption'!D725 -> 0 | T72: ='Energy Consumption'!D726 -> 0 | U72: ='Energy Consumption'!D807 -> 0 | V72: ='Energy Consumption'!D808 -> 0 | W72: ='Energy Consumption'!D889 -> 0 | X72: ='Energy Consumption'!D890 -> 0 | Y72: ='Energy Consumption'!D971 -> 0 | Z72: ='Energy Consumption'!D972 -> 0 | AA72: ='Energy Consumption'!D1053 -> 0 | AB72: ='Energy Consumption'!D1054 -> 0 | AC72: ='Energy Consumption'!D1135 -> 0 | AD72: ='Energy Consumption'!D1136 -> 0 | AE72: ='Energy Consumption'!D1217 -> 0 | AF72: ='Energy Consumption'!D1218 -> 0 | AG72: ='Energy Consumption'!D1299 -> 0 | AH72: ='Energy Consumption'!D1300 -> 0 | AI72: ='Energy Consumption'!D1381 -> 0 | AJ72: ='Energy Consumption'!D1382 -> 0 | AK72: ='Energy Consumption'!D1463 -> 0 | AL72: ='Energy Consumption'!D1464 -> 0 | AM72: ='Energy Consumption'!D1545 -> 0 | AN72: ='Energy Consumption'!D1546 -> 0 | AO72: ='Energy Consumption'!D1627 -> 0 | AP72: ='Energy Consumption'!D1628 -> 0 | AR72: ='Relevant Variables'!D50 -> 0 | AS72: ='Relevant Variables'!D80 -> 0 | AT72: ='Relevant Variables'!D110 -> 0 | AU72: ='Relevant Variables'!D140 -> 0 | AV72: ='Relevant Variables'!D170 -> 0 | AW72: ='Relevant Variables'!D200 -> 0 | AX72: ='Relevant Variables'!D230 -> 0 | AY72: ='Relevant Variables'!D260 -> 0 | AZ72: ='Relevant Variables'!D290 -> 0 | BA72: ='Relevant Variables'!D320 -> 0 | BB72: ='Relevant Variables'!D350 -> 0 | BC72: ='Relevant Variables'!D380 -> 0 | BD72: ='Relevant Variables'!D410 -> 0 | BE72: ='Relevant Variables'!D440 -> 0 | BF72: ='Relevant Variables'!D470 -> 0 | BG72: ='Relevant Variables'!D500 -> 0 | BH72: ='Relevant Variables'!D530 -> 0 | BI72: ='Relevant Variables'!D560 -> 0 | BJ72: ='Relevant Variables'!D590 -> 0 | BK72: ='Relevant Variables'!D620 -> 0
A73: 2010-02-01 | C73: ='Energy Consumption'!E69 -> 0 | D73: ='Energy Consumption'!E70 -> 0 | E73: ='Energy Consumption'!E151 -> 0 | F73: ='Energy Consumption'!E152 -> 0 | G73: ='Energy Consumption'!E233 -> 0 | H73: ='Energy Consumption'!E234 -> 0 | I73: ='Energy Consumption'!E315 -> 0 | J73: ='Energy Consumption'!E316 -> 0 | K73: ='Energy Consumption'!E397 -> 0 | L73: ='Energy Consumption'!E398 -> 0 | M73: ='Energy Consumption'!E479 -> 0 | N73: ='Energy Consumption'!E480 -> 0 | O73: ='Energy Consumption'!E561 -> 0 | P73: ='Energy Consumption'!E562 -> 0 | Q73: ='Energy Consumption'!E643 -> 0 | R73: ='Energy Consumption'!E644 -> 0 | S73: ='Energy Consumption'!E725 -> 0 | T73: ='Energy Consumption'!E726 -> 0 | U73: ='Energy Consumption'!E807 -> 0 | V73: ='Energy Consumption'!E808 -> 0 | W73: ='Energy Consumption'!E889 -> 0 | X73: ='Energy Consumption'!E890 -> 0 | Y73: ='Energy Consumption'!E971 -> 0 | Z73: ='Energy Consumption'!E972 -> 0 | AA73: ='Energy Consumption'!E1053 -> 0 | AB73: ='Energy Consumption'!E1054 -> 0 | AC73: ='Energy Consumption'!E1135 -> 0 | AD73: ='Energy Consumption'!E1136 -> 0 | AE73: ='Energy Consumption'!E1217 -> 0 | AF73: ='Energy Consumption'!E1218 -> 0 | AG73: ='Energy Consumption'!E1299 -> 0 | AH73: ='Energy Consumption'!E1300 -> 0 | AI73: ='Energy Consumption'!E1381 -> 0 | AJ73: ='Energy Consumption'!E1382 -> 0 | AK73: ='Energy Consumption'!E1463 -> 0 | AL73: ='Energy Consumption'!E1464 -> 0 | AM73: ='Energy Consumption'!E1545 -> 0 | AN73: ='Energy Consumption'!E1546 -> 0 | AO73: ='Energy Consumption'!E1627 -> 0 | AP73: ='Energy Consumption'!E1628 -> 0 | AR73: ='Relevant Variables'!E50 -> 0 | AS73: ='Relevant Variables'!E80 -> 0 | AT73: ='Relevant Variables'!E110 -> 0 | AU73: ='Relevant Variables'!E140 -> 0 | AV73: ='Relevant Variables'!E170 -> 0 | AW73: ='Relevant Variables'!E200 -> 0 | AX73: ='Relevant Variables'!E230 -> 0 | AY73: ='Relevant Variables'!E260 -> 0 | AZ73: ='Relevant Variables'!E290 -> 0 | BA73: ='Relevant Variables'!E320 -> 0 | BB73: ='Relevant Variables'!E350 -> 0 | BC73: ='Relevant Variables'!E380 -> 0 | BD73: ='Relevant Variables'!E410 -> 0 | BE73: ='Relevant Variables'!E440 -> 0 | BF73: ='Relevant Variables'!E470 -> 0 | BG73: ='Relevant Variables'!E500 -> 0 | BH73: ='Relevant Variables'!E530 -> 0 | BI73: ='Relevant Variables'!E560 -> 0 | BJ73: ='Relevant Variables'!E590 -> 0 | BK73: ='Relevant Variables'!E620 -> 0
A74: 2010-03-01 | C74: ='Energy Consumption'!F69 -> 0 | D74: ='Energy Consumption'!F70 -> 0 | E74: ='Energy Consumption'!F151 -> 0 | F74: ='Energy Consumption'!F152 -> 0 | G74: ='Energy Consumption'!F233 -> 0 | H74: ='Energy Consumption'!F234 -> 0 | I74: ='Energy Consumption'!F315 -> 0 | J74: ='Energy Consumption'!F316 -> 0 | K74: ='Energy Consumption'!F397 -> 0 | L74: ='Energy Consumption'!F398 -> 0 | M74: ='Energy Consumption'!F479 -> 0 | N74: ='Energy Consumption'!F480 -> 0 | O74: ='Energy Consumption'!F561 -> 0 | P74: ='Energy Consumption'!F562 -> 0 | Q74: ='Energy Consumption'!F643 -> 0 | R74: ='Energy Consumption'!F644 -> 0 | S74: ='Energy Consumption'!F725 -> 0 | T74: ='Energy Consumption'!F726 -> 0 | U74: ='Energy Consumption'!F807 -> 0 | V74: ='Energy Consumption'!F808 -> 0 | W74: ='Energy Consumption'!F889 -> 0 | X74: ='Energy Consumption'!F890 -> 0 | Y74: ='Energy Consumption'!F971 -> 0 | Z74: ='Energy Consumption'!F972 -> 0 | AA74: ='Energy Consumption'!F1053 -> 0 | AB74: ='Energy Consumption'!F1054 -> 0 | AC74: ='Energy Consumption'!F1135 -> 0 | AD74: ='Energy Consumption'!F1136 -> 0 | AE74: ='Energy Consumption'!F1217 -> 0 | AF74: ='Energy Consumption'!F1218 -> 0 | AG74: ='Energy Consumption'!F1299 -> 0 | AH74: ='Energy Consumption'!F1300 -> 0 | AI74: ='Energy Consumption'!F1381 -> 0 | AJ74: ='Energy Consumption'!F1382 -> 0 | AK74: ='Energy Consumption'!F1463 -> 0 | AL74: ='Energy Consumption'!F1464 -> 0 | AM74: ='Energy Consumption'!F1545 -> 0 | AN74: ='Energy Consumption'!F1546 -> 0 | AO74: ='Energy Consumption'!F1627 -> 0 | AP74: ='Energy Consumption'!F1628 -> 0 | AR74: ='Relevant Variables'!F50 -> 0 | AS74: ='Relevant Variables'!F80 -> 0 | AT74: ='Relevant Variables'!F110 -> 0 | AU74: ='Relevant Variables'!F140 -> 0 | AV74: ='Relevant Variables'!F170 -> 0 | AW74: ='Relevant Variables'!F200 -> 0 | AX74: ='Relevant Variables'!F230 -> 0 | AY74: ='Relevant Variables'!F260 -> 0 | AZ74: ='Relevant Variables'!F290 -> 0 | BA74: ='Relevant Variables'!F320 -> 0 | BB74: ='Relevant Variables'!F350 -> 0 | BC74: ='Relevant Variables'!F380 -> 0 | BD74: ='Relevant Variables'!F410 -> 0 | BE74: ='Relevant Variables'!F440 -> 0 | BF74: ='Relevant Variables'!F470 -> 0 | BG74: ='Relevant Variables'!F500 -> 0 | BH74: ='Relevant Variables'!F530 -> 0 | BI74: ='Relevant Variables'!F560 -> 0 | BJ74: ='Relevant Variables'!F590 -> 0 | BK74: ='Relevant Variables'!F620 -> 0
A75: 2010-04-01 | C75: ='Energy Consumption'!G69 -> 0 | D75: ='Energy Consumption'!G70 -> 0 | E75: ='Energy Consumption'!G151 -> 0 | F75: ='Energy Consumption'!G152 -> 0 | G75: ='Energy Consumption'!G233 -> 0 | H75: ='Energy Consumption'!G234 -> 0 | I75: ='Energy Consumption'!G315 -> 0 | J75: ='Energy Consumption'!G316 -> 0 | K75: ='Energy Consumption'!G397 -> 0 | L75: ='Energy Consumption'!G398 -> 0 | M75: ='Energy Consumption'!G479 -> 0 | N75: ='Energy Consumption'!G480 -> 0 | O75: ='Energy Consumption'!G561 -> 0 | P75: ='Energy Consumption'!G562 -> 0 | Q75: ='Energy Consumption'!G643 -> 0 | R75: ='Energy Consumption'!G644 -> 0 | S75: ='Energy Consumption'!G725 -> 0 | T75: ='Energy Consumption'!G726 -> 0 | U75: ='Energy Consumption'!G807 -> 0 | V75: ='Energy Consumption'!G808 -> 0 | W75: ='Energy Consumption'!G889 -> 0 | X75: ='Energy Consumption'!G890 -> 0 | Y75: ='Energy Consumption'!G971 -> 0 | Z75: ='Energy Consumption'!G972 -> 0 | AA75: ='Energy Consumption'!G1053 -> 0 | AB75: ='Energy Consumption'!G1054 -> 0 | AC75: ='Energy Consumption'!G1135 -> 0 | AD75: ='Energy Consumption'!G1136 -> 0 | AE75: ='Energy Consumption'!G1217 -> 0 | AF75: ='Energy Consumption'!G1218 -> 0 | AG75: ='Energy Consumption'!G1299 -> 0 | AH75: ='Energy Consumption'!G1300 -> 0 | AI75: ='Energy Consumption'!G1381 -> 0 | AJ75: ='Energy Consumption'!G1382 -> 0 | AK75: ='Energy Consumption'!G1463 -> 0 | AL75: ='Energy Consumption'!G1464 -> 0 | AM75: ='Energy Consumption'!G1545 -> 0 | AN75: ='Energy Consumption'!G1546 -> 0 | AO75: ='Energy Consumption'!G1627 -> 0 | AP75: ='Energy Consumption'!G1628 -> 0 | AR75: ='Relevant Variables'!G50 -> 0 | AS75: ='Relevant Variables'!G80 -> 0 | AT75: ='Relevant Variables'!G110 -> 0 | AU75: ='Relevant Variables'!G140 -> 0 | AV75: ='Relevant Variables'!G170 -> 0 | AW75: ='Relevant Variables'!G200 -> 0 | AX75: ='Relevant Variables'!G230 -> 0 | AY75: ='Relevant Variables'!G260 -> 0 | AZ75: ='Relevant Variables'!G290 -> 0 | BA75: ='Relevant Variables'!G320 -> 0 | BB75: ='Relevant Variables'!G350 -> 0 | BC75: ='Relevant Variables'!G380 -> 0 | BD75: ='Relevant Variables'!G410 -> 0 | BE75: ='Relevant Variables'!G440 -> 0 | BF75: ='Relevant Variables'!G470 -> 0 | BG75: ='Relevant Variables'!G500 -> 0 | BH75: ='Relevant Variables'!G530 -> 0 | BI75: ='Relevant Variables'!G560 -> 0 | BJ75: ='Relevant Variables'!G590 -> 0 | BK75: ='Relevant Variables'!G620 -> 0
A76: 2010-05-01 | C76: ='Energy Consumption'!H69 -> 0 | D76: ='Energy Consumption'!H70 -> 0 | E76: ='Energy Consumption'!H151 -> 0 | F76: ='Energy Consumption'!H152 -> 0 | G76: ='Energy Consumption'!H233 -> 0 | H76: ='Energy Consumption'!H234 -> 0 | I76: ='Energy Consumption'!H315 -> 0 | J76: ='Energy Consumption'!H316 -> 0 | K76: ='Energy Consumption'!H397 -> 0 | L76: ='Energy Consumption'!H398 -> 0 | M76: ='Energy Consumption'!H479 -> 0 | N76: ='Energy Consumption'!H480 -> 0 | O76: ='Energy Consumption'!H561 -> 0 | P76: ='Energy Consumption'!H562 -> 0 | Q76: ='Energy Consumption'!H643 -> 0 | R76: ='Energy Consumption'!H644 -> 0 | S76: ='Energy Consumption'!H725 -> 0 | T76: ='Energy Consumption'!H726 -> 0 | U76: ='Energy Consumption'!H807 -> 0 | V76: ='Energy Consumption'!H808 -> 0 | W76: ='Energy Consumption'!H889 -> 0 | X76: ='Energy Consumption'!H890 -> 0 | Y76: ='Energy Consumption'!H971 -> 0 | Z76: ='Energy Consumption'!H972 -> 0 | AA76: ='Energy Consumption'!H1053 -> 0 | AB76: ='Energy Consumption'!H1054 -> 0 | AC76: ='Energy Consumption'!H1135 -> 0 | AD76: ='Energy Consumption'!H1136 -> 0 | AE76: ='Energy Consumption'!H1217 -> 0 | AF76: ='Energy Consumption'!H1218 -> 0 | AG76: ='Energy Consumption'!H1299 -> 0 | AH76: ='Energy Consumption'!H1300 -> 0 | AI76: ='Energy Consumption'!H1381 -> 0 | AJ76: ='Energy Consumption'!H1382 -> 0 | AK76: ='Energy Consumption'!H1463 -> 0 | AL76: ='Energy Consumption'!H1464 -> 0 | AM76: ='Energy Consumption'!H1545 -> 0 | AN76: ='Energy Consumption'!H1546 -> 0 | AO76: ='Energy Consumption'!H1627 -> 0 | AP76: ='Energy Consumption'!H1628 -> 0 | AR76: ='Relevant Variables'!H50 -> 0 | AS76: ='Relevant Variables'!H80 -> 0 | AT76: ='Relevant Variables'!H110 -> 0 | AU76: ='Relevant Variables'!H140 -> 0 | AV76: ='Relevant Variables'!H170 -> 0 | AW76: ='Relevant Variables'!H200 -> 0 | AX76: ='Relevant Variables'!H230 -> 0 | AY76: ='Relevant Variables'!H260 -> 0 | AZ76: ='Relevant Variables'!H290 -> 0 | BA76: ='Relevant Variables'!H320 -> 0 | BB76: ='Relevant Variables'!H350 -> 0 | BC76: ='Relevant Variables'!H380 -> 0 | BD76: ='Relevant Variables'!H410 -> 0 | BE76: ='Relevant Variables'!H440 -> 0 | BF76: ='Relevant Variables'!H470 -> 0 | BG76: ='Relevant Variables'!H500 -> 0 | BH76: ='Relevant Variables'!H530 -> 0 | BI76: ='Relevant Variables'!H560 -> 0 | BJ76: ='Relevant Variables'!H590 -> 0 | BK76: ='Relevant Variables'!H620 -> 0
A77: 2010-06-01 | C77: ='Energy Consumption'!I69 -> 0 | D77: ='Energy Consumption'!I70 -> 0 | E77: ='Energy Consumption'!I151 -> 0 | F77: ='Energy Consumption'!I152 -> 0 | G77: ='Energy Consumption'!I233 -> 0 | H77: ='Energy Consumption'!I234 -> 0 | I77: ='Energy Consumption'!I315 -> 0 | J77: ='Energy Consumption'!I316 -> 0 | K77: ='Energy Consumption'!I397 -> 0 | L77: ='Energy Consumption'!I398 -> 0 | M77: ='Energy Consumption'!I479 -> 0 | N77: ='Energy Consumption'!I480 -> 0 | O77: ='Energy Consumption'!I561 -> 0 | P77: ='Energy Consumption'!I562 -> 0 | Q77: ='Energy Consumption'!I643 -> 0 | R77: ='Energy Consumption'!I644 -> 0 | S77: ='Energy Consumption'!I725 -> 0 | T77: ='Energy Consumption'!I726 -> 0 | U77: ='Energy Consumption'!I807 -> 0 | V77: ='Energy Consumption'!I808 -> 0 | W77: ='Energy Consumption'!I889 -> 0 | X77: ='Energy Consumption'!I890 -> 0 | Y77: ='Energy Consumption'!I971 -> 0 | Z77: ='Energy Consumption'!I972 -> 0 | AA77: ='Energy Consumption'!I1053 -> 0 | AB77: ='Energy Consumption'!I1054 -> 0 | AC77: ='Energy Consumption'!I1135 -> 0 | AD77: ='Energy Consumption'!I1136 -> 0 | AE77: ='Energy Consumption'!I1217 -> 0 | AF77: ='Energy Consumption'!I1218 -> 0 | AG77: ='Energy Consumption'!I1299 -> 0 | AH77: ='Energy Consumption'!I1300 -> 0 | AI77: ='Energy Consumption'!I1381 -> 0 | AJ77: ='Energy Consumption'!I1382 -> 0 | AK77: ='Energy Consumption'!I1463 -> 0 | AL77: ='Energy Consumption'!I1464 -> 0 | AM77: ='Energy Consumption'!I1545 -> 0 | AN77: ='Energy Consumption'!I1546 -> 0 | AO77: ='Energy Consumption'!I1627 -> 0 | AP77: ='Energy Consumption'!I1628 -> 0 | AR77: ='Relevant Variables'!I50 -> 0 | AS77: ='Relevant Variables'!I80 -> 0 | AT77: ='Relevant Variables'!I110 -> 0 | AU77: ='Relevant Variables'!I140 -> 0 | AV77: ='Relevant Variables'!I170 -> 0 | AW77: ='Relevant Variables'!I200 -> 0 | AX77: ='Relevant Variables'!I230 -> 0 | AY77: ='Relevant Variables'!I260 -> 0 | AZ77: ='Relevant Variables'!I290 -> 0 | BA77: ='Relevant Variables'!I320 -> 0 | BB77: ='Relevant Variables'!I350 -> 0 | BC77: ='Relevant Variables'!I380 -> 0 | BD77: ='Relevant Variables'!I410 -> 0 | BE77: ='Relevant Variables'!I440 -> 0 | BF77: ='Relevant Variables'!I470 -> 0 | BG77: ='Relevant Variables'!I500 -> 0 | BH77: ='Relevant Variables'!I530 -> 0 | BI77: ='Relevant Variables'!I560 -> 0 | BJ77: ='Relevant Variables'!I590 -> 0 | BK77: ='Relevant Variables'!I620 -> 0
A78: =DATE(YEAR(A77),MONTH(A77)+1,1) -> 2010-07-01 | C78: ='Energy Consumption'!J69 -> 0 | D78: ='Energy Consumption'!J70 -> 0 | E78: ='Energy Consumption'!J151 -> 0 | F78: ='Energy Consumption'!J152 -> 0 | G78: ='Energy Consumption'!J233 -> 0 | H78: ='Energy Consumption'!J234 -> 0 | I78: ='Energy Consumption'!J315 -> 0 | J78: ='Energy Consumption'!J316 -> 0 | K78: ='Energy Consumption'!J397 -> 0 | L78: ='Energy Consumption'!J398 -> 0 | M78: ='Energy Consumption'!J479 -> 0 | N78: ='Energy Consumption'!J480 -> 0 | O78: ='Energy Consumption'!J561 -> 0 | P78: ='Energy Consumption'!J562 -> 0 | Q78: ='Energy Consumption'!J643 -> 0 | R78: ='Energy Consumption'!J644 -> 0 | S78: ='Energy Consumption'!J725 -> 0 | T78: ='Energy Consumption'!J726 -> 0 | U78: ='Energy Consumption'!J807 -> 0 | V78: ='Energy Consumption'!J808 -> 0 | W78: ='Energy Consumption'!J889 -> 0 | X78: ='Energy Consumption'!J890 -> 0 | Y78: ='Energy Consumption'!J971 -> 0 | Z78: ='Energy Consumption'!J972 -> 0 | AA78: ='Energy Consumption'!J1053 -> 0 | AB78: ='Energy Consumption'!J1054 -> 0 | AC78: ='Energy Consumption'!J1135 -> 0 | AD78: ='Energy Consumption'!J1136 -> 0 | AE78: ='Energy Consumption'!J1217 -> 0 | AF78: ='Energy Consumption'!J1218 -> 0 | AG78: ='Energy Consumption'!J1299 -> 0 | AH78: ='Energy Consumption'!J1300 -> 0 | AI78: ='Energy Consumption'!J1381 -> 0 | AJ78: ='Energy Consumption'!J1382 -> 0 | AK78: ='Energy Consumption'!J1463 -> 0 | AL78: ='Energy Consumption'!J1464 -> 0 | AM78: ='Energy Consumption'!J1545 -> 0 | AN78: ='Energy Consumption'!J1546 -> 0 | AO78: ='Energy Consumption'!J1627 -> 0 | AP78: ='Energy Consumption'!J1628 -> 0 | AR78: ='Relevant Variables'!J50 -> 0 | AS78: ='Relevant Variables'!J80 -> 0 | AT78: ='Relevant Variables'!J110 -> 0 | AU78: ='Relevant Variables'!J140 -> 0 | AV78: ='Relevant Variables'!J170 -> 0 | AW78: ='Relevant Variables'!J200 -> 0 | AX78: ='Relevant Variables'!J230 -> 0 | AY78: ='Relevant Variables'!J260 -> 0 | AZ78: ='Relevant Variables'!J290 -> 0 | BA78: ='Relevant Variables'!J320 -> 0 | BB78: ='Relevant Variables'!J350 -> 0 | BC78: ='Relevant Variables'!J380 -> 0 | BD78: ='Relevant Variables'!J410 -> 0 | BE78: ='Relevant Variables'!J440 -> 0 | BF78: ='Relevant Variables'!J470 -> 0 | BG78: ='Relevant Variables'!J500 -> 0 | BH78: ='Relevant Variables'!J530 -> 0 | BI78: ='Relevant Variables'!J560 -> 0 | BJ78: ='Relevant Variables'!J590 -> 0 | BK78: ='Relevant Variables'!J620 -> 0
A79: 2010-08-01 | C79: ='Energy Consumption'!K69 -> 0 | D79: ='Energy Consumption'!K70 -> 0 | E79: ='Energy Consumption'!K151 -> 0 | F79: ='Energy Consumption'!K152 -> 0 | G79: ='Energy Consumption'!K233 -> 0 | H79: ='Energy Consumption'!K234 -> 0 | I79: ='Energy Consumption'!K315 -> 0 | J79: ='Energy Consumption'!K316 -> 0 | K79: ='Energy Consumption'!K397 -> 0 | L79: ='Energy Consumption'!K398 -> 0 | M79: ='Energy Consumption'!K479 -> 0 | N79: ='Energy Consumption'!K480 -> 0 | O79: ='Energy Consumption'!K561 -> 0 | P79: ='Energy Consumption'!K562 -> 0 | Q79: ='Energy Consumption'!K643 -> 0 | R79: ='Energy Consumption'!K644 -> 0 | S79: ='Energy Consumption'!K725 -> 0 | T79: ='Energy Consumption'!K726 -> 0 | U79: ='Energy Consumption'!K807 -> 0 | V79: ='Energy Consumption'!K808 -> 0 | W79: ='Energy Consumption'!K889 -> 0 | X79: ='Energy Consumption'!K890 -> 0 | Y79: ='Energy Consumption'!K971 -> 0 | Z79: ='Energy Consumption'!K972 -> 0 | AA79: ='Energy Consumption'!K1053 -> 0 | AB79: ='Energy Consumption'!K1054 -> 0 | AC79: ='Energy Consumption'!K1135 -> 0 | AD79: ='Energy Consumption'!K1136 -> 0 | AE79: ='Energy Consumption'!K1217 -> 0 | AF79: ='Energy Consumption'!K1218 -> 0 | AG79: ='Energy Consumption'!K1299 -> 0 | AH79: ='Energy Consumption'!K1300 -> 0 | AI79: ='Energy Consumption'!K1381 -> 0 | AJ79: ='Energy Consumption'!K1382 -> 0 | AK79: ='Energy Consumption'!K1463 -> 0 | AL79: ='Energy Consumption'!K1464 -> 0 | AM79: ='Energy Consumption'!K1545 -> 0 | AN79: ='Energy Consumption'!K1546 -> 0 | AO79: ='Energy Consumption'!K1627 -> 0 | AP79: ='Energy Consumption'!K1628 -> 0 | AR79: ='Relevant Variables'!K50 -> 0 | AS79: ='Relevant Variables'!K80 -> 0 | AT79: ='Relevant Variables'!K110 -> 0 | AU79: ='Relevant Variables'!K140 -> 0 | AV79: ='Relevant Variables'!K170 -> 0 | AW79: ='Relevant Variables'!K200 -> 0 | AX79: ='Relevant Variables'!K230 -> 0 | AY79: ='Relevant Variables'!K260 -> 0 | AZ79: ='Relevant Variables'!K290 -> 0 | BA79: ='Relevant Variables'!K320 -> 0 | BB79: ='Relevant Variables'!K350 -> 0 | BC79: ='Relevant Variables'!K380 -> 0 | BD79: ='Relevant Variables'!K410 -> 0 | BE79: ='Relevant Variables'!K440 -> 0 | BF79: ='Relevant Variables'!K470 -> 0 | BG79: ='Relevant Variables'!K500 -> 0 | BH79: ='Relevant Variables'!K530 -> 0 | BI79: ='Relevant Variables'!K560 -> 0 | BJ79: ='Relevant Variables'!K590 -> 0 | BK79: ='Relevant Variables'!K620 -> 0
A80: 2010-09-01 | C80: ='Energy Consumption'!L69 -> 0 | D80: ='Energy Consumption'!L70 -> 0 | E80: ='Energy Consumption'!L151 -> 0 | F80: ='Energy Consumption'!L152 -> 0 | G80: ='Energy Consumption'!L233 -> 0 | H80: ='Energy Consumption'!L234 -> 0 | I80: ='Energy Consumption'!L315 -> 0 | J80: ='Energy Consumption'!L316 -> 0 | K80: ='Energy Consumption'!L397 -> 0 | L80: ='Energy Consumption'!L398 -> 0 | M80: ='Energy Consumption'!L479 -> 0 | N80: ='Energy Consumption'!L480 -> 0 | O80: ='Energy Consumption'!L561 -> 0 | P80: ='Energy Consumption'!L562 -> 0 | Q80: ='Energy Consumption'!L643 -> 0 | R80: ='Energy Consumption'!L644 -> 0 | S80: ='Energy Consumption'!L725 -> 0 | T80: ='Energy Consumption'!L726 -> 0 | U80: ='Energy Consumption'!L807 -> 0 | V80: ='Energy Consumption'!L808 -> 0 | W80: ='Energy Consumption'!L889 -> 0 | X80: ='Energy Consumption'!L890 -> 0 | Y80: ='Energy Consumption'!L971 -> 0 | Z80: ='Energy Consumption'!L972 -> 0 | AA80: ='Energy Consumption'!L1053 -> 0 | AB80: ='Energy Consumption'!L1054 -> 0 | AC80: ='Energy Consumption'!L1135 -> 0 | AD80: ='Energy Consumption'!L1136 -> 0 | AE80: ='Energy Consumption'!L1217 -> 0 | AF80: ='Energy Consumption'!L1218 -> 0 | AG80: ='Energy Consumption'!L1299 -> 0 | AH80: ='Energy Consumption'!L1300 -> 0 | AI80: ='Energy Consumption'!L1381 -> 0 | AJ80: ='Energy Consumption'!L1382 -> 0 | AK80: ='Energy Consumption'!L1463 -> 0 | AL80: ='Energy Consumption'!L1464 -> 0 | AM80: ='Energy Consumption'!L1545 -> 0 | AN80: ='Energy Consumption'!L1546 -> 0 | AO80: ='Energy Consumption'!L1627 -> 0 | AP80: ='Energy Consumption'!L1628 -> 0 | AR80: ='Relevant Variables'!L50 -> 0 | AS80: ='Relevant Variables'!L80 -> 0 | AT80: ='Relevant Variables'!L110 -> 0 | AU80: ='Relevant Variables'!L140 -> 0 | AV80: ='Relevant Variables'!L170 -> 0 | AW80: ='Relevant Variables'!L200 -> 0 | AX80: ='Relevant Variables'!L230 -> 0 | AY80: ='Relevant Variables'!L260 -> 0 | AZ80: ='Relevant Variables'!L290 -> 0 | BA80: ='Relevant Variables'!L320 -> 0 | BB80: ='Relevant Variables'!L350 -> 0 | BC80: ='Relevant Variables'!L380 -> 0 | BD80: ='Relevant Variables'!L410 -> 0 | BE80: ='Relevant Variables'!L440 -> 0 | BF80: ='Relevant Variables'!L470 -> 0 | BG80: ='Relevant Variables'!L500 -> 0 | BH80: ='Relevant Variables'!L530 -> 0 | BI80: ='Relevant Variables'!L560 -> 0 | BJ80: ='Relevant Variables'!L590 -> 0 | BK80: ='Relevant Variables'!L620 -> 0
A81: 2010-10-01 | C81: ='Energy Consumption'!M69 -> 0 | D81: ='Energy Consumption'!M70 -> 0 | E81: ='Energy Consumption'!M151 -> 0 | F81: ='Energy Consumption'!M152 -> 0 | G81: ='Energy Consumption'!M233 -> 0 | H81: ='Energy Consumption'!M234 -> 0 | I81: ='Energy Consumption'!M315 -> 0 | J81: ='Energy Consumption'!M316 -> 0 | K81: ='Energy Consumption'!M397 -> 0 | L81: ='Energy Consumption'!M398 -> 0 | M81: ='Energy Consumption'!M479 -> 0 | N81: ='Energy Consumption'!M480 -> 0 | O81: ='Energy Consumption'!M561 -> 0 | P81: ='Energy Consumption'!M562 -> 0 | Q81: ='Energy Consumption'!M643 -> 0 | R81: ='Energy Consumption'!M644 -> 0 | S81: ='Energy Consumption'!M725 -> 0 | T81: ='Energy Consumption'!M726 -> 0 | U81: ='Energy Consumption'!M807 -> 0 | V81: ='Energy Consumption'!M808 -> 0 | W81: ='Energy Consumption'!M889 -> 0 | X81: ='Energy Consumption'!M890 -> 0 | Y81: ='Energy Consumption'!M971 -> 0 | Z81: ='Energy Consumption'!M972 -> 0 | AA81: ='Energy Consumption'!M1053 -> 0 | AB81: ='Energy Consumption'!M1054 -> 0 | AC81: ='Energy Consumption'!M1135 -> 0 | AD81: ='Energy Consumption'!M1136 -> 0 | AE81: ='Energy Consumption'!M1217 -> 0 | AF81: ='Energy Consumption'!M1218 -> 0 | AG81: ='Energy Consumption'!M1299 -> 0 | AH81: ='Energy Consumption'!M1300 -> 0 | AI81: ='Energy Consumption'!M1381 -> 0 | AJ81: ='Energy Consumption'!M1382 -> 0 | AK81: ='Energy Consumption'!M1463 -> 0 | AL81: ='Energy Consumption'!M1464 -> 0 | AM81: ='Energy Consumption'!M1545 -> 0 | AN81: ='Energy Consumption'!M1546 -> 0 | AO81: ='Energy Consumption'!M1627 -> 0 | AP81: ='Energy Consumption'!M1628 -> 0 | AR81: ='Relevant Variables'!M50 -> 0 | AS81: ='Relevant Variables'!M80 -> 0 | AT81: ='Relevant Variables'!M110 -> 0 | AU81: ='Relevant Variables'!M140 -> 0 | AV81: ='Relevant Variables'!M170 -> 0 | AW81: ='Relevant Variables'!M200 -> 0 | AX81: ='Relevant Variables'!M230 -> 0 | AY81: ='Relevant Variables'!M260 -> 0 | AZ81: ='Relevant Variables'!M290 -> 0 | BA81: ='Relevant Variables'!M320 -> 0 | BB81: ='Relevant Variables'!M350 -> 0 | BC81: ='Relevant Variables'!M380 -> 0 | BD81: ='Relevant Variables'!M410 -> 0 | BE81: ='Relevant Variables'!M440 -> 0 | BF81: ='Relevant Variables'!M470 -> 0 | BG81: ='Relevant Variables'!M500 -> 0 | BH81: ='Relevant Variables'!M530 -> 0 | BI81: ='Relevant Variables'!M560 -> 0 | BJ81: ='Relevant Variables'!M590 -> 0 | BK81: ='Relevant Variables'!M620 -> 0
A82: 2010-11-01 | C82: ='Energy Consumption'!N69 -> 0 | D82: ='Energy Consumption'!N70 -> 0 | E82: ='Energy Consumption'!N151 -> 0 | F82: ='Energy Consumption'!N152 -> 0 | G82: ='Energy Consumption'!N233 -> 0 | H82: ='Energy Consumption'!N234 -> 0 | I82: ='Energy Consumption'!N315 -> 0 | J82: ='Energy Consumption'!N316 -> 0 | K82: ='Energy Consumption'!N397 -> 0 | L82: ='Energy Consumption'!N398 -> 0 | M82: ='Energy Consumption'!N479 -> 0 | N82: ='Energy Consumption'!N480 -> 0 | O82: ='Energy Consumption'!N561 -> 0 | P82: ='Energy Consumption'!N562 -> 0 | Q82: ='Energy Consumption'!N643 -> 0 | R82: ='Energy Consumption'!N644 -> 0 | S82: ='Energy Consumption'!N725 -> 0 | T82: ='Energy Consumption'!N726 -> 0 | U82: ='Energy Consumption'!N807 -> 0 | V82: ='Energy Consumption'!N808 -> 0 | W82: ='Energy Consumption'!N889 -> 0 | X82: ='Energy Consumption'!N890 -> 0 | Y82: ='Energy Consumption'!N971 -> 0 | Z82: ='Energy Consumption'!N972 -> 0 | AA82: ='Energy Consumption'!N1053 -> 0 | AB82: ='Energy Consumption'!N1054 -> 0 | AC82: ='Energy Consumption'!N1135 -> 0 | AD82: ='Energy Consumption'!N1136 -> 0 | AE82: ='Energy Consumption'!N1217 -> 0 | AF82: ='Energy Consumption'!N1218 -> 0 | AG82: ='Energy Consumption'!N1299 -> 0 | AH82: ='Energy Consumption'!N1300 -> 0 | AI82: ='Energy Consumption'!N1381 -> 0 | AJ82: ='Energy Consumption'!N1382 -> 0 | AK82: ='Energy Consumption'!N1463 -> 0 | AL82: ='Energy Consumption'!N1464 -> 0 | AM82: ='Energy Consumption'!N1545 -> 0 | AN82: ='Energy Consumption'!N1546 -> 0 | AO82: ='Energy Consumption'!N1627 -> 0 | AP82: ='Energy Consumption'!N1628 -> 0 | AR82: ='Relevant Variables'!N50 -> 0 | AS82: ='Relevant Variables'!N80 -> 0 | AT82: ='Relevant Variables'!N110 -> 0 | AU82: ='Relevant Variables'!N140 -> 0 | AV82: ='Relevant Variables'!N170 -> 0 | AW82: ='Relevant Variables'!N200 -> 0 | AX82: ='Relevant Variables'!N230 -> 0 | AY82: ='Relevant Variables'!N260 -> 0 | AZ82: ='Relevant Variables'!N290 -> 0 | BA82: ='Relevant Variables'!N320 -> 0 | BB82: ='Relevant Variables'!N350 -> 0 | BC82: ='Relevant Variables'!N380 -> 0 | BD82: ='Relevant Variables'!N410 -> 0 | BE82: ='Relevant Variables'!N440 -> 0 | BF82: ='Relevant Variables'!N470 -> 0 | BG82: ='Relevant Variables'!N500 -> 0 | BH82: ='Relevant Variables'!N530 -> 0 | BI82: ='Relevant Variables'!N560 -> 0 | BJ82: ='Relevant Variables'!N590 -> 0 | BK82: ='Relevant Variables'!N620 -> 0
A83: 2010-12-01 | C83: ='Energy Consumption'!O69 -> 0 | D83: ='Energy Consumption'!O70 -> 0 | E83: ='Energy Consumption'!O151 -> 0 | F83: ='Energy Consumption'!O152 -> 0 | G83: ='Energy Consumption'!O233 -> 0 | H83: ='Energy Consumption'!O234 -> 0 | I83: ='Energy Consumption'!O315 -> 0 | J83: ='Energy Consumption'!O316 -> 0 | K83: ='Energy Consumption'!O397 -> 0 | L83: ='Energy Consumption'!O398 -> 0 | M83: ='Energy Consumption'!O479 -> 0 | N83: ='Energy Consumption'!O480 -> 0 | O83: ='Energy Consumption'!O561 -> 0 | P83: ='Energy Consumption'!O562 -> 0 | Q83: ='Energy Consumption'!O643 -> 0 | R83: ='Energy Consumption'!O644 -> 0 | S83: ='Energy Consumption'!O725 -> 0 | T83: ='Energy Consumption'!O726 -> 0 | U83: ='Energy Consumption'!O807 -> 0 | V83: ='Energy Consumption'!O808 -> 0 | W83: ='Energy Consumption'!O889 -> 0 | X83: ='Energy Consumption'!O890 -> 0 | Y83: ='Energy Consumption'!O971 -> 0 | Z83: ='Energy Consumption'!O972 -> 0 | AA83: ='Energy Consumption'!O1053 -> 0 | AB83: ='Energy Consumption'!O1054 -> 0 | AC83: ='Energy Consumption'!O1135 -> 0 | AD83: ='Energy Consumption'!O1136 -> 0 | AE83: ='Energy Consumption'!O1217 -> 0 | AF83: ='Energy Consumption'!O1218 -> 0 | AG83: ='Energy Consumption'!O1299 -> 0 | AH83: ='Energy Consumption'!O1300 -> 0 | AI83: ='Energy Consumption'!O1381 -> 0 | AJ83: ='Energy Consumption'!O1382 -> 0 | AK83: ='Energy Consumption'!O1463 -> 0 | AL83: ='Energy Consumption'!O1464 -> 0 | AM83: ='Energy Consumption'!O1545 -> 0 | AN83: ='Energy Consumption'!O1546 -> 0 | AO83: ='Energy Consumption'!O1627 -> 0 | AP83: ='Energy Consumption'!O1628 -> 0 | AR83: ='Relevant Variables'!O50 -> 0 | AS83: ='Relevant Variables'!O80 -> 0 | AT83: ='Relevant Variables'!O110 -> 0 | AU83: ='Relevant Variables'!O140 -> 0 | AV83: ='Relevant Variables'!O170 -> 0 | AW83: ='Relevant Variables'!O200 -> 0 | AX83: ='Relevant Variables'!O230 -> 0 | AY83: ='Relevant Variables'!O260 -> 0 | AZ83: ='Relevant Variables'!O290 -> 0 | BA83: ='Relevant Variables'!O320 -> 0 | BB83: ='Relevant Variables'!O350 -> 0 | BC83: ='Relevant Variables'!O380 -> 0 | BD83: ='Relevant Variables'!O410 -> 0 | BE83: ='Relevant Variables'!O440 -> 0 | BF83: ='Relevant Variables'!O470 -> 0 | BG83: ='Relevant Variables'!O500 -> 0 | BH83: ='Relevant Variables'!O530 -> 0 | BI83: ='Relevant Variables'!O560 -> 0 | BJ83: ='Relevant Variables'!O590 -> 0 | BK83: ='Relevant Variables'!O620 -> 0
A84: 2011-01-01 | C84: ='Energy Consumption'!D67 -> 0 | D84: ='Energy Consumption'!D68 -> 0 | E84: ='Energy Consumption'!D149 -> 0 | F84: ='Energy Consumption'!D150 -> 0 | G84: ='Energy Consumption'!D231 -> 0 | H84: ='Energy Consumption'!D232 -> 0 | I84: ='Energy Consumption'!D313 -> 0 | J84: ='Energy Consumption'!D314 -> 0 | K84: ='Energy Consumption'!D395 -> 0 | L84: ='Energy Consumption'!D396 -> 0 | M84: ='Energy Consumption'!D477 -> 0 | N84: ='Energy Consumption'!D478 -> 0 | O84: ='Energy Consumption'!D559 -> 0 | P84: ='Energy Consumption'!D560 -> 0 | Q84: ='Energy Consumption'!D641 -> 0 | R84: ='Energy Consumption'!D642 -> 0 | S84: ='Energy Consumption'!D723 -> 0 | T84: ='Energy Consumption'!D724 -> 0 | U84: ='Energy Consumption'!D805 -> 0 | V84: ='Energy Consumption'!D806 -> 0 | W84: ='Energy Consumption'!D887 -> 0 | X84: ='Energy Consumption'!D888 -> 0 | Y84: ='Energy Consumption'!D969 -> 0 | Z84: ='Energy Consumption'!D970 -> 0 | AA84: ='Energy Consumption'!D1051 -> 0 | AB84: ='Energy Consumption'!D1052 -> 0 | AC84: ='Energy Consumption'!D1133 -> 0 | AD84: ='Energy Consumption'!D1134 -> 0 | AE84: ='Energy Consumption'!D1215 -> 0 | AF84: ='Energy Consumption'!D1216 -> 0 | AG84: ='Energy Consumption'!D1297 -> 0 | AH84: ='Energy Consumption'!D1298 -> 0 | AI84: ='Energy Consumption'!D1379 -> 0 | AJ84: ='Energy Consumption'!D1380 -> 0 | AK84: ='Energy Consumption'!D1461 -> 0 | AL84: ='Energy Consumption'!D1462 -> 0 | AM84: ='Energy Consumption'!D1543 -> 0 | AN84: ='Energy Consumption'!D1544 -> 0 | AO84: ='Energy Consumption'!D1625 -> 0 | AP84: ='Energy Consumption'!D1626 -> 0 | AR84: ='Relevant Variables'!D49 -> 0 | AS84: ='Relevant Variables'!D79 -> 0 | AT84: ='Relevant Variables'!D109 -> 0 | AU84: ='Relevant Variables'!D139 -> 0 | AV84: ='Relevant Variables'!D169 -> 0 | AW84: ='Relevant Variables'!D199 -> 0 | AX84: ='Relevant Variables'!D229 -> 0 | AY84: ='Relevant Variables'!D259 -> 0 | AZ84: ='Relevant Variables'!D289 -> 0 | BA84: ='Relevant Variables'!D319 -> 0 | BB84: ='Relevant Variables'!D349 -> 0 | BC84: ='Relevant Variables'!D379 -> 0 | BD84: ='Relevant Variables'!D409 -> 0 | BE84: ='Relevant Variables'!D439 -> 0 | BF84: ='Relevant Variables'!D469 -> 0 | BG84: ='Relevant Variables'!D499 -> 0 | BH84: ='Relevant Variables'!D529 -> 0 | BI84: ='Relevant Variables'!D559 -> 0 | BJ84: ='Relevant Variables'!D589 -> 0 | BK84: ='Relevant Variables'!D619 -> 0
A85: 2011-02-01 | C85: ='Energy Consumption'!E67 -> 0 | D85: ='Energy Consumption'!E68 -> 0 | E85: ='Energy Consumption'!E149 -> 0 | F85: ='Energy Consumption'!E150 -> 0 | G85: ='Energy Consumption'!E231 -> 0 | H85: ='Energy Consumption'!E232 -> 0 | I85: ='Energy Consumption'!E313 -> 0 | J85: ='Energy Consumption'!E314 -> 0 | K85: ='Energy Consumption'!E395 -> 0 | L85: ='Energy Consumption'!E396 -> 0 | M85: ='Energy Consumption'!E477 -> 0 | N85: ='Energy Consumption'!E478 -> 0 | O85: ='Energy Consumption'!E559 -> 0 | P85: ='Energy Consumption'!E560 -> 0 | Q85: ='Energy Consumption'!E641 -> 0 | R85: ='Energy Consumption'!E642 -> 0 | S85: ='Energy Consumption'!E723 -> 0 | T85: ='Energy Consumption'!E724 -> 0 | U85: ='Energy Consumption'!E805 -> 0 | V85: ='Energy Consumption'!E806 -> 0 | W85: ='Energy Consumption'!E887 -> 0 | X85: ='Energy Consumption'!E888 -> 0 | Y85: ='Energy Consumption'!E969 -> 0 | Z85: ='Energy Consumption'!E970 -> 0 | AA85: ='Energy Consumption'!E1051 -> 0 | AB85: ='Energy Consumption'!E1052 -> 0 | AC85: ='Energy Consumption'!E1133 -> 0 | AD85: ='Energy Consumption'!E1134 -> 0 | AE85: ='Energy Consumption'!E1215 -> 0 | AF85: ='Energy Consumption'!E1216 -> 0 | AG85: ='Energy Consumption'!E1297 -> 0 | AH85: ='Energy Consumption'!E1298 -> 0 | AI85: ='Energy Consumption'!E1379 -> 0 | AJ85: ='Energy Consumption'!E1380 -> 0 | AK85: ='Energy Consumption'!E1461 -> 0 | AL85: ='Energy Consumption'!E1462 -> 0 | AM85: ='Energy Consumption'!E1543 -> 0 | AN85: ='Energy Consumption'!E1544 -> 0 | AO85: ='Energy Consumption'!E1625 -> 0 | AP85: ='Energy Consumption'!E1626 -> 0 | AR85: ='Relevant Variables'!E49 -> 0 | AS85: ='Relevant Variables'!E79 -> 0 | AT85: ='Relevant Variables'!E109 -> 0 | AU85: ='Relevant Variables'!E139 -> 0 | AV85: ='Relevant Variables'!E169 -> 0 | AW85: ='Relevant Variables'!E199 -> 0 | AX85: ='Relevant Variables'!E229 -> 0 | AY85: ='Relevant Variables'!E259 -> 0 | AZ85: ='Relevant Variables'!E289 -> 0 | BA85: ='Relevant Variables'!E319 -> 0 | BB85: ='Relevant Variables'!E349 -> 0 | BC85: ='Relevant Variables'!E379 -> 0 | BD85: ='Relevant Variables'!E409 -> 0 | BE85: ='Relevant Variables'!E439 -> 0 | BF85: ='Relevant Variables'!E469 -> 0 | BG85: ='Relevant Variables'!E499 -> 0 | BH85: ='Relevant Variables'!E529 -> 0 | BI85: ='Relevant Variables'!E559 -> 0 | BJ85: ='Relevant Variables'!E589 -> 0 | BK85: ='Relevant Variables'!E619 -> 0
A86: 2011-03-01 | C86: ='Energy Consumption'!F67 -> 0 | D86: ='Energy Consumption'!F68 -> 0 | E86: ='Energy Consumption'!F149 -> 0 | F86: ='Energy Consumption'!F150 -> 0 | G86: ='Energy Consumption'!F231 -> 0 | H86: ='Energy Consumption'!F232 -> 0 | I86: ='Energy Consumption'!F313 -> 0 | J86: ='Energy Consumption'!F314 -> 0 | K86: ='Energy Consumption'!F395 -> 0 | L86: ='Energy Consumption'!F396 -> 0 | M86: ='Energy Consumption'!F477 -> 0 | N86: ='Energy Consumption'!F478 -> 0 | O86: ='Energy Consumption'!F559 -> 0 | P86: ='Energy Consumption'!F560 -> 0 | Q86: ='Energy Consumption'!F641 -> 0 | R86: ='Energy Consumption'!F642 -> 0 | S86: ='Energy Consumption'!F723 -> 0 | T86: ='Energy Consumption'!F724 -> 0 | U86: ='Energy Consumption'!F805 -> 0 | V86: ='Energy Consumption'!F806 -> 0 | W86: ='Energy Consumption'!F887 -> 0 | X86: ='Energy Consumption'!F888 -> 0 | Y86: ='Energy Consumption'!F969 -> 0 | Z86: ='Energy Consumption'!F970 -> 0 | AA86: ='Energy Consumption'!F1051 -> 0 | AB86: ='Energy Consumption'!F1052 -> 0 | AC86: ='Energy Consumption'!F1133 -> 0 | AD86: ='Energy Consumption'!F1134 -> 0 | AE86: ='Energy Consumption'!F1215 -> 0 | AF86: ='Energy Consumption'!F1216 -> 0 | AG86: ='Energy Consumption'!F1297 -> 0 | AH86: ='Energy Consumption'!F1298 -> 0 | AI86: ='Energy Consumption'!F1379 -> 0 | AJ86: ='Energy Consumption'!F1380 -> 0 | AK86: ='Energy Consumption'!F1461 -> 0 | AL86: ='Energy Consumption'!F1462 -> 0 | AM86: ='Energy Consumption'!F1543 -> 0 | AN86: ='Energy Consumption'!F1544 -> 0 | AO86: ='Energy Consumption'!F1625 -> 0 | AP86: ='Energy Consumption'!F1626 -> 0 | AR86: ='Relevant Variables'!F49 -> 0 | AS86: ='Relevant Variables'!F79 -> 0 | AT86: ='Relevant Variables'!F109 -> 0 | AU86: ='Relevant Variables'!F139 -> 0 | AV86: ='Relevant Variables'!F169 -> 0 | AW86: ='Relevant Variables'!F199 -> 0 | AX86: ='Relevant Variables'!F229 -> 0 | AY86: ='Relevant Variables'!F259 -> 0 | AZ86: ='Relevant Variables'!F289 -> 0 | BA86: ='Relevant Variables'!F319 -> 0 | BB86: ='Relevant Variables'!F349 -> 0 | BC86: ='Relevant Variables'!F379 -> 0 | BD86: ='Relevant Variables'!F409 -> 0 | BE86: ='Relevant Variables'!F439 -> 0 | BF86: ='Relevant Variables'!F469 -> 0 | BG86: ='Relevant Variables'!F499 -> 0 | BH86: ='Relevant Variables'!F529 -> 0 | BI86: ='Relevant Variables'!F559 -> 0 | BJ86: ='Relevant Variables'!F589 -> 0 | BK86: ='Relevant Variables'!F619 -> 0
A87: 2011-04-01 | C87: ='Energy Consumption'!G67 -> 0 | D87: ='Energy Consumption'!G68 -> 0 | E87: ='Energy Consumption'!G149 -> 0 | F87: ='Energy Consumption'!G150 -> 0 | G87: ='Energy Consumption'!G231 -> 0 | H87: ='Energy Consumption'!G232 -> 0 | I87: ='Energy Consumption'!G313 -> 0 | J87: ='Energy Consumption'!G314 -> 0 | K87: ='Energy Consumption'!G395 -> 0 | L87: ='Energy Consumption'!G396 -> 0 | M87: ='Energy Consumption'!G477 -> 0 | N87: ='Energy Consumption'!G478 -> 0 | O87: ='Energy Consumption'!G559 -> 0 | P87: ='Energy Consumption'!G560 -> 0 | Q87: ='Energy Consumption'!G641 -> 0 | R87: ='Energy Consumption'!G642 -> 0 | S87: ='Energy Consumption'!G723 -> 0 | T87: ='Energy Consumption'!G724 -> 0 | U87: ='Energy Consumption'!G805 -> 0 | V87: ='Energy Consumption'!G806 -> 0 | W87: ='Energy Consumption'!G887 -> 0 | X87: ='Energy Consumption'!G888 -> 0 | Y87: ='Energy Consumption'!G969 -> 0 | Z87: ='Energy Consumption'!G970 -> 0 | AA87: ='Energy Consumption'!G1051 -> 0 | AB87: ='Energy Consumption'!G1052 -> 0 | AC87: ='Energy Consumption'!G1133 -> 0 | AD87: ='Energy Consumption'!G1134 -> 0 | AE87: ='Energy Consumption'!G1215 -> 0 | AF87: ='Energy Consumption'!G1216 -> 0 | AG87: ='Energy Consumption'!G1297 -> 0 | AH87: ='Energy Consumption'!G1298 -> 0 | AI87: ='Energy Consumption'!G1379 -> 0 | AJ87: ='Energy Consumption'!G1380 -> 0 | AK87: ='Energy Consumption'!G1461 -> 0 | AL87: ='Energy Consumption'!G1462 -> 0 | AM87: ='Energy Consumption'!G1543 -> 0 | AN87: ='Energy Consumption'!G1544 -> 0 | AO87: ='Energy Consumption'!G1625 -> 0 | AP87: ='Energy Consumption'!G1626 -> 0 | AR87: ='Relevant Variables'!G49 -> 0 | AS87: ='Relevant Variables'!G79 -> 0 | AT87: ='Relevant Variables'!G109 -> 0 | AU87: ='Relevant Variables'!G139 -> 0 | AV87: ='Relevant Variables'!G169 -> 0 | AW87: ='Relevant Variables'!G199 -> 0 | AX87: ='Relevant Variables'!G229 -> 0 | AY87: ='Relevant Variables'!G259 -> 0 | AZ87: ='Relevant Variables'!G289 -> 0 | BA87: ='Relevant Variables'!G319 -> 0 | BB87: ='Relevant Variables'!G349 -> 0 | BC87: ='Relevant Variables'!G379 -> 0 | BD87: ='Relevant Variables'!G409 -> 0 | BE87: ='Relevant Variables'!G439 -> 0 | BF87: ='Relevant Variables'!G469 -> 0 | BG87: ='Relevant Variables'!G499 -> 0 | BH87: ='Relevant Variables'!G529 -> 0 | BI87: ='Relevant Variables'!G559 -> 0 | BJ87: ='Relevant Variables'!G589 -> 0 | BK87: ='Relevant Variables'!G619 -> 0
A88: 2011-05-01 | C88: ='Energy Consumption'!H67 -> 0 | D88: ='Energy Consumption'!H68 -> 0 | E88: ='Energy Consumption'!H149 -> 0 | F88: ='Energy Consumption'!H150 -> 0 | G88: ='Energy Consumption'!H231 -> 0 | H88: ='Energy Consumption'!H232 -> 0 | I88: ='Energy Consumption'!H313 -> 0 | J88: ='Energy Consumption'!H314 -> 0 | K88: ='Energy Consumption'!H395 -> 0 | L88: ='Energy Consumption'!H396 -> 0 | M88: ='Energy Consumption'!H477 -> 0 | N88: ='Energy Consumption'!H478 -> 0 | O88: ='Energy Consumption'!H559 -> 0 | P88: ='Energy Consumption'!H560 -> 0 | Q88: ='Energy Consumption'!H641 -> 0 | R88: ='Energy Consumption'!H642 -> 0 | S88: ='Energy Consumption'!H723 -> 0 | T88: ='Energy Consumption'!H724 -> 0 | U88: ='Energy Consumption'!H805 -> 0 | V88: ='Energy Consumption'!H806 -> 0 | W88: ='Energy Consumption'!H887 -> 0 | X88: ='Energy Consumption'!H888 -> 0 | Y88: ='Energy Consumption'!H969 -> 0 | Z88: ='Energy Consumption'!H970 -> 0 | AA88: ='Energy Consumption'!H1051 -> 0 | AB88: ='Energy Consumption'!H1052 -> 0 | AC88: ='Energy Consumption'!H1133 -> 0 | AD88: ='Energy Consumption'!H1134 -> 0 | AE88: ='Energy Consumption'!H1215 -> 0 | AF88: ='Energy Consumption'!H1216 -> 0 | AG88: ='Energy Consumption'!H1297 -> 0 | AH88: ='Energy Consumption'!H1298 -> 0 | AI88: ='Energy Consumption'!H1379 -> 0 | AJ88: ='Energy Consumption'!H1380 -> 0 | AK88: ='Energy Consumption'!H1461 -> 0 | AL88: ='Energy Consumption'!H1462 -> 0 | AM88: ='Energy Consumption'!H1543 -> 0 | AN88: ='Energy Consumption'!H1544 -> 0 | AO88: ='Energy Consumption'!H1625 -> 0 | AP88: ='Energy Consumption'!H1626 -> 0 | AR88: ='Relevant Variables'!H49 -> 0 | AS88: ='Relevant Variables'!H79 -> 0 | AT88: ='Relevant Variables'!H109 -> 0 | AU88: ='Relevant Variables'!H139 -> 0 | AV88: ='Relevant Variables'!H169 -> 0 | AW88: ='Relevant Variables'!H199 -> 0 | AX88: ='Relevant Variables'!H229 -> 0 | AY88: ='Relevant Variables'!H259 -> 0 | AZ88: ='Relevant Variables'!H289 -> 0 | BA88: ='Relevant Variables'!H319 -> 0 | BB88: ='Relevant Variables'!H349 -> 0 | BC88: ='Relevant Variables'!H379 -> 0 | BD88: ='Relevant Variables'!H409 -> 0 | BE88: ='Relevant Variables'!H439 -> 0 | BF88: ='Relevant Variables'!H469 -> 0 | BG88: ='Relevant Variables'!H499 -> 0 | BH88: ='Relevant Variables'!H529 -> 0 | BI88: ='Relevant Variables'!H559 -> 0 | BJ88: ='Relevant Variables'!H589 -> 0 | BK88: ='Relevant Variables'!H619 -> 0
A89: 2011-06-01 | C89: ='Energy Consumption'!I67 -> 0 | D89: ='Energy Consumption'!I68 -> 0 | E89: ='Energy Consumption'!I149 -> 0 | F89: ='Energy Consumption'!I150 -> 0 | G89: ='Energy Consumption'!I231 -> 0 | H89: ='Energy Consumption'!I232 -> 0 | I89: ='Energy Consumption'!I313 -> 0 | J89: ='Energy Consumption'!I314 -> 0 | K89: ='Energy Consumption'!I395 -> 0 | L89: ='Energy Consumption'!I396 -> 0 | M89: ='Energy Consumption'!I477 -> 0 | N89: ='Energy Consumption'!I478 -> 0 | O89: ='Energy Consumption'!I559 -> 0 | P89: ='Energy Consumption'!I560 -> 0 | Q89: ='Energy Consumption'!I641 -> 0 | R89: ='Energy Consumption'!I642 -> 0 | S89: ='Energy Consumption'!I723 -> 0 | T89: ='Energy Consumption'!I724 -> 0 | U89: ='Energy Consumption'!I805 -> 0 | V89: ='Energy Consumption'!I806 -> 0 | W89: ='Energy Consumption'!I887 -> 0 | X89: ='Energy Consumption'!I888 -> 0 | Y89: ='Energy Consumption'!I969 -> 0 | Z89: ='Energy Consumption'!I970 -> 0 | AA89: ='Energy Consumption'!I1051 -> 0 | AB89: ='Energy Consumption'!I1052 -> 0 | AC89: ='Energy Consumption'!I1133 -> 0 | AD89: ='Energy Consumption'!I1134 -> 0 | AE89: ='Energy Consumption'!I1215 -> 0 | AF89: ='Energy Consumption'!I1216 -> 0 | AG89: ='Energy Consumption'!I1297 -> 0 | AH89: ='Energy Consumption'!I1298 -> 0 | AI89: ='Energy Consumption'!I1379 -> 0 | AJ89: ='Energy Consumption'!I1380 -> 0 | AK89: ='Energy Consumption'!I1461 -> 0 | AL89: ='Energy Consumption'!I1462 -> 0 | AM89: ='Energy Consumption'!I1543 -> 0 | AN89: ='Energy Consumption'!I1544 -> 0 | AO89: ='Energy Consumption'!I1625 -> 0 | AP89: ='Energy Consumption'!I1626 -> 0 | AR89: ='Relevant Variables'!I49 -> 0 | AS89: ='Relevant Variables'!I79 -> 0 | AT89: ='Relevant Variables'!I109 -> 0 | AU89: ='Relevant Variables'!I139 -> 0 | AV89: ='Relevant Variables'!I169 -> 0 | AW89: ='Relevant Variables'!I199 -> 0 | AX89: ='Relevant Variables'!I229 -> 0 | AY89: ='Relevant Variables'!I259 -> 0 | AZ89: ='Relevant Variables'!I289 -> 0 | BA89: ='Relevant Variables'!I319 -> 0 | BB89: ='Relevant Variables'!I349 -> 0 | BC89: ='Relevant Variables'!I379 -> 0 | BD89: ='Relevant Variables'!I409 -> 0 | BE89: ='Relevant Variables'!I439 -> 0 | BF89: ='Relevant Variables'!I469 -> 0 | BG89: ='Relevant Variables'!I499 -> 0 | BH89: ='Relevant Variables'!I529 -> 0 | BI89: ='Relevant Variables'!I559 -> 0 | BJ89: ='Relevant Variables'!I589 -> 0 | BK89: ='Relevant Variables'!I619 -> 0
A90: 2011-07-01 | C90: ='Energy Consumption'!J67 -> 0 | D90: ='Energy Consumption'!J68 -> 0 | E90: ='Energy Consumption'!J149 -> 0 | F90: ='Energy Consumption'!J150 -> 0 | G90: ='Energy Consumption'!J231 -> 0 | H90: ='Energy Consumption'!J232 -> 0 | I90: ='Energy Consumption'!J313 -> 0 | J90: ='Energy Consumption'!J314 -> 0 | K90: ='Energy Consumption'!J395 -> 0 | L90: ='Energy Consumption'!J396 -> 0 | M90: ='Energy Consumption'!J477 -> 0 | N90: ='Energy Consumption'!J478 -> 0 | O90: ='Energy Consumption'!J559 -> 0 | P90: ='Energy Consumption'!J560 -> 0 | Q90: ='Energy Consumption'!J641 -> 0 | R90: ='Energy Consumption'!J642 -> 0 | S90: ='Energy Consumption'!J723 -> 0 | T90: ='Energy Consumption'!J724 -> 0 | U90: ='Energy Consumption'!J805 -> 0 | V90: ='Energy Consumption'!J806 -> 0 | W90: ='Energy Consumption'!J887 -> 0 | X90: ='Energy Consumption'!J888 -> 0 | Y90: ='Energy Consumption'!J969 -> 0 | Z90: ='Energy Consumption'!J970 -> 0 | AA90: ='Energy Consumption'!J1051 -> 0 | AB90: ='Energy Consumption'!J1052 -> 0 | AC90: ='Energy Consumption'!J1133 -> 0 | AD90: ='Energy Consumption'!J1134 -> 0 | AE90: ='Energy Consumption'!J1215 -> 0 | AF90: ='Energy Consumption'!J1216 -> 0 | AG90: ='Energy Consumption'!J1297 -> 0 | AH90: ='Energy Consumption'!J1298 -> 0 | AI90: ='Energy Consumption'!J1379 -> 0 | AJ90: ='Energy Consumption'!J1380 -> 0 | AK90: ='Energy Consumption'!J1461 -> 0 | AL90: ='Energy Consumption'!J1462 -> 0 | AM90: ='Energy Consumption'!J1543 -> 0 | AN90: ='Energy Consumption'!J1544 -> 0 | AO90: ='Energy Consumption'!J1625 -> 0 | AP90: ='Energy Consumption'!J1626 -> 0 | AR90: ='Relevant Variables'!J49 -> 0 | AS90: ='Relevant Variables'!J79 -> 0 | AT90: ='Relevant Variables'!J109 -> 0 | AU90: ='Relevant Variables'!J139 -> 0 | AV90: ='Relevant Variables'!J169 -> 0 | AW90: ='Relevant Variables'!J199 -> 0 | AX90: ='Relevant Variables'!J229 -> 0 | AY90: ='Relevant Variables'!J259 -> 0 | AZ90: ='Relevant Variables'!J289 -> 0 | BA90: ='Relevant Variables'!J319 -> 0 | BB90: ='Relevant Variables'!J349 -> 0 | BC90: ='Relevant Variables'!J379 -> 0 | BD90: ='Relevant Variables'!J409 -> 0 | BE90: ='Relevant Variables'!J439 -> 0 | BF90: ='Relevant Variables'!J469 -> 0 | BG90: ='Relevant Variables'!J499 -> 0 | BH90: ='Relevant Variables'!J529 -> 0 | BI90: ='Relevant Variables'!J559 -> 0 | BJ90: ='Relevant Variables'!J589 -> 0 | BK90: ='Relevant Variables'!J619 -> 0
A91: 2011-08-01 | C91: ='Energy Consumption'!K67 -> 0 | D91: ='Energy Consumption'!K68 -> 0 | E91: ='Energy Consumption'!K149 -> 0 | F91: ='Energy Consumption'!K150 -> 0 | G91: ='Energy Consumption'!K231 -> 0 | H91: ='Energy Consumption'!K232 -> 0 | I91: ='Energy Consumption'!K313 -> 0 | J91: ='Energy Consumption'!K314 -> 0 | K91: ='Energy Consumption'!K395 -> 0 | L91: ='Energy Consumption'!K396 -> 0 | M91: ='Energy Consumption'!K477 -> 0 | N91: ='Energy Consumption'!K478 -> 0 | O91: ='Energy Consumption'!K559 -> 0 | P91: ='Energy Consumption'!K560 -> 0 | Q91: ='Energy Consumption'!K641 -> 0 | R91: ='Energy Consumption'!K642 -> 0 | S91: ='Energy Consumption'!K723 -> 0 | T91: ='Energy Consumption'!K724 -> 0 | U91: ='Energy Consumption'!K805 -> 0 | V91: ='Energy Consumption'!K806 -> 0 | W91: ='Energy Consumption'!K887 -> 0 | X91: ='Energy Consumption'!K888 -> 0 | Y91: ='Energy Consumption'!K969 -> 0 | Z91: ='Energy Consumption'!K970 -> 0 | AA91: ='Energy Consumption'!K1051 -> 0 | AB91: ='Energy Consumption'!K1052 -> 0 | AC91: ='Energy Consumption'!K1133 -> 0 | AD91: ='Energy Consumption'!K1134 -> 0 | AE91: ='Energy Consumption'!K1215 -> 0 | AF91: ='Energy Consumption'!K1216 -> 0 | AG91: ='Energy Consumption'!K1297 -> 0 | AH91: ='Energy Consumption'!K1298 -> 0 | AI91: ='Energy Consumption'!K1379 -> 0 | AJ91: ='Energy Consumption'!K1380 -> 0 | AK91: ='Energy Consumption'!K1461 -> 0 | AL91: ='Energy Consumption'!K1462 -> 0 | AM91: ='Energy Consumption'!K1543 -> 0 | AN91: ='Energy Consumption'!K1544 -> 0 | AO91: ='Energy Consumption'!K1625 -> 0 | AP91: ='Energy Consumption'!K1626 -> 0 | AR91: ='Relevant Variables'!K49 -> 0 | AS91: ='Relevant Variables'!K79 -> 0 | AT91: ='Relevant Variables'!K109 -> 0 | AU91: ='Relevant Variables'!K139 -> 0 | AV91: ='Relevant Variables'!K169 -> 0 | AW91: ='Relevant Variables'!K199 -> 0 | AX91: ='Relevant Variables'!K229 -> 0 | AY91: ='Relevant Variables'!K259 -> 0 | AZ91: ='Relevant Variables'!K289 -> 0 | BA91: ='Relevant Variables'!K319 -> 0 | BB91: ='Relevant Variables'!K349 -> 0 | BC91: ='Relevant Variables'!K379 -> 0 | BD91: ='Relevant Variables'!K409 -> 0 | BE91: ='Relevant Variables'!K439 -> 0 | BF91: ='Relevant Variables'!K469 -> 0 | BG91: ='Relevant Variables'!K499 -> 0 | BH91: ='Relevant Variables'!K529 -> 0 | BI91: ='Relevant Variables'!K559 -> 0 | BJ91: ='Relevant Variables'!K589 -> 0 | BK91: ='Relevant Variables'!K619 -> 0
A92: 2011-09-01 | C92: ='Energy Consumption'!L67 -> 0 | D92: ='Energy Consumption'!L68 -> 0 | E92: ='Energy Consumption'!L149 -> 0 | F92: ='Energy Consumption'!L150 -> 0 | G92: ='Energy Consumption'!L231 -> 0 | H92: ='Energy Consumption'!L232 -> 0 | I92: ='Energy Consumption'!L313 -> 0 | J92: ='Energy Consumption'!L314 -> 0 | K92: ='Energy Consumption'!L395 -> 0 | L92: ='Energy Consumption'!L396 -> 0 | M92: ='Energy Consumption'!L477 -> 0 | N92: ='Energy Consumption'!L478 -> 0 | O92: ='Energy Consumption'!L559 -> 0 | P92: ='Energy Consumption'!L560 -> 0 | Q92: ='Energy Consumption'!L641 -> 0 | R92: ='Energy Consumption'!L642 -> 0 | S92: ='Energy Consumption'!L723 -> 0 | T92: ='Energy Consumption'!L724 -> 0 | U92: ='Energy Consumption'!L805 -> 0 | V92: ='Energy Consumption'!L806 -> 0 | W92: ='Energy Consumption'!L887 -> 0 | X92: ='Energy Consumption'!L888 -> 0 | Y92: ='Energy Consumption'!L969 -> 0 | Z92: ='Energy Consumption'!L970 -> 0 | AA92: ='Energy Consumption'!L1051 -> 0 | AB92: ='Energy Consumption'!L1052 -> 0 | AC92: ='Energy Consumption'!L1133 -> 0 | AD92: ='Energy Consumption'!L1134 -> 0 | AE92: ='Energy Consumption'!L1215 -> 0 | AF92: ='Energy Consumption'!L1216 -> 0 | AG92: ='Energy Consumption'!L1297 -> 0 | AH92: ='Energy Consumption'!L1298 -> 0 | AI92: ='Energy Consumption'!L1379 -> 0 | AJ92: ='Energy Consumption'!L1380 -> 0 | AK92: ='Energy Consumption'!L1461 -> 0 | AL92: ='Energy Consumption'!L1462 -> 0 | AM92: ='Energy Consumption'!L1543 -> 0 | AN92: ='Energy Consumption'!L1544 -> 0 | AO92: ='Energy Consumption'!L1625 -> 0 | AP92: ='Energy Consumption'!L1626 -> 0 | AR92: ='Relevant Variables'!L49 -> 0 | AS92: ='Relevant Variables'!L79 -> 0 | AT92: ='Relevant Variables'!L109 -> 0 | AU92: ='Relevant Variables'!L139 -> 0 | AV92: ='Relevant Variables'!L169 -> 0 | AW92: ='Relevant Variables'!L199 -> 0 | AX92: ='Relevant Variables'!L229 -> 0 | AY92: ='Relevant Variables'!L259 -> 0 | AZ92: ='Relevant Variables'!L289 -> 0 | BA92: ='Relevant Variables'!L319 -> 0 | BB92: ='Relevant Variables'!L349 -> 0 | BC92: ='Relevant Variables'!L379 -> 0 | BD92: ='Relevant Variables'!L409 -> 0 | BE92: ='Relevant Variables'!L439 -> 0 | BF92: ='Relevant Variables'!L469 -> 0 | BG92: ='Relevant Variables'!L499 -> 0 | BH92: ='Relevant Variables'!L529 -> 0 | BI92: ='Relevant Variables'!L559 -> 0 | BJ92: ='Relevant Variables'!L589 -> 0 | BK92: ='Relevant Variables'!L619 -> 0
A93: 2011-10-01 | C93: ='Energy Consumption'!M67 -> 0 | D93: ='Energy Consumption'!M68 -> 0 | E93: ='Energy Consumption'!M149 -> 0 | F93: ='Energy Consumption'!M150 -> 0 | G93: ='Energy Consumption'!M231 -> 0 | H93: ='Energy Consumption'!M232 -> 0 | I93: ='Energy Consumption'!M313 -> 0 | J93: ='Energy Consumption'!M314 -> 0 | K93: ='Energy Consumption'!M395 -> 0 | L93: ='Energy Consumption'!M396 -> 0 | M93: ='Energy Consumption'!M477 -> 0 | N93: ='Energy Consumption'!M478 -> 0 | O93: ='Energy Consumption'!M559 -> 0 | P93: ='Energy Consumption'!M560 -> 0 | Q93: ='Energy Consumption'!M641 -> 0 | R93: ='Energy Consumption'!M642 -> 0 | S93: ='Energy Consumption'!M723 -> 0 | T93: ='Energy Consumption'!M724 -> 0 | U93: ='Energy Consumption'!M805 -> 0 | V93: ='Energy Consumption'!M806 -> 0 | W93: ='Energy Consumption'!M887 -> 0 | X93: ='Energy Consumption'!M888 -> 0 | Y93: ='Energy Consumption'!M969 -> 0 | Z93: ='Energy Consumption'!M970 -> 0 | AA93: ='Energy Consumption'!M1051 -> 0 | AB93: ='Energy Consumption'!M1052 -> 0 | AC93: ='Energy Consumption'!M1133 -> 0 | AD93: ='Energy Consumption'!M1134 -> 0 | AE93: ='Energy Consumption'!M1215 -> 0 | AF93: ='Energy Consumption'!M1216 -> 0 | AG93: ='Energy Consumption'!M1297 -> 0 | AH93: ='Energy Consumption'!M1298 -> 0 | AI93: ='Energy Consumption'!M1379 -> 0 | AJ93: ='Energy Consumption'!M1380 -> 0 | AK93: ='Energy Consumption'!M1461 -> 0 | AL93: ='Energy Consumption'!M1462 -> 0 | AM93: ='Energy Consumption'!M1543 -> 0 | AN93: ='Energy Consumption'!M1544 -> 0 | AO93: ='Energy Consumption'!M1625 -> 0 | AP93: ='Energy Consumption'!M1626 -> 0 | AR93: ='Relevant Variables'!M49 -> 0 | AS93: ='Relevant Variables'!M79 -> 0 | AT93: ='Relevant Variables'!M109 -> 0 | AU93: ='Relevant Variables'!M139 -> 0 | AV93: ='Relevant Variables'!M169 -> 0 | AW93: ='Relevant Variables'!M199 -> 0 | AX93: ='Relevant Variables'!M229 -> 0 | AY93: ='Relevant Variables'!M259 -> 0 | AZ93: ='Relevant Variables'!M289 -> 0 | BA93: ='Relevant Variables'!M319 -> 0 | BB93: ='Relevant Variables'!M349 -> 0 | BC93: ='Relevant Variables'!M379 -> 0 | BD93: ='Relevant Variables'!M409 -> 0 | BE93: ='Relevant Variables'!M439 -> 0 | BF93: ='Relevant Variables'!M469 -> 0 | BG93: ='Relevant Variables'!M499 -> 0 | BH93: ='Relevant Variables'!M529 -> 0 | BI93: ='Relevant Variables'!M559 -> 0 | BJ93: ='Relevant Variables'!M589 -> 0 | BK93: ='Relevant Variables'!M619 -> 0
A94: 2011-11-01 | C94: ='Energy Consumption'!N67 -> 0 | D94: ='Energy Consumption'!N68 -> 0 | E94: ='Energy Consumption'!N149 -> 0 | F94: ='Energy Consumption'!N150 -> 0 | G94: ='Energy Consumption'!N231 -> 0 | H94: ='Energy Consumption'!N232 -> 0 | I94: ='Energy Consumption'!N313 -> 0 | J94: ='Energy Consumption'!N314 -> 0 | K94: ='Energy Consumption'!N395 -> 0 | L94: ='Energy Consumption'!N396 -> 0 | M94: ='Energy Consumption'!N477 -> 0 | N94: ='Energy Consumption'!N478 -> 0 | O94: ='Energy Consumption'!N559 -> 0 | P94: ='Energy Consumption'!N560 -> 0 | Q94: ='Energy Consumption'!N641 -> 0 | R94: ='Energy Consumption'!N642 -> 0 | S94: ='Energy Consumption'!N723 -> 0 | T94: ='Energy Consumption'!N724 -> 0 | U94: ='Energy Consumption'!N805 -> 0 | V94: ='Energy Consumption'!N806 -> 0 | W94: ='Energy Consumption'!N887 -> 0 | X94: ='Energy Consumption'!N888 -> 0 | Y94: ='Energy Consumption'!N969 -> 0 | Z94: ='Energy Consumption'!N970 -> 0 | AA94: ='Energy Consumption'!N1051 -> 0 | AB94: ='Energy Consumption'!N1052 -> 0 | AC94: ='Energy Consumption'!N1133 -> 0 | AD94: ='Energy Consumption'!N1134 -> 0 | AE94: ='Energy Consumption'!N1215 -> 0 | AF94: ='Energy Consumption'!N1216 -> 0 | AG94: ='Energy Consumption'!N1297 -> 0 | AH94: ='Energy Consumption'!N1298 -> 0 | AI94: ='Energy Consumption'!N1379 -> 0 | AJ94: ='Energy Consumption'!N1380 -> 0 | AK94: ='Energy Consumption'!N1461 -> 0 | AL94: ='Energy Consumption'!N1462 -> 0 | AM94: ='Energy Consumption'!N1543 -> 0 | AN94: ='Energy Consumption'!N1544 -> 0 | AO94: ='Energy Consumption'!N1625 -> 0 | AP94: ='Energy Consumption'!N1626 -> 0 | AR94: ='Relevant Variables'!N49 -> 0 | AS94: ='Relevant Variables'!N79 -> 0 | AT94: ='Relevant Variables'!N109 -> 0 | AU94: ='Relevant Variables'!N139 -> 0 | AV94: ='Relevant Variables'!N169 -> 0 | AW94: ='Relevant Variables'!N199 -> 0 | AX94: ='Relevant Variables'!N229 -> 0 | AY94: ='Relevant Variables'!N259 -> 0 | AZ94: ='Relevant Variables'!N289 -> 0 | BA94: ='Relevant Variables'!N319 -> 0 | BB94: ='Relevant Variables'!N349 -> 0 | BC94: ='Relevant Variables'!N379 -> 0 | BD94: ='Relevant Variables'!N409 -> 0 | BE94: ='Relevant Variables'!N439 -> 0 | BF94: ='Relevant Variables'!N469 -> 0 | BG94: ='Relevant Variables'!N499 -> 0 | BH94: ='Relevant Variables'!N529 -> 0 | BI94: ='Relevant Variables'!N559 -> 0 | BJ94: ='Relevant Variables'!N589 -> 0 | BK94: ='Relevant Variables'!N619 -> 0
A95: 2011-12-01 | C95: ='Energy Consumption'!O67 -> 0 | D95: ='Energy Consumption'!O68 -> 0 | E95: ='Energy Consumption'!O149 -> 0 | F95: ='Energy Consumption'!O150 -> 0 | G95: ='Energy Consumption'!O231 -> 0 | H95: ='Energy Consumption'!O232 -> 0 | I95: ='Energy Consumption'!O313 -> 0 | J95: ='Energy Consumption'!O314 -> 0 | K95: ='Energy Consumption'!O395 -> 0 | L95: ='Energy Consumption'!O396 -> 0 | M95: ='Energy Consumption'!O477 -> 0 | N95: ='Energy Consumption'!O478 -> 0 | O95: ='Energy Consumption'!O559 -> 0 | P95: ='Energy Consumption'!O560 -> 0 | Q95: ='Energy Consumption'!O641 -> 0 | R95: ='Energy Consumption'!O642 -> 0 | S95: ='Energy Consumption'!O723 -> 0 | T95: ='Energy Consumption'!O724 -> 0 | U95: ='Energy Consumption'!O805 -> 0 | V95: ='Energy Consumption'!O806 -> 0 | W95: ='Energy Consumption'!O887 -> 0 | X95: ='Energy Consumption'!O888 -> 0 | Y95: ='Energy Consumption'!O969 -> 0 | Z95: ='Energy Consumption'!O970 -> 0 | AA95: ='Energy Consumption'!O1051 -> 0 | AB95: ='Energy Consumption'!O1052 -> 0 | AC95: ='Energy Consumption'!O1133 -> 0 | AD95: ='Energy Consumption'!O1134 -> 0 | AE95: ='Energy Consumption'!O1215 -> 0 | AF95: ='Energy Consumption'!O1216 -> 0 | AG95: ='Energy Consumption'!O1297 -> 0 | AH95: ='Energy Consumption'!O1298 -> 0 | AI95: ='Energy Consumption'!O1379 -> 0 | AJ95: ='Energy Consumption'!O1380 -> 0 | AK95: ='Energy Consumption'!O1461 -> 0 | AL95: ='Energy Consumption'!O1462 -> 0 | AM95: ='Energy Consumption'!O1543 -> 0 | AN95: ='Energy Consumption'!O1544 -> 0 | AO95: ='Energy Consumption'!O1625 -> 0 | AP95: ='Energy Consumption'!O1626 -> 0 | AR95: ='Relevant Variables'!O49 -> 0 | AS95: ='Relevant Variables'!O79 -> 0 | AT95: ='Relevant Variables'!O109 -> 0 | AU95: ='Relevant Variables'!O139 -> 0 | AV95: ='Relevant Variables'!O169 -> 0 | AW95: ='Relevant Variables'!O199 -> 0 | AX95: ='Relevant Variables'!O229 -> 0 | AY95: ='Relevant Variables'!O259 -> 0 | AZ95: ='Relevant Variables'!O289 -> 0 | BA95: ='Relevant Variables'!O319 -> 0 | BB95: ='Relevant Variables'!O349 -> 0 | BC95: ='Relevant Variables'!O379 -> 0 | BD95: ='Relevant Variables'!O409 -> 0 | BE95: ='Relevant Variables'!O439 -> 0 | BF95: ='Relevant Variables'!O469 -> 0 | BG95: ='Relevant Variables'!O499 -> 0 | BH95: ='Relevant Variables'!O529 -> 0 | BI95: ='Relevant Variables'!O559 -> 0 | BJ95: ='Relevant Variables'!O589 -> 0 | BK95: ='Relevant Variables'!O619 -> 0
A96: 2012-01-01 | C96: ='Energy Consumption'!D65 -> 0 | D96: ='Energy Consumption'!D66 -> 0 | E96: ='Energy Consumption'!D147 -> 0 | F96: ='Energy Consumption'!D148 -> 0 | G96: ='Energy Consumption'!D229 -> 0 | H96: ='Energy Consumption'!D230 -> 0 | I96: ='Energy Consumption'!D311 -> 0 | J96: ='Energy Consumption'!D312 -> 0 | K96: ='Energy Consumption'!D393 -> 0 | L96: ='Energy Consumption'!D394 -> 0 | M96: ='Energy Consumption'!D475 -> 0 | N96: ='Energy Consumption'!D476 -> 0 | O96: ='Energy Consumption'!D557 -> 0 | P96: ='Energy Consumption'!D558 -> 0 | Q96: ='Energy Consumption'!D639 -> 0 | R96: ='Energy Consumption'!D640 -> 0 | S96: ='Energy Consumption'!D721 -> 0 | T96: ='Energy Consumption'!D722 -> 0 | U96: ='Energy Consumption'!D803 -> 0 | V96: ='Energy Consumption'!D804 -> 0 | W96: ='Energy Consumption'!D885 -> 0 | X96: ='Energy Consumption'!D886 -> 0 | Y96: ='Energy Consumption'!D967 -> 0 | Z96: ='Energy Consumption'!D968 -> 0 | AA96: ='Energy Consumption'!D1049 -> 0 | AB96: ='Energy Consumption'!D1050 -> 0 | AC96: ='Energy Consumption'!D1131 -> 0 | AD96: ='Energy Consumption'!D1132 -> 0 | AE96: ='Energy Consumption'!D1213 -> 0 | AF96: ='Energy Consumption'!D1214 -> 0 | AG96: ='Energy Consumption'!D1295 -> 0 | AH96: ='Energy Consumption'!D1296 -> 0 | AI96: ='Energy Consumption'!D1377 -> 0 | AJ96: ='Energy Consumption'!D1378 -> 0 | AK96: ='Energy Consumption'!D1459 -> 0 | AL96: ='Energy Consumption'!D1460 -> 0 | AM96: ='Energy Consumption'!D1541 -> 0 | AN96: ='Energy Consumption'!D1542 -> 0 | AO96: ='Energy Consumption'!D1623 -> 0 | AP96: ='Energy Consumption'!D1624 -> 0 | AR96: ='Relevant Variables'!D48 -> 0 | AS96: ='Relevant Variables'!D78 -> 0 | AT96: ='Relevant Variables'!D108 -> 0 | AU96: ='Relevant Variables'!D138 -> 0 | AV96: ='Relevant Variables'!D168 -> 0 | AW96: ='Relevant Variables'!D198 -> 0 | AX96: ='Relevant Variables'!D228 -> 0 | AY96: ='Relevant Variables'!D258 -> 0 | AZ96: ='Relevant Variables'!D288 -> 0 | BA96: ='Relevant Variables'!D318 -> 0 | BB96: ='Relevant Variables'!D348 -> 0 | BC96: ='Relevant Variables'!D378 -> 0 | BD96: ='Relevant Variables'!D408 -> 0 | BE96: ='Relevant Variables'!D438 -> 0 | BF96: ='Relevant Variables'!D468 -> 0 | BG96: ='Relevant Variables'!D498 -> 0 | BH96: ='Relevant Variables'!D528 -> 0 | BI96: ='Relevant Variables'!D558 -> 0 | BJ96: ='Relevant Variables'!D588 -> 0 | BK96: ='Relevant Variables'!D618 -> 0
A97: 2012-02-01 | C97: ='Energy Consumption'!E65 -> 0 | D97: ='Energy Consumption'!E66 -> 0 | E97: ='Energy Consumption'!E147 -> 0 | F97: ='Energy Consumption'!E148 -> 0 | G97: ='Energy Consumption'!E229 -> 0 | H97: ='Energy Consumption'!E230 -> 0 | I97: ='Energy Consumption'!E311 -> 0 | J97: ='Energy Consumption'!E312 -> 0 | K97: ='Energy Consumption'!E393 -> 0 | L97: ='Energy Consumption'!E394 -> 0 | M97: ='Energy Consumption'!E475 -> 0 | N97: ='Energy Consumption'!E476 -> 0 | O97: ='Energy Consumption'!E557 -> 0 | P97: ='Energy Consumption'!E558 -> 0 | Q97: ='Energy Consumption'!E639 -> 0 | R97: ='Energy Consumption'!E640 -> 0 | S97: ='Energy Consumption'!E721 -> 0 | T97: ='Energy Consumption'!E722 -> 0 | U97: ='Energy Consumption'!E803 -> 0 | V97: ='Energy Consumption'!E804 -> 0 | W97: ='Energy Consumption'!E885 -> 0 | X97: ='Energy Consumption'!E886 -> 0 | Y97: ='Energy Consumption'!E967 -> 0 | Z97: ='Energy Consumption'!E968 -> 0 | AA97: ='Energy Consumption'!E1049 -> 0 | AB97: ='Energy Consumption'!E1050 -> 0 | AC97: ='Energy Consumption'!E1131 -> 0 | AD97: ='Energy Consumption'!E1132 -> 0 | AE97: ='Energy Consumption'!E1213 -> 0 | AF97: ='Energy Consumption'!E1214 -> 0 | AG97: ='Energy Consumption'!E1295 -> 0 | AH97: ='Energy Consumption'!E1296 -> 0 | AI97: ='Energy Consumption'!E1377 -> 0 | AJ97: ='Energy Consumption'!E1378 -> 0 | AK97: ='Energy Consumption'!E1459 -> 0 | AL97: ='Energy Consumption'!E1460 -> 0 | AM97: ='Energy Consumption'!E1541 -> 0 | AN97: ='Energy Consumption'!E1542 -> 0 | AO97: ='Energy Consumption'!E1623 -> 0 | AP97: ='Energy Consumption'!E1624 -> 0 | AR97: ='Relevant Variables'!E48 -> 0 | AS97: ='Relevant Variables'!E78 -> 0 | AT97: ='Relevant Variables'!E108 -> 0 | AU97: ='Relevant Variables'!E138 -> 0 | AV97: ='Relevant Variables'!E168 -> 0 | AW97: ='Relevant Variables'!E198 -> 0 | AX97: ='Relevant Variables'!E228 -> 0 | AY97: ='Relevant Variables'!E258 -> 0 | AZ97: ='Relevant Variables'!E288 -> 0 | BA97: ='Relevant Variables'!E318 -> 0 | BB97: ='Relevant Variables'!E348 -> 0 | BC97: ='Relevant Variables'!E378 -> 0 | BD97: ='Relevant Variables'!E408 -> 0 | BE97: ='Relevant Variables'!E438 -> 0 | BF97: ='Relevant Variables'!E468 -> 0 | BG97: ='Relevant Variables'!E498 -> 0 | BH97: ='Relevant Variables'!E528 -> 0 | BI97: ='Relevant Variables'!E558 -> 0 | BJ97: ='Relevant Variables'!E588 -> 0 | BK97: ='Relevant Variables'!E618 -> 0
A98: 2012-03-01 | C98: ='Energy Consumption'!F65 -> 0 | D98: ='Energy Consumption'!F66 -> 0 | E98: ='Energy Consumption'!F147 -> 0 | F98: ='Energy Consumption'!F148 -> 0 | G98: ='Energy Consumption'!F229 -> 0 | H98: ='Energy Consumption'!F230 -> 0 | I98: ='Energy Consumption'!F311 -> 0 | J98: ='Energy Consumption'!F312 -> 0 | K98: ='Energy Consumption'!F393 -> 0 | L98: ='Energy Consumption'!F394 -> 0 | M98: ='Energy Consumption'!F475 -> 0 | N98: ='Energy Consumption'!F476 -> 0 | O98: ='Energy Consumption'!F557 -> 0 | P98: ='Energy Consumption'!F558 -> 0 | Q98: ='Energy Consumption'!F639 -> 0 | R98: ='Energy Consumption'!F640 -> 0 | S98: ='Energy Consumption'!F721 -> 0 | T98: ='Energy Consumption'!F722 -> 0 | U98: ='Energy Consumption'!F803 -> 0 | V98: ='Energy Consumption'!F804 -> 0 | W98: ='Energy Consumption'!F885 -> 0 | X98: ='Energy Consumption'!F886 -> 0 | Y98: ='Energy Consumption'!F967 -> 0 | Z98: ='Energy Consumption'!F968 -> 0 | AA98: ='Energy Consumption'!F1049 -> 0 | AB98: ='Energy Consumption'!F1050 -> 0 | AC98: ='Energy Consumption'!F1131 -> 0 | AD98: ='Energy Consumption'!F1132 -> 0 | AE98: ='Energy Consumption'!F1213 -> 0 | AF98: ='Energy Consumption'!F1214 -> 0 | AG98: ='Energy Consumption'!F1295 -> 0 | AH98: ='Energy Consumption'!F1296 -> 0 | AI98: ='Energy Consumption'!F1377 -> 0 | AJ98: ='Energy Consumption'!F1378 -> 0 | AK98: ='Energy Consumption'!F1459 -> 0 | AL98: ='Energy Consumption'!F1460 -> 0 | AM98: ='Energy Consumption'!F1541 -> 0 | AN98: ='Energy Consumption'!F1542 -> 0 | AO98: ='Energy Consumption'!F1623 -> 0 | AP98: ='Energy Consumption'!F1624 -> 0 | AR98: ='Relevant Variables'!F48 -> 0 | AS98: ='Relevant Variables'!F78 -> 0 | AT98: ='Relevant Variables'!F108 -> 0 | AU98: ='Relevant Variables'!F138 -> 0 | AV98: ='Relevant Variables'!F168 -> 0 | AW98: ='Relevant Variables'!F198 -> 0 | AX98: ='Relevant Variables'!F228 -> 0 | AY98: ='Relevant Variables'!F258 -> 0 | AZ98: ='Relevant Variables'!F288 -> 0 | BA98: ='Relevant Variables'!F318 -> 0 | BB98: ='Relevant Variables'!F348 -> 0 | BC98: ='Relevant Variables'!F378 -> 0 | BD98: ='Relevant Variables'!F408 -> 0 | BE98: ='Relevant Variables'!F438 -> 0 | BF98: ='Relevant Variables'!F468 -> 0 | BG98: ='Relevant Variables'!F498 -> 0 | BH98: ='Relevant Variables'!F528 -> 0 | BI98: ='Relevant Variables'!F558 -> 0 | BJ98: ='Relevant Variables'!F588 -> 0 | BK98: ='Relevant Variables'!F618 -> 0
A99: 2012-04-01 | C99: ='Energy Consumption'!G65 -> 0 | D99: ='Energy Consumption'!G66 -> 0 | E99: ='Energy Consumption'!G147 -> 0 | F99: ='Energy Consumption'!G148 -> 0 | G99: ='Energy Consumption'!G229 -> 0 | H99: ='Energy Consumption'!G230 -> 0 | I99: ='Energy Consumption'!G311 -> 0 | J99: ='Energy Consumption'!G312 -> 0 | K99: ='Energy Consumption'!G393 -> 0 | L99: ='Energy Consumption'!G394 -> 0 | M99: ='Energy Consumption'!G475 -> 0 | N99: ='Energy Consumption'!G476 -> 0 | O99: ='Energy Consumption'!G557 -> 0 | P99: ='Energy Consumption'!G558 -> 0 | Q99: ='Energy Consumption'!G639 -> 0 | R99: ='Energy Consumption'!G640 -> 0 | S99: ='Energy Consumption'!G721 -> 0 | T99: ='Energy Consumption'!G722 -> 0 | U99: ='Energy Consumption'!G803 -> 0 | V99: ='Energy Consumption'!G804 -> 0 | W99: ='Energy Consumption'!G885 -> 0 | X99: ='Energy Consumption'!G886 -> 0 | Y99: ='Energy Consumption'!G967 -> 0 | Z99: ='Energy Consumption'!G968 -> 0 | AA99: ='Energy Consumption'!G1049 -> 0 | AB99: ='Energy Consumption'!G1050 -> 0 | AC99: ='Energy Consumption'!G1131 -> 0 | AD99: ='Energy Consumption'!G1132 -> 0 | AE99: ='Energy Consumption'!G1213 -> 0 | AF99: ='Energy Consumption'!G1214 -> 0 | AG99: ='Energy Consumption'!G1295 -> 0 | AH99: ='Energy Consumption'!G1296 -> 0 | AI99: ='Energy Consumption'!G1377 -> 0 | AJ99: ='Energy Consumption'!G1378 -> 0 | AK99: ='Energy Consumption'!G1459 -> 0 | AL99: ='Energy Consumption'!G1460 -> 0 | AM99: ='Energy Consumption'!G1541 -> 0 | AN99: ='Energy Consumption'!G1542 -> 0 | AO99: ='Energy Consumption'!G1623 -> 0 | AP99: ='Energy Consumption'!G1624 -> 0 | AR99: ='Relevant Variables'!G48 -> 0 | AS99: ='Relevant Variables'!G78 -> 0 | AT99: ='Relevant Variables'!G108 -> 0 | AU99: ='Relevant Variables'!G138 -> 0 | AV99: ='Relevant Variables'!G168 -> 0 | AW99: ='Relevant Variables'!G198 -> 0 | AX99: ='Relevant Variables'!G228 -> 0 | AY99: ='Relevant Variables'!G258 -> 0 | AZ99: ='Relevant Variables'!G288 -> 0 | BA99: ='Relevant Variables'!G318 -> 0 | BB99: ='Relevant Variables'!G348 -> 0 | BC99: ='Relevant Variables'!G378 -> 0 | BD99: ='Relevant Variables'!G408 -> 0 | BE99: ='Relevant Variables'!G438 -> 0 | BF99: ='Relevant Variables'!G468 -> 0 | BG99: ='Relevant Variables'!G498 -> 0 | BH99: ='Relevant Variables'!G528 -> 0 | BI99: ='Relevant Variables'!G558 -> 0 | BJ99: ='Relevant Variables'!G588 -> 0 | BK99: ='Relevant Variables'!G618 -> 0
A100: 2012-05-01 | C100: ='Energy Consumption'!H65 -> 0 | D100: ='Energy Consumption'!H66 -> 0 | E100: ='Energy Consumption'!H147 -> 0 | F100: ='Energy Consumption'!H148 -> 0 | G100: ='Energy Consumption'!H229 -> 0 | H100: ='Energy Consumption'!H230 -> 0 | I100: ='Energy Consumption'!H311 -> 0 | J100: ='Energy Consumption'!H312 -> 0 | K100: ='Energy Consumption'!H393 -> 0 | L100: ='Energy Consumption'!H394 -> 0 | M100: ='Energy Consumption'!H475 -> 0 | N100: ='Energy Consumption'!H476 -> 0 | O100: ='Energy Consumption'!H557 -> 0 | P100: ='Energy Consumption'!H558 -> 0 | Q100: ='Energy Consumption'!H639 -> 0 | R100: ='Energy Consumption'!H640 -> 0 | S100: ='Energy Consumption'!H721 -> 0 | T100: ='Energy Consumption'!H722 -> 0 | U100: ='Energy Consumption'!H803 -> 0 | V100: ='Energy Consumption'!H804 -> 0 | W100: ='Energy Consumption'!H885 -> 0 | X100: ='Energy Consumption'!H886 -> 0 | Y100: ='Energy Consumption'!H967 -> 0 | Z100: ='Energy Consumption'!H968 -> 0 | AA100: ='Energy Consumption'!H1049 -> 0 | AB100: ='Energy Consumption'!H1050 -> 0 | AC100: ='Energy Consumption'!H1131 -> 0 | AD100: ='Energy Consumption'!H1132 -> 0 | AE100: ='Energy Consumption'!H1213 -> 0 | AF100: ='Energy Consumption'!H1214 -> 0 | AG100: ='Energy Consumption'!H1295 -> 0 | AH100: ='Energy Consumption'!H1296 -> 0 | AI100: ='Energy Consumption'!H1377 -> 0 | AJ100: ='Energy Consumption'!H1378 -> 0 | AK100: ='Energy Consumption'!H1459 -> 0 | AL100: ='Energy Consumption'!H1460 -> 0 | AM100: ='Energy Consumption'!H1541 -> 0 | AN100: ='Energy Consumption'!H1542 -> 0 | AO100: ='Energy Consumption'!H1623 -> 0 | AP100: ='Energy Consumption'!H1624 -> 0 | AR100: ='Relevant Variables'!H48 -> 0 | AS100: ='Relevant Variables'!H78 -> 0 | AT100: ='Relevant Variables'!H108 -> 0 | AU100: ='Relevant Variables'!H138 -> 0 | AV100: ='Relevant Variables'!H168 -> 0 | AW100: ='Relevant Variables'!H198 -> 0 | AX100: ='Relevant Variables'!H228 -> 0 | AY100: ='Relevant Variables'!H258 -> 0 | AZ100: ='Relevant Variables'!H288 -> 0 | BA100: ='Relevant Variables'!H318 -> 0 | BB100: ='Relevant Variables'!H348 -> 0 | BC100: ='Relevant Variables'!H378 -> 0 | BD100: ='Relevant Variables'!H408 -> 0 | BE100: ='Relevant Variables'!H438 -> 0 | BF100: ='Relevant Variables'!H468 -> 0 | BG100: ='Relevant Variables'!H498 -> 0 | BH100: ='Relevant Variables'!H528 -> 0 | BI100: ='Relevant Variables'!H558 -> 0 | BJ100: ='Relevant Variables'!H588 -> 0 | BK100: ='Relevant Variables'!H618 -> 0
A101: 2012-06-01 | C101: ='Energy Consumption'!I65 -> 0 | D101: ='Energy Consumption'!I66 -> 0 | E101: ='Energy Consumption'!I147 -> 0 | F101: ='Energy Consumption'!I148 -> 0 | G101: ='Energy Consumption'!I229 -> 0 | H101: ='Energy Consumption'!I230 -> 0 | I101: ='Energy Consumption'!I311 -> 0 | J101: ='Energy Consumption'!I312 -> 0 | K101: ='Energy Consumption'!I393 -> 0 | L101: ='Energy Consumption'!I394 -> 0 | M101: ='Energy Consumption'!I475 -> 0 | N101: ='Energy Consumption'!I476 -> 0 | O101: ='Energy Consumption'!I557 -> 0 | P101: ='Energy Consumption'!I558 -> 0 | Q101: ='Energy Consumption'!I639 -> 0 | R101: ='Energy Consumption'!I640 -> 0 | S101: ='Energy Consumption'!I721 -> 0 | T101: ='Energy Consumption'!I722 -> 0 | U101: ='Energy Consumption'!I803 -> 0 | V101: ='Energy Consumption'!I804 -> 0 | W101: ='Energy Consumption'!I885 -> 0 | X101: ='Energy Consumption'!I886 -> 0 | Y101: ='Energy Consumption'!I967 -> 0 | Z101: ='Energy Consumption'!I968 -> 0 | AA101: ='Energy Consumption'!I1049 -> 0 | AB101: ='Energy Consumption'!I1050 -> 0 | AC101: ='Energy Consumption'!I1131 -> 0 | AD101: ='Energy Consumption'!I1132 -> 0 | AE101: ='Energy Consumption'!I1213 -> 0 | AF101: ='Energy Consumption'!I1214 -> 0 | AG101: ='Energy Consumption'!I1295 -> 0 | AH101: ='Energy Consumption'!I1296 -> 0 | AI101: ='Energy Consumption'!I1377 -> 0 | AJ101: ='Energy Consumption'!I1378 -> 0 | AK101: ='Energy Consumption'!I1459 -> 0 | AL101: ='Energy Consumption'!I1460 -> 0 | AM101: ='Energy Consumption'!I1541 -> 0 | AN101: ='Energy Consumption'!I1542 -> 0 | AO101: ='Energy Consumption'!I1623 -> 0 | AP101: ='Energy Consumption'!I1624 -> 0 | AR101: ='Relevant Variables'!I48 -> 0 | AS101: ='Relevant Variables'!I78 -> 0 | AT101: ='Relevant Variables'!I108 -> 0 | AU101: ='Relevant Variables'!I138 -> 0 | AV101: ='Relevant Variables'!I168 -> 0 | AW101: ='Relevant Variables'!I198 -> 0 | AX101: ='Relevant Variables'!I228 -> 0 | AY101: ='Relevant Variables'!I258 -> 0 | AZ101: ='Relevant Variables'!I288 -> 0 | BA101: ='Relevant Variables'!I318 -> 0 | BB101: ='Relevant Variables'!I348 -> 0 | BC101: ='Relevant Variables'!I378 -> 0 | BD101: ='Relevant Variables'!I408 -> 0 | BE101: ='Relevant Variables'!I438 -> 0 | BF101: ='Relevant Variables'!I468 -> 0 | BG101: ='Relevant Variables'!I498 -> 0 | BH101: ='Relevant Variables'!I528 -> 0 | BI101: ='Relevant Variables'!I558 -> 0 | BJ101: ='Relevant Variables'!I588 -> 0 | BK101: ='Relevant Variables'!I618 -> 0
A102: 2012-07-01 | C102: ='Energy Consumption'!J65 -> 0 | D102: ='Energy Consumption'!J66 -> 0 | E102: ='Energy Consumption'!J147 -> 0 | F102: ='Energy Consumption'!J148 -> 0 | G102: ='Energy Consumption'!J229 -> 0 | H102: ='Energy Consumption'!J230 -> 0 | I102: ='Energy Consumption'!J311 -> 0 | J102: ='Energy Consumption'!J312 -> 0 | K102: ='Energy Consumption'!J393 -> 0 | L102: ='Energy Consumption'!J394 -> 0 | M102: ='Energy Consumption'!J475 -> 0 | N102: ='Energy Consumption'!J476 -> 0 | O102: ='Energy Consumption'!J557 -> 0 | P102: ='Energy Consumption'!J558 -> 0 | Q102: ='Energy Consumption'!J639 -> 0 | R102: ='Energy Consumption'!J640 -> 0 | S102: ='Energy Consumption'!J721 -> 0 | T102: ='Energy Consumption'!J722 -> 0 | U102: ='Energy Consumption'!J803 -> 0 | V102: ='Energy Consumption'!J804 -> 0 | W102: ='Energy Consumption'!J885 -> 0 | X102: ='Energy Consumption'!J886 -> 0 | Y102: ='Energy Consumption'!J967 -> 0 | Z102: ='Energy Consumption'!J968 -> 0 | AA102: ='Energy Consumption'!J1049 -> 0 | AB102: ='Energy Consumption'!J1050 -> 0 | AC102: ='Energy Consumption'!J1131 -> 0 | AD102: ='Energy Consumption'!J1132 -> 0 | AE102: ='Energy Consumption'!J1213 -> 0 | AF102: ='Energy Consumption'!J1214 -> 0 | AG102: ='Energy Consumption'!J1295 -> 0 | AH102: ='Energy Consumption'!J1296 -> 0 | AI102: ='Energy Consumption'!J1377 -> 0 | AJ102: ='Energy Consumption'!J1378 -> 0 | AK102: ='Energy Consumption'!J1459 -> 0 | AL102: ='Energy Consumption'!J1460 -> 0 | AM102: ='Energy Consumption'!J1541 -> 0 | AN102: ='Energy Consumption'!J1542 -> 0 | AO102: ='Energy Consumption'!J1623 -> 0 | AP102: ='Energy Consumption'!J1624 -> 0 | AR102: ='Relevant Variables'!J48 -> 0 | AS102: ='Relevant Variables'!J78 -> 0 | AT102: ='Relevant Variables'!J108 -> 0 | AU102: ='Relevant Variables'!J138 -> 0 | AV102: ='Relevant Variables'!J168 -> 0 | AW102: ='Relevant Variables'!J198 -> 0 | AX102: ='Relevant Variables'!J228 -> 0 | AY102: ='Relevant Variables'!J258 -> 0 | AZ102: ='Relevant Variables'!J288 -> 0 | BA102: ='Relevant Variables'!J318 -> 0 | BB102: ='Relevant Variables'!J348 -> 0 | BC102: ='Relevant Variables'!J378 -> 0 | BD102: ='Relevant Variables'!J408 -> 0 | BE102: ='Relevant Variables'!J438 -> 0 | BF102: ='Relevant Variables'!J468 -> 0 | BG102: ='Relevant Variables'!J498 -> 0 | BH102: ='Relevant Variables'!J528 -> 0 | BI102: ='Relevant Variables'!J558 -> 0 | BJ102: ='Relevant Variables'!J588 -> 0 | BK102: ='Relevant Variables'!J618 -> 0
A103: 2012-08-01 | C103: ='Energy Consumption'!K65 -> 0 | D103: ='Energy Consumption'!K66 -> 0 | E103: ='Energy Consumption'!K147 -> 0 | F103: ='Energy Consumption'!K148 -> 0 | G103: ='Energy Consumption'!K229 -> 0 | H103: ='Energy Consumption'!K230 -> 0 | I103: ='Energy Consumption'!K311 -> 0 | J103: ='Energy Consumption'!K312 -> 0 | K103: ='Energy Consumption'!K393 -> 0 | L103: ='Energy Consumption'!K394 -> 0 | M103: ='Energy Consumption'!K475 -> 0 | N103: ='Energy Consumption'!K476 -> 0 | O103: ='Energy Consumption'!K557 -> 0 | P103: ='Energy Consumption'!K558 -> 0 | Q103: ='Energy Consumption'!K639 -> 0 | R103: ='Energy Consumption'!K640 -> 0 | S103: ='Energy Consumption'!K721 -> 0 | T103: ='Energy Consumption'!K722 -> 0 | U103: ='Energy Consumption'!K803 -> 0 | V103: ='Energy Consumption'!K804 -> 0 | W103: ='Energy Consumption'!K885 -> 0 | X103: ='Energy Consumption'!K886 -> 0 | Y103: ='Energy Consumption'!K967 -> 0 | Z103: ='Energy Consumption'!K968 -> 0 | AA103: ='Energy Consumption'!K1049 -> 0 | AB103: ='Energy Consumption'!K1050 -> 0 | AC103: ='Energy Consumption'!K1131 -> 0 | AD103: ='Energy Consumption'!K1132 -> 0 | AE103: ='Energy Consumption'!K1213 -> 0 | AF103: ='Energy Consumption'!K1214 -> 0 | AG103: ='Energy Consumption'!K1295 -> 0 | AH103: ='Energy Consumption'!K1296 -> 0 | AI103: ='Energy Consumption'!K1377 -> 0 | AJ103: ='Energy Consumption'!K1378 -> 0 | AK103: ='Energy Consumption'!K1459 -> 0 | AL103: ='Energy Consumption'!K1460 -> 0 | AM103: ='Energy Consumption'!K1541 -> 0 | AN103: ='Energy Consumption'!K1542 -> 0 | AO103: ='Energy Consumption'!K1623 -> 0 | AP103: ='Energy Consumption'!K1624 -> 0 | AR103: ='Relevant Variables'!K48 -> 0 | AS103: ='Relevant Variables'!K78 -> 0 | AT103: ='Relevant Variables'!K108 -> 0 | AU103: ='Relevant Variables'!K138 -> 0 | AV103: ='Relevant Variables'!K168 -> 0 | AW103: ='Relevant Variables'!K198 -> 0 | AX103: ='Relevant Variables'!K228 -> 0 | AY103: ='Relevant Variables'!K258 -> 0 | AZ103: ='Relevant Variables'!K288 -> 0 | BA103: ='Relevant Variables'!K318 -> 0 | BB103: ='Relevant Variables'!K348 -> 0 | BC103: ='Relevant Variables'!K378 -> 0 | BD103: ='Relevant Variables'!K408 -> 0 | BE103: ='Relevant Variables'!K438 -> 0 | BF103: ='Relevant Variables'!K468 -> 0 | BG103: ='Relevant Variables'!K498 -> 0 | BH103: ='Relevant Variables'!K528 -> 0 | BI103: ='Relevant Variables'!K558 -> 0 | BJ103: ='Relevant Variables'!K588 -> 0 | BK103: ='Relevant Variables'!K618 -> 0
A104: 2012-09-01 | C104: ='Energy Consumption'!L65 -> 0 | D104: ='Energy Consumption'!L66 -> 0 | E104: ='Energy Consumption'!L147 -> 0 | F104: ='Energy Consumption'!L148 -> 0 | G104: ='Energy Consumption'!L229 -> 0 | H104: ='Energy Consumption'!L230 -> 0 | I104: ='Energy Consumption'!L311 -> 0 | J104: ='Energy Consumption'!L312 -> 0 | K104: ='Energy Consumption'!L393 -> 0 | L104: ='Energy Consumption'!L394 -> 0 | M104: ='Energy Consumption'!L475 -> 0 | N104: ='Energy Consumption'!L476 -> 0 | O104: ='Energy Consumption'!L557 -> 0 | P104: ='Energy Consumption'!L558 -> 0 | Q104: ='Energy Consumption'!L639 -> 0 | R104: ='Energy Consumption'!L640 -> 0 | S104: ='Energy Consumption'!L721 -> 0 | T104: ='Energy Consumption'!L722 -> 0 | U104: ='Energy Consumption'!L803 -> 0 | V104: ='Energy Consumption'!L804 -> 0 | W104: ='Energy Consumption'!L885 -> 0 | X104: ='Energy Consumption'!L886 -> 0 | Y104: ='Energy Consumption'!L967 -> 0 | Z104: ='Energy Consumption'!L968 -> 0 | AA104: ='Energy Consumption'!L1049 -> 0 | AB104: ='Energy Consumption'!L1050 -> 0 | AC104: ='Energy Consumption'!L1131 -> 0 | AD104: ='Energy Consumption'!L1132 -> 0 | AE104: ='Energy Consumption'!L1213 -> 0 | AF104: ='Energy Consumption'!L1214 -> 0 | AG104: ='Energy Consumption'!L1295 -> 0 | AH104: ='Energy Consumption'!L1296 -> 0 | AI104: ='Energy Consumption'!L1377 -> 0 | AJ104: ='Energy Consumption'!L1378 -> 0 | AK104: ='Energy Consumption'!L1459 -> 0 | AL104: ='Energy Consumption'!L1460 -> 0 | AM104: ='Energy Consumption'!L1541 -> 0 | AN104: ='Energy Consumption'!L1542 -> 0 | AO104: ='Energy Consumption'!L1623 -> 0 | AP104: ='Energy Consumption'!L1624 -> 0 | AR104: ='Relevant Variables'!L48 -> 0 | AS104: ='Relevant Variables'!L78 -> 0 | AT104: ='Relevant Variables'!L108 -> 0 | AU104: ='Relevant Variables'!L138 -> 0 | AV104: ='Relevant Variables'!L168 -> 0 | AW104: ='Relevant Variables'!L198 -> 0 | AX104: ='Relevant Variables'!L228 -> 0 | AY104: ='Relevant Variables'!L258 -> 0 | AZ104: ='Relevant Variables'!L288 -> 0 | BA104: ='Relevant Variables'!L318 -> 0 | BB104: ='Relevant Variables'!L348 -> 0 | BC104: ='Relevant Variables'!L378 -> 0 | BD104: ='Relevant Variables'!L408 -> 0 | BE104: ='Relevant Variables'!L438 -> 0 | BF104: ='Relevant Variables'!L468 -> 0 | BG104: ='Relevant Variables'!L498 -> 0 | BH104: ='Relevant Variables'!L528 -> 0 | BI104: ='Relevant Variables'!L558 -> 0 | BJ104: ='Relevant Variables'!L588 -> 0 | BK104: ='Relevant Variables'!L618 -> 0
A105: 2012-10-01 | C105: ='Energy Consumption'!M65 -> 0 | D105: ='Energy Consumption'!M66 -> 0 | E105: ='Energy Consumption'!M147 -> 0 | F105: ='Energy Consumption'!M148 -> 0 | G105: ='Energy Consumption'!M229 -> 0 | H105: ='Energy Consumption'!M230 -> 0 | I105: ='Energy Consumption'!M311 -> 0 | J105: ='Energy Consumption'!M312 -> 0 | K105: ='Energy Consumption'!M393 -> 0 | L105: ='Energy Consumption'!M394 -> 0 | M105: ='Energy Consumption'!M475 -> 0 | N105: ='Energy Consumption'!M476 -> 0 | O105: ='Energy Consumption'!M557 -> 0 | P105: ='Energy Consumption'!M558 -> 0 | Q105: ='Energy Consumption'!M639 -> 0 | R105: ='Energy Consumption'!M640 -> 0 | S105: ='Energy Consumption'!M721 -> 0 | T105: ='Energy Consumption'!M722 -> 0 | U105: ='Energy Consumption'!M803 -> 0 | V105: ='Energy Consumption'!M804 -> 0 | W105: ='Energy Consumption'!M885 -> 0 | X105: ='Energy Consumption'!M886 -> 0 | Y105: ='Energy Consumption'!M967 -> 0 | Z105: ='Energy Consumption'!M968 -> 0 | AA105: ='Energy Consumption'!M1049 -> 0 | AB105: ='Energy Consumption'!M1050 -> 0 | AC105: ='Energy Consumption'!M1131 -> 0 | AD105: ='Energy Consumption'!M1132 -> 0 | AE105: ='Energy Consumption'!M1213 -> 0 | AF105: ='Energy Consumption'!M1214 -> 0 | AG105: ='Energy Consumption'!M1295 -> 0 | AH105: ='Energy Consumption'!M1296 -> 0 | AI105: ='Energy Consumption'!M1377 -> 0 | AJ105: ='Energy Consumption'!M1378 -> 0 | AK105: ='Energy Consumption'!M1459 -> 0 | AL105: ='Energy Consumption'!M1460 -> 0 | AM105: ='Energy Consumption'!M1541 -> 0 | AN105: ='Energy Consumption'!M1542 -> 0 | AO105: ='Energy Consumption'!M1623 -> 0 | AP105: ='Energy Consumption'!M1624 -> 0 | AR105: ='Relevant Variables'!M48 -> 0 | AS105: ='Relevant Variables'!M78 -> 0 | AT105: ='Relevant Variables'!M108 -> 0 | AU105: ='Relevant Variables'!M138 -> 0 | AV105: ='Relevant Variables'!M168 -> 0 | AW105: ='Relevant Variables'!M198 -> 0 | AX105: ='Relevant Variables'!M228 -> 0 | AY105: ='Relevant Variables'!M258 -> 0 | AZ105: ='Relevant Variables'!M288 -> 0 | BA105: ='Relevant Variables'!M318 -> 0 | BB105: ='Relevant Variables'!M348 -> 0 | BC105: ='Relevant Variables'!M378 -> 0 | BD105: ='Relevant Variables'!M408 -> 0 | BE105: ='Relevant Variables'!M438 -> 0 | BF105: ='Relevant Variables'!M468 -> 0 | BG105: ='Relevant Variables'!M498 -> 0 | BH105: ='Relevant Variables'!M528 -> 0 | BI105: ='Relevant Variables'!M558 -> 0 | BJ105: ='Relevant Variables'!M588 -> 0 | BK105: ='Relevant Variables'!M618 -> 0
A106: 2012-11-01 | C106: ='Energy Consumption'!N65 -> 0 | D106: ='Energy Consumption'!N66 -> 0 | E106: ='Energy Consumption'!N147 -> 0 | F106: ='Energy Consumption'!N148 -> 0 | G106: ='Energy Consumption'!N229 -> 0 | H106: ='Energy Consumption'!N230 -> 0 | I106: ='Energy Consumption'!N311 -> 0 | J106: ='Energy Consumption'!N312 -> 0 | K106: ='Energy Consumption'!N393 -> 0 | L106: ='Energy Consumption'!N394 -> 0 | M106: ='Energy Consumption'!N475 -> 0 | N106: ='Energy Consumption'!N476 -> 0 | O106: ='Energy Consumption'!N557 -> 0 | P106: ='Energy Consumption'!N558 -> 0 | Q106: ='Energy Consumption'!N639 -> 0 | R106: ='Energy Consumption'!N640 -> 0 | S106: ='Energy Consumption'!N721 -> 0 | T106: ='Energy Consumption'!N722 -> 0 | U106: ='Energy Consumption'!N803 -> 0 | V106: ='Energy Consumption'!N804 -> 0 | W106: ='Energy Consumption'!N885 -> 0 | X106: ='Energy Consumption'!N886 -> 0 | Y106: ='Energy Consumption'!N967 -> 0 | Z106: ='Energy Consumption'!N968 -> 0 | AA106: ='Energy Consumption'!N1049 -> 0 | AB106: ='Energy Consumption'!N1050 -> 0 | AC106: ='Energy Consumption'!N1131 -> 0 | AD106: ='Energy Consumption'!N1132 -> 0 | AE106: ='Energy Consumption'!N1213 -> 0 | AF106: ='Energy Consumption'!N1214 -> 0 | AG106: ='Energy Consumption'!N1295 -> 0 | AH106: ='Energy Consumption'!N1296 -> 0 | AI106: ='Energy Consumption'!N1377 -> 0 | AJ106: ='Energy Consumption'!N1378 -> 0 | AK106: ='Energy Consumption'!N1459 -> 0 | AL106: ='Energy Consumption'!N1460 -> 0 | AM106: ='Energy Consumption'!N1541 -> 0 | AN106: ='Energy Consumption'!N1542 -> 0 | AO106: ='Energy Consumption'!N1623 -> 0 | AP106: ='Energy Consumption'!N1624 -> 0 | AR106: ='Relevant Variables'!N48 -> 0 | AS106: ='Relevant Variables'!N78 -> 0 | AT106: ='Relevant Variables'!N108 -> 0 | AU106: ='Relevant Variables'!N138 -> 0 | AV106: ='Relevant Variables'!N168 -> 0 | AW106: ='Relevant Variables'!N198 -> 0 | AX106: ='Relevant Variables'!N228 -> 0 | AY106: ='Relevant Variables'!N258 -> 0 | AZ106: ='Relevant Variables'!N288 -> 0 | BA106: ='Relevant Variables'!N318 -> 0 | BB106: ='Relevant Variables'!N348 -> 0 | BC106: ='Relevant Variables'!N378 -> 0 | BD106: ='Relevant Variables'!N408 -> 0 | BE106: ='Relevant Variables'!N438 -> 0 | BF106: ='Relevant Variables'!N468 -> 0 | BG106: ='Relevant Variables'!N498 -> 0 | BH106: ='Relevant Variables'!N528 -> 0 | BI106: ='Relevant Variables'!N558 -> 0 | BJ106: ='Relevant Variables'!N588 -> 0 | BK106: ='Relevant Variables'!N618 -> 0
A107: 2012-12-01 | C107: ='Energy Consumption'!O65 -> 0 | D107: ='Energy Consumption'!O66 -> 0 | E107: ='Energy Consumption'!O147 -> 0 | F107: ='Energy Consumption'!O148 -> 0 | G107: ='Energy Consumption'!O229 -> 0 | H107: ='Energy Consumption'!O230 -> 0 | I107: ='Energy Consumption'!O311 -> 0 | J107: ='Energy Consumption'!O312 -> 0 | K107: ='Energy Consumption'!O393 -> 0 | L107: ='Energy Consumption'!O394 -> 0 | M107: ='Energy Consumption'!O475 -> 0 | N107: ='Energy Consumption'!O476 -> 0 | O107: ='Energy Consumption'!O557 -> 0 | P107: ='Energy Consumption'!O558 -> 0 | Q107: ='Energy Consumption'!O639 -> 0 | R107: ='Energy Consumption'!O640 -> 0 | S107: ='Energy Consumption'!O721 -> 0 | T107: ='Energy Consumption'!O722 -> 0 | U107: ='Energy Consumption'!O803 -> 0 | V107: ='Energy Consumption'!O804 -> 0 | W107: ='Energy Consumption'!O885 -> 0 | X107: ='Energy Consumption'!O886 -> 0 | Y107: ='Energy Consumption'!O967 -> 0 | Z107: ='Energy Consumption'!O968 -> 0 | AA107: ='Energy Consumption'!O1049 -> 0 | AB107: ='Energy Consumption'!O1050 -> 0 | AC107: ='Energy Consumption'!O1131 -> 0 | AD107: ='Energy Consumption'!O1132 -> 0 | AE107: ='Energy Consumption'!O1213 -> 0 | AF107: ='Energy Consumption'!O1214 -> 0 | AG107: ='Energy Consumption'!O1295 -> 0 | AH107: ='Energy Consumption'!O1296 -> 0 | AI107: ='Energy Consumption'!O1377 -> 0 | AJ107: ='Energy Consumption'!O1378 -> 0 | AK107: ='Energy Consumption'!O1459 -> 0 | AL107: ='Energy Consumption'!O1460 -> 0 | AM107: ='Energy Consumption'!O1541 -> 0 | AN107: ='Energy Consumption'!O1542 -> 0 | AO107: ='Energy Consumption'!O1623 -> 0 | AP107: ='Energy Consumption'!O1624 -> 0 | AR107: ='Relevant Variables'!O48 -> 0 | AS107: ='Relevant Variables'!O78 -> 0 | AT107: ='Relevant Variables'!O108 -> 0 | AU107: ='Relevant Variables'!O138 -> 0 | AV107: ='Relevant Variables'!O168 -> 0 | AW107: ='Relevant Variables'!O198 -> 0 | AX107: ='Relevant Variables'!O228 -> 0 | AY107: ='Relevant Variables'!O258 -> 0 | AZ107: ='Relevant Variables'!O288 -> 0 | BA107: ='Relevant Variables'!O318 -> 0 | BB107: ='Relevant Variables'!O348 -> 0 | BC107: ='Relevant Variables'!O378 -> 0 | BD107: ='Relevant Variables'!O408 -> 0 | BE107: ='Relevant Variables'!O438 -> 0 | BF107: ='Relevant Variables'!O468 -> 0 | BG107: ='Relevant Variables'!O498 -> 0 | BH107: ='Relevant Variables'!O528 -> 0 | BI107: ='Relevant Variables'!O558 -> 0 | BJ107: ='Relevant Variables'!O588 -> 0 | BK107: ='Relevant Variables'!O618 -> 0
A108: 2013-01-01 | C108: ='Energy Consumption'!D63 -> 0 | D108: ='Energy Consumption'!D64 -> 0 | E108: ='Energy Consumption'!D145 -> 0 | F108: ='Energy Consumption'!D146 -> 0 | G108: ='Energy Consumption'!D227 -> 0 | H108: ='Energy Consumption'!D228 -> 0 | I108: ='Energy Consumption'!D309 -> 0 | J108: ='Energy Consumption'!D310 -> 0 | K108: ='Energy Consumption'!D391 -> 0 | L108: ='Energy Consumption'!D392 -> 0 | M108: ='Energy Consumption'!D473 -> 0 | N108: ='Energy Consumption'!D474 -> 0 | O108: ='Energy Consumption'!D555 -> 0 | P108: ='Energy Consumption'!D556 -> 0 | Q108: ='Energy Consumption'!D637 -> 0 | R108: ='Energy Consumption'!D638 -> 0 | S108: ='Energy Consumption'!D719 -> 0 | T108: ='Energy Consumption'!D720 -> 0 | U108: ='Energy Consumption'!D801 -> 0 | V108: ='Energy Consumption'!D802 -> 0 | W108: ='Energy Consumption'!D883 -> 0 | X108: ='Energy Consumption'!D884 -> 0 | Y108: ='Energy Consumption'!D965 -> 0 | Z108: ='Energy Consumption'!D966 -> 0 | AA108: ='Energy Consumption'!D1047 -> 0 | AB108: ='Energy Consumption'!D1048 -> 0 | AC108: ='Energy Consumption'!D1129 -> 0 | AD108: ='Energy Consumption'!D1130 -> 0 | AE108: ='Energy Consumption'!D1211 -> 0 | AF108: ='Energy Consumption'!D1212 -> 0 | AG108: ='Energy Consumption'!D1293 -> 0 | AH108: ='Energy Consumption'!D1294 -> 0 | AI108: ='Energy Consumption'!D1375 -> 0 | AJ108: ='Energy Consumption'!D1376 -> 0 | AK108: ='Energy Consumption'!D1457 -> 0 | AL108: ='Energy Consumption'!D1458 -> 0 | AM108: ='Energy Consumption'!D1539 -> 0 | AN108: ='Energy Consumption'!D1540 -> 0 | AO108: ='Energy Consumption'!D1621 -> 0 | AP108: ='Energy Consumption'!D1622 -> 0 | AR108: ='Relevant Variables'!D47 -> 0 | AS108: ='Relevant Variables'!D77 -> 0 | AT108: ='Relevant Variables'!D107 -> 0 | AU108: ='Relevant Variables'!D137 -> 0 | AV108: ='Relevant Variables'!D167 -> 0 | AW108: ='Relevant Variables'!D197 -> 0 | AX108: ='Relevant Variables'!D227 -> 0 | AY108: ='Relevant Variables'!D257 -> 0 | AZ108: ='Relevant Variables'!D287 -> 0 | BA108: ='Relevant Variables'!D317 -> 0 | BB108: ='Relevant Variables'!D347 -> 0 | BC108: ='Relevant Variables'!D377 -> 0 | BD108: ='Relevant Variables'!D407 -> 0 | BE108: ='Relevant Variables'!D437 -> 0 | BF108: ='Relevant Variables'!D467 -> 0 | BG108: ='Relevant Variables'!D497 -> 0 | BH108: ='Relevant Variables'!D527 -> 0 | BI108: ='Relevant Variables'!D557 -> 0 | BJ108: ='Relevant Variables'!D587 -> 0 | BK108: ='Relevant Variables'!D617 -> 0
A109: 2013-02-01 | C109: ='Energy Consumption'!E63 -> 0 | D109: ='Energy Consumption'!E64 -> 0 | E109: ='Energy Consumption'!E145 -> 0 | F109: ='Energy Consumption'!E146 -> 0 | G109: ='Energy Consumption'!E227 -> 0 | H109: ='Energy Consumption'!E228 -> 0 | I109: ='Energy Consumption'!E309 -> 0 | J109: ='Energy Consumption'!E310 -> 0 | K109: ='Energy Consumption'!E391 -> 0 | L109: ='Energy Consumption'!E392 -> 0 | M109: ='Energy Consumption'!E473 -> 0 | N109: ='Energy Consumption'!E474 -> 0 | O109: ='Energy Consumption'!E555 -> 0 | P109: ='Energy Consumption'!E556 -> 0 | Q109: ='Energy Consumption'!E637 -> 0 | R109: ='Energy Consumption'!E638 -> 0 | S109: ='Energy Consumption'!E719 -> 0 | T109: ='Energy Consumption'!E720 -> 0 | U109: ='Energy Consumption'!E801 -> 0 | V109: ='Energy Consumption'!E802 -> 0 | W109: ='Energy Consumption'!E883 -> 0 | X109: ='Energy Consumption'!E884 -> 0 | Y109: ='Energy Consumption'!E965 -> 0 | Z109: ='Energy Consumption'!E966 -> 0 | AA109: ='Energy Consumption'!E1047 -> 0 | AB109: ='Energy Consumption'!E1048 -> 0 | AC109: ='Energy Consumption'!E1129 -> 0 | AD109: ='Energy Consumption'!E1130 -> 0 | AE109: ='Energy Consumption'!E1211 -> 0 | AF109: ='Energy Consumption'!E1212 -> 0 | AG109: ='Energy Consumption'!E1293 -> 0 | AH109: ='Energy Consumption'!E1294 -> 0 | AI109: ='Energy Consumption'!E1375 -> 0 | AJ109: ='Energy Consumption'!E1376 -> 0 | AK109: ='Energy Consumption'!E1457 -> 0 | AL109: ='Energy Consumption'!E1458 -> 0 | AM109: ='Energy Consumption'!E1539 -> 0 | AN109: ='Energy Consumption'!E1540 -> 0 | AO109: ='Energy Consumption'!E1621 -> 0 | AP109: ='Energy Consumption'!E1622 -> 0 | AR109: ='Relevant Variables'!E47 -> 0 | AS109: ='Relevant Variables'!E77 -> 0 | AT109: ='Relevant Variables'!E107 -> 0 | AU109: ='Relevant Variables'!E137 -> 0 | AV109: ='Relevant Variables'!E167 -> 0 | AW109: ='Relevant Variables'!E197 -> 0 | AX109: ='Relevant Variables'!E227 -> 0 | AY109: ='Relevant Variables'!E257 -> 0 | AZ109: ='Relevant Variables'!E287 -> 0 | BA109: ='Relevant Variables'!E317 -> 0 | BB109: ='Relevant Variables'!E347 -> 0 | BC109: ='Relevant Variables'!E377 -> 0 | BD109: ='Relevant Variables'!E407 -> 0 | BE109: ='Relevant Variables'!E437 -> 0 | BF109: ='Relevant Variables'!E467 -> 0 | BG109: ='Relevant Variables'!E497 -> 0 | BH109: ='Relevant Variables'!E527 -> 0 | BI109: ='Relevant Variables'!E557 -> 0 | BJ109: ='Relevant Variables'!E587 -> 0 | BK109: ='Relevant Variables'!E617 -> 0
A110: 2013-03-01 | C110: ='Energy Consumption'!F63 -> 0 | D110: ='Energy Consumption'!F64 -> 0 | E110: ='Energy Consumption'!F145 -> 0 | F110: ='Energy Consumption'!F146 -> 0 | G110: ='Energy Consumption'!F227 -> 0 | H110: ='Energy Consumption'!F228 -> 0 | I110: ='Energy Consumption'!F309 -> 0 | J110: ='Energy Consumption'!F310 -> 0 | K110: ='Energy Consumption'!F391 -> 0 | L110: ='Energy Consumption'!F392 -> 0 | M110: ='Energy Consumption'!F473 -> 0 | N110: ='Energy Consumption'!F474 -> 0 | O110: ='Energy Consumption'!F555 -> 0 | P110: ='Energy Consumption'!F556 -> 0 | Q110: ='Energy Consumption'!F637 -> 0 | R110: ='Energy Consumption'!F638 -> 0 | S110: ='Energy Consumption'!F719 -> 0 | T110: ='Energy Consumption'!F720 -> 0 | U110: ='Energy Consumption'!F801 -> 0 | V110: ='Energy Consumption'!F802 -> 0 | W110: ='Energy Consumption'!F883 -> 0 | X110: ='Energy Consumption'!F884 -> 0 | Y110: ='Energy Consumption'!F965 -> 0 | Z110: ='Energy Consumption'!F966 -> 0 | AA110: ='Energy Consumption'!F1047 -> 0 | AB110: ='Energy Consumption'!F1048 -> 0 | AC110: ='Energy Consumption'!F1129 -> 0 | AD110: ='Energy Consumption'!F1130 -> 0 | AE110: ='Energy Consumption'!F1211 -> 0 | AF110: ='Energy Consumption'!F1212 -> 0 | AG110: ='Energy Consumption'!F1293 -> 0 | AH110: ='Energy Consumption'!F1294 -> 0 | AI110: ='Energy Consumption'!F1375 -> 0 | AJ110: ='Energy Consumption'!F1376 -> 0 | AK110: ='Energy Consumption'!F1457 -> 0 | AL110: ='Energy Consumption'!F1458 -> 0 | AM110: ='Energy Consumption'!F1539 -> 0 | AN110: ='Energy Consumption'!F1540 -> 0 | AO110: ='Energy Consumption'!F1621 -> 0 | AP110: ='Energy Consumption'!F1622 -> 0 | AR110: ='Relevant Variables'!F47 -> 0 | AS110: ='Relevant Variables'!F77 -> 0 | AT110: ='Relevant Variables'!F107 -> 0 | AU110: ='Relevant Variables'!F137 -> 0 | AV110: ='Relevant Variables'!F167 -> 0 | AW110: ='Relevant Variables'!F197 -> 0 | AX110: ='Relevant Variables'!F227 -> 0 | AY110: ='Relevant Variables'!F257 -> 0 | AZ110: ='Relevant Variables'!F287 -> 0 | BA110: ='Relevant Variables'!F317 -> 0 | BB110: ='Relevant Variables'!F347 -> 0 | BC110: ='Relevant Variables'!F377 -> 0 | BD110: ='Relevant Variables'!F407 -> 0 | BE110: ='Relevant Variables'!F437 -> 0 | BF110: ='Relevant Variables'!F467 -> 0 | BG110: ='Relevant Variables'!F497 -> 0 | BH110: ='Relevant Variables'!F527 -> 0 | BI110: ='Relevant Variables'!F557 -> 0 | BJ110: ='Relevant Variables'!F587 -> 0 | BK110: ='Relevant Variables'!F617 -> 0
